Workbook

Sheet RESUMO MODULO TOTAL
E1: Ministério do Desenvolvimento Regional
E2: Companhia de Desenvolvimento dos Vales do São Francisco e do Parnaíba
B5: OBRA: | C5: =B63 -> CONTRATAÇÃO DE SERVIÇOS DE PAVIMENTAÇÃO ASFÁLTICA COM CONCRETO BETUMINOSO USINADO A QUENTE (CBUQ) EM VIAS URBANAS E RURAIS INSERIDAS NA ÁREA DE ATUAÇÃO DA CODEVASF, NO ESTADO DO PIAUÍ - REGIÃO SUL | I5: BDI Serviços (%): | L5: =BDI!C14 -> 0.2339
B6: DATA: | C6: 2025-10-01 | I6: BDI Diferenciado Serviços (%): | L6: =BDI!C65 -> 0.15
B7: PRAZO DE EXECUÇÃO: | G7: R$/m² | H7: =L60/H23 ->  | I7: BDI Fornecimentos (%): | L7: =L6 -> 0.15
B8: PLANILHA DE ORÇAMENTAÇÃO
B9: ITEM | C9: CÓDIGO | D9: FONTE | E9: DISCRIMINAÇÃO | F9: TIPO | G9: UNID. | H9: QUANT. | I9: VR.UNIT.S/BDI | J9: PR. UNIT.C/BDI | K9: C. TOT.S/BDI | L9: P. TOT.C/BDI | M9: =L60 -> 
B10: 1 | E10: SERVIÇOS PRELIMINARES | K10: =SUM(K11:K12) -> 1150369.44 | L10: =SUM(L11:L12) -> 1419440 | M10: =L10/$L$60 -> 
B11: 1.1 | C11: CPU.1 | D11: Codevasf | E11: Mobilização | F11: SERV | G11: kmxfrente | H11: =Mob!B65*Mob!H6 -> 2200 | I11: =Mob!B62 -> 261.4476033 | J11: =TRUNC(_xlfn.IFS(F11="SERV",I11*(1+$L$5),F11="SERV DIF",I11*(1+$L$6),F11="FORN",I11*(1+$L$7)),2) -> 322.6 | K11: =TRUNC(H11*I11,2) -> 575184.72 | L11: =TRUNC(H11*J11,2) -> 709720 | N11: INCC | P11: TERRAPLENAGEM | Q11: =(SUMIF(N:N,"TERRAPLENAGEM",L:L)/$L$60) ->  | R11: =(SUMIF(N:N,"TERRAPLENAGEM",L:L)) -> 1494108
B12: 1.2 | C12: CPU.2 | D12: Codevasf | E12: Desmobilização | F12: SERV | G12: kmxfrente | H12: =Mob!B65*Mob!H6 -> 2200 | I12: =Mob!B62 -> 261.4476033 | J12: =TRUNC(_xlfn.IFS(F12="SERV",I12*(1+$L$5),F12="SERV DIF",I12*(1+$L$6),F12="FORN",I12*(1+$L$7)),2) -> 322.6 | K12: =TRUNC(H12*I12,2) -> 575184.72 | L12: =TRUNC(H12*J12,2) -> 709720 | N12: INCC | P12: PAVIMENTAÇÃO | Q12: =SUMIF(N:N,"PAVIMENTAÇÃO",L:L)/$L$60 ->  | R12: =(SUMIF(N:N,"PAVIMENTAÇÃO",L:L)) -> 
B13: 2 | E13: INSTALAÇÃO DE CANTEIRO | K13: =SUM(K14:K15) -> 436612.88 | L13: =SUM(L14:L15) -> 538731.16 | P13: CONSULTORIA | R13: =(SUMIF(N:N,"CONSULTORIA",M:M)) -> 0
B14: 2.1 | C14: Canteiro | D14: Codevasf | E14: Canteiro de Obras | F14: SERV | G14: und | H14: ='MC MODULO'!D10 -> 44 | I14: =' Canteiro'!F11 -> 2491.66 | J14: =TRUNC(_xlfn.IFS(F14="SERV",I14*(1+$L$5),F14="SERV DIF",I14*(1+$L$6),F14="FORN",I14*(1+$L$7)),2) -> 3074.45 | K14: =TRUNC(H14*I14,2) -> 109633.04 | L14: =TRUNC(H14*J14,2) -> 135275.8 | N14: INCC | P14: DRENAGEM | Q14: =SUMIF(N:N,"DRENAGEM",L:L)/$L$60 ->  | R14: =(SUMIF(N:N,"DRENAGEM",L:L)) -> 3242800
B15: 2.2 | C15: 103689 | D15: SINAPI | E15: Fornecimento e instalação de placa de obra com chapa galvanizada e estrutura de madeira. af_03/2022_ps | F15: SERV | G15: m² | H15: ='MC MODULO'!H25 -> 704 | I15: =VLOOKUP(C15,'COMP Sint. Sinapi'!$A:$E,4,0) -> 464.46 | J15: =TRUNC(_xlfn.IFS(F15="SERV",I15*(1+$L$5),F15="SERV DIF",I15*(1+$L$6),F15="FORN",I15*(1+$L$7)),2) -> 573.09 | K15: 326979.84 | L15: 403455.36 | N15: INCC | P15: ADMINISTRAÇÃO LOCAL | R15: =(SUMIF(N:N,"ADMINISTRAÇÃO LOCAL",M:M)) -> 0
B16: 3 | E16: ADMINISTRAÇÃO LOCAL DA OBRA | K16: =SUM(K17:K17) -> 1688451.81 | L16: =SUM(L17:L17) -> 2083380.69 | P16: SINALIZAÇÃO VERTICAL | R16: =(SUMIF(N:N,"SINALIZAÇÃO VERTICAL",M:M)) -> 0
B17: 3.1 | C17: Adm Local | D17: Codevasf | E17: Administração Local da Obra | F17: SERV | G17: und | H17: 1 | I17: ='Adm Local'!J248 -> 1688451.816 | J17: =TRUNC(_xlfn.IFS(F17="SERV",I17*(1+$L$5),F17="SERV DIF",I17*(1+$L$6),F17="FORN",I17*(1+$L$7)),2) -> 2083380.69 | K17: =TRUNC(H17*I17,2) -> 1688451.81 | L17: =TRUNC(H17*J17,2) -> 2083380.69 | N17: INCC | P17: SINALIZAÇÃO HORIZONTAL | R17: =(SUMIF(N:N,"SINALIZAÇÃO HORIZONTAL",M:M)) -> 0
B18: 4 | E18: TERRAPLANAGEM | K18: =SUM(K19:K20) -> 1211672 | L18: =SUM(L19:L20) -> 1494108 | P18: CAP | R18: =(SUMIF(N:N,"CAP",M:M)) -> 0
B19: 4.1 | C19: 5502114 | D19: SICRO | E19: Escavação, carga e transporte de material de 1ª categoria - DMT de 1.000 a 1.200 m - caminho de serviço em leito natural - com escavadeira e caminhão basculante de 14 m³ | F19: SERV | G19: m³ | H19: ='MC MODULO'!H37 -> 107800 | I19: =ROUND(IF(D19="CODEVASF",VLOOKUP(C19,'CPU CODEVASF'!E:I,5,FALSE),VLOOKUP(C19,'SINTÉTICO SICRO'!A:D,4,FALSE)),6) -> 8.49 | J19: =TRUNC(_xlfn.IFS(F19="SERV",I19*(1+$L$5),F19="SERV DIF",I19*(1+$L$6),F19="FORN",I19*(1+$L$7)),2) -> 10.47 | K19: =TRUNC(H19*I19,2) -> 915222 | L19: =TRUNC(H19*J19,2) -> 1128666 | N19: TERRAPLENAGEM | P19: IMPRIMAÇÃO | R19: =(SUMIF(N:N,"IMPRIMAÇÃO",M:M)) -> 0
B20: 4.2 | C20: 4413942 | D20: SICRO | E20: Espalhamento de material em bota-fora | F20: SERV | G20: m³ | H20: ='MC MODULO'!H44 -> 107800 | I20: =ROUND(IF(D20="CODEVASF",VLOOKUP(C20,'CPU CODEVASF'!E:I,5,FALSE),VLOOKUP(C20,'SINTÉTICO SICRO'!A:D,4,FALSE)),6) -> 2.75 | J20: =TRUNC(_xlfn.IFS(F20="SERV",I20*(1+$L$5),F20="SERV DIF",I20*(1+$L$6),F20="FORN",I20*(1+$L$7)),2) -> 3.39 | K20: 296450 | L20: 365442 | N20: TERRAPLENAGEM | P20: EMULSÃO ASFÁLTICA | R20: =(SUMIF(N:N,"EMULSÃO ASFÁLTICA",M:M)) -> 0
B21: 5 | E21: PAVIMENTAÇÃO | K21: =SUM(K22:K27) -> 9780909.6 | L21: =SUM(L22:L27) -> 12063436 | P21: OBRAS COMPLEMENTARES | R21: =(SUMIF(N:N,"OBRAS COMPLEMENTARES",M:M)) -> 0
B22: 5.1 | C22: 4011463 | D22: SICRO | E22: =VLOOKUP(C22,'SINTÉTICO SICRO'!$A$4:$D$1048576,2,0) -> Concreto asfáltico - faixa C-12,5 - areia e brita comerciais | F22: SERV | G22: t | H22: ='MC MODULO'!H51 -> 36960 | I22: =ROUND(IF(C22="CODEVASF",VLOOKUP(D22,'CPU CODEVASF'!E:I,5,FALSE),VLOOKUP(C22,'SINTÉTICO SICRO'!A:D,4,FALSE)),6) -> 200.06 | J22: =TRUNC(_xlfn.IFS(F22="SERV",I22*(1+$L$5),F22="SERV DIF",I22*(1+$L$6),F22="FORN",I22*(1+$L$7)),2) -> 246.85 | K22: =TRUNC(H22*I22,2) -> 7394217.6 | L22: =TRUNC(H22*J22,2) -> 9123576 | N22: PAVIMENTAÇÃO | P22: MOBILIZAÇÃO | R22: =(SUMIF(N:N,"MOBILIZAÇÃO",M:M)) -> 0
B23: 5.2 | C23: 4011352 | D23: SICRO | E23: =VLOOKUP(C23,'SINTÉTICO SICRO'!$A$4:$D$1048576,2,0) -> Imprimação com emulsão asfáltica | F23: SERV | G23: m² | H23: ='MC MODULO'!H57 -> 308000 | I23: =ROUND(IF(C23="CODEVASF",VLOOKUP(D23,'CPU CODEVASF'!E:I,5,FALSE),VLOOKUP(C23,'SINTÉTICO SICRO'!A:D,4,FALSE)),6) -> 0.69 | J23: =TRUNC(_xlfn.IFS(F23="SERV",I23*(1+$L$5),F23="SERV DIF",I23*(1+$L$6),F23="FORN",I23*(1+$L$7)),2) -> 0.85 | K23: 212520 | L23: 261800 | N23: PAVIMENTAÇÃO | P23: INCC | Q23: =(SUMIF(N:N,"INCC",L:L))/$L$60 ->  | R23: =(SUMIF(N:N,"INCC",L:L)) -> 6073088.61
B24: 5.3 | C24: 4011353 | D24: SICRO | E24: =VLOOKUP(C24,'SINTÉTICO SICRO'!$A$4:$D$1048576,2,0) -> Pintura de ligação | F24: SERV | G24: m² | H24: ='MC MODULO'!H63 -> 308000 | I24: =ROUND(IF(C24="CODEVASF",VLOOKUP(D24,'CPU CODEVASF'!E:I,5,FALSE),VLOOKUP(C24,'SINTÉTICO SICRO'!A:D,4,FALSE)),6) -> 0.47 | J24: =TRUNC(_xlfn.IFS(F24="SERV",I24*(1+$L$5),F24="SERV DIF",I24*(1+$L$6),F24="FORN",I24*(1+$L$7)),2) -> 0.57 | K24: 144760 | L24: 175560 | N24: PAVIMENTAÇÃO
B25: 5.4 | C25: 4011219 | D25: SICRO | E25: =VLOOKUP(C25,'SINTÉTICO SICRO'!$A$4:$D$1048576,2,0) -> Base de solo estabilizado granulometricamente sem mistura com material de jazida - 100% Proctor modificado | F25: SERV | G25: m³ | H25: ='MC MODULO'!H68 -> 46200 | I25: =ROUND(IF(C25="CODEVASF",VLOOKUP(D25,'CPU CODEVASF'!E:I,5,FALSE),VLOOKUP(C25,'SINTÉTICO SICRO'!A:D,4,FALSE)),6) -> 16.63 | J25: =TRUNC(_xlfn.IFS(F25="SERV",I25*(1+$L$5),F25="SERV DIF",I25*(1+$L$6),F25="FORN",I25*(1+$L$7)),2) -> 20.51 | K25: 768306 | L25: 947562 | N25: PAVIMENTAÇÃO
B26: 5.5 | C26: 4011227 | D26: SICRO | E26: =VLOOKUP(C26,'SINTÉTICO SICRO'!$A$4:$D$1048576,2,0) -> Sub-base de solo estabilizado granulometricamente sem mistura com material de jazida - 100% Proctor intermediário | F26: SERV | G26: m³ | H26: ='MC MODULO'!H74 -> 46200 | I26: =ROUND(IF(C26="CODEVASF",VLOOKUP(D26,'CPU CODEVASF'!E:I,5,FALSE),VLOOKUP(C26,'SINTÉTICO SICRO'!A:D,4,FALSE)),6) -> 15.23 | J26: =TRUNC(_xlfn.IFS(F26="SERV",I26*(1+$L$5),F26="SERV DIF",I26*(1+$L$6),F26="FORN",I26*(1+$L$7)),2) -> 18.79 | K26: 703626 | L26: 868098 | N26: PAVIMENTAÇÃO
B27: 5.6 | C27: 4011209 | D27: SICRO | E27: =VLOOKUP(C27,'SINTÉTICO SICRO'!$A$4:$D$1048576,2,0) -> Regularização do subleito - 100% Proctor intermediário | F27: SERV | G27: m² | H27: ='MC MODULO'!H80 -> 308000 | I27: =ROUND(IF(C27="CODEVASF",VLOOKUP(D27,'CPU CODEVASF'!E:I,5,FALSE),VLOOKUP(C27,'SINTÉTICO SICRO'!A:D,4,FALSE)),6) -> 1.81 | J27: =TRUNC(_xlfn.IFS(F27="SERV",I27*(1+$L$5),F27="SERV DIF",I27*(1+$L$6),F27="FORN",I27*(1+$L$7)),2) -> 2.23 | K27: 557480 | L27: 686840 | N27: PAVIMENTAÇÃO
B28: 6 | E28: AQUISIÇÃO E TRANSPORTE DO MATERIAL BETUMINOSO | K28: =SUM(K29:K34) -> 12539318.02 | L28: =SUM(L29:L34) ->  | P28: OBRAS COMPLEMENTARES | R28: =(SUMIF(N:N,"OBRAS COMPLEMENTARES",M:M)) -> 0
B29: 6.1 | C29: CPU-13 | D29: CODEVASF | E29: AQUISIÇÃO DE CIMENTO ASFALTICO CAP 50/70 | F29: FORN | G29: t | H29: =' CONSUMO DE MAT. B TOTAL'!P13 -> 2049.43 | I29: =ROUND(IF(D29="CODEVASF",VLOOKUP(C29,'CPU CODEVASF'!E:I,5,FALSE),VLOOKUP(D29,'SINTÉTICO SICRO'!A:D,4,FALSE)),6) -> 4414.786243 | J29: =TRUNC(_xlfn.IFS(F29="SERV",I29*(1+$L$5),F29="SERV DIF",I29*(1+$L$6),F29="FORN",I29*(1+$L$7)),2) ->  | K29: =TRUNC(H29*I29,2) -> 9047795.36 | L29: =TRUNC(H29*J29,2) ->  | N29: PAVIMENTAÇÃO | P29: MOBILIZAÇÃO | R29: =(SUMIF(N:N,"MOBILIZAÇÃO",M:M)) -> 0
B30: 6.2 | C30: CPU-17 | D30: CODEVASF | E30: TRANSPORTE CAP 50/70 | F30: FORN | G30: t | H30: =' CONSUMO DE MAT. B TOTAL'!P13 -> 2049.43 | I30: =ROUND(IF(D30="CODEVASF",VLOOKUP(C30,'CPU CODEVASF'!E:I,5,FALSE),VLOOKUP(D30,'SINTÉTICO SICRO'!A:D,4,FALSE)),6) -> 771.82 | J30: =TRUNC(_xlfn.IFS(F30="SERV",I30*(1+$L$5),F30="SERV DIF",I30*(1+$L$6),F30="FORN",I30*(1+$L$7)),2) ->  | K30: 1581791.06 | N30: PAVIMENTAÇÃO | P30: INCC | Q30: =(SUMIF(N:N,"INCC",L:L))/$L$60 ->  | R30: =(SUMIF(N:N,"INCC",L:L)) -> 6073088.61
B31: 6.3 | C31: CPU-14 | D31: CODEVASF | E31: AQUISIÇÃO DE EAI | F31: FORN | G31: t | H31: =' CONSUMO DE MAT. B TOTAL'!P8 -> 400.4 | I31: =ROUND(IF(D31="CODEVASF",VLOOKUP(C31,'CPU CODEVASF'!E:I,5,FALSE),VLOOKUP(D31,'SINTÉTICO SICRO'!A:D,4,FALSE)),6) -> 2648.414098 | J31: =TRUNC(_xlfn.IFS(F31="SERV",I31*(1+$L$5),F31="SERV DIF",I31*(1+$L$6),F31="FORN",I31*(1+$L$7)),2) ->  | K31: 1060425 | N31: PAVIMENTAÇÃO
B32: 6.4 | C32: CPU-18 | D32: CODEVASF | E32: TRANSPORTE DE EAI | F32: FORN | G32: t | H32: =' CONSUMO DE MAT. B TOTAL'!P8 -> 400.4 | I32: =ROUND(IF(D32="CODEVASF",VLOOKUP(C32,'CPU CODEVASF'!E:I,5,FALSE),VLOOKUP(D32,'SINTÉTICO SICRO'!A:D,4,FALSE)),6) -> 771.82 | J32: =TRUNC(_xlfn.IFS(F32="SERV",I32*(1+$L$5),F32="SERV DIF",I32*(1+$L$6),F32="FORN",I32*(1+$L$7)),2) ->  | K32: 309036.72 | N32: PAVIMENTAÇÃO
B33: 6.5 | C33: CPU-15 | D33: CODEVASF | E33: AQUISIÇÃO DE EMULSÃO ASFÁLTICA RR-1C | F33: FORN | G33: t | H33: =' CONSUMO DE MAT. B TOTAL'!P11 -> 138.6 | I33: =ROUND(IF(D33="CODEVASF",VLOOKUP(C33,'CPU CODEVASF'!E:I,5,FALSE),VLOOKUP(D33,'SINTÉTICO SICRO'!A:D,4,FALSE)),6) -> 3126.231131 | J33: =TRUNC(_xlfn.IFS(F33="SERV",I33*(1+$L$5),F33="SERV DIF",I33*(1+$L$6),F33="FORN",I33*(1+$L$7)),2) ->  | K33: 433295.63 | N33: PAVIMENTAÇÃO
B34: 6.6 | C34: CPU-19 | D34: CODEVASF | E34: TRANSPORTE RR-1C | F34: FORN | G34: t | H34: =' CONSUMO DE MAT. B TOTAL'!P11 -> 138.6 | I34: =ROUND(IF(D34="CODEVASF",VLOOKUP(C34,'CPU CODEVASF'!E:I,5,FALSE),VLOOKUP(D34,'SINTÉTICO SICRO'!A:D,4,FALSE)),6) -> 771.82 | J34: =TRUNC(_xlfn.IFS(F34="SERV",I34*(1+$L$5),F34="SERV DIF",I34*(1+$L$6),F34="FORN",I34*(1+$L$7)),2) ->  | K34: 106974.25 | N34: PAVIMENTAÇÃO
B35: 7 | E35: SINALIZAÇÃO | K35: =SUM(K36:K39) -> 424245.36 | L35: =SUM(L36:L39) -> 523410.36
B36: 7.1 | C36: 5213440 | D36: SICRO | E36: Placa de regulamentação em aço D = 0,60 m - película retrorrefletiva tipo I + SI - fornecimento e implantação | F36: SERV | G36: und | H36: ='MC MODULO'!H87 -> 132 | I36: =ROUND(IF(D36="CODEVASF",VLOOKUP(C36,'CPU CODEVASF'!E:I,5,FALSE),VLOOKUP(C36,'SINTÉTICO SICRO'!A:D,4,FALSE)),6) -> 288.75 | J36: =TRUNC(_xlfn.IFS(F36="SERV",I36*(1+$L$5),F36="SERV DIF",I36*(1+$L$6),F36="FORN",I36*(1+$L$7)),2) -> 356.28 | K36: =TRUNC(H36*I36,2) -> 38115 | L36: =TRUNC(H36*J36,2) -> 47028.96 | N36: INCC
B37: 7.2 | C37: 5213464 | D37: SICRO | E37: Placa de advertência em aço, lado de 0,60 m - película retrorrefletiva tipo I + SI - fornecimento e implantação | F37: SERV | G37: und | H37: ='MC MODULO'!H92 -> 132 | I37: =ROUND(IF(D37="CODEVASF",VLOOKUP(C37,'CPU CODEVASF'!E:I,5,FALSE),VLOOKUP(C37,'SINTÉTICO SICRO'!A:D,4,FALSE)),6) -> 288.79 | J37: =TRUNC(_xlfn.IFS(F37="SERV",I37*(1+$L$5),F37="SERV DIF",I37*(1+$L$6),F37="FORN",I37*(1+$L$7)),2) -> 356.33 | K37: 38120.28 | L37: 47035.56 | N37: INCC
B38: 7.3 | C38: 5213863 | D38: SICRO | E38: Suporte metálico galvanizado para placa de advertência ou regulamentação - lado ou diâmetro de 0,60 m - fornecimento e implantação | F38: SERV | G38: und | H38: ='MC MODULO'!H98 -> 264 | I38: =ROUND(IF(D38="CODEVASF",VLOOKUP(C38,'CPU CODEVASF'!E:I,5,FALSE),VLOOKUP(C38,'SINTÉTICO SICRO'!A:D,4,FALSE)),6) -> 475.82 | J38: =TRUNC(_xlfn.IFS(F38="SERV",I38*(1+$L$5),F38="SERV DIF",I38*(1+$L$6),F38="FORN",I38*(1+$L$7)),2) -> 587.11 | K38: 125616.48 | L38: 154997.04 | N38: INCC
B39: 7.4 | C39: 5213400 | D39: SICRO | E39: Pintura de faixa com tinta acrílica - espessura de 0,4 mm | F39: SERV | G39: m² | H39: ='MC MODULO'!H103+'MC MODULO'!H108 -> 10560 | I39: =ROUND(IF(D39="CODEVASF",VLOOKUP(C39,'CPU CODEVASF'!E:I,5,FALSE),VLOOKUP(C39,'SINTÉTICO SICRO'!A:D,4,FALSE)),6) -> 21.06 | J39: =TRUNC(_xlfn.IFS(F39="SERV",I39*(1+$L$5),F39="SERV DIF",I39*(1+$L$6),F39="FORN",I39*(1+$L$7)),2) -> 25.98 | K39: 222393.6 | L39: 274348.8 | N39: INCC
B40: 8 | E40: DRENAGEM | K40: =SUM(K41:K42) -> 2651158.4 | L40: =SUM(L41:L42) -> 3270678.4
B41: 8.1 | C41: 2003943 | D41: SICRO | E41: Meio-fio de concreto - MFC 03 moldado no local com extrusora e concreto usinado - areia e brita comerciais | F41: SERV | G41: m | H41: ='MC MODULO'!H115 -> 88000 | I41: =ROUND(IF(D41="CODEVASF",VLOOKUP(C41,'CPU CODEVASF'!E:I,5,FALSE),VLOOKUP(C41,'SINTÉTICO SICRO'!A:D,4,FALSE)),6) -> 29.87 | J41: =TRUNC(_xlfn.IFS(F41="SERV",I41*(1+$L$5),F41="SERV DIF",I41*(1+$L$6),F41="FORN",I41*(1+$L$7)),2) -> 36.85 | K41: =TRUNC(H41*I41,2) -> 2628560 | L41: =TRUNC(H41*J41,2) -> 3242800 | M41: =L41/$L$60 ->  | N41: DRENAGEM
B42: 8.2 | C42: 4915724 | D42: SICRO | E42: Caiação mecanizada com fixador de cal | F42: SERV | G42: m² | H42: ='MC MODULO'!H120 -> 10560 | I42: =ROUND(IF(D42="CODEVASF",VLOOKUP(C42,'CPU CODEVASF'!E:I,5,FALSE),VLOOKUP(C42,'SINTÉTICO SICRO'!A:D,4,FALSE)),6) -> 2.14 | J42: =TRUNC(_xlfn.IFS(F42="SERV",I42*(1+$L$5),F42="SERV DIF",I42*(1+$L$6),F42="FORN",I42*(1+$L$7)),2) -> 2.64 | K42: 22598.4 | L42: 27878.4 | N42: INCC
B43: 9 | E43: SERVIÇOS COMPLEMENTARES | K43: =SUM(K44:K44) -> 71396.2 | L43: =SUM(L44:L44) -> 88088
B44: 9.1 | C44: CPU-12 | D44: Codevasf | E44: Conserto de quebra no ramal na rua sem pavimento com fornecimento de material hidráulico | F44: SERV | G44: m | H44: ='MC MODULO'!H127 -> 4400 | I44: =ROUND(IF(D44="CODEVASF",VLOOKUP(C44,'CPU CODEVASF'!E:I,5,FALSE),VLOOKUP(C44,'SINTÉTICO SICRO'!A:D,4,FALSE)),6) -> 16.22641 | J44: =TRUNC(_xlfn.IFS(F44="SERV",I44*(1+$L$5),F44="SERV DIF",I44*(1+$L$6),F44="FORN",I44*(1+$L$7)),2) -> 20.02 | K44: =TRUNC(H44*I44,2) -> 71396.2 | L44: =TRUNC(H44*J44,2) -> 88088 | N44: INCC
B45: 10 | E45: PROJETO EXECUTIVO | K45: =SUM(K46:K46) -> 1130360 | L45: =SUM(L46:L46) -> 1392160
B46: 10.1 | C46: CPU.7 | D46: Codevasf | E46: Projeto Executivo | F46: SERV | G46: m² | H46: ='MC MODULO'!H134 -> 308000 | I46: ='Projeto Executivo'!G26 -> 3.67 | J46: =TRUNC(_xlfn.IFS(F46="SERV",I46*(1+$L$5),F46="SERV DIF",I46*(1+$L$6),F46="FORN",I46*(1+$L$7)),2) -> 4.52 | K46: =TRUNC(H46*I46,2) -> 1130360 | L46: =TRUNC(H46*J46,2) -> 1392160 | N46: INCC
B47: 11 | E47: MOMENTO DE TRANSPORTE | K47: =SUM(K48:K59) -> 2275446.12 | L47: =SUM(L48:L59) -> 2801811.28
B48: 11.1 | C48: 5914359 | D48: SICRO | E48: =VLOOKUP(C48,'SINTÉTICO SICRO'!$A$4:$D$1048576,2,0) -> Transporte com caminhão basculante de 10 m³ - rodovia em leito natural | F48: SERV | G48: tkm | H48: =SUMIF('MOMENTO DE TRANSPORTE - PRINC'!A:A,'RESUMO MODULO TOTAL'!C48,'MOMENTO DE TRANSPORTE - PRINC'!K:K)+SUMIF('MOMENTO DE TRANSPORTE - AUX'!A:A,'RESUMO MODULO TOTAL'!C48,'MOMENTO DE TRANSPORTE - AUX'!K:K) -> 248945.3921 | I48: =ROUND(IF(D48="CODEVASF",VLOOKUP(C48,'CPU CODEVASF'!E:I,5,FALSE),VLOOKUP(C48,'SINTÉTICO SICRO'!A:D,4,FALSE)),6) -> 1.25 | J48: =TRUNC(_xlfn.IFS(F48="SERV",I48*(1+$L$5),F48="SERV DIF",I48*(1+$L$6),F48="FORN",I48*(1+$L$7)),2) -> 1.54 | K48: =TRUNC(H48*I48,2) -> 311181.74 | L48: =TRUNC(H48*J48,2) -> 383375.9 | N48: PAVIMENTAÇÃO
B49: 11.2 | C49: 5914374 | D49: SICRO | E49: =VLOOKUP(C49,'SINTÉTICO SICRO'!$A$4:$D$1048576,2,0) -> Transporte com caminhão basculante de 10 m³ - rodovia em revestimento primário | F49: SERV | G49: tkm | H49: =SUMIF('MOMENTO DE TRANSPORTE - PRINC'!A:A,'RESUMO MODULO TOTAL'!C49,'MOMENTO DE TRANSPORTE - PRINC'!K:K)+SUMIF('MOMENTO DE TRANSPORTE - AUX'!A:A,'RESUMO MODULO TOTAL'!C49,'MOMENTO DE TRANSPORTE - AUX'!K:K) -> 248944.4681 | I49: =ROUND(IF(D49="CODEVASF",VLOOKUP(C49,'CPU CODEVASF'!E:I,5,FALSE),VLOOKUP(C49,'SINTÉTICO SICRO'!A:D,4,FALSE)),6) -> 1 | J49: =TRUNC(_xlfn.IFS(F49="SERV",I49*(1+$L$5),F49="SERV DIF",I49*(1+$L$6),F49="FORN",I49*(1+$L$7)),2) -> 1.23 | K49: 248944.46 | L49: 306201.69 | N49: PAVIMENTAÇÃO
B50: 11.3 | C50: 5914389 | D50: SICRO | E50: =VLOOKUP(C50,'SINTÉTICO SICRO'!$A$4:$D$1048576,2,0) -> Transporte com caminhão basculante de 10 m³ - rodovia pavimentada | F50: SERV | G50: tkm | H50: =SUMIF('MOMENTO DE TRANSPORTE - PRINC'!A:A,'RESUMO MODULO TOTAL'!C50,'MOMENTO DE TRANSPORTE - PRINC'!K:K)+SUMIF('MOMENTO DE TRANSPORTE - AUX'!A:A,'RESUMO MODULO TOTAL'!C50,'MOMENTO DE TRANSPORTE - AUX'!K:K) -> 1991563.137 | I50: =ROUND(IF(D50="CODEVASF",VLOOKUP(C50,'CPU CODEVASF'!E:I,5,FALSE),VLOOKUP(C50,'SINTÉTICO SICRO'!A:D,4,FALSE)),6) -> 0.82 | J50: =TRUNC(_xlfn.IFS(F50="SERV",I50*(1+$L$5),F50="SERV DIF",I50*(1+$L$6),F50="FORN",I50*(1+$L$7)),2) -> 1.01 | K50: 1633081.77 | L50: 2011478.76 | N50: PAVIMENTAÇÃO
B51: 11.4 | C51: 5914449 | D51: SICRO | E51: =VLOOKUP(C51,'SINTÉTICO SICRO'!$A$4:$D$1048576,2,0) -> Transporte com caminhão carroceria de 15 t - rodovia em leito natural | F51: SERV | G51: tkm | H51: =SUMIF('MOMENTO DE TRANSPORTE - PRINC'!A:A,'RESUMO MODULO TOTAL'!C51,'MOMENTO DE TRANSPORTE - PRINC'!K:K)+SUMIF('MOMENTO DE TRANSPORTE - AUX'!A:A,'RESUMO MODULO TOTAL'!C51,'MOMENTO DE TRANSPORTE - AUX'!K:K) -> 509.05008 | I51: =ROUND(IF(D51="CODEVASF",VLOOKUP(C51,'CPU CODEVASF'!E:I,5,FALSE),VLOOKUP(C51,'SINTÉTICO SICRO'!A:D,4,FALSE)),6) -> 1.1 | J51: =TRUNC(_xlfn.IFS(F51="SERV",I51*(1+$L$5),F51="SERV DIF",I51*(1+$L$6),F51="FORN",I51*(1+$L$7)),2) -> 1.35 | K51: 559.95 | L51: 687.21 | N51: PAVIMENTAÇÃO
B52: 11.5 | C52: 5914464 | D52: SICRO | E52: =VLOOKUP(C52,'SINTÉTICO SICRO'!$A$4:$D$1048576,2,0) -> Transporte com caminhão carroceria de 15 t - rodovia em revestimento primário | F52: SERV | G52: tkm | H52: =SUMIF('MOMENTO DE TRANSPORTE - PRINC'!A:A,'RESUMO MODULO TOTAL'!C52,'MOMENTO DE TRANSPORTE - PRINC'!K:K)+SUMIF('MOMENTO DE TRANSPORTE - AUX'!A:A,'RESUMO MODULO TOTAL'!C52,'MOMENTO DE TRANSPORTE - AUX'!K:K) -> 509.05008 | I52: =ROUND(IF(D52="CODEVASF",VLOOKUP(C52,'CPU CODEVASF'!E:I,5,FALSE),VLOOKUP(C52,'SINTÉTICO SICRO'!A:D,4,FALSE)),6) -> 0.88 | J52: =TRUNC(_xlfn.IFS(F52="SERV",I52*(1+$L$5),F52="SERV DIF",I52*(1+$L$6),F52="FORN",I52*(1+$L$7)),2) -> 1.08 | K52: 447.96 | L52: 549.77 | N52: PAVIMENTAÇÃO
B53: 11.6 | C53: 5914479 | D53: SICRO | E53: =VLOOKUP(C53,'SINTÉTICO SICRO'!$A$4:$D$1048576,2,0) -> Transporte com caminhão carroceria de 15 t - rodovia pavimentada | F53: SERV | G53: tkm | H53: =SUMIF('MOMENTO DE TRANSPORTE - PRINC'!A:A,'RESUMO MODULO TOTAL'!C53,'MOMENTO DE TRANSPORTE - PRINC'!K:K)+SUMIF('MOMENTO DE TRANSPORTE - AUX'!A:A,'RESUMO MODULO TOTAL'!C53,'MOMENTO DE TRANSPORTE - AUX'!K:K) -> 4072.40064 | I53: =ROUND(IF(D53="CODEVASF",VLOOKUP(C53,'CPU CODEVASF'!E:I,5,FALSE),VLOOKUP(C53,'SINTÉTICO SICRO'!A:D,4,FALSE)),6) -> 0.72 | J53: =TRUNC(_xlfn.IFS(F53="SERV",I53*(1+$L$5),F53="SERV DIF",I53*(1+$L$6),F53="FORN",I53*(1+$L$7)),2) -> 0.88 | K53: 2932.12 | L53: 3583.71 | N53: PAVIMENTAÇÃO
B54: 11.7 | C54: 5914364 | D54: SICRO | E54: =VLOOKUP(C54,'SINTÉTICO SICRO'!$A$4:$D$1048576,2,0) -> Transporte de cimento ou cal hidratada a granel com caminhão silo de 30 m³ - rodovia em leito natural | F54: SERV | G54: tkm | H54: =SUMIF('MOMENTO DE TRANSPORTE - PRINC'!A:A,'RESUMO MODULO TOTAL'!C54,'MOMENTO DE TRANSPORTE - PRINC'!K:K)+SUMIF('MOMENTO DE TRANSPORTE - AUX'!A:A,'RESUMO MODULO TOTAL'!C54,'MOMENTO DE TRANSPORTE - AUX'!K:K) -> 267.2208 | I54: =ROUND(IF(D54="CODEVASF",VLOOKUP(C54,'CPU CODEVASF'!E:I,5,FALSE),VLOOKUP(C54,'SINTÉTICO SICRO'!A:D,4,FALSE)),6) -> 0.98 | J54: =TRUNC(_xlfn.IFS(F54="SERV",I54*(1+$L$5),F54="SERV DIF",I54*(1+$L$6),F54="FORN",I54*(1+$L$7)),2) -> 1.2 | K54: =TRUNC(H54*I54,2) -> 261.87 | L54: =TRUNC(H54*J54,2) -> 320.66 | N54: PAVIMENTAÇÃO
B55: 11.8 | C55: 5914365 | D55: SICRO | E55: =VLOOKUP(C55,'SINTÉTICO SICRO'!$A$4:$D$1048576,2,0) -> Transporte de cimento ou cal hidratada a granel com caminhão silo de 30 m³ - rodovia em revestimento primário | F55: SERV | G55: tkm | H55: =SUMIF('MOMENTO DE TRANSPORTE - PRINC'!A:A,'RESUMO MODULO TOTAL'!C55,'MOMENTO DE TRANSPORTE - PRINC'!K:K)+SUMIF('MOMENTO DE TRANSPORTE - AUX'!A:A,'RESUMO MODULO TOTAL'!C55,'MOMENTO DE TRANSPORTE - AUX'!K:K) -> 267.2208 | I55: =ROUND(IF(D55="CODEVASF",VLOOKUP(C55,'CPU CODEVASF'!E:I,5,FALSE),VLOOKUP(C55,'SINTÉTICO SICRO'!A:D,4,FALSE)),6) -> 0.78 | J55: =TRUNC(_xlfn.IFS(F55="SERV",I55*(1+$L$5),F55="SERV DIF",I55*(1+$L$6),F55="FORN",I55*(1+$L$7)),2) -> 0.96 | K55: 208.43 | L55: 256.53 | N55: PAVIMENTAÇÃO
B56: 11.9 | C56: 5914366 | D56: SICRO | E56: =VLOOKUP(C56,'SINTÉTICO SICRO'!$A$4:$D$1048576,2,0) -> Transporte de cimento ou cal hidratada a granel com caminhão silo de 30 m³ - rodovia pavimentada | F56: SERV | G56: tkm | H56: =SUMIF('MOMENTO DE TRANSPORTE - PRINC'!A:A,'RESUMO MODULO TOTAL'!C56,'MOMENTO DE TRANSPORTE - PRINC'!K:K)+SUMIF('MOMENTO DE TRANSPORTE - AUX'!A:A,'RESUMO MODULO TOTAL'!C56,'MOMENTO DE TRANSPORTE - AUX'!K:K) -> 2137.7664 | I56: =ROUND(IF(D56="CODEVASF",VLOOKUP(C56,'CPU CODEVASF'!E:I,5,FALSE),VLOOKUP(C56,'SINTÉTICO SICRO'!A:D,4,FALSE)),6) -> 0.68 | J56: =TRUNC(_xlfn.IFS(F56="SERV",I56*(1+$L$5),F56="SERV DIF",I56*(1+$L$6),F56="FORN",I56*(1+$L$7)),2) -> 0.83 | K56: 1453.68 | L56: 1774.34 | N56: PAVIMENTAÇÃO
B57: 11.10 | C57: 5914539 | D57: SICRO | E57: =VLOOKUP(C57,'SINTÉTICO SICRO'!$A$4:$D$1048576,2,0) -> Transporte com caminhão betoneira - rodovia em leito natural | F57: SERV | G57: tkm | H57: =SUMIF('MOMENTO DE TRANSPORTE - PRINC'!A:A,'RESUMO MODULO TOTAL'!C57,'MOMENTO DE TRANSPORTE - PRINC'!K:K)+SUMIF('MOMENTO DE TRANSPORTE - AUX'!A:A,'RESUMO MODULO TOTAL'!C57,'MOMENTO DE TRANSPORTE - AUX'!K:K) -> 8870.4 | I57: =ROUND(IF(D57="CODEVASF",VLOOKUP(C57,'CPU CODEVASF'!E:I,5,FALSE),VLOOKUP(C57,'SINTÉTICO SICRO'!A:D,4,FALSE)),6) -> 1.23 | J57: =TRUNC(_xlfn.IFS(F57="SERV",I57*(1+$L$5),F57="SERV DIF",I57*(1+$L$6),F57="FORN",I57*(1+$L$7)),2) -> 1.51 | K57: 10910.59 | L57: 13394.3 | N57: PAVIMENTAÇÃO
B58: 11.11 | C58: 5914554 | D58: SICRO | E58: =VLOOKUP(C58,'SINTÉTICO SICRO'!$A$4:$D$1048576,2,0) -> Transporte com caminhão betoneira - rodovia em revestimento primário | F58: SERV | G58: tkm | H58: =SUMIF('MOMENTO DE TRANSPORTE - PRINC'!A:A,'RESUMO MODULO TOTAL'!C58,'MOMENTO DE TRANSPORTE - PRINC'!K:K)+SUMIF('MOMENTO DE TRANSPORTE - AUX'!A:A,'RESUMO MODULO TOTAL'!C58,'MOMENTO DE TRANSPORTE - AUX'!K:K) -> 8870.4 | I58: =ROUND(IF(D58="CODEVASF",VLOOKUP(C58,'CPU CODEVASF'!E:I,5,FALSE),VLOOKUP(C58,'SINTÉTICO SICRO'!A:D,4,FALSE)),6) -> 0.98 | J58: =TRUNC(_xlfn.IFS(F58="SERV",I58*(1+$L$5),F58="SERV DIF",I58*(1+$L$6),F58="FORN",I58*(1+$L$7)),2) -> 1.2 | K58: 8692.99 | L58: 10644.48 | N58: PAVIMENTAÇÃO
B59: 11.12 | C59: 5914569 | D59: SICRO | E59: =VLOOKUP(C59,'SINTÉTICO SICRO'!$A$4:$D$1048576,2,0) -> Transporte com caminhão betoneira - rodovia pavimentada | F59: SERV | G59: tkm | H59: =SUMIF('MOMENTO DE TRANSPORTE - PRINC'!A:A,'RESUMO MODULO TOTAL'!C59,'MOMENTO DE TRANSPORTE - PRINC'!K:K)+SUMIF('MOMENTO DE TRANSPORTE - AUX'!A:A,'RESUMO MODULO TOTAL'!C59,'MOMENTO DE TRANSPORTE - AUX'!K:K) -> 70963.2 | I59: =ROUND(IF(D59="CODEVASF",VLOOKUP(C59,'CPU CODEVASF'!E:I,5,FALSE),VLOOKUP(C59,'SINTÉTICO SICRO'!A:D,4,FALSE)),6) -> 0.8 | J59: =TRUNC(_xlfn.IFS(F59="SERV",I59*(1+$L$5),F59="SERV DIF",I59*(1+$L$6),F59="FORN",I59*(1+$L$7)),2) -> 0.98 | K59: 56770.56 | L59: 69543.93 | N59: PAVIMENTAÇÃO
B60: TOTAL GERAL DA OBRA COM BDI | K60: =SUM(K10,K13,K16,K18,K21,K28,K35,K40,K43,K45,K47) -> 33359939.83 | L60: =SUM(L10,L13,L16,L18,L21,L28,L35,L40,L43,L45,L47) -> 
B63: CONTRATAÇÃO DE SERVIÇOS DE PAVIMENTAÇÃO ASFÁLTICA COM CONCRETO BETUMINOSO USINADO A QUENTE (CBUQ) EM VIAS URBANAS E RURAIS INSERIDAS NA ÁREA DE ATUAÇÃO DA CODEVASF, NO ESTADO DO PIAUÍ - REGIÃO SUL
L66: 40095440

Sheet CRONOGRAMA TOTAL
A2: ='RESUMO MODULO TOTAL'!B63 -> CONTRATAÇÃO DE SERVIÇOS DE PAVIMENTAÇÃO ASFÁLTICA COM CONCRETO BETUMINOSO USINADO A QUENTE (CBUQ) EM VIAS URBANAS E RURAIS INSERIDAS NA ÁREA DE ATUAÇÃO DA CODEVASF, NO ESTADO DO PIAUÍ - REGIÃO SUL
A3: Cronograma Físico e Financeiro
A4: Item | B4: Descrição | C4: Total Por Etapa | D4: 30 DIAS | E4: 60 DIAS | F4: 90 DIAS | G4: 120 DIAS | H4: 150 DIAS | I4: 180 DIAS | J4: 210 DIAS | K4: 240 DIAS | L4: 270 DIAS | M4: 300 DIAS | N4: 330 DIAS | O4: 360 DIAS
B5: ='RESUMO MODULO TOTAL'!E10 -> SERVIÇOS PRELIMINARES | C5: =SUM(D5:O5) -> 1 | G5: 0.5 | O5: 0.5
C6: ='RESUMO MODULO TOTAL'!L10 -> 1419440 | D6: =$C$6*D5 -> 0 | G6: =$C$6*G5 -> 709720 | O6: =$C$6*O5 -> 709720 | P6: =SUM(D6:O6) -> 1419440 | Q6: =IF(P6=C6,"OK","") -> OK
B7: ='RESUMO MODULO TOTAL'!E13 -> INSTALAÇÃO DE CANTEIRO | C7: =SUM(D7:O7) -> 1 | G7: 0.1 | H7: 0.5 | I7: 0.4
C8: ='RESUMO MODULO TOTAL'!L13 -> 538731.16 | D8: =$C$8*D7 -> 0 | E8: =$C$8*E7 -> 0 | F8: 0 | G8: 53873.116 | H8: 269365.58 | I8: 215492.464 | J8: 0 | K8: 0 | L8: 0 | M8: 0 | N8: 0 | O8: 0 | P8: =SUM(D8:O8) -> 538731.16 | Q8: =IF(P8=C8,"OK","") -> OK
B9: ='RESUMO MODULO TOTAL'!E16 -> ADMINISTRAÇÃO LOCAL DA OBRA | C9: =SUM(D9:O9) ->  | D9: =(D6+D8+D12+D14+D16+D18+D20+D22+D24+D26)/($O$33-$C$10) ->  | O9: =(O6+O8+O12+O14+O16+O18+O20+O22+O24+O26)/($O$33-$C$10) -> 
C10: ='RESUMO MODULO TOTAL'!L16 -> 2083380.69 | D10: =$C$10*D9 ->  | E10: =$C$10*E9 ->  | F10: =$C$10*F9 ->  | P10: =SUM(D10:O10) ->  | Q10: =IF(P10=C10,"OK","") -> 
B11: ='RESUMO MODULO TOTAL'!E18 -> TERRAPLANAGEM | C11: =SUM(D11:O11) -> 1 | G11: =1/4 -> 0.25 | H11: =1/4 -> 0.25 | I11: =1/4 -> 0.25 | J11: 0.25
C12: ='RESUMO MODULO TOTAL'!L18 -> 1494108 | D12: =$C$14*D11 -> 0 | E12: =$C$12*E11 -> 0 | F12: 0 | G12: 373527 | H12: 373527 | I12: 373527 | J12: 373527 | K12: 0 | L12: 0 | M12: 0 | N12: 0 | O12: 0 | P12: =SUM(D12:O12) -> 1494108 | Q12: =IF(P12=C12,"OK","") -> OK
B13: ='RESUMO MODULO TOTAL'!E21 -> PAVIMENTAÇÃO | C13: =SUM(D13:O13) -> 1 | I13: =1/6 -> 0.1666666667 | J13: =1/6 -> 0.1666666667 | K13: 0.1666666667 | L13: 0.1666666667 | M13: 0.1666666667 | N13: 0.1666666667
C14: ='RESUMO MODULO TOTAL'!L21 -> 12063436 | D14: =$C$14*D13 -> 0 | E14: =$C$14*E13 -> 0 | F14: 0 | G14: 0 | H14: 0 | I14: 2010572.667 | J14: 2010572.667 | K14: 2010572.667 | L14: 2010572.667 | M14: 2010572.667 | N14: 2010572.667 | O14: 0 | P14: =SUM(D14:O14) -> 12063436 | Q14: =IF(P14=C14,"OK","") -> OK
B15: ='RESUMO MODULO TOTAL'!E28 -> AQUISIÇÃO E TRANSPORTE DO MATERIAL BETUMINOSO | C15: =SUM(D15:O15) -> 1 | I15: =1/6 -> 0.1666666667 | J15: 0.1666666667 | K15: 0.1666666667 | L15: 0.1666666667 | M15: 0.1666666667 | N15: 0.1666666667
C16: ='RESUMO MODULO TOTAL'!L28 ->  | D16: =$C$16*D15 ->  | E16: =$C$16*E15 ->  | P16: =SUM(D16:O16) ->  | Q16: =IF(P16=C16,"OK","") -> 
B17: ='RESUMO MODULO TOTAL'!E35 -> SINALIZAÇÃO | C17: =SUM(D17:O17) -> 1 | O17: 1
C18: ='RESUMO MODULO TOTAL'!L35 -> 523410.36 | D18: =$C$18*D17 -> 0 | E18: =$C$18*E17 -> 0 | F18: 0 | G18: 0 | H18: 0 | I18: 0 | J18: 0 | K18: 0 | L18: 0 | M18: 0 | N18: 0 | O18: 523410.36 | P18: =SUM(D18:O18) -> 523410.36 | Q18: =IF(P18=C18,"OK","") -> OK
B19: ='RESUMO MODULO TOTAL'!E40 -> DRENAGEM | C19: =SUM(D19:O19) -> 1 | N19: 0.5 | O19: 0.5
C20: ='RESUMO MODULO TOTAL'!L40 -> 3270678.4 | D20: =$C$20*D19 -> 0 | E20: =$C$20*E19 -> 0 | F20: 0 | G20: 0 | H20: 0 | I20: 0 | J20: 0 | K20: 0 | L20: 0 | M20: 0 | N20: 1635339.2 | O20: 1635339.2 | P20: =SUM(D20:O20) -> 3270678.4 | Q20: =IF(P20=C20,"OK","") -> OK
B21: ='RESUMO MODULO TOTAL'!E43 -> SERVIÇOS COMPLEMENTARES | C21: =SUM(D21:O21) -> 1 | H21: 0.5 | I21: 0.5
C22: ='RESUMO MODULO TOTAL'!L43 -> 88088 | D22: =$C$22*D21 -> 0 | E22: =$C$22*E21 -> 0 | F22: 0 | G22: 0 | H22: 44044 | I22: 44044 | J22: 0 | K22: 0 | L22: 0 | M22: 0 | N22: 0 | O22: 0 | P22: =SUM(D22:O22) -> 88088 | Q22: =IF(P22=C22,"OK","") -> OK
B23: ='RESUMO MODULO TOTAL'!E45 -> PROJETO EXECUTIVO | C23: =SUM(D23:O23) -> 1 | D23: 0.35 | E23: 0.35 | F23: 0.3
C24: ='RESUMO MODULO TOTAL'!L45 -> 1392160 | D24: =$C$24*D23 -> 487256 | E24: =$C$24*E23 -> 487256 | F24: 417648 | G24: 0 | H24: 0 | I24: 0 | J24: 0 | K24: 0 | L24: 0 | M24: 0 | N24: 0 | O24: 0 | P24: =SUM(D24:O24) -> 1392160 | Q24: =IF(P24=C24,"OK","") -> OK
B25: ='RESUMO MODULO TOTAL'!E47 -> MOMENTO DE TRANSPORTE | C25: =SUM(D25:O25) -> 1 | F25: 0.1 | G25: 0.1 | H25: 0.1 | I25: 0.15 | J25: 0.1 | K25: 0.1 | L25: 0.1 | M25: 0.1 | N25: 0.1 | O25: 0.05
C26: ='RESUMO MODULO TOTAL'!L47 -> 2801811.28 | D26: =$C$26*D25 -> 0 | E26: =$C$26*E25 -> 0 | F26: 280181.128 | G26: 280181.128 | H26: 280181.128 | I26: 420271.692 | J26: 280181.128 | K26: 280181.128 | L26: 280181.128 | M26: 280181.128 | N26: 280181.128 | O26: 140090.564 | P26: =SUM(D26:O26) -> 2801811.28 | Q26: =IF(P26=C26,"OK","") -> OK
A28: Porcentagem | D28: =SUM(D6+D8+D10+D12+D14+D16+D18+D20+D22+D24+D26)/$O$33 ->  | E28: =SUM(E6+E8+E10+E12+E14+E16+E18+E20+E22+E24+E26)/$O$33 ->  | O28: =SUM(O6+O8+O10+O12+O14+O16+O18+O20+O22+O24+O26)/$O$33 -> 
A29: Custo | D29: =$O$33*D28 ->  | E29: =$O$33*E28 ->  | F29: =$O$33*F28 -> 
A30: Porcentagem Acumulado | D30: =D28 ->  | E30: =D30+E28 ->  | F30: =E30+F28 ->  | O30: =N30+O28 -> 
A31: Custo Acumulado | D31: =D29 ->  | E31: =D31+E29 ->  | O31: =INT(N31+O29) -> 
D33: Total Geral | N33: R$ | O33: =INT(C6+C8+C10+C12+C14+C16+C18+C20+C22+C24+C26) -> 
O36: =O31-O33 -> 

Sheet CONSUMO DE MAT. B TOTAL
B3: CONSUMO DO MATERIAL BETUMINOSO TOTAL
B5: TRECHO | D5: QUANTIDADES | M5: MAT. BETUMINOSO
B6: Inicio (km) | C6: Fim (km) | D6: Extensão (m) | E6: Largura (m) | F6: Espess. (m) | G6: Área (m2) | H6: Volume (m3) | I6: Densidade (t/m3) | J6: Massa (t) | K6: Unid | L6: Quant. | M6: Tipo | N6: Consumo Taxa de Aplicação | O6: Unid. | P6: Quant.
B7: IMPRIMAÇÃO
F8: 1 | G8: ='MC MODULO'!H57 -> 308000 | M8: EAI | N8: 1,3 l/m2 | O8: t | P8: =ROUND((G8*1.3)/1000,2) -> 400.4
F9: 1 | H9: =G9*F9 -> 0 | M9: CM-30 | N9: 1,2 l/m2 | O9: t | P9: =ROUND((G9*1.2)/1000,2) -> 0
B10: PINTURA DE LIGAÇÃO
F11: 1 | G11: ='MC MODULO'!H63 -> 308000 | H11: =G11*F11 -> 308000 | M11: RR-1C | N11: 0,45 l/m2 | O11: t | P11: =ROUND((G11*0.45)/1000,2) -> 138.6
B12: CBUQ FAIXA "C"
H13: =G13*F13 -> 0 | J13: ='MC MODULO'!H51 -> 36960 | M13: CAP-50/70 | N13: 55,45 t/m3 | O13: t | P13: =ROUND((J13*55.45)/1000,2) -> 2049.43
B14: CBUQ FAIXA "B"
H15: =G15*F15 -> 0 | M15: CAP-50/70 | N15: 56,60 t/m3 | O15: t | P15: =ROUND((J15*56.6)/1000,2) -> 0
H17: =G17*F17 -> 0

Sheet Mob
A4: =#REF! -> 
A5: MOBILIZAÇÃO/DESMOBILIZAÇÃO (MOB) | F5: Frentes de serviços | H5: ='MC MODULO'!G1 -> 44
F6: Distância da Capital ao Canteiro: | H6: 50 | I6: Fica a cargo de cada SR colocar a distancia adequada de acordo com o historico de mobilização
F8: Velocidade média de transporte (pavim.): | H8: 60
A10: Transporte dos equipamentos
A11: CODIGO | B11: EQUIPAMENTO | C11: VEÍCULO TRANSPORTADOR | D11: QTDE | E11: K | F11: FU | G11: CUSTO DO TRANSPORTE
G12: (R$/h) | H12: (R$)/km
A13: E9524 | B13: =VLOOKUP(A13,Equipamentos!$A:$K,2,FALSE) -> Motoniveladora - 93 kW | C13: =IFERROR(INDEX('Tabelas 2 e 3 mob'!A:K,MATCH(A13,'Tabelas 2 e 3 mob'!A:A,0),9),"ERRO") -> E9665 | D13: 1 | E13: 2 | F13: 1 | G13: =IF(C13="Veículo(s) da própria frota.",0,INDEX(Equipamentos!B:K,MATCH(C13,Equipamentos!A:A,0),9)) -> 422.4322 | H13: =((D13*E13*F13)/$H$8)*G13 -> 14.08107333
A14: E9526 | B14: =VLOOKUP(A14,Equipamentos!$A:$K,2,FALSE) -> Retroescavadeira de pneus - capacidade da caçamba da pá-carregadeira de 0,76 m³ e da retroescavadeira de 0,29 m³ - 58 kW | C14: =IFERROR(INDEX('Tabelas 2 e 3 mob'!A:K,MATCH(A14,'Tabelas 2 e 3 mob'!A:A,0),9),"ERRO") -> E9665 | D14: 1 | E14: 2 | F14: 1 | G14: =IF(C14="Veículo(s) da própria frota.",0,INDEX(Equipamentos!B:K,MATCH(C14,Equipamentos!A:A,0),9)) -> 422.4322 | H14: =((D14*E14*F14)/$H$8)*G14 -> 14.08107333
A15: E9577 | B15: =VLOOKUP(A15,Equipamentos!$A:$K,2,FALSE) -> Trator agrícola sobre pneus - 77 kW | C15: =IFERROR(INDEX('Tabelas 2 e 3 mob'!A:K,MATCH(A15,'Tabelas 2 e 3 mob'!A:A,0),9),"ERRO") -> E9665 | D15: 1 | E15: 2 | F15: 0.5 | G15: =IF(C15="Veículo(s) da própria frota.",0,INDEX(Equipamentos!B:K,MATCH(C15,Equipamentos!A:A,0),9)) -> 422.4322 | H15: 7.040536667
A16: E9518 | B16: =VLOOKUP(A16,Equipamentos!$A:$K,2,FALSE) -> Grade de 24 discos rebocável de D = 60 cm (24") | C16: =IFERROR(INDEX('Tabelas 2 e 3 mob'!A:K,MATCH(A16,'Tabelas 2 e 3 mob'!A:A,0),9),"ERRO") -> Veículo(s) da própria frota. | D16: 1 | E16: 2 | F16: 0 | G16: =IF(C16="Veículo(s) da própria frota.",0,INDEX(Equipamentos!B:K,MATCH(C16,Equipamentos!A:A,0),9)) -> 0 | H16: 0
A17: E9615 | B17: =VLOOKUP(A17,Equipamentos!$A:$K,2,FALSE) -> Usina misturadora de solos com capacidade de 300 t/h - 44 kW | C17: =IFERROR(INDEX('Tabelas 2 e 3 mob'!A:K,MATCH(A17,'Tabelas 2 e 3 mob'!A:A,0),9),"ERRO") -> E9018 | D17: 0 | E17: 2 | F17: 2 | G17: =IF(C17="Veículo(s) da própria frota.",0,INDEX(Equipamentos!B:K,MATCH(C17,Equipamentos!A:A,0),9)) -> 561.7271 | H17: 0
A18: E9530 | B18: =VLOOKUP(A18,Equipamentos!$A:$K,2,FALSE) -> Rolo compactador liso vibratório autopropelido por pneus de 11 t - 97 kW | C18: =IFERROR(INDEX('Tabelas 2 e 3 mob'!A:K,MATCH(A18,'Tabelas 2 e 3 mob'!A:A,0),9),"ERRO") -> E9666 | D18: 1 | E18: 2 | F18: 0.5 | G18: =IF(C18="Veículo(s) da própria frota.",0,INDEX(Equipamentos!B:K,MATCH(C18,Equipamentos!A:A,0),9)) -> 472.1302 | H18: 7.868836667
A19: E9558 | B19: =VLOOKUP(A19,Equipamentos!$A:$K,2,FALSE) -> Tanque de estocagem de asfalto com capacidade de 30.000 l | C19: =IFERROR(INDEX('Tabelas 2 e 3 mob'!A:K,MATCH(A19,'Tabelas 2 e 3 mob'!A:A,0),9),"ERRO") -> E9665 | D19: 1 | E19: 2 | F19: 1 | G19: =IF(C19="Veículo(s) da própria frota.",0,INDEX(Equipamentos!B:K,MATCH(C19,Equipamentos!A:A,0),9)) -> 422.4322 | H19: 14.08107333
A20: E9758 | B20: =VLOOKUP(A20,Equipamentos!$A:$K,2,FALSE) -> Vibroacabadora de asfalto sobre pneus - 97 kW | C20: =IFERROR(INDEX('Tabelas 2 e 3 mob'!A:K,MATCH(A20,'Tabelas 2 e 3 mob'!A:A,0),9),"ERRO") -> E9018 | D20: 1 | E20: 2 | F20: 0.5 | G20: =IF(C20="Veículo(s) da própria frota.",0,INDEX(Equipamentos!B:K,MATCH(C20,Equipamentos!A:A,0),9)) -> 561.7271 | H20: 9.362118333
A21: E9685 | B21: =VLOOKUP(A21,Equipamentos!$A:$K,2,FALSE) -> Rolo compactador pé de carneiro vibratório autopropelido por pneus de 11,6 t - 82 kW | C21: =IFERROR(INDEX('Tabelas 2 e 3 mob'!A:K,MATCH(A21,'Tabelas 2 e 3 mob'!A:A,0),9),"ERRO") -> E9666 | D21: 1 | E21: 2 | F21: 0.5 | G21: =IF(C21="Veículo(s) da própria frota.",0,INDEX(Equipamentos!B:K,MATCH(C21,Equipamentos!A:A,0),9)) -> 472.1302 | H21: 7.868836667
A22: E9605 | B22: =VLOOKUP(A22,Equipamentos!$A:$K,2,FALSE) -> Caminhão tanque com capacidade de 6.000 l - 136 kW | C22: =IFERROR(INDEX('Tabelas 2 e 3 mob'!A:K,MATCH(A22,'Tabelas 2 e 3 mob'!A:A,0),9),"ERRO") -> E9605 | D22: 1 | E22: 1 | F22: 1 | G22: =IF(C22="Veículo(s) da própria frota.",0,INDEX(Equipamentos!B:K,MATCH(C22,Equipamentos!A:A,0),9)) -> 276.8761 | H22: 4.614601667
A23: E9579 | B23: =VLOOKUP(A23,Equipamentos!$A:$K,2,FALSE) -> Caminhão basculante com capacidade de 10 m³ - 210 kW | C23: =IFERROR(INDEX('Tabelas 2 e 3 mob'!A:K,MATCH(A23,'Tabelas 2 e 3 mob'!A:A,0),9),"ERRO") -> E9579 | D23: 5 | E23: 1 | F23: 1 | G23: =IF(C23="Veículo(s) da própria frota.",0,INDEX(Equipamentos!B:K,MATCH(C23,Equipamentos!A:A,0),9)) -> 305.7457 | H23: 25.47880833
A24: E9509 | B24: =VLOOKUP(A24,Equipamentos!$A:$K,2,FALSE) -> Caminhão tanque distribuidor de asfalto com capacidade de 6.000 l - 7 kW/136 kW | C24: =IFERROR(INDEX('Tabelas 2 e 3 mob'!A:K,MATCH(A24,'Tabelas 2 e 3 mob'!A:A,0),9),"ERRO") -> E9509 | D24: 1 | E24: 1 | F24: 1 | G24: =IF(C24="Veículo(s) da própria frota.",0,INDEX(Equipamentos!B:K,MATCH(C24,Equipamentos!A:A,0),9)) -> 331.719 | H24: 5.52865
A25: E9762 | B25: =VLOOKUP(A25,Equipamentos!$A:$K,2,FALSE) -> Rolo compactador de pneus autopropelido de 27 t - 85 kW | C25: =IFERROR(INDEX('Tabelas 2 e 3 mob'!A:K,MATCH(A25,'Tabelas 2 e 3 mob'!A:A,0),9),"ERRO") -> E9666 | D25: 1 | E25: 2 | F25: 0.5 | G25: =IF(C25="Veículo(s) da própria frota.",0,INDEX(Equipamentos!B:K,MATCH(C25,Equipamentos!A:A,0),9)) -> 472.1302 | H25: 7.868836667
A26: E9681 | B26: =VLOOKUP(A26,Equipamentos!$A:$K,2,FALSE) -> Rolo compactador liso tandem vibratório autopropelido de 10,4 t - 82 kW | C26: =IFERROR(INDEX('Tabelas 2 e 3 mob'!A:K,MATCH(A26,'Tabelas 2 e 3 mob'!A:A,0),9),"ERRO") -> E9666 | D26: 1 | E26: 2 | F26: 0.5 | G26: =IF(C26="Veículo(s) da própria frota.",0,INDEX(Equipamentos!B:K,MATCH(C26,Equipamentos!A:A,0),9)) -> 472.1302 | H26: 7.868836667
A27: E9545 | B27: =VLOOKUP(A27,Equipamentos!$A:$K,2,FALSE) -> Vibroacabadora de asfalto sobre esteiras - 97 kW | C27: =IFERROR(INDEX('Tabelas 2 e 3 mob'!A:K,MATCH(A27,'Tabelas 2 e 3 mob'!A:A,0),9),"ERRO") -> E9018 | D27: 1 | E27: 2 | F27: 0.5 | G27: =IF(C27="Veículo(s) da própria frota.",0,INDEX(Equipamentos!B:K,MATCH(C27,Equipamentos!A:A,0),9)) -> 561.7271 | H27: 9.362118333
A28: E9571 | B28: =VLOOKUP(A28,Equipamentos!$A:$K,2,FALSE) -> Caminhão tanque com capacidade de 10.000 l - 188 kW | C28: =IFERROR(INDEX('Tabelas 2 e 3 mob'!A:K,MATCH(A28,'Tabelas 2 e 3 mob'!A:A,0),9),"ERRO") -> E9571 | D28: 1 | E28: 1 | F28: 1 | G28: =IF(C28="Veículo(s) da própria frota.",0,INDEX(Equipamentos!B:K,MATCH(C28,Equipamentos!A:A,0),9)) -> 357.5728 | H28: 5.959546667
A29: E9514 | B29: =VLOOKUP(A29,Equipamentos!$A:$K,2,FALSE) -> Distribuidor de agregados sobre pneus autopropelido - 130 kW | C29: =IFERROR(INDEX('Tabelas 2 e 3 mob'!A:K,MATCH(A29,'Tabelas 2 e 3 mob'!A:A,0),9),"ERRO") -> E9665 | D29: 1 | E29: 2 | F29: 0.5 | G29: =IF(C29="Veículo(s) da própria frota.",0,INDEX(Equipamentos!B:K,MATCH(C29,Equipamentos!A:A,0),9)) -> 422.4322 | H29: 7.040536667
A30: E9511 | B30: =VLOOKUP(A30,Equipamentos!$A:$K,2,FALSE) -> Carregadeira de pneus com capacidade de 3,40 m³ - 195 kW | C30: =IFERROR(INDEX('Tabelas 2 e 3 mob'!A:K,MATCH(A30,'Tabelas 2 e 3 mob'!A:A,0),9),"ERRO") -> E9665 | D30: 1 | E30: 2 | F30: 1 | G30: =IF(C30="Veículo(s) da própria frota.",0,INDEX(Equipamentos!B:K,MATCH(C30,Equipamentos!A:A,0),9)) -> 422.4322 | H30: 14.08107333
A31: E9779 | B31: =VLOOKUP(A31,Equipamentos!$A:$K,2,FALSE) -> Grupo gerador - 113 kVA | C31: =IFERROR(INDEX('Tabelas 2 e 3 mob'!A:K,MATCH(A31,'Tabelas 2 e 3 mob'!A:A,0),9),"ERRO") -> Veículo(s) da própria frota. | D31: 1 | E31: 2 | F31: 0 | G31: =IF(C31="Veículo(s) da própria frota.",0,INDEX(Equipamentos!B:K,MATCH(C31,Equipamentos!A:A,0),9)) -> 0 | H31: 0
A32: E9559 | B32: =VLOOKUP(A32,Equipamentos!$A:$K,2,FALSE) -> Aquecedor de fluido térmico - 12 kW | C32: =IFERROR(INDEX('Tabelas 2 e 3 mob'!A:K,MATCH(A32,'Tabelas 2 e 3 mob'!A:A,0),9),"ERRO") -> Veículo(s) da própria frota. | D32: 1 | E32: 2 | F32: 0 | G32: =IF(C32="Veículo(s) da própria frota.",0,INDEX(Equipamentos!B:K,MATCH(C32,Equipamentos!A:A,0),9)) -> 0 | H32: 0
A33: E9584 | B33: =VLOOKUP(A33,Equipamentos!$A:$K,2,FALSE) -> Carregadeira de pneus com capacidade de 1,72 m³ - 113 kW | C33: =IFERROR(INDEX('Tabelas 2 e 3 mob'!A:K,MATCH(A33,'Tabelas 2 e 3 mob'!A:A,0),9),"ERRO") -> E9665 | D33: 1 | E33: 2 | F33: 1 | G33: =IF(C33="Veículo(s) da própria frota.",0,INDEX(Equipamentos!B:K,MATCH(C33,Equipamentos!A:A,0),9)) -> 422.4322 | H33: 14.08107333
A34: E9021 | B34: =VLOOKUP(A34,Equipamentos!$A:$K,2,FALSE) -> Grupo gerador - 456 kVA | C34: =IFERROR(INDEX('Tabelas 2 e 3 mob'!A:K,MATCH(A34,'Tabelas 2 e 3 mob'!A:A,0),9),"ERRO") -> E9508 | D34: 1 | E34: 2 | F34: 1 | G34: =IF(C34="Veículo(s) da própria frota.",0,INDEX(Equipamentos!B:K,MATCH(C34,Equipamentos!A:A,0),9)) -> 193.0334 | H34: 6.434446667
A35: E9687 | B35: =VLOOKUP(A35,Equipamentos!$A:$K,2,FALSE) -> Caminhão carroceria com capacidade de 5 t - 120 kW | C35: =IFERROR(INDEX('Tabelas 2 e 3 mob'!A:K,MATCH(A35,'Tabelas 2 e 3 mob'!A:A,0),9),"ERRO") -> E9687 | D35: 1 | E35: 1 | F35: 1 | G35: =IF(C35="Veículo(s) da própria frota.",0,INDEX(Equipamentos!B:K,MATCH(C35,Equipamentos!A:A,0),9)) -> 172.265 | H35: 2.871083333
A36: E9667 | B36: =VLOOKUP(A36,Equipamentos!$A:$K,2,FALSE) -> Caminhão basculante com capacidade de 14 m³ - 210 kW | C36: =IFERROR(INDEX('Tabelas 2 e 3 mob'!A:K,MATCH(A36,'Tabelas 2 e 3 mob'!A:A,0),9),"ERRO") -> E9667 | D36: 1 | E36: 1 | F36: 1 | G36: =IF(C36="Veículo(s) da própria frota.",0,INDEX(Equipamentos!B:K,MATCH(C36,Equipamentos!A:A,0),9)) -> 319.0394 | H36: 5.317323333
A37: E9644 | B37: =VLOOKUP(A37,Equipamentos!$A:$K,2,FALSE) -> Caminhão demarcador de faixas com sistema de pintura a frio - 28 kW/129 kW | C37: =IFERROR(INDEX('Tabelas 2 e 3 mob'!A:K,MATCH(A37,'Tabelas 2 e 3 mob'!A:A,0),9),"ERRO") -> E9644 | D37: 1 | E37: 1 | F37: 1 | G37: =IF(C37="Veículo(s) da própria frota.",0,INDEX(Equipamentos!B:K,MATCH(C37,Equipamentos!A:A,0),9)) -> 456.2076 | H37: 7.60346
A38: E9592 | B38: =VLOOKUP(A38,Equipamentos!$A:$K,2,FALSE) -> Caminhão carroceria com capacidade de 15 t - 188 kW | C38: =IFERROR(INDEX('Tabelas 2 e 3 mob'!A:K,MATCH(A38,'Tabelas 2 e 3 mob'!A:A,0),9),"ERRO") -> E9592 | D38: 1 | E38: 1 | F38: 1 | G38: =IF(C38="Veículo(s) da própria frota.",0,INDEX(Equipamentos!B:K,MATCH(C38,Equipamentos!A:A,0),9)) -> 281.2094 | H38: 4.686823333
A39: E9540 | B39: =VLOOKUP(A39,Equipamentos!$A:$K,2,FALSE) -> Trator sobre esteiras com lâmina - 127 kW | C39: =IFERROR(INDEX('Tabelas 2 e 3 mob'!A:K,MATCH(A39,'Tabelas 2 e 3 mob'!A:A,0),9),"ERRO") -> E9018 | D39: 1 | E39: 2 | F39: 0.5 | G39: =IF(C39="Veículo(s) da própria frota.",0,INDEX(Equipamentos!B:K,MATCH(C39,Equipamentos!A:A,0),9)) -> 561.7271 | H39: 9.362118333
A40: E9515 | B40: =VLOOKUP(A40,Equipamentos!$A:$K,2,FALSE) -> Escavadeira hidráulica sobre esteiras com caçamba com capacidade de 1,56 m³ - 118 kW | C40: =IFERROR(INDEX('Tabelas 2 e 3 mob'!A:K,MATCH(A40,'Tabelas 2 e 3 mob'!A:A,0),9),"ERRO") -> E9666 | D40: 1 | E40: 2 | F40: 1 | G40: =IF(C40="Veículo(s) da própria frota.",0,INDEX(Equipamentos!B:K,MATCH(C40,Equipamentos!A:A,0),9)) -> 472.1302 | H40: 15.73767333
A41: E9506 | B41: =VLOOKUP(A41,Equipamentos!$A:$K,2,FALSE) -> Caminhão basculante com capacidade de 6 m³ - 136 kW | C41: =IFERROR(INDEX('Tabelas 2 e 3 mob'!A:K,MATCH(A41,'Tabelas 2 e 3 mob'!A:A,0),9),"ERRO") -> E9506 | D41: 1 | E41: 1 | F41: 1 | G41: =IF(C41="Veículo(s) da própria frota.",0,INDEX(Equipamentos!B:K,MATCH(C41,Equipamentos!A:A,0),9)) -> 198.0705 | H41: 3.301175
A42: E9256 | B42: =VLOOKUP(A42,Equipamentos!$A:$K,2,FALSE) -> Equipamento para pintura com cal rebocável com dois bicos aplicadores e capacidade de 2.200 l | C42: =IFERROR(INDEX('Tabelas 2 e 3 mob'!A:K,MATCH(A42,'Tabelas 2 e 3 mob'!A:A,0),9),"ERRO") -> Veículo(s) da própria frota. | D42: 1 | E42: 2 | F42: 0 | G42: =IF(C42="Veículo(s) da própria frota.",0,INDEX(Equipamentos!B:K,MATCH(C42,Equipamentos!A:A,0),9)) -> 0 | H42: 0
A43: E9156 | B43: =VLOOKUP(A43,Equipamentos!$A:$K,2,FALSE) -> Soprador de ar costal - 2,6 kW | C43: =IFERROR(INDEX('Tabelas 2 e 3 mob'!A:K,MATCH(A43,'Tabelas 2 e 3 mob'!A:A,0),9),"ERRO") -> Veículo(s) da própria frota. | D43: 1 | E43: 2 | F43: 0 | G43: =IF(C43="Veículo(s) da própria frota.",0,INDEX(Equipamentos!B:K,MATCH(C43,Equipamentos!A:A,0),9)) -> 0 | H43: 0
A44: E9146 | B44: =VLOOKUP(A44,Equipamentos!$A:$K,2,FALSE) -> Caminhão silo com capacidade de 30 m³ - 368 kW | C44: =IFERROR(INDEX('Tabelas 2 e 3 mob'!A:K,MATCH(A44,'Tabelas 2 e 3 mob'!A:A,0),9),"ERRO") -> E9146 | D44: 1 | E44: 1 | F44: 1 | G44: =IF(C44="Veículo(s) da própria frota.",0,INDEX(Equipamentos!B:K,MATCH(C44,Equipamentos!A:A,0),9)) -> 668.498 | H44: 11.14163333
A45: E9599 | B45: =VLOOKUP(A45,Equipamentos!$A:$K,2,FALSE) -> Central de concreto com capacidade de 30 m³/h - dosadora RS | C45: =IFERROR(INDEX('Tabelas 2 e 3 mob'!A:K,MATCH(A45,'Tabelas 2 e 3 mob'!A:A,0),9),"ERRO") -> E9018 | D45: 1 | E45: 2 | F45: 1 | G45: =IF(C45="Veículo(s) da própria frota.",0,INDEX(Equipamentos!B:K,MATCH(C45,Equipamentos!A:A,0),9)) -> 561.7271 | H45: 18.72423667
A46: E9103 | B46: =VLOOKUP(A46,Equipamentos!$A:$K,2,FALSE) -> Extrusora para meio-fio de concreto - 10,44 kW | C46: =IFERROR(INDEX('Tabelas 2 e 3 mob'!A:K,MATCH(A46,'Tabelas 2 e 3 mob'!A:A,0),9),"ERRO") -> Veículo(s) da própria frota. | D46: 1 | E46: 2 | F46: 0 | G46: =IF(C46="Veículo(s) da própria frota.",0,INDEX(Equipamentos!B:K,MATCH(C46,Equipamentos!A:A,0),9)) -> 0 | H46: 0
A47: E9071 | B47: =VLOOKUP(A47,Equipamentos!$A:$K,2,FALSE) -> Transportador manual carrinho de mão com capacidade de 80 l | C47: =IFERROR(INDEX('Tabelas 2 e 3 mob'!A:K,MATCH(A47,'Tabelas 2 e 3 mob'!A:A,0),9),"ERRO") -> Veículo(s) da própria frota. | D47: 0 | E47: 2 | F47: 0 | G47: =IF(C47="Veículo(s) da própria frota.",0,INDEX(Equipamentos!B:K,MATCH(C47,Equipamentos!A:A,0),9)) -> 0 | H47: 0
A48: E9064 | B48: =VLOOKUP(A48,Equipamentos!$A:$K,2,FALSE) -> Transportador manual gerica com capacidade de 180 l | C48: =IFERROR(INDEX('Tabelas 2 e 3 mob'!A:K,MATCH(A48,'Tabelas 2 e 3 mob'!A:A,0),9),"ERRO") -> Veículo(s) da própria frota. | D48: 0 | E48: 2 | F48: 0 | G48: =IF(C48="Veículo(s) da própria frota.",0,INDEX(Equipamentos!B:K,MATCH(C48,Equipamentos!A:A,0),9)) -> 0 | H48: 0
A49: E9066 | B49: =VLOOKUP(A49,Equipamentos!$A:$K,2,FALSE) -> Grupo gerador - 14 kVA | C49: =IFERROR(INDEX('Tabelas 2 e 3 mob'!A:K,MATCH(A49,'Tabelas 2 e 3 mob'!A:A,0),9),"ERRO") -> Veículo(s) da própria frota. | D49: 0 | E49: 2 | F49: 0 | G49: =IF(C49="Veículo(s) da própria frota.",0,INDEX(Equipamentos!B:K,MATCH(C49,Equipamentos!A:A,0),9)) -> 0 | H49: 0
A50: E9535 | B50: =VLOOKUP(A50,Equipamentos!$A:$K,2,FALSE) -> Serra circular com bancada - D = 30 cm - 4 kW | C50: =IFERROR(INDEX('Tabelas 2 e 3 mob'!A:K,MATCH(A50,'Tabelas 2 e 3 mob'!A:A,0),9),"ERRO") -> Veículo(s) da própria frota. | D50: 0 | E50: 2 | F50: 0 | G50: =IF(C50="Veículo(s) da própria frota.",0,INDEX(Equipamentos!B:K,MATCH(C50,Equipamentos!A:A,0),9)) -> 0 | H50: 0
A51: E9507 | B51: =VLOOKUP(A51,Equipamentos!$A:$K,2,FALSE) -> Plotadora de recorte com computador e programa computacional | C51: =IFERROR(INDEX('Tabelas 2 e 3 mob'!A:K,MATCH(A51,'Tabelas 2 e 3 mob'!A:A,0),9),"ERRO") -> Veículo(s) da própria frota. | D51: 0 | E51: 2 | F51: 0 | G51: =IF(C51="Veículo(s) da própria frota.",0,INDEX(Equipamentos!B:K,MATCH(C51,Equipamentos!A:A,0),9)) -> 0 | H51: 0
A52: E9568 | B52: =VLOOKUP(A52,Equipamentos!$A:$K,2,FALSE) -> Furadeira de impacto de 12,5 mm - 0,80 kW | C52: =IFERROR(INDEX('Tabelas 2 e 3 mob'!A:K,MATCH(A52,'Tabelas 2 e 3 mob'!A:A,0),9),"ERRO") -> Veículo(s) da própria frota. | D52: 0 | E52: 2 | F52: 0 | G52: =IF(C52="Veículo(s) da própria frota.",0,INDEX(Equipamentos!B:K,MATCH(C52,Equipamentos!A:A,0),9)) -> 0 | H52: 0
A53: E9753 | B53: =VLOOKUP(A53,Equipamentos!$A:$K,2,FALSE) -> Grupo gerador - 23 kVA | C53: =IFERROR(INDEX('Tabelas 2 e 3 mob'!A:K,MATCH(A53,'Tabelas 2 e 3 mob'!A:A,0),9),"ERRO") -> Veículo(s) da própria frota. | D53: 0 | E53: 2 | F53: 0 | G53: =IF(C53="Veículo(s) da própria frota.",0,INDEX(Equipamentos!B:K,MATCH(C53,Equipamentos!A:A,0),9)) -> 0 | H53: 0
A54: E9623 | B54: =VLOOKUP(A54,Equipamentos!$A:$K,2,FALSE) -> Máquina de bancada guilhotina - 4,00 kW | C54: =IFERROR(INDEX('Tabelas 2 e 3 mob'!A:K,MATCH(A54,'Tabelas 2 e 3 mob'!A:A,0),9),"ERRO") -> Veículo(s) da própria frota. | D54: 0 | E54: 2 | F54: 0 | G54: =IF(C54="Veículo(s) da própria frota.",0,INDEX(Equipamentos!B:K,MATCH(C54,Equipamentos!A:A,0),9)) -> 0 | H54: 0
A55: E9622 | B55: =VLOOKUP(A55,Equipamentos!$A:$K,2,FALSE) -> Máquina de bancada universal para corte de chapa - 1,50 kW | C55: =IFERROR(INDEX('Tabelas 2 e 3 mob'!A:K,MATCH(A55,'Tabelas 2 e 3 mob'!A:A,0),9),"ERRO") -> Veículo(s) da própria frota. | D55: 0 | E55: 2 | F55: 0 | G55: =IF(C55="Veículo(s) da própria frota.",0,INDEX(Equipamentos!B:K,MATCH(C55,Equipamentos!A:A,0),9)) -> 0 | H55: 0
A56: E9678 | B56: =VLOOKUP(A56,Equipamentos!$A:$K,2,FALSE) -> Fresadora a frio - 455 kW | C56: =IFERROR(INDEX('Tabelas 2 e 3 mob'!A:K,MATCH(A56,'Tabelas 2 e 3 mob'!A:A,0),9),"ERRO") -> E9666 | D56: 0 | E56: 2 | F56: 1 | G56: =IF(C56="Veículo(s) da própria frota.",0,INDEX(Equipamentos!B:K,MATCH(C56,Equipamentos!A:A,0),9)) -> 472.1302 | H56: 0
G57: TOTAL | H57: =SUM(H13:H56) -> 261.4476033
A60: CUSTO TOTAL MOBILIZAÇÃO E DESMOBILIZAÇÃO
A61: DESCRIÇÃO | B61: VALOR
A62: Custo Mobilização (km) | B62: =H57 -> 261.4476033
A63: BDI (%) | B63: =BDI!C14 -> 0.2339
A64: Custo Mobilização (R$/km) com BDI | B64: =B62+(B62*B63) -> 322.6001978
A65: Total de Frentes | B65: ='MC MODULO'!G1 -> 44
A66: Custo Mobilização (frentes x distancia) | B66: =B64*H6*B65 -> 709720.4351

Sheet Canteiro
A4: CANTEIRO DE OBRAS PARA CONSTRUÇAO RODOVIÁRIA
A5: Descrição dos serviços | B5: Tipo de container | C5: Unidade | D5: Quantidade | E5: Preço unitário (R$) | F5: Total (R$)
A6: Escritório e seção técnica
A7: =VLOOKUP(B7,'INSUMOS SINAPI'!$A:$E,2,0) -> LOCACAO DE CONTAINER 2,30 X 6,00 M, ALT. 2,50 M, PARA ESCRITORIO, SEM DIVISORIAS INTERNAS E SEM SANITARIO (NAO INCLUI MOBILIZACAO/DESMOBILIZACAO) | B7: 10776 | C7: und | D7: 1 | E7: =VLOOKUP(B7,'INSUMOS SINAPI'!$A:$E,5,0) -> 1015.62 | F7: =TRUNC(D7*E7,2) -> 1015.62
A8: Banheiro e vestiário
A9: =VLOOKUP(B9,'INSUMOS SINAPI'!$A:$E,2,0) -> LOCACAO DE CONTAINER 2,30 X 4,30 M, ALT. 2,50 M, PARA SANITARIO, COM 3 BACIAS, 4 CHUVEIROS, 1 LAVATORIO E 1 MICTORIO (NAO INCLUI MOBILIZACAO/DESMOBILIZACAO) | B9: 10777 | C9: und | D9: 1 | E9: =VLOOKUP(B9,'INSUMOS SINAPI'!$A:$E,5,0) -> 1476.04 | F9: =TRUNC(D9*E9,2) -> 1476.04
D10: TOTAL DO CANTEIRO | F10: =SUM(F7:F9) -> 2491.66
D11: DURAÇÃO (MESES) | E11: 1 | F11: =F10*E11 -> 2491.66
D12: BDI | F12: =BDI!C14 -> 0.2339
D13: TOTAL DO CANTEIRO (com BDI) | F13: =F11+(F11*F12) -> 3074.459274

Sheet Adm Local
A2: parcela fixa da administração local (mão de obra)
A3: Código | B3: Discriminação | C3: Unidade | D3: Quantidade | F3: Custo Unitário (R$) | H3: Custo Total (R$)
B4: Mão de Obra
B5: Gerência Técnica
B6: Geral
A7: P9955 | B7: Engenheiro chefe | C7: mês | D7: 0.5 | F7: =VLOOKUP(A7,'Pessoal Sicro'!$A$6:$G$118,6,0) -> 34473.2594 | H7: =F7*D7 -> 17236.6297
A8: P9840 | B8: Encarregado geral | C8: mês | D8: 0.5 | F8: =VLOOKUP(A8,'Pessoal Sicro'!$A$6:$G$118,6,0) -> 11501.5121 | H8: =F8*D8 -> 5750.75605
A9: P9897 | B9: Técnico de meio ambiente | C9: mês | D9: 0 | F9: =VLOOKUP(A9,'Pessoal Sicro'!$A$6:$G$118,6,0) -> 8048.5412 | H9: =F9*D9 -> 0
A10: P9948 | B10: Motorista | C10: mês | D10: 0 | F10: =VLOOKUP(A10,'Pessoal Sicro'!$A$6:$G$118,6,0) -> 6008.0336 | H10: =F10*D10 -> 0
A11: P9878 | B11: Secretária | C11: mês | D11: 0 | F11: =VLOOKUP(A11,'Pessoal Sicro'!$A$6:$G$118,6,0) -> 6830.99 | H11: =F11*D11 -> 0
F12: Subtotal do Item 1.1 | H12: =SUM(H7:I11) -> 22987.38575
B13: Auxiliar
A14: P9946 | B14: Engenheiro auxiliar | C14: mês | D14: 1 | F14: =VLOOKUP(A14,'Pessoal Sicro'!$A$6:$G$118,6,0) -> 24874.8163 | H14: =D14*F14 -> 24874.8163
A15: P9903 | B15: Auxiliar técnico | C15: mês | D15: 0 | F15: =VLOOKUP(A15,'Pessoal Sicro'!$A$6:$G$118,6,0) -> 4875.3669 | H15: =D15*F15 -> 0
F16: Subtotal do Item 1.2 | H16: =SUM(H14:I15) -> 24874.8163
B17: Gerência Administrativa
B18: Geral
A19: P9883 | B19: Chefe do setor administrativo | C19: mês | D19: 1 | F19: =VLOOKUP(A19,'Pessoal Sicro'!$A$6:$G$118,6,0) -> 7783.947 | H19: =F19*D19 -> 7783.947
A20: P9809 | B20: Encarregado administrativo | C20: mês | D20: 0 | F20: =VLOOKUP(A20,'Pessoal Sicro'!$A$6:$G$118,6,0) -> 7783.8336 | H20: =F20*D20 -> 0
A21: P9896 | B21: Porteiro | C21: mês | D21: 0 | F21: =VLOOKUP(A21,'Pessoal Sicro'!$A$6:$G$118,6,0) -> 4344.2089 | H21: =F21*D21 -> 0
A22: P9827 | B22: Vigia | C22: mês | D22: 0 | F22: =VLOOKUP(A22,'Pessoal Sicro'!$A$6:$G$118,6,0) -> 5190.1176 | H22: =F22*D22 -> 0
A23: P9948 | B23: Motorista | C23: mês | D23: 0 | F23: =VLOOKUP(A23,'Pessoal Sicro'!$A$6:$G$118,6,0) -> 6008.0336 | H23: =F23*D23 -> 0
F24: Subtotal do Item 1.3 | H24: =SUM(H19:I23) -> 7783.947
B25: Auxiliar
A26: P9806 | B26: Auxiliar administrativo | C26: mês | D26: 1 | F26: =VLOOKUP(A26,'Pessoal Sicro'!$A$6:$G$118,6,0) -> 5091.0802 | H26: =F26*D26 -> 5091.0802
A27: P9842 | B27: Faxineiro | C27: mês | D27: 0 | F27: =VLOOKUP(A27,'Pessoal Sicro'!$A$6:$G$118,6,0) -> 4353.3801 | H27: =F27*D27 -> 0
F28: Subtotal do Item 1.4 | H28: =SUM(H26:I27) -> 5091.0802
H29: Total da Mão de Obra da Parcela Fixa | I29: =H28+H24+H16+H12 -> 60737.22925
A31: parcela fixa da administração local (veículos)
A32: Código | B32: Discriminação | C32: Unidade | D32: Quantidade | E32: Utilização Produtiva | F32: Utilização Improdutiva | G32: Custo Horário Produtivo (R$) | H32: Custo Horário Improdutivo (R$) | I32: Custo Total (R$)
A33: 2 | B33: Veículos
B34: Gerência Técnica
A35: 2.1 | B35: Geral
A36: E9093 | B36: Veículo Leve 53 kw | C36: mês | D36: 1 | E36: 44 | F36: 176 | G36: =VLOOKUP(A36,Equipamentos!$A$4:$K$541,10,0) -> 37.9171 | H36: =VLOOKUP(A36,Equipamentos!$A$4:$K$541,11,0) -> 6.7543 | I36: =((E36*G36)+(F36*H36))*D36 -> 2857.1092
A37: E9560 | B37: Ônibus coletivo - 175 kw | C37: mês | D37: 0 | E37: 44 | F37: 176 | G37: =VLOOKUP(A37,Equipamentos!$A$4:$K$541,10,0) -> 353.6381 | H37: =VLOOKUP(A37,Equipamentos!$A$4:$K$541,11,0) -> 106.3423 | I37: =((E37*G37)+(F37*H37))*D37 -> 0
H38: Subtotal do Item 2 | I38: =SUM(I36:I37) -> 2857.1092
A39: 2.2 | B39: Auxiliar
A40: E9093 | B40: Veículo Leve 53 kw | C40: mês | D40: 0 | E40: 44 | F40: 176 | G40: =G36 -> 37.9171 | H40: =H36 -> 6.7543 | I40: =((E40*G40)+(F40*H40))*D40 -> 0
H41: Subtotal do Item 2 | I41: =SUM(I40) -> 0
A42: 2.3 | B42: Gerência Administrativa
A43: E9093 | B43: Veículo Leve 53 kw | C43: mês | D43: 0 | E43: 44 | F43: 176 | G43: =G36 -> 37.9171 | H43: =H36 -> 6.7543 | I43: =((E43*G43)+(F43*H43))*D43 -> 0
H44: Subtotal do Item 2 | I44: =I43 -> 0
H45: Total dos Veículos da Parcela Fixa | I45: =I44+I41+I38 -> 2857.1092
A47: Composição de custo da equipe de produção de terraplenagem
A48: Código | B48: Discriminação | C48: Unidade | D48: Quantidade | F48: Custo Unitário (R$) | H48: Custo Total (R$)
B49: Equipe de Produção de Terraplenagem
A50: 3.1 | B50: Mão de Obra
A51: P9884 | B51: Encarregado de produção | C51: mês | D51: 0 | F51: =VLOOKUP(A51,'Pessoal Sicro'!$A$6:$G$118,6,0) -> 8281.7942 | H51: =F51*D51 -> 0
F52: Subtotal do Item 3.1 | H52: =SUM(H51:H51) -> 0
A53: Código | B53: Discriminação | C53: Unidade | D53: Quantidade | E53: Utilização Produtiva | F53: Utilização Improdutiva | G53: Custo Horário Produtivo (R$) | H53: Custo Horário Improdutivo (R$) | I53: Custo Total (R$)
A54: 3.2 | B54: Veículos
B55: Veículo Leve 53 kw | C55: mês | D55: 0 | E55: 44 | F55: 176 | G55: =G36 -> 37.9171 | H55: =H36 -> 6.7543 | I55: =((E55*G55)+(F55*H55))*D55 -> 0
H56: Subtotal do Item 3.2 | I56: =SUM(I55:I55) -> 0
H57: Total da Equipe de Produção de Terraplenagem | I57: =I56+H52 -> 0
A59: Composição de custo da equipe de produção de pavimentação
A60: Código | B60: Discriminação | C60: Unidade | D60: Quantidade | F60: Custo Unitário (R$) | H60: Custo Total (R$)
B61: Equipe de Produção de Pavimentação
A62: 3.1 | B62: Mão de Obra
A63: ='Pessoal Sicro'!$A$70 -> P9901 | B63: Encarregado de produção | C63: mês | D63: 1 | F63: =VLOOKUP(A63,'Pessoal Sicro'!$A$6:$G$118,6,0) -> 8281.7942 | H63: =F63*D63 -> 8281.7942
F64: Subtotal do Item 3.1 | H64: =SUM(H63:H63) -> 8281.7942
A65: Código | B65: Discriminação | C65: Unidade | D65: Quantidade | E65: Utilização Produtiva | F65: Utilização Improdutiva | G65: Custo Horário Produtivo (R$) | H65: Custo Horário Improdutivo (R$) | I65: Custo Total (R$)
A66: 3.2 | B66: Veículos
B67: Veículo Leve 53 kw | C67: mês | D67: 1 | E67: 44 | F67: 176 | G67: =$G$36 -> 37.9171 | H67: =$H$36 -> 6.7543 | I67: =((E67*G67)+(F67*H67))*D67 -> 2857.1092
H68: Subtotal do Item 3.2 | I68: =SUM(I67:I67) -> 2857.1092
H69: Total da Equipe de Produção de Pavimentação | I69: =I68+H64 -> 11138.9034
A71: Composição de custo da equipe de produção de drenagem
A72: Código | B72: Discriminação | C72: Unidade | D72: Quantidade | F72: Custo Unitário (R$) | H72: Custo Total (R$)
B73: Equipe de Produção de Pavimentação
A74: 3.1 | B74: Mão de Obra
A75: ='Pessoal Sicro'!$A$70 -> P9901 | B75: Encarregado de produção | C75: mês | D75: 0 | F75: =VLOOKUP(A75,'Pessoal Sicro'!$A$6:$G$118,6,0) -> 8281.7942 | H75: =F75*D75 -> 0
F76: Subtotal do Item 3.1 | H76: =SUM(H75:H75) -> 0
A77: Código | B77: Discriminação | C77: Unidade | D77: Quantidade | E77: Utilização Produtiva | F77: Utilização Improdutiva | G77: Custo Horário Produtivo (R$) | H77: Custo Horário Improdutivo (R$) | I77: Custo Total (R$)
A78: 3.2 | B78: Veículos
B79: Veículo Leve 53 kw | C79: mês | D79: 0 | E79: 44 | F79: 176 | G79: =$G$36 -> 37.9171 | H79: =$H$36 -> 6.7543 | I79: =((E79*G79)+(F79*H79))*D79 -> 0
H80: Subtotal do Item 3.2 | I80: =SUM(I79:I79) -> 0
H81: Total da Equipe de Produção de Pavimentação | I81: =I80+H76 -> 0
A83: Composição de custo da equipe de produção de sinalização
A84: Código | B84: Discriminação | C84: Unidade | D84: Quantidade | F84: Custo Unitário (R$) | H84: Custo Total (R$)
B85: Equipe de Produção de Pavimentação
A86: 3.1 | B86: Mão de Obra
A87: ='Pessoal Sicro'!$A$70 -> P9901 | B87: Encarregado de produção | C87: mês | D87: 0 | F87: =VLOOKUP(A87,'Pessoal Sicro'!$A$6:$G$118,6,0) -> 8281.7942 | H87: =F87*D87 -> 0
F88: Subtotal do Item 3.1 | H88: =SUM(H87:H87) -> 0
A89: Código | B89: Discriminação | C89: Unidade | D89: Quantidade | E89: Utilização Produtiva | F89: Utilização Improdutiva | G89: Custo Horário Produtivo (R$) | H89: Custo Horário Improdutivo (R$) | I89: Custo Total (R$)
A90: 3.2 | B90: Veículos
B91: Veículo Leve 53 kw | C91: mês | D91: 0 | E91: 44 | F91: 176 | G91: =$G$36 -> 37.9171 | H91: =$H$36 -> 6.7543 | I91: =((E91*G91)+(F91*H91))*D91 -> 0
H92: Subtotal do Item 3.2 | I92: =SUM(I91:I91) -> 0
H93: Total da Equipe de Produção de Pavimentação | I93: =I92+H88 -> 0
K94: ='RESUMO MODULO TOTAL'!L60 -> 
A95: Composição de custo da equipe topografia
A96: Código | B96: Discriminação | C96: Unidade | D96: Quantidade | F96: Custo Unitário (R$) | H96: Custo Total (R$) | K96: ='RESUMO MODULO TOTAL'!L66 -> 40095440
B97: Equipe de Topografia
A98: 3.1 | B98: Mão de Obra | K98: =K96-K94 -> 
A99: P9949 | B99: Topográfo | C99: mês | D99: 1.077059273 | F99: =VLOOKUP(A99,'Pessoal Sicro'!$A$6:$G$118,6,0) -> 9340.8044 | H99: =F99*D99 -> 10060.6
A100: P9950 | B100: Auxiliar de topografia | C100: mês | D100: 1 | F100: =VLOOKUP(A100,'Pessoal Sicro'!$A$6:$G$118,6,0) -> 6055.7508 | H100: =F100*D100 -> 6055.7508 | K100: =K98/(1.05*1.2339) -> 
F101: Subtotal do Item 3.1 | H101: =SUM(H99:I100) -> 16116.3508
A102: Código | B102: Discriminação | C102: Unidade | D102: Quantidade | E102: Utilização Produtiva | F102: Utilização Improdutiva | G102: Custo Horário Produtivo (R$) | H102: Custo Horário Improdutivo (R$) | I102: Custo Total (R$) | K102: =K100/2 -> 
A103: 3.2 | B103: Veículos
B104: Veículo Leve 53 kw | C104: mês | D104: 1 | E104: 44 | F104: 176 | G104: =G36 -> 37.9171 | H104: =H36 -> 6.7543 | I104: =((E104*G104)+(F104*H104))*D104 -> 2857.1092
H105: Subtotal do Item 3.2 | I105: =SUM(I104:I104) -> 2857.1092
H106: Total da Equipe de Produção de Topografia | I106: =I105+H101 -> 18973.46
A108: Composição de custo do setor de medicina e segurança do trabalho
A109: Código | B109: Discriminação | C109: Unidade | D109: Quantidade | F109: Custo Unitário (R$) | H109: Custo Total (R$)
A110: 4 | B110: Setor de Medicina e Segurança do Trabalho
A111: P9876 | B111: Técnico de segurança do trabalho | C111: mês | D111: 1 | F111: =VLOOKUP(A111,'Pessoal Sicro'!$A$6:$G$118,6,0) -> 7792.2539 | H111: =F111*D111 -> 7792.2539
A112: P9864 | B112: Engenheiro de segurança do trabalho | C112: mês | D112: 0 | F112: =VLOOKUP(A112,'Pessoal Sicro'!$A$6:$G$118,6,0) -> 24956.0135 | H112: =F112*D112 -> 0
A113: P9851 | B113: Médico do trabalho | C113: mês | D113: 0 | F113: =VLOOKUP(A113,'Pessoal Sicro'!$A$6:$G$118,6,0) -> 18672.6242 | H113: =F113*D113 -> 0
A114: P9951 | B114: Médico de câmara hiperbárica | C114: mês | D114: 0 | F114: =VLOOKUP(A114,'Pessoal Sicro'!$A$6:$G$118,6,0) -> 21262.3001 | H114: =F114*D114 -> 0
F115: Subtotal do Item 4 | H115: =SUM(H111:I114) -> 7792.2539
A117: Parcela Variável - Composição de custo da equipe de frente de serviço
A118: Código | B118: Discriminação | C118: Unidade | D118: Quantidade | F118: Custo Unitário (R$) | H118: Custo Total (R$)
A119: 5 | B119: Equipe de Frente de Serviço | C119: equipexmês
A120: P9875 | B120: Encarregado de Turma | C120: mês | D120: 1 | F120: =VLOOKUP(A120,'Pessoal Sicro'!$A$6:$G$118,6,0) -> 5996.5848 | H120: =F120*D120 -> 5996.5848
A121: P9804 | B121: Apontador | C121: mês | D121: 0.5 | F121: =VLOOKUP(A121,'Pessoal Sicro'!$A$6:$G$118,6,0) -> 5124.1419 | H121: =F121*D121 -> 2562.07095
F122: Subtotal do Item 5 | H122: =SUM(H120:I121) -> 8558.65575
A124: Parcela Variável - Composição de custo da equipe de frente de serviço (Terraplenagem) - Somente Compactação
A125: Código | B125: Discriminação | C125: Unidade | D125: Quantidade | F125: Produção Horária (und/h) | H125: Efs
A126: 5.1 | B126: Equipe de Frente de Serviço | C126: equipexmês
C127: mês | H127: =(D127)/(F127*182.49) -> 
C128: mês | H128: =(D128)/(F128*182.49) -> 
C129: mês | H129: =(D129)/(F129*182.49) -> 
F130: Total de Equipes para Terraplenagem | H130: =SUM(H129:I129) -> 
A132: Parcela Variável - Composição de custo da acompanhamento das frentes de serviço de pavimentação
A133: Código | B133: Discriminação | C133: Unidade | D133: Quantidade | F133: Produção Horária (und/h) | H133: Efs
A134: 5.2 | B134: Equipe de Frente de Serviço | C134: equipe x mês
A135: 4011463 | B135: =VLOOKUP(A135,'SINTÉTICO SICRO'!$A$4:$D$6373,2,0) -> Concreto asfáltico - faixa C-12,5 - areia e brita comerciais | C135: m² | D135: ='RESUMO MODULO TOTAL'!H22 -> 36960 | F135: 99.6 | H135: =(D135)/(F135*182.49) -> 2.033450257
A136: 4011352 | B136: =VLOOKUP(A136,'SINTÉTICO SICRO'!$A$4:$D$6373,2,0) -> Imprimação com emulsão asfáltica | C136: m² | D136: ='RESUMO MODULO TOTAL'!H23 -> 308000 | F136: 1038.46 | H136: 1.625256354
A137: 4011353 | B137: =VLOOKUP(A137,'SINTÉTICO SICRO'!$A$4:$D$6373,2,0) -> Pintura de ligação | C137: m² | D137: ='RESUMO MODULO TOTAL'!H24 -> 308000 | F137: 1500 | H137: 1.125175809
A138: 4011219 | B138: =VLOOKUP(A138,'SINTÉTICO SICRO'!$A$4:$D$6373,2,0) -> Base de solo estabilizado granulometricamente sem mistura com material de jazida - 100% Proctor modificado | C138: m³ | D138: ='RESUMO MODULO TOTAL'!H25 -> 46200 | F138: 120.7 | H138: 2.097469403
A139: 4011227 | B139: =VLOOKUP(A139,'SINTÉTICO SICRO'!$A$4:$D$6373,2,0) -> Sub-base de solo estabilizado granulometricamente sem mistura com material de jazida - 100% Proctor intermediário | C139: m³ | D139: ='RESUMO MODULO TOTAL'!H26 -> 46200 | F139: 120.7 | H139: 2.097469403
A140: 4011209 | B140: =VLOOKUP(A140,'SINTÉTICO SICRO'!$A$4:$D$6373,2,0) -> Regularização do subleito - 100% Proctor intermediário | C140: m² | D140: ='RESUMO MODULO TOTAL'!H27 -> 308000 | F140: 672.8 | H140: 2.508566755
F141: Total de Equipes para Pavimentação | H141: =SUM(H135:I140) -> 11.48738798
A143: Parcela Variável - Composição de custo da acompanhamento das frentes de serviço de drenagem
A144: Código | B144: Discriminação | C144: Unidade | D144: Quantidade | F144: Efsdu | H144: Efs
A145: 5.3 | B145: Frentes de Serviço para Drenagem | C145: equipe x mês
A146: ='RESUMO MODULO TOTAL'!C41 -> 2003943 | B146: =VLOOKUP(A146,'SINTÉTICO SICRO'!$A$4:$D$6373,2,0) -> Meio-fio de concreto - MFC 03 moldado no local com extrusora e concreto usinado - areia e brita comerciais | C146: m | D146: ='RESUMO MODULO TOTAL'!H41 -> 88000 | F146: 0.00021 | H146: =D146*F146 -> 18.48
F147: Total de Equipes para Drenagem | H147: =H146 -> 18.48
A149: Parcela Variável - Composição de custo da acompanhamento das frentes de serviço de sinalização
A150: Código | B150: Discriminação | C150: Unidade | D150: Quantidade | F150: Produção Horária (und/h) | H150: Efs
A151: 5.4 | B151: Frentes de Serviço para Sinalização | C151: equipe x mês
A152: ='RESUMO MODULO TOTAL'!C36 -> 5213440 | B152: =VLOOKUP(A152,'SINTÉTICO SICRO'!$A$4:$D$6373,2,0) -> Placa de regulamentação em aço D = 0,60 m - película retrorrefletiva tipo I + SI - fornecimento e implantação | C152: Unidade | D152: ='RESUMO MODULO TOTAL'!H36 -> 132 | F152: 3 | H152: =0.2*((D152)/(F152*182.49)) -> 0.04822182037
A153: ='RESUMO MODULO TOTAL'!C37 -> 5213464 | B153: =VLOOKUP(A153,'SINTÉTICO SICRO'!$A$4:$D$6373,2,0) -> Placa de advertência em aço, lado de 0,60 m - película retrorrefletiva tipo I + SI - fornecimento e implantação | C153: Unidade | D153: ='RESUMO MODULO TOTAL'!H37 -> 132 | F153: 3 | H153: =0.2*((D153)/(F153*182.49)) -> 0.04822182037
A154: ='RESUMO MODULO TOTAL'!C39 -> 5213400 | B154: =VLOOKUP(A154,'SINTÉTICO SICRO'!$A$4:$D$6373,2,0) -> Pintura de faixa com tinta acrílica - espessura de 0,4 mm | C154: m² | D154: ='RESUMO MODULO TOTAL'!H39 -> 10560 | F154: 177.07 | H154: =0.2*((D154)/(F154*182.49)) -> 0.06535967069
F155: Total de Equipes para Sinalização | H155: =SUM(H152:I154) -> 0.1618033114 | J155: =H155+H147 -> 18.64180331
A157: 3. PARCELA VARIÁVEL - EQUIPE DE CONTROLE TECNOLÓGICO
A158: LABORATÓRIO DE SOLOS
A159: Item | B159: Discriminação | F159: Unidade | G159: Quantidade | H159: Custo Unitário (R$) | I159: Custo Total (R$)
B160: Laboratório de Solos (equipe x mês)
B161: Mão de Obra
A162: P9858 | B162: Laboratorista | F162: func./mês | G162: 1 | H162: =VLOOKUP(A162,'Pessoal Sicro'!$A$6:$G$118,6,0) -> 7946.5291 | I162: =TRUNC(G162*H162,2) -> 7946.52
A163: P9833 | B163: Auxiliar de laboratório | F163: func./mês | G163: 1 | H163: =VLOOKUP(A163,'Pessoal Sicro'!$A$6:$G$118,6,0) -> 6036.3052 | I163: =TRUNC(G163*H163,2) -> 6036.3
H164: Subtotal do Item | I164: =SUM(I162:I163) -> 13982.82
A165: Item | B165: Discriminação | C165: Und | D165: Quant | E165: Utilização Produtiva | F165: Utilização Improdutiva | G165: Horário Produtivo (R$) | H165: Horário Improdutivo (R$) | I165: Total (R$)
B166: Equipe de Controle Tecnológico
B167: Veículos
A168: E9125 | B168: Van furgão a diesel - 93 kW | C168: veic./mês | D168: 1 | E168: 44 | F168: 176 | G168: =VLOOKUP(A168,Equipamentos!$A$4:$K$533,10,0) -> 88.0815 | H168: =VLOOKUP(A168,Equipamentos!$A$4:$K$533,11,0) -> 49.6677 | I168: =D168*((E168*G168)+(F168*H168)) -> 12617.1012
H169: Subtotal do Item | I169: =SUM(I168:I168) -> 12617.1012
H170: Total da Equipe do Laboratório de Solos | I170: =I164+I169 -> 26599.9212
A172: 3. PARCELA VARIÁVEL - EQUIPE DE CONTROLE TECNOLÓGICO
A173: LABORATÓRIO DE ASFALTOS
A174: Item | B174: Discriminação | F174: Unidade | G174: Quantidade | H174: Custo Unitário (R$) | I174: Custo Total (R$)
B175: Laboratório de Solos (equipe x mês)
B176: Mão de Obra
A177: P9858 | B177: Laboratorista | F177: func./mês | G177: 1 | H177: =VLOOKUP(A177,'Pessoal Sicro'!$A$6:$G$118,6,0) -> 7946.5291 | I177: =TRUNC(G177*H177,2) -> 7946.52
A178: P9833 | B178: Auxiliar de laboratório | F178: func./mês | G178: 1 | H178: =VLOOKUP(A178,'Pessoal Sicro'!$A$6:$G$118,6,0) -> 6036.3052 | I178: =TRUNC(G178*H178,2) -> 6036.3
H179: Subtotal do Item | I179: =SUM(I177:I178) -> 13982.82
A180: Item | B180: Discriminação | C180: Und | D180: Quant | E180: Utilização Produtiva | F180: Utilização Improdutiva | G180: Horário Produtivo (R$) | H180: Horário Improdutivo (R$) | I180: Total (R$)
B181: Equipe de Controle Tecnológico
B182: Veículos
A183: E9125 | B183: Van furgão a diesel - 93 kW | C183: veic./mês | D183: 1 | E183: 44 | F183: 176 | G183: =VLOOKUP(A183,Equipamentos!$A$4:$K$533,10,0) -> 88.0815 | H183: =VLOOKUP(A183,Equipamentos!$A$4:$K$533,11,0) -> 49.6677 | I183: =D183*((E183*G183)+(F183*H183)) -> 12617.1012
H184: Subtotal do Item | I184: =SUM(I183:I183) -> 12617.1012
H185: Total da Equipe do Laboratório de Asfaltos | I185: =I179+I184 -> 26599.9212
A187: Equipes de laboratório de solos para pavimentação
A188: Item | B188: Discriminação | F188: Und | G188: Quant | H188: QE | I188: Els
A189: ='RESUMO MODULO TOTAL'!C25 -> 4011219 | B189: =VLOOKUP(A189,'SINTÉTICO SICRO'!A:D,2,0) -> Base de solo estabilizado granulometricamente sem mistura com material de jazida - 100% Proctor modificado | F189: =VLOOKUP(A189,'SINTÉTICO SICRO'!A:D,3,0) -> m³ | G189: ='RESUMO MODULO TOTAL'!H25 -> 46200 | H189: 21900 | I189: =G189/H189 -> 2.109589041
A190: ='RESUMO MODULO TOTAL'!C26 -> 4011227 | B190: =VLOOKUP(A190,'SINTÉTICO SICRO'!A:D,2,0) -> Sub-base de solo estabilizado granulometricamente sem mistura com material de jazida - 100% Proctor intermediário | F190: =VLOOKUP(A190,'SINTÉTICO SICRO'!A:D,3,0) -> m³ | G190: ='RESUMO MODULO TOTAL'!H26 -> 46200 | H190: 21900 | I190: =G190/H190 -> 2.109589041
A191: ='RESUMO MODULO TOTAL'!C27 -> 4011209 | B191: =VLOOKUP(A191,'SINTÉTICO SICRO'!A:D,2,0) -> Regularização do subleito - 100% Proctor intermediário | F191: =VLOOKUP(A191,'SINTÉTICO SICRO'!A:D,3,0) -> m² | G191: ='RESUMO MODULO TOTAL'!H27 -> 308000 | H191: 21900 | I191: =G191/H191 -> 14.06392694
H192: Total de equipes de Laboratório de Solos para Pavimentação | I192: =SUM(I189:I191) -> 18.28310502
A194: Equipes de laboratório de Asfalto
A195: Item | B195: Discriminação | F195: Und | G195: Quant | H195: QE | I195: Ela
A196: ='RESUMO MODULO TOTAL'!C22 -> 4011463 | B196: =VLOOKUP(A196,'SINTÉTICO SICRO'!A:D,2,0) -> Concreto asfáltico - faixa C-12,5 - areia e brita comerciais | F196: =VLOOKUP(A196,'SINTÉTICO SICRO'!A:D,3,0) -> t | G196: ='RESUMO MODULO TOTAL'!H22 -> 36960 | H196: 9000 | I196: =G196/H196 -> 4.106666667
A197: ='RESUMO MODULO TOTAL'!C23 -> 4011352 | B197: =VLOOKUP(A197,'SINTÉTICO SICRO'!A:D,2,0) -> Imprimação com emulsão asfáltica | F197: =VLOOKUP(A197,'SINTÉTICO SICRO'!A:D,3,0) -> m² | G197: ='RESUMO MODULO TOTAL'!H23 -> 308000 | H197: 1610000 | I197: =G197/H197 -> 0.1913043478
A198: ='RESUMO MODULO TOTAL'!C24 -> 4011353 | B198: =VLOOKUP(A198,'SINTÉTICO SICRO'!A:D,2,0) -> Pintura de ligação | F198: =VLOOKUP(A198,'SINTÉTICO SICRO'!A:D,3,0) -> m² | G198: ='RESUMO MODULO TOTAL'!H24 -> 308000 | H198: 3610000 | I198: =G198/H198 -> 0.08531855956
H199: Total de equipes de Laboratório de Asfaltos | I199: =SUM(I196:I198) -> 4.383289574
A201: manutenção do canteiro de obras e acampamentos
A202: Código | B202: Discriminação | C202: Unidade | D202: Quantidade | F202: Custo Unitário (R$) | H202: Custo Total (R$)
B203: Manutenção do Canteiro de Obras e Acampamentos
A204: 6.1 | B204: Mão de Obra
A205: P9952 | B205: Pedreiro | C205: mês | D205: 0 | F205: =VLOOKUP(A205,'Pessoal Sicro'!$A$6:$G$118,6,0) -> 5136.466 | H205: =F205*D205 -> 0
A206: P9954 | B206: Servente | C206: mês | D206: 0 | F206: =VLOOKUP(A206,'Pessoal Sicro'!$A$6:$G$118,6,0) -> 4093.0918 | H206: =F206*D206 -> 0
A207: P9953 | B207: Eletricista | C207: mês | D207: 0 | F207: =VLOOKUP(A207,'Pessoal Sicro'!$A$6:$G$118,6,0) -> 5406.8028 | H207: =F207*D207 -> 0
F208: Subtotal do Item 6.1 | H208: =SUM(H205:I207) -> 0
A210: Código | B210: Discriminação | C210: Unidade | D210: Quantidade | F210: Custo Produtivo (R$) | H210: Custo Total (R$)
A211: 6.2 | B211: Equipamentos
B212: Caminhão guindauto de 6 toneladas | C212: h/mês | D212: 0 | H212: =F212*D212 -> 0
B213: Caminhão tanque de 8.000 litros | C213: h/mês | D213: 0 | H213: =F213*D213 -> 0
A214: E9524 | B214: Motoniveladora | C214: h/mês | D214: 0 | F214: =Equipamentos!J168 -> 70.4857 | H214: =F214*D214 -> 0
F215: Subtotal do Item 6.2 | H215: =SUM(H212:I214) -> 0
G216: Total da Manutenção do Canteiro de Obras e Acampamentos | H216: =H215+H208 -> 0
A220: Resumo das parcelas de administração local
A221: Código | B221: Discriminação | C221: Unidade | D221: Quantidade | F221: Custo Unitário (R$) | H221: Custo Total (R$)
... 29 more rows

Sheet CPU CODEVASF
A4: ='RESUMO MODULO TOTAL'!B63 -> CONTRATAÇÃO DE SERVIÇOS DE PAVIMENTAÇÃO ASFÁLTICA COM CONCRETO BETUMINOSO USINADO A QUENTE (CBUQ) EM VIAS URBANAS E RURAIS INSERIDAS NA ÁREA DE ATUAÇÃO DA CODEVASF, NO ESTADO DO PIAUÍ - REGIÃO SUL
F5: BDI %: | G5: =BDI!$C$14 -> 0.2339
E6: Encargos Sociais: | G6: Horista | H6: Mensalista
G7: ='ENC. SOCIAIS'!E48/100 -> 1.1333 | H7: ='ENC. SOCIAIS'!F48/100 -> 0.7112
A8: COMPOSIÇÕES DE CUSTO UNITARIO
A9: CPU-12 | B9: CODEVASF | D9: Correção de vazamentos no ramal na rua sem pavimento com fornecimento do material hidráulico | E9: M | F9: COEF. | G9: PRECO UNITÁRIO (R$) | H9: TOTAL (R$)
A11: SICRO | B11: SICRO | C11: P9824 | D11: =VLOOKUP(C11,'Pessoal Sicro'!$A$5:$G$1048576,2,0) -> Servente | E11: H | F11: 0.2 | G11: =VLOOKUP(C11,'Pessoal Sicro'!$A$5:$G$1048576,6,0) -> 22.1067 | H11: =F11*G11 -> 4.42134
A12: SICRO | B12: SICRO | C12: P9807 | D12: =VLOOKUP(C12,'Pessoal Sicro'!$A$5:$G$1048576,2,0) -> Bombeiro hidráulico | E12: H | F12: 0.1 | G12: =VLOOKUP(C12,'Pessoal Sicro'!$A$5:$G$1048576,6,0) -> 33.4507 | H12: 3.34507
A13: INS. SINAPI | B13: SINAPI | C13: 9867 | D13: TUBO PVC, SOLDAVEL, DN 20 MM, AGUA FRIA (NBR-5648) | E13: m | F13: 1 | G13: =IFERROR(VLOOKUP(C13,'INSUMOS SINAPI'!$A:$E,5,FALSE),VLOOKUP(C13,'COMP Sint. Sinapi'!$A:$E,4,FALSE)) -> 3.77 | H13: 3.77
A14: INSUMO | B14: ORSE | C14: 10585 | D14: Arco de serra | E14: un | F14: 0.1 | G14: 19.9 | H14: 1.99
A15: INS. SINAPI | B15: SINAPI | C15: 3859 | D15: LUVA SOLDAVEL COM ROSCA, PVC, 20 MM X 1/2", PARA AGUA FRIA PREDIAL | E15: un | F15: 2 | G15: =IFERROR(VLOOKUP(C15,'INSUMOS SINAPI'!$A:$E,5,FALSE),VLOOKUP(C15,'COMP Sint. Sinapi'!$A:$E,4,FALSE)) -> 1.35 | H15: 2.7
E16: Sub total: | H16: =SUM(H11:H15) -> 16.22641
F17: BDI | G17: =BDI!$C$14 -> 0.2339 | H17: =H16*G17 -> 3.795357299
G18: Total Serviços: | H18: =H16+H17 -> 20.0217673
E19: =A9 -> CPU-12 | F19: PREÇO UNITÁRIO TOTAL: | H19: =H18 -> 20.0217673 | I19: =H16 -> 16.22641
A21: CPU-13 | B21: CODEVASF | D21: AQUISIÇÃO DE CIMENTO ASFALTICO CAP 50/70 | E21: t | F21: COEF. | G21: PRECO UNITÁRIO (R$) | H21: TOTAL (R$)
D23: CIMENTO ASFALTICO 50/70 | E23: t | F23: 1 | G23: =RESUMO_Transp!$V$17 -> 4414.786243 | H23: =F23*G23 -> 4414.786243
E24: Sub total: | H24: =SUM(H23) -> 4414.786243
F25: BDI | G25: 0.15 | H25: =H24*G25 -> 662.2179365
G26: Total Serviços: | H26: =H24+H25 -> 5077.00418
E27: =A21 -> CPU-13 | F27: PREÇO UNITÁRIO TOTAL: | H27: =H26 -> 5077.00418 | I27: =H24 -> 4414.786243
A29: CPU-14 | B29: CODEVASF | D29: AQUISIÇÃO DE EAI | E29: t | F29: COEF. | G29: PRECO UNITÁRIO (R$) | H29: TOTAL (R$)
D31: EAI | E31: t | F31: 1 | G31: =RESUMO_Transp!$V$35 -> 2648.414098 | H31: =F31*G31 -> 2648.414098
E32: Sub total: | H32: =SUM(H31) -> 2648.414098
F33: BDI | G33: 0.15 | H33: =H32*G33 -> 397.2621147
G34: Total Serviços: | H34: =H32+H33 -> 3045.676212
E35: =A29 -> CPU-14 | F35: PREÇO UNITÁRIO TOTAL: | H35: =H34 -> 3045.676212 | I35: =H32 -> 2648.414098
A37: CPU-15 | B37: CODEVASF | D37: AQUISIÇÃO DE EMULSÃO ASFÁLTICA RR-1C | E37: t | F37: COEF. | G37: PRECO UNITÁRIO (R$) | H37: TOTAL (R$)
D39: EMULSÃO ASFÁLTICA RR-1C | E39: t | F39: 1 | G39: =RESUMO_Transp!$V$42 -> 3126.231131 | H39: =F39*G39 -> 3126.231131
E40: Sub total: | H40: =SUM(H39) -> 3126.231131
F41: BDI | G41: 0.15 | H41: =ROUND(H40,2)*ROUND(G41,4) -> 468.9345
G42: Total Serviços: | H42: =H40+H41 -> 3595.165631
E43: =A37 -> CPU-15 | F43: PREÇO UNITÁRIO TOTAL: | H43: =H42 -> 3595.165631 | I43: =H40 -> 3126.231131
A45: CPU-17 | B45: CODEVASF | D45: TRANSPORTE DE CIMENTO ASFALTICO CAP 50/70 | E45: t | F45: COEF. | G45: PRECO UNITÁRIO (R$) | H45: TOTAL (R$)
D47: TRANSPORTE DE CIMENTO ASFALTICO 50/70 | E47: t | F47: 1 | G47: =RESUMO_Transp!$U$17 -> 771.82 | H47: =F47*G47 -> 771.82
E48: Sub total: | H48: =SUM(H47) -> 771.82
F49: BDI | G49: 0.15 | H49: =H48*G49 -> 115.773
G50: Total Serviços: | H50: =H48+H49 -> 887.593
E51: =A45 -> CPU-17 | F51: PREÇO UNITÁRIO TOTAL: | H51: =H50 -> 887.593 | I51: =H48 -> 771.82
A53: CPU-18 | B53: CODEVASF | D53: TRANSPORTE DE EAI | E53: t | F53: COEF. | G53: PRECO UNITÁRIO (R$) | H53: TOTAL (R$)
D55: TRANSPORTE DE EAI | E55: t | F55: 1 | G55: =RESUMO_Transp!$U$35 -> 771.82 | H55: =F55*G55 -> 771.82
E56: Sub total: | H56: =SUM(H55) -> 771.82
F57: BDI | G57: 0.15 | H57: =H56*G57 -> 115.773
G58: Total Serviços: | H58: =H56+H57 -> 887.593
E59: =A53 -> CPU-18 | F59: PREÇO UNITÁRIO TOTAL: | H59: =H58 -> 887.593 | I59: =H56 -> 771.82
A61: CPU-19 | B61: CODEVASF | D61: TRANSPORTE DE EMULSÃO ASFÁLTICA RR-1C | E61: t | F61: COEF. | G61: PRECO UNITÁRIO (R$) | H61: TOTAL (R$)
D63: TRANSPORTE DE EMULSÃO ASFÁLTICA RR-1C | E63: t | F63: 1 | G63: =RESUMO_Transp!$U$42 -> 771.82 | H63: =F63*G63 -> 771.82
E64: Sub total: | H64: =SUM(H63) -> 771.82
F65: BDI | G65: 0.15 | H65: =H64*G65 -> 115.773
G66: Total Serviços: | H66: =H64+H65 -> 887.593
E67: =A61 -> CPU-19 | F67: PREÇO UNITÁRIO TOTAL: | H67: =H66 -> 887.593 | I67: =H64 -> 771.82

Sheet Projeto Executivo
A2: COMPOSIÇAO PREÇO PROJETO EXECUTIVO
A4: DISCRIMINAÇAO | F4: Pr. Unit. | G4: Pr. Total
A6: A· EOUIPE TECNICA | G6: =G7+G10 -> 16384.108
B7: A. 1 - Pessoal de Nível Superior | C7: Unidade | D7: Quantitativo | E7: SICRO e Rel.Custos Gerais | G7: =G8+G9 -> 13189.4557
B8: Engenheiro | C8: mês | D8: 0.4 | E8: P9812 | F8: =VLOOKUP(E8,'Pessoal Sicro'!A:G,6,0) -> 27135.6365 | G8: =F8*D8 -> 10854.2546
B9: Topógrafo | C9: mês | D9: 0.25 | E9: P9949 | F9: =VLOOKUP(E9,'Pessoal Sicro'!A:G,6,0) -> 9340.8044 | G9: =F9*D9 -> 2335.2011
B10: A.2 - Pessoal de Nível Técnico e Aux. | G10: =G11+G12 -> 3194.6523
B11: Auxiliar de topógrafo | C11: mês | D11: 0.125 | E11: P9950 | F11: =VLOOKUP(E11,'Pessoal Sicro'!A:G,6,0) -> 6055.7508 | G11: =F11*D11 -> 756.96885
B12: Auxiliar Técnico/Assistente de Engenharia | C12: mês | D12: 0.5 | E12: P9903 | F12: =VLOOKUP(E12,'Pessoal Sicro'!A:G,6,0) -> 4875.3669 | G12: =F12*D12 -> 2437.68345
A13: B - ENCARGOS SOCIAIS | G13: =G14 -> 0
B14: =CONCATENATE("Taxas ",'ENC. SOCIAIS'!E48,"%") -> Taxas 113,33% | C14: JÁ INCLUSAS EM "A"
A15: C - DESPESAS GERAIS | G15: =G16+G18+G17 -> 5430.361084
B16: C.1 - MATERIAIS DE CONSUMO | C16: Estimativa % como referência de equipe técnica com encargos sociais | D16: 0.03 | F16: =G6+G14 -> 16384.108 | G16: =F16*D16 -> 491.52324
B17: C.2 - VEÍCULOS (Veículo leve picape 4 x 4 com capacidade de 1,10 t - 147 kW) | C17: h | D17: 40 | E17: E9684 | F17: =VLOOKUP(E17,Equipamentos!A:K,10,0) -> 112.9174 | G17: =F17*D17 -> 4516.696
B18: C.3 - Estação total eletrônica com alcance máximo de 3.000 m | C18: h | D18: 52.15168868 | E18: E9553 | F18: =VLOOKUP(E18,Equipamentos!A:K,10,0) -> 8.0945 | G18: =F18*D18 -> 422.141844
A19: D - ENSAIOS | G19: =SUM(G20:G23) -> 3925.781675
B20: Laboratorista | C20: mês | D20: =1/4 -> 0.25 | E20: P9858 | F20: =VLOOKUP(E20,'Pessoal Sicro'!A:G,6,0) -> 7946.5291 | G20: =F20*D20 -> 1986.632275
B21: Auxiliar de Laboratório | C21: mês | D21: =1/8 -> 0.125 | E21: P9833 | F21: =VLOOKUP(E21,'Pessoal Sicro'!A:G,6,0) -> 6036.3052 | G21: =F21*D21 -> 754.53815
B22: Laboratório de solos | C22: mês | D22: =1/8 -> 0.125 | E22: B8957 | F22: =VLOOKUP(E22,'Tabelas 1 e 2'!C14:G23,5,0) -> 3597.39 | G22: =F22*D22 -> 449.67375
B23: Laboratório de asfalto | C23: mês | D23: 0.125 | E23: B8955 | F23: =VLOOKUP(E23,'Tabelas 1 e 2'!C15:G24,5,0) -> 5879.5 | G23: =F23*D23 -> 734.9375
A24: I - SOMA (A+B+C+D) | G24: =G6+G13+G15+G19 -> 25740.25076
F25: Produtividade (m2) | G25: ='MC MODULO'!C1*'MC MODULO'!C2 -> 7000
F26: Por m²: | G26: =TRUNC(G24/G25,2) -> 3.67

Sheet BDI
A2: DETALHAMENTO DO BDI - SEM DESONERAÇÃO
A3: ='RESUMO MODULO TOTAL'!B63 -> CONTRATAÇÃO DE SERVIÇOS DE PAVIMENTAÇÃO ASFÁLTICA COM CONCRETO BETUMINOSO USINADO A QUENTE (CBUQ) EM VIAS URBANAS E RURAIS INSERIDAS NA ÁREA DE ATUAÇÃO DA CODEVASF, NO ESTADO DO PIAUÍ - REGIÃO SUL
A4: DESCRIÇÃO DOS SERVIÇOS | B4: PREÇO DE VENDA (%) | C4: CUSTO DIRETO (%)
A5: ADMINISTRAÇÃO CENTRAL | C5: 0.06
A6: DESPESA FINANCEIRAS | B6: 0.0102
A7: SEGUROS E GARANTIAS CONTRATUAIS | B7: 0.0025
A8: RISCOS | B8: 0.005
A9: LUCRO OPERACIONAL | C9: 0.07
A10: PIS | B10: 0.0065
A11: COFINS | B11: 0.03
A12: ISSQN | B12: 0.03
A13: Contribuição Previdenciaria | B13: 0
B14: BDI | C14: =ROUND((1+(C5+C9))/(1-(B6+B7+B8+B10+B11+B12+B13))-1,4) -> 0.2339
A15: Observação: O percentual de ISSQN aqui utilizado consiste apenas em um referencial médio.
A16: O valor real do ISSQN a ser adotado deve ser aquele proveniente das alíquotas dos municípios situados na área de
A52: DETALHAMENTO DO BDI DIFERENCIADO - SEM DESONERAÇÃO
A53: ='RESUMO MODULO TOTAL'!B63 -> CONTRATAÇÃO DE SERVIÇOS DE PAVIMENTAÇÃO ASFÁLTICA COM CONCRETO BETUMINOSO USINADO A QUENTE (CBUQ) EM VIAS URBANAS E RURAIS INSERIDAS NA ÁREA DE ATUAÇÃO DA CODEVASF, NO ESTADO DO PIAUÍ - REGIÃO SUL
A55: DESCRIÇÃO DOS SERVIÇOS | B55: PREÇO DE VENDA (%) | C55: CUSTO DIRETO (%)
A56: ADMINISTRAÇÃO CENTRAL | C56: 0.0377
A57: DESPESA FINANCEIRAS | B57: 0.0102
A58: SEGUROS E GARANTIAS CONTRATUAIS | B58: 0.0025
A59: RISCOS | B59: 0.005
A60: LUCRO OPERACIONAL | C60: 0.05
A61: PIS | B61: 0.0065
A62: COFINS | B62: 0.03
A63: ISSQN | B63: 0
A64: Contribuição Previdenciaria | B64: 0
B65: BDI | C65: =ROUND((1+(C56+C60))/(1-(B57+B58+B59+B61+B62+B63+B64))-1,4) -> 0.15
A66: Fonte da composição, valores de referência e fórmula do BDI: Instrução Normativa N° 62/DNIT SEDE

Sheet ENC. SOCIAIS
A6: ='RESUMO MODULO TOTAL'!B63 -> CONTRATAÇÃO DE SERVIÇOS DE PAVIMENTAÇÃO ASFÁLTICA COM CONCRETO BETUMINOSO USINADO A QUENTE (CBUQ) EM VIAS URBANAS E RURAIS INSERIDAS NA ÁREA DE ATUAÇÃO DA CODEVASF, NO ESTADO DO PIAUÍ - REGIÃO SUL
A8: DETALHAMENTO DOS ENCARGOS SOCIAIS (%)
A9: VIGÊNCIA A PARTIR DE 12/2023 | C9: COM DESONERAÇÃO | E9: SEM DESONERAÇÃO
C11: HORISTA | D11: MENSALISTA | E11: HORISTA | F11: MENSALISTA
A13: GRUPO A
A14: A1 | B14: INSS | C14: 0 | D14: 0 | E14: 20 | F14: 20
A15: A2 | B15: SESI | C15: 1.5 | D15: 1.5 | E15: 1.5 | F15: 1.5
A16: A3 | B16: SENAI | C16: 1 | D16: 1 | E16: 1 | F16: 1
A17: A4 | B17: INCRA | C17: 0.2 | D17: 0.2 | E17: 0.2 | F17: 0.2
A18: A5 | B18: SEBRAE | C18: 0.6 | D18: 0.6 | E18: 0.6 | F18: 0.6
A19: A6 | B19: Salário Educação | C19: 2.5 | D19: 2.5 | E19: 2.5 | F19: 2.5
A20: A7 | B20: Seguro Contra Acidentes de Trabalho | C20: 3 | D20: 3 | E20: 3 | F20: 3
A21: A8 | B21: FGTS | C21: 8 | D21: 8 | E21: 8 | F21: 8
A22: A9 | B22: SECONCI | C22: 1 | D22: 1 | E22: 0
A23: A | B23: Total | C23: =SUM(C14:C22) -> 17.8 | D23: =SUM(D14:D22) -> 17.8 | E23: =SUM(E14:E22) -> 36.8 | F23: =SUM(F14:F22) -> 36.8
A24: GRUPO B
A25: B1 | B25: Repouso Semanal Remunerado | C25: 17.88 | D25: - | E25: 17.82 | F25: -
A26: B2 | B26: Feriados | C26: 3.94 | D26: - | E26: 3.95 | F26: -
A27: B3 | B27: Auxílio-enfermidade | C27: 0.91 | D27: 0.69 | E27: 0.86 | F27: 0.65
A28: B4 | B28: 13° salário | C28: 10.98 | D28: 8.33 | E28: 10.96 | F28: 8.33
A29: B5 | B29: Licença-paternidade | C29: 0.07 | D29: 0.06 | E29: 0.07 | F29: 0.05
A30: B6 | B30: Faltas Justificadas | C30: 0.73 | D30: 0.56 | E30: 0.73 | F30: 0.56
A31: B7 | B31: Dias de chuva | C31: 1.45 | D31: - | E31: 1.17 | F31: -
A32: B8 | B32: Auxílio Acidente de Trabalho | C32: 0.11 | D32: 0.09 | E32: 0.1 | F32: 0.07
A33: B9 | B33: Férias Gozadas | C33: 11.35 | D33: 8.62 | E33: 11.71 | F33: 8.9
A34: B10 | B34: Salário Maternidade | C34: 0.03 | D34: 0.03 | E34: 0.03 | F34: 0.03
A35: B | B35: Total | C35: =SUM(C25:C34) -> 47.45 | D35: =SUM(D25:D34) -> 18.38 | E35: =SUM(E25:E34) -> 47.4 | F35: =SUM(F25:F34) -> 18.59
A36: GRUPO C
A37: C1 | B37: Aviso Prévio Indenizado | C37: 6.76 | D37: 5.14 | E37: 5.3 | F37: 4.03
A38: C2 | B38: Aviso Prévio Trabalhado | C38: 0.16 | D38: 0.12 | E38: 0.12 | F38: 0.09
A39: C3 | B39: Férias Indenizadas | C39: 2.28 | D39: 1.73 | E39: 2.46 | F39: 1.87
A40: C4 | B40: Depósito Rescisão Sem Justa Causa | C40: 3.81 | D40: 2.89 | E40: 2.89 | F40: 2.2
A41: C5 | B41: Indenização Adicional | C41: 0.57 | D41: 0.43 | E41: 0.45 | F41: 0.34
A42: C | B42: Total | C42: =SUM(C37:C41) -> 13.58 | D42: =SUM(D37:D41) -> 10.31 | E42: =SUM(E37:E41) -> 11.22 | F42: =SUM(F37:F41) -> 8.53
A43: GRUPO D
A44: D1 | B44: Reincidência de A sobre B | C44: 8.45 | D44: 3.27 | E44: 17.44 | F44: 6.84
A45: D2 | B45: Reincidência de Grupo A sobre Aviso Prévio Trabalhado e Reincidência do FGTS sobre Aviso Prévio Indenizado | C45: 0.57 | D45: 0.43 | E45: 0.47 | F45: 0.36
A46: D | B46: Total | C46: =SUM(C44:C45) -> 9.02 | D46: =SUM(D44:D45) -> 3.7 | E46: =SUM(E44:E45) -> 17.91 | F46: =SUM(F44:F45) -> 7.2 | H46: Fonte: Sinapi Cálculos e Parâmetros 5ª Edição - Atualizada em Agosto 2023
A48: T O T A L (%) | C48: =C23+C35+C42+C46 -> 87.85 | D48: =D23+D35+D42+D46 -> 50.19 | E48: =E23+E35+E42+E46 -> 113.33 | F48: =F23+F35+F42+F46 -> 71.12

Sheet Transporte Cap 50-70
C3: MEMÓRIA DE CÁLCULO
C8: REAJUSTE | F8: TIPOLOGIA DO MATERIAL | I8: CIMENTOS ASFÁLTICOS CAP-50-70 | M8: IMPOSTOS | N8: COFINS | O8: 0.0065 | P8: 0.0065
G9: ÍNDICE DE PAVIMENTAÇÃO DNIT | H9: 2014-07-01 | I9: ÍNDICE INICIAL | J9: 270.237 | L9: =(L14/(1-(O8+O9+O10-((O9+O8)*O10))))-L14 -> 940.3607667 | N9: PIS | O9: 0.03 | P9: 0.03 | T9: LEGENDA | AC9: As empresas tributadas pelo Lucro Presumido pagam 0,65% de PIS e 3% de COFINS
H10: 2025-08-01 | I10: ÍNDICE FINAL | J10: 589.643 | N10: ICMS | O10: 0.18 | P10: 0.18 | Q10: =1-(O10/1) -> 0.82 | R10: =1-(P10/1) -> 0.82 | S10: =1-(Q10/1) -> 0.18 | T10: ENTRADA DE DADOS | AC10: As empresas tributadas pelo Lucro Real pagam 1,65% de PIS e 7,60% de COFINS
G11: Data ANP | H11: 2025-07-01
C12: DATA-BASE | D12: PRODUTOS | E12: LOCALIDADES | J12: CUSTO ANP (R$/Kg) | L12: CUSTO ANP | M12: IMPOSTOS DO PRODUTO | N12: CUSTO DO PRODUTO COM IMPOSTOS | O12: DMT's | P12: DMT's FLUVIAL | Q12: CUSTO DO TRANSPORTE RODOVIA PAVIMENTADA | R12: CUSTO DO TRANSPORTE FLUVIAL | S12: CUSTO DO TRANSPORTE TOTAL | T12: ICMS | U12: ATUALIZAÇÃO DO CUSTO DE TRANSPORTE | V12: CUSTO DO TRANSPORTE RODOVIA PAVIMENTADA COM IMPOSTOS E ATUALIZAÇÃO MONETÁRIA | W12: PEDÁGIO | Y12: TOTAL TRANSPORTE | Z12: AQUISIÇÃO DO PRODUTO | AA12: TOTAL GERAL ( TRANSP + AQUISIÇÃO) | AC12: 1 | AD12: 2 | AE12: 3
C13: =H10 -> 2025-08-01 | E13: REFINARIAS | F13: ENDEREÇO | G13: ESTADO | H13: CIDADE | I13: DESTINO | J13: ESTADO | K13: REGIÃO | L13: R$/t | M13: R$/t | N13: R$/t | O13: KM | P13: KM | Q13: R$/t | R13: R$/t | S13: R$/t | T13: R$/t | U13: R$/t | V13: R$/t | W13: CUSTO | X13: R$/t | Y13: R$/t | Z13: R$/t | AA13: R$/t | AC13: TOTAL GERAL ( TRANSP + AQUISIÇÃO) | AD13: TOTAL TRANSPORTE | AE13: AQUISIÇÃO DO PRODUTO
B14: =AA14 -> 5419.51078 | C14: 1 | D14: =I8 -> CIMENTOS ASFÁLTICOS CAP-50-70 | E14: Refinaria Abreu e Lima | F14: Rodovia PE 60, Km 10 - Ipojuca - PE CEP:55590-000 | G14: Pernambuco | H14: IPOJUCA - PE | I14: BOM JESUS-PI | J14: =VLOOKUP('Transporte Cap 50-70'!G14,OFFSET('ANP ESTADO'!$A$1,MATCH('Transporte Cap 50-70'!$I$8,'ANP ESTADO'!B:B,0)+MATCH('Transporte Cap 50-70'!$H$11,OFFSET('ANP ESTADO'!$A$1,MATCH('Transporte Cap 50-70'!$I$8,'ANP ESTADO'!B:B,0),0,100000,1),0),2,100000,2),2,FALSE) -> - | K14: =VLOOKUP($H$11,OFFSET('ANP REGIÃO'!$A$9,MATCH('Transporte Cap 50-70'!$I$8,'ANP REGIÃO'!A:A,0),1,10000,10000),MATCH('Transporte Cap 50-70'!AH14,'ANP REGIÃO'!$B$8:$G$8,0),FALSE) -> 3.53904078 | L14: =IF(AND(J14="-",K14="-"),"",IF(AND(J14<>0,K14="-"),J14*1000,IF(AND(J14="-",K14<>0),K14*1000,IF(AND(J14<>0,K14<>0),J14*1000,"")))) -> 3539.04078 | M14: =ROUND(((L14/(1-$O$8-$O$9-$O$10+($O$9+$O$8)*$O$10)-L14)),2) -> 940.36 | N14: =L14+M14 -> 4479.40078 | O14: 1290 | P14: 0 | Q14: =ROUND((26.939+0.253*O14),2) -> 353.31 | S14: =Q14+R14 -> 353.31 | T14: =TRUNC(S14*($O$10/(1-$O$10)),2) -> 77.55 | U14: =TRUNC(IF($J$9="","",(($J$10-$J$9)/$J$9)*(S14+T14)),2) -> 509.25 | V14: =S14+T14+U14 -> 940.11 | X14: =EVEN(' CONSUMO DE MAT. B TOTAL'!$P$13*2/28)*W14/' CONSUMO DE MAT. B TOTAL'!$P$13 -> 0 | Y14: =IF(AND(Q14="",T14=""),"",V14+X14) -> 940.11 | Z14: =IF(OR(L14="",M14=""),"",L14+M14) -> 4479.40078 | AA14: =IF(OR(Y14="",Z14=""),"",Y14+Z14) -> 5419.51078 | AC14: =AA14 -> 5419.51078 | AD14: =Y14 -> 940.11 | AE14: =Z14 -> 4479.40078 | AH14: =IF(OR(G14=$D$52,G14=$D$53,G14=$D$55,G14=$D$61,G14=$D$45,G14=$D$41,G14=$D$37,G14=$D$50,G14=$D$40),"NORDESTE",IF(OR(G14=$D$36,G14=$D$38,G14=$D$39,G14=$D$49,G14=$D$57,G14=$D$58,G14=$D$62),"NORTE",IF(OR(G14=$D$42,G14=$D$44,G14=$D$46,G14=$D$47),"CENTRO-OESTE",IF(OR(G14=$D$60,G14=$D$54,G14=$D$48,G14=$D$43),"SUDESTE",IF(OR(G14=$D$59,G14=$D$51,G14=$D$56),"SUL",""))))) -> NORDESTE
B15: =AA15 -> 5399.98078 | C15: 3 | E15: Refinaria Potiguar Clara Camarão | F15: Rodovia RN 221, KM 25 - Guamaré - RN CEP:59598-000 | G15: Rio Grande do Norte | H15: GUAMARÉ - RN | I15: BOM JESUS-PI | J15: =VLOOKUP('Transporte Cap 50-70'!G15,OFFSET('ANP ESTADO'!$A$1,MATCH('Transporte Cap 50-70'!$I$8,'ANP ESTADO'!B:B,0)+MATCH('Transporte Cap 50-70'!$H$11,OFFSET('ANP ESTADO'!$A$1,MATCH('Transporte Cap 50-70'!$I$8,'ANP ESTADO'!B:B,0),0,100000,1),0),2,100000,2),2,FALSE) -> - | K15: =VLOOKUP($H$11,OFFSET('ANP REGIÃO'!$A$9,MATCH('Transporte Cap 50-70'!$I$8,'ANP REGIÃO'!A:A,0),1,10000,10000),MATCH('Transporte Cap 50-70'!AH15,'ANP REGIÃO'!$B$8:$G$8,0),FALSE) -> 3.53904078 | L15: =IF(AND(J15="-",K15=""),"",IF(AND(J15<>0,K15=""),J15*1000,IF(AND(J15="-",K15<>0),K15*1000,IF(AND(J15<>0,K15<>0),J15*1000,"")))) -> 3539.04078 | M15: =ROUND(((L15/(1-$O$8-$O$9-$O$10+($O$9+$O$8)*$O$10)-L15)),2) -> 940.36 | N15: =L15+M15 -> 4479.40078 | O15: 1261 | P15: 0 | Q15: =ROUND((26.939+0.253*O15),2) -> 345.97 | S15: =Q15+R15 -> 345.97 | T15: =TRUNC(S15*($O$10/(1-$O$10)),2) -> 75.94 | U15: =TRUNC(IF($J$9="","",(($J$10-$J$9)/$J$9)*(S15+T15)),2) -> 498.67 | V15: =S15+T15+U15 -> 920.58 | X15: =EVEN(' CONSUMO DE MAT. B TOTAL'!$P$13*2/28)*W15/' CONSUMO DE MAT. B TOTAL'!$P$13 -> 0 | Y15: 920.58 | Z15: 4479.40078 | AA15: =IF(OR(Y15="",Z15=""),"",Y15+Z15) -> 5399.98078 | AC15: =AA15 -> 5399.98078 | AD15: =Y15 -> 920.58 | AE15: =Z15 -> 4479.40078 | AH15: =IF(OR(G15=$D$52,G15=$D$53,G15=$D$55,G15=$D$61,G15=$D$45,G15=$D$41,G15=$D$37,G15=$D$50,G15=$D$40),"NORDESTE",IF(OR(G15=$D$36,G15=$D$38,G15=$D$39,G15=$D$49,G15=$D$57,G15=$D$58,G15=$D$62),"NORTE",IF(OR(G15=$D$42,G15=$D$44,G15=$D$46,G15=$D$47),"CENTRO-OESTE",IF(OR(G15=$D$60,G15=$D$54,G15=$D$48,G15=$D$43),"SUDESTE",IF(OR(G15=$D$59,G15=$D$51,G15=$D$56),"SUL",""))))) -> NORDESTE
B16: 5269.263906 | C16: 4 | E16: Refinaria Landulpho Alves (RLAM) | F16: Rodovia BA 523, KM 4 – Mataripe São Francisco do Conde - BA CEP:43900-000 | G16: Bahia | H16: SÃO FRANCISCO DO CONDE - BA | I16: BOM JESUS-PI | J16: =VLOOKUP('Transporte Cap 50-70'!G16,OFFSET('ANP ESTADO'!$A$1,MATCH('Transporte Cap 50-70'!$I$8,'ANP ESTADO'!B:B,0)+MATCH('Transporte Cap 50-70'!$H$11,OFFSET('ANP ESTADO'!$A$1,MATCH('Transporte Cap 50-70'!$I$8,'ANP ESTADO'!B:B,0),0,100000,1),0),2,100000,2),2,FALSE) -> 3.580963906 | K16: =VLOOKUP($H$11,OFFSET('ANP REGIÃO'!$A$9,MATCH('Transporte Cap 50-70'!$I$8,'ANP REGIÃO'!A:A,0),1,10000,10000),MATCH('Transporte Cap 50-70'!AH16,'ANP REGIÃO'!$B$8:$G$8,0),FALSE) -> 3.53904078 | L16: 3580.963906 | M16: 951.5 | N16: 4532.463906 | O16: 988 | P16: 0 | Q16: =ROUND((26.939+0.253*O16),2) -> 276.9 | S16: 276.9 | T16: 60.78 | U16: 399.12 | V16: 736.8 | X16: =EVEN(' CONSUMO DE MAT. B TOTAL'!$P$13*2/28)*W16/' CONSUMO DE MAT. B TOTAL'!$P$13 -> 0 | Y16: 736.8 | Z16: 4532.463906 | AA16: 5269.263906 | AC16: 5269.263906 | AD16: 736.8 | AE16: 4532.463906 | AH16: NORDESTE
A17: 2403 | B17: 5186.606243 | C17: 5 | E17: Refinaria Lubrificantes e Derivados do Nordeste (Lubnor) | F17: Av. Leite Barbosa, s/nº - Mucuripe Fortaleza - Ceará CEP:60180-420 | G17: Ceará | H17: FORTALEZA - CE | I17: BOM JESUS-PI | J17: =VLOOKUP('Transporte Cap 50-70'!G17,OFFSET('ANP ESTADO'!$A$1,MATCH('Transporte Cap 50-70'!$I$8,'ANP ESTADO'!B:B,0)+MATCH('Transporte Cap 50-70'!$H$11,OFFSET('ANP ESTADO'!$A$1,MATCH('Transporte Cap 50-70'!$I$8,'ANP ESTADO'!B:B,0),0,100000,1),0),2,100000,2),2,FALSE) -> 3.487986243 | K17: =VLOOKUP($H$11,OFFSET('ANP REGIÃO'!$A$9,MATCH('Transporte Cap 50-70'!$I$8,'ANP REGIÃO'!A:A,0),1,10000,10000),MATCH('Transporte Cap 50-70'!AH17,'ANP REGIÃO'!$B$8:$G$8,0),FALSE) -> 3.53904078 | L17: =IF(AND(J17="-",K17=""),"",IF(AND(J17<>0,K17=""),J17*1000,IF(AND(J17="-",K17<>0),K17*1000,IF(AND(J17<>0,K17<>0),J17*1000,"")))) -> 3487.986243 | M17: 926.8 | N17: 4414.786243 | O17: 1040 | P17: 0 | Q17: 290.06 | S17: 290.06 | T17: 63.67 | U17: 418.09 | V17: 771.82 | X17: =EVEN(' CONSUMO DE MAT. B TOTAL'!$P$13*2/28)*W17/' CONSUMO DE MAT. B TOTAL'!$P$13 -> 0 | Y17: 771.82 | Z17: 4414.786243 | AA17: 5186.606243 | AC17: 5186.606243 | AD17: 771.82 | AE17: 4414.786243 | AH17: NORDESTE
B18: 5959.082803 | C18: 6 | E18: Refinaria Capuava (Recap) | F18: Av. Alberto Soares Sampaio, 2122-A Capuava – Mauá - SP | G18: São Paulo | H18: MAUÁ - SP | I18: BOM JESUS-PI | J18: =VLOOKUP('Transporte Cap 50-70'!G18,OFFSET('ANP ESTADO'!$A$1,MATCH('Transporte Cap 50-70'!$I$8,'ANP ESTADO'!B:B,0)+MATCH('Transporte Cap 50-70'!$H$11,OFFSET('ANP ESTADO'!$A$1,MATCH('Transporte Cap 50-70'!$I$8,'ANP ESTADO'!B:B,0),0,100000,1),0),2,100000,2),2,FALSE) -> 3.543552803 | K18: =VLOOKUP($H$11,OFFSET('ANP REGIÃO'!$A$9,MATCH('Transporte Cap 50-70'!$I$8,'ANP REGIÃO'!A:A,0),1,10000,10000),MATCH('Transporte Cap 50-70'!AH18,'ANP REGIÃO'!$B$8:$G$8,0),FALSE) -> 3.660438996 | L18: 3543.552803 | M18: 941.56 | N18: 4485.112803 | O18: 2083 | P18: 0 | Q18: 553.94 | S18: 553.94 | T18: 121.59 | U18: 798.44 | V18: 1473.97 | X18: =EVEN(' CONSUMO DE MAT. B TOTAL'!$P$13*2/28)*W18/' CONSUMO DE MAT. B TOTAL'!$P$13 -> 0 | Y18: 1473.97 | Z18: 4485.112803 | AA18: 5959.082803 | AC18: 5959.082803 | AD18: 1473.97 | AE18: 4485.112803 | AH18: SUDESTE
B19: 5874.683148 | C19: 7 | E19: Refinaria Duque de Caxias (Reduc) | F19: Rodovia Washington Luiz, km 113,7 Campos Elíseos – Duque de Caxias - RJ CEP:25213-005 | G19: Rio de Janeiro | H19: DUQUE DE CAXIAS - RJ | I19: BOM JESUS-PI | J19: =VLOOKUP('Transporte Cap 50-70'!G19,OFFSET('ANP ESTADO'!$A$1,MATCH('Transporte Cap 50-70'!$I$8,'ANP ESTADO'!B:B,0)+MATCH('Transporte Cap 50-70'!$H$11,OFFSET('ANP ESTADO'!$A$1,MATCH('Transporte Cap 50-70'!$I$8,'ANP ESTADO'!B:B,0),0,100000,1),0),2,100000,2),2,FALSE) -> 3.534843148 | K19: =VLOOKUP($H$11,OFFSET('ANP REGIÃO'!$A$9,MATCH('Transporte Cap 50-70'!$I$8,'ANP REGIÃO'!A:A,0),1,10000,10000),MATCH('Transporte Cap 50-70'!AH19,'ANP REGIÃO'!$B$8:$G$8,0),FALSE) -> 3.660438996 | L19: 3534.843148 | M19: 939.25 | N19: 4474.093148 | O19: 1974 | P19: 0 | Q19: 526.36 | S19: 526.36 | T19: 115.54 | U19: 758.69 | V19: 1400.59 | X19: =EVEN(' CONSUMO DE MAT. B TOTAL'!$P$13*2/28)*W19/' CONSUMO DE MAT. B TOTAL'!$P$13 -> 0 | Y19: 1400.59 | Z19: 4474.093148 | AA19: 5874.683148 | AC19: 5874.683148 | AD19: 1400.59 | AE19: 4474.093148 | AH19: SUDESTE
B20: 7010.445702 | C20: 8 | E20: Refinaria Alberto Pasqualini (Refap) | F20: Avenida Getúlio Vargas, 11001 - Bairro Brigadeira Canoas - RS - Brasil CEP:92420-221 | G20: Rio Grande do Sul | H20: CANOAS - RS | I20: BOM JESUS-PI | J20: =VLOOKUP('Transporte Cap 50-70'!G20,OFFSET('ANP ESTADO'!$A$1,MATCH('Transporte Cap 50-70'!$I$8,'ANP ESTADO'!B:B,0)+MATCH('Transporte Cap 50-70'!$H$11,OFFSET('ANP ESTADO'!$A$1,MATCH('Transporte Cap 50-70'!$I$8,'ANP ESTADO'!B:B,0),0,100000,1),0),2,100000,2),2,FALSE) -> 3.801895702 | K20: =VLOOKUP($H$11,OFFSET('ANP REGIÃO'!$A$9,MATCH('Transporte Cap 50-70'!$I$8,'ANP REGIÃO'!A:A,0),1,10000,10000),MATCH('Transporte Cap 50-70'!AH20,'ANP REGIÃO'!$B$8:$G$8,0),FALSE) -> 3.75274843 | L20: 3801.895702 | M20: 1010.2 | N20: 4812.095702 | O20: 3159 | P20: 0 | Q20: 826.17 | S20: 826.17 | T20: 181.35 | U20: 1190.83 | V20: 2198.35 | X20: =EVEN(' CONSUMO DE MAT. B TOTAL'!$P$13*2/28)*W20/' CONSUMO DE MAT. B TOTAL'!$P$13 -> 0 | Y20: 2198.35 | Z20: 4812.095702 | AA20: 7010.445702 | AC20: 7010.445702 | AD20: 2198.35 | AE20: 4812.095702 | AH20: SUL
B21: 6447.154648 | C21: 9 | E21: Unidade de Industrialização do Xisto (SIX) | F21: Rodovia do Xisto, BR 476, km 153 São Mateus do Sul – PR CEP 83900-000 | G21: Paraná | H21: SÃO MATEUS DO SUL - PR | I21: BOM JESUS-PI | J21: =VLOOKUP('Transporte Cap 50-70'!G21,OFFSET('ANP ESTADO'!$A$1,MATCH('Transporte Cap 50-70'!$I$8,'ANP ESTADO'!B:B,0)+MATCH('Transporte Cap 50-70'!$H$11,OFFSET('ANP ESTADO'!$A$1,MATCH('Transporte Cap 50-70'!$I$8,'ANP ESTADO'!B:B,0),0,100000,1),0),2,100000,2),2,FALSE) -> 3.738764648 | K21: =VLOOKUP($H$11,OFFSET('ANP REGIÃO'!$A$9,MATCH('Transporte Cap 50-70'!$I$8,'ANP REGIÃO'!A:A,0),1,10000,10000),MATCH('Transporte Cap 50-70'!AH21,'ANP REGIÃO'!$B$8:$G$8,0),FALSE) -> 3.75274843 | L21: 3738.764648 | M21: 993.43 | N21: 4732.194648 | O21: 2441 | P21: 0 | Q21: 644.51 | S21: 644.51 | T21: 141.47 | U21: 928.98 | V21: 1714.96 | X21: =EVEN(' CONSUMO DE MAT. B TOTAL'!$P$13*2/28)*W21/' CONSUMO DE MAT. B TOTAL'!$P$13 -> 0 | Y21: 1714.96 | Z21: 4732.194648 | AA21: 6447.154648 | AC21: 6447.154648 | AD21: 1714.96 | AE21: 4732.194648 | AH21: SUL
B22: 5921.719474 | C22: 10 | E22: Refinaria Gabriel Passos (Regap) | F22: Av. Refinaria Gabriel Passos, 690 Distrito Industrial Paulo Camilo Sul Betim - MG CEP:32669-205 | G22: Minas Gerais | H22: BETIM - MG | I22: BOM JESUS-PI | J22: =VLOOKUP('Transporte Cap 50-70'!G22,OFFSET('ANP ESTADO'!$A$1,MATCH('Transporte Cap 50-70'!$I$8,'ANP ESTADO'!B:B,0)+MATCH('Transporte Cap 50-70'!$H$11,OFFSET('ANP ESTADO'!$A$1,MATCH('Transporte Cap 50-70'!$I$8,'ANP ESTADO'!B:B,0),0,100000,1),0),2,100000,2),2,FALSE) -> 3.789559474 | K22: =VLOOKUP($H$11,OFFSET('ANP REGIÃO'!$A$9,MATCH('Transporte Cap 50-70'!$I$8,'ANP REGIÃO'!A:A,0),1,10000,10000),MATCH('Transporte Cap 50-70'!AH22,'ANP REGIÃO'!$B$8:$G$8,0),FALSE) -> 3.660438996 | L22: 3789.559474 | M22: 1006.93 | N22: 4796.489474 | O22: 1565 | P22: 0 | Q22: 422.88 | S22: 422.88 | T22: 92.82 | U22: 609.53 | V22: 1125.23 | X22: =EVEN(' CONSUMO DE MAT. B TOTAL'!$P$13*2/28)*W22/' CONSUMO DE MAT. B TOTAL'!$P$13 -> 0 | Y22: 1125.23 | Z22: 4796.489474 | AA22: =IF(OR(Y22="",Z22=""),"",Y22+Z22) -> 5921.719474 | AC22: 5921.719474 | AD22: 1125.23 | AE22: 4796.489474 | AH22: SUDESTE
B23: 6461.994648 | C23: 11 | E23: Refinaria Presidente Getúlio Vargas (Repar) | F23: Rodovia do Xisto, BR 476, km 16 Araucária - PR CEP:83707-440 | G23: Paraná | H23: ARAUCÁRIA - PR | I23: BOM JESUS-PI | J23: =VLOOKUP('Transporte Cap 50-70'!G23,OFFSET('ANP ESTADO'!$A$1,MATCH('Transporte Cap 50-70'!$I$8,'ANP ESTADO'!B:B,0)+MATCH('Transporte Cap 50-70'!$H$11,OFFSET('ANP ESTADO'!$A$1,MATCH('Transporte Cap 50-70'!$I$8,'ANP ESTADO'!B:B,0),0,100000,1),0),2,100000,2),2,FALSE) -> 3.738764648 | K23: =VLOOKUP($H$11,OFFSET('ANP REGIÃO'!$A$9,MATCH('Transporte Cap 50-70'!$I$8,'ANP REGIÃO'!A:A,0),1,10000,10000),MATCH('Transporte Cap 50-70'!AH23,'ANP REGIÃO'!$B$8:$G$8,0),FALSE) -> 3.75274843 | L23: 3738.764648 | M23: 993.43 | N23: 4732.194648 | O23: 2463 | P23: 0 | Q23: 650.08 | S23: 650.08 | T23: 142.7 | U23: 937.02 | V23: 1729.8 | X23: =EVEN(' CONSUMO DE MAT. B TOTAL'!$P$13*2/28)*W23/' CONSUMO DE MAT. B TOTAL'!$P$13 -> 0 | Y23: 1729.8 | Z23: 4732.194648 | AA23: 6461.994648 | AC23: 6461.994648 | AD23: 1729.8 | AE23: 4732.194648 | AH23: SUL
B24: 5979.942803 | C24: 12 | E24: Refinaria Presidente Bernardes (RPBC) | F24: Av. 9 de abril, 777 - Jardim das Indústrias Cubatão - SP CEP:11505-000 | G24: São Paulo | H24: CUBATÃO - SP | I24: BOM JESUS-PI | J24: =VLOOKUP('Transporte Cap 50-70'!G24,OFFSET('ANP ESTADO'!$A$1,MATCH('Transporte Cap 50-70'!$I$8,'ANP ESTADO'!B:B,0)+MATCH('Transporte Cap 50-70'!$H$11,OFFSET('ANP ESTADO'!$A$1,MATCH('Transporte Cap 50-70'!$I$8,'ANP ESTADO'!B:B,0),0,100000,1),0),2,100000,2),2,FALSE) -> 3.543552803 | K24: =VLOOKUP($H$11,OFFSET('ANP REGIÃO'!$A$9,MATCH('Transporte Cap 50-70'!$I$8,'ANP REGIÃO'!A:A,0),1,10000,10000),MATCH('Transporte Cap 50-70'!AH24,'ANP REGIÃO'!$B$8:$G$8,0),FALSE) -> 3.660438996 | L24: 3543.552803 | M24: 941.56 | N24: 4485.112803 | O24: 2114 | P24: 0 | Q24: 561.78 | S24: 561.78 | T24: 123.31 | U24: 809.74 | V24: 1494.83 | X24: =EVEN(' CONSUMO DE MAT. B TOTAL'!$P$13*2/28)*W24/' CONSUMO DE MAT. B TOTAL'!$P$13 -> 0 | Y24: 1494.83 | Z24: 4485.112803 | AA24: 5979.942803 | AC24: 5979.942803 | AD24: 1494.83 | AE24: 4485.112803 | AH24: SUDESTE
B25: 5868.872803 | C25: 13 | E25: Refinaria de Paulínia (Replan) | F25: Rodovia SP 332 - Km. 130 Bonfim - Paulínia – SP CEP:13140-000 | G25: São Paulo | H25: PAULÍNIA - SP | I25: BOM JESUS-PI | J25: =VLOOKUP('Transporte Cap 50-70'!G25,OFFSET('ANP ESTADO'!$A$1,MATCH('Transporte Cap 50-70'!$I$8,'ANP ESTADO'!B:B,0)+MATCH('Transporte Cap 50-70'!$H$11,OFFSET('ANP ESTADO'!$A$1,MATCH('Transporte Cap 50-70'!$I$8,'ANP ESTADO'!B:B,0),0,100000,1),0),2,100000,2),2,FALSE) -> 3.543552803 | K25: =VLOOKUP($H$11,OFFSET('ANP REGIÃO'!$A$9,MATCH('Transporte Cap 50-70'!$I$8,'ANP REGIÃO'!A:A,0),1,10000,10000),MATCH('Transporte Cap 50-70'!AH25,'ANP REGIÃO'!$B$8:$G$8,0),FALSE) -> 3.660438996 | L25: 3543.552803 | M25: 941.56 | N25: 4485.112803 | O25: 1949 | P25: 0 | Q25: 520.04 | S25: 520.04 | T25: 114.15 | U25: 749.57 | V25: 1383.76 | X25: =EVEN(' CONSUMO DE MAT. B TOTAL'!$P$13*2/28)*W25/' CONSUMO DE MAT. B TOTAL'!$P$13 -> 0 | Y25: 1383.76 | Z25: 4485.112803 | AA25: 5868.872803 | AC25: 5868.872803 | AD25: 1383.76 | AE25: 4485.112803 | AH25: SUDESTE
B26: 5977.252803 | C26: 14 | E26: Refinaria Henrique Lage (Revap) | F26: Rodovia Presidente Dutra, KM 143, S/N Bairro Jardim Diamante - São José dos Campos – SP CEP:12223-900 | G26: São Paulo | H26: SÃO JOSÉ DOS CAMPOS - SP | I26: BOM JESUS-PI | J26: =VLOOKUP('Transporte Cap 50-70'!G26,OFFSET('ANP ESTADO'!$A$1,MATCH('Transporte Cap 50-70'!$I$8,'ANP ESTADO'!B:B,0)+MATCH('Transporte Cap 50-70'!$H$11,OFFSET('ANP ESTADO'!$A$1,MATCH('Transporte Cap 50-70'!$I$8,'ANP ESTADO'!B:B,0),0,100000,1),0),2,100000,2),2,FALSE) -> 3.543552803 | K26: =VLOOKUP($H$11,OFFSET('ANP REGIÃO'!$A$9,MATCH('Transporte Cap 50-70'!$I$8,'ANP REGIÃO'!A:A,0),1,10000,10000),MATCH('Transporte Cap 50-70'!AH26,'ANP REGIÃO'!$B$8:$G$8,0),FALSE) -> 3.660438996 | L26: 3543.552803 | M26: 941.56 | N26: 4485.112803 | O26: 2110 | P26: 0 | Q26: 560.77 | S26: 560.77 | T26: 123.09 | U26: 808.28 | V26: 1492.14 | X26: =EVEN(' CONSUMO DE MAT. B TOTAL'!$P$13*2/28)*W26/' CONSUMO DE MAT. B TOTAL'!$P$13 -> 0 | Y26: 1492.14 | Z26: 4485.112803 | AA26: 5977.252803 | AC26: 5977.252803 | AD26: 1492.14 | AE26: 4485.112803 | AH26: SUDESTE
D36: Acre
D37: Alagoas
D38: Amapá
D39: Amazonas
D40: Bahia
D41: Ceará
D42: Distrito Federal
D43: Espírito Santo
D44: Goiás
D45: Maranhão
D46: Mato Grosso
D47: Mato Grosso do Sul
D48: Minas Gerais
D49: Pará
D50: Paraíba
D51: Paraná
D52: Pernambuco
D53: Piauí
D54: Rio de Janeiro
D55: Rio Grande do Norte
D56: Rio Grande do Sul
D57: Rondônia
D58: Roraima
D59: Santa Catarina
D60: São Paulo
D61: Sergipe
D62: Tocantins
D66: ASFALTOS DILUÍDOS CM-30
D67: ASFALTOS DILUÍDOS CM-70
D68: ASFALTOS DILUÍDOS CR-250
D69: ASFALTOS DILUÍDOS CR-70
D70: CAP MODIFICADO POR BORRACHA DE PNEU AB22
D71: CAP MODIFICADO POR BORRACHA DE PNEU AB8
D72: CAP MODIFICADO POR POLÍMERO 55-75-E
D73: CAP MODIFICADO POR POLÍMERO 60-85-E
D74: CAP MODIFICADO POR POLÍMERO 65-90-E
D75: CIMENTOS ASFÁLTICOS CAP-150-200
D76: CIMENTOS ASFÁLTICOS CAP-30-45
D77: CIMENTOS ASFÁLTICOS CAP-50-70
D78: CIMENTOS ASFÁLTICOS CAP-85-100
D79: EMULSÃO ASFÁLTICA CATIÔNICA DE RUPTURA CONTROLADA PARA SERVIÇO DE LAMA ASFÁLTICA
D80: EMULSÃO ASFÁLTICA DE RUPTURA LENTA CATIÔNICA PARA SERVIÇO DE LAMA ASFÁLTICA
D81: EMULSÃO ASFÁLTICA DE RUPTURA LENTA DE CARGA NEUTRA PARA SERVIÇO DE LAMA ASFÁLTICA
D82: EMULSÃO ASFÁLTICA PARA SERVIÇO DE IMPRIMAÇÃO
D83: EMULSÕES ASF. MOD. POR POLÍMEROS RC1C-E
D84: EMULSÕES ASF. MOD. POR POLÍMEROS RL1C-E
D85: EMULSÕES ASF. MOD. POR POLÍMEROS RM1C-E
D86: EMULSÕES ASF. MOD. POR POLÍMEROS RR1C-E
D87: EMULSÕES ASF. MOD. POR POLÍMEROS RR2C-E
D88: EMULSÕES ASFÁLTICAS RL-1C
D89: EMULSÕES ASFÁLTICAS RM-1C
D90: EMULSÕES ASFÁLTICAS RM-2C
D91: EMULSÕES ASFÁLTICAS RR-1C
D92: EMULSÕES ASFÁLTICAS RR-2C

Sheet Transporte EAI
C3: MEMÓRIA DE CÁLCULO
C8: REAJUSTE | F8: TIPOLOGIA DO MATERIAL | I8: EMULSÃO ASFÁLTICA PARA SERVIÇO DE IMPRIMAÇÃO | M8: IMPOSTOS | N8: COFINS | O8: 0.0065 | P8: 0.0065
G9: ÍNDICE DE PAVIMENTAÇÃO DNIT | H9: 2014-07-01 | I9: ÍNDICE INICIAL | J9: 270.237 | N9: PIS | O9: 0.03 | P9: 0.03 | T9: LEGENDA | AC9: As empresas tributadas pelo Lucro Presumido pagam 0,65% de PIS e 3% de COFINS
H10: ='Transporte Cap 50-70'!H10 -> 2025-08-01 | I10: ÍNDICE FINAL | J10: ='Transporte Cap 50-70'!J10 -> 589.643 | N10: ICMS | O10: 0.18 | P10: 0.18 | Q10: =1-(O10/1) -> 0.82 | R10: =1-(P10/1) -> 0.82 | S10: =1-(Q10/1) -> 0.18 | T10: ENTRADA DE DADOS | AC10: As empresas tributadas pelo Lucro Real pagam 1,65% de PIS e 7,60% de COFINS
G11: Data ANP | H11: ='Transporte Cap 50-70'!H11 -> 2025-07-01
C12: DATA-BASE | D12: PRODUTOS | E12: LOCALIDADES | J12: CUSTO ANP (R$/Kg) | L12: CUSTO ANP | M12: IMPOSTOS DO PRODUTO | N12: CUSTO DO PRODUTO COM IMPOSTOS | O12: DMT's | P12: DMT'S FLUVIAL | Q12: CUSTO DO TRANSPORTE RODOVIA PAVIMENTADA | R12: CUSTO DO TRANSPORTE FLUVIAL | S12: CUSTO DO TRANSPORTE TOTAL | T12: ICMS | U12: ATUALIZAÇÃO DO CUSTO DE TRANSPORTE | V12: CUSTO DO TRANSPORTE RODOVIA PAVIMENTADA COM IMPOSTOS E ATUALIZAÇÃO MONETÁRIA | W12: PEDÁGIO | Y12: TOTAL TRANSPORTE | Z12: AQUISIÇÃO DO PRODUTO | AA12: TOTAL GERAL ( TRANSP + AQUISIÇÃO) | AC12: 1 | AD12: 2 | AE12: 3
C13: =H10 -> 2025-08-01 | E13: REFINARIAS | F13: ENDEREÇO | G13: ESTADO | H13: CIDADE | I13: DESTINO | J13: ESTADO | K13: REGIÃO | L13: R$/t | M13: R$/t | N13: R$/t | O13: KM | P13: KM | Q13: R$/t | R13: R$/t | S13: R$/t | T13: R$/t | U13: R$/t | V13: R$/t | W13: CUSTO | X13: R$/t | Y13: R$/t | Z13: R$/t | AA13: R$/t | AC13: TOTAL GERAL ( TRANSP + AQUISIÇÃO) | AD13: TOTAL TRANSPORTE | AE13: AQUISIÇÃO DO PRODUTO
B14: =AA14 -> 3702.51432 | C14: 1 | D14: =I8 -> EMULSÃO ASFÁLTICA PARA SERVIÇO DE IMPRIMAÇÃO | E14: Refinaria Abreu e Lima | F14: Rodovia PE 60, Km 10 - Ipojuca - PE CEP:55590-000 | G14: Pernambuco | H14: IPOJUCA - PE | I14: ='Transporte Cap 50-70'!I14 -> BOM JESUS-PI | J14: =VLOOKUP(G14,OFFSET('ANP ESTADO'!$A$1,MATCH($I$8,'ANP ESTADO'!B:B,0)+MATCH($H$11,OFFSET('ANP ESTADO'!$A$1,MATCH($I$8,'ANP ESTADO'!B:B,0),0,100000,1),0),2,100000,2),2,FALSE) -> - | K14: =VLOOKUP($H$11,OFFSET('ANP REGIÃO'!$A$9,MATCH('Transporte EAI'!$I$8,'ANP REGIÃO'!A:A,0),1,10000,10000),MATCH('Transporte EAI'!AH14,'ANP REGIÃO'!$B$8:$G$8,0),FALSE) -> 2.18249432 | L14: =IF(AND(J14="-",K14="-"),"",IF(AND(J14<>0,K14="-"),J14*1000,IF(AND(J14="-",K14<>0),K14*1000,IF(AND(J14<>0,K14<>0),J14*1000,"")))) -> 2182.49432 | M14: =ROUND(((L14/(1-$O$8-$O$9-$O$10+($O$9+$O$8)*$O$10)-L14)),2) -> 579.91 | N14: =L14+M14 -> 2762.40432 | O14: 1290 | P14: 0 | Q14: =ROUND((26.939+0.253*O14),2) -> 353.31 | S14: =Q14+R14 -> 353.31 | T14: =TRUNC(S14*($O$10/(1-$O$10)),2) -> 77.55 | U14: =TRUNC(IF($J$9="","",(($J$10-$J$9)/$J$9)*(S14+T14)),2) -> 509.25 | V14: =S14+T14+U14 -> 940.11 | X14: =EVEN(' CONSUMO DE MAT. B TOTAL'!$P$11*2/28)*W14/' CONSUMO DE MAT. B TOTAL'!$P$11 -> 0 | Y14: =IF(AND(Q14="",T14=""),"",V14+X14) -> 940.11 | Z14: =IF(OR(L14="",M14=""),"",L14+M14) -> 2762.40432 | AA14: =IF(OR(Y14="",Z14=""),"",Y14+Z14) -> 3702.51432 | AC14: =AA14 -> 3702.51432 | AD14: =Y14 -> 940.11 | AE14: =Z14 -> 2762.40432 | AH14: =IF(OR(G14=$D$59,G14=$D$60,G14=$D$62,G14=$D$68,G14=$D$52,G14=$D$48,G14=$D$44,G14=$D$57,G14=$D$47),"NORDESTE",IF(OR(G14=$D$43,G14=$D$45,G14=$D$46,G14=$D$56,G14=$D$64,G14=$D$65,G14=$D$69),"NORTE",IF(OR(G14=$D$49,G14=$D$51,G14=$D$53,G14=$D$54),"CENTRO-OESTE",IF(OR(G14=$D$67,G14=$D$61,G14=$D$55,G14=$D$50),"SUDESTE",IF(OR(G14=$D$66,G14=$D$58,G14=$D$63),"SUL",""))))) -> NORDESTE
B15: =AA15 -> 3640.358083 | C15: 2 | E15: STRATURA ASFALTOS S/A | F15: AVENIDA PRESIDENTE WILSON, 08 - JUNDIAÍ - CEP:75115-100 | G15: Goiás | H15: ANÁPOLIS - GO | I15: =I14 -> BOM JESUS-PI | J15: =VLOOKUP(G15,OFFSET('ANP ESTADO'!$A$1,MATCH($I$8,'ANP ESTADO'!B:B,0)+MATCH($H$11,OFFSET('ANP ESTADO'!$A$1,MATCH($I$8,'ANP ESTADO'!B:B,0),0,100000,1),0),2,100000,2),2,FALSE) -> 2.167968083 | K15: =VLOOKUP($H$11,OFFSET('ANP REGIÃO'!$A$9,MATCH('Transporte EAI'!$I$8,'ANP REGIÃO'!A:A,0),1,10000,10000),MATCH('Transporte EAI'!AH15,'ANP REGIÃO'!$B$8:$G$8,0),FALSE) -> 2.623457098 | L15: =IF(AND(J15="-",K15="-"),"",IF(AND(J15<>0,K15="-"),J15*1000,IF(AND(J15="-",K15<>0),K15*1000,IF(AND(J15<>0,K15<>0),J15*1000,"")))) -> 2167.968083 | M15: =ROUND(((L15/(1-$O$8-$O$9-$O$10+($O$9+$O$8)*$O$10)-L15)),2) -> 576.05 | N15: =L15+M15 -> 2744.018083 | O15: 1225 | P15: 0 | Q15: =ROUND((26.939+0.253*O15),2) -> 336.86 | S15: =Q15+R15 -> 336.86 | T15: =TRUNC(S15*($O$10/(1-$O$10)),2) -> 73.94 | U15: =TRUNC(IF($J$9="","",(($J$10-$J$9)/$J$9)*(S15+T15)),2) -> 485.54 | V15: =S15+T15+U15 -> 896.34 | X15: =EVEN(' CONSUMO DE MAT. B TOTAL'!$P$11*2/28)*W15/' CONSUMO DE MAT. B TOTAL'!$P$11 -> 0 | Y15: 896.34 | Z15: 2744.018083 | AA15: =IF(OR(Y15="",Z15=""),"",Y15+Z15) -> 3640.358083 | AC15: =AA15 -> 3640.358083 | AD15: =Y15 -> 896.34 | AE15: 2744.018083 | AH15: =IF(OR(G15=$D$59,G15=$D$60,G15=$D$62,G15=$D$68,G15=$D$52,G15=$D$48,G15=$D$44,G15=$D$57,G15=$D$47),"NORDESTE",IF(OR(G15=$D$43,G15=$D$45,G15=$D$46,G15=$D$56,G15=$D$64,G15=$D$65,G15=$D$69),"NORTE",IF(OR(G15=$D$49,G15=$D$51,G15=$D$53,G15=$D$54),"CENTRO-OESTE",IF(OR(G15=$D$67,G15=$D$61,G15=$D$55,G15=$D$50),"SUDESTE",IF(OR(G15=$D$66,G15=$D$58,G15=$D$63),"SUL",""))))) -> CENTRO-OESTE
B16: 3685.478083 | C16: 3 | E16: DISTRIBUIDORA BRASILEIRA DE ASFALTO SA - DISBRAL | F16: VIA PRIMARIA 8, S/N QD-18, MODS. 24/47 - DAIAG - CEP:74980-970 | G16: Goiás | H16: APARECIDA DE GOIANIA - GO | I16: =I15 -> BOM JESUS-PI | J16: =VLOOKUP(G16,OFFSET('ANP ESTADO'!$A$1,MATCH($I$8,'ANP ESTADO'!B:B,0)+MATCH($H$11,OFFSET('ANP ESTADO'!$A$1,MATCH($I$8,'ANP ESTADO'!B:B,0),0,100000,1),0),2,100000,2),2,FALSE) -> 2.167968083 | K16: =VLOOKUP($H$11,OFFSET('ANP REGIÃO'!$A$9,MATCH('Transporte EAI'!$I$8,'ANP REGIÃO'!A:A,0),1,10000,10000),MATCH('Transporte EAI'!AH16,'ANP REGIÃO'!$B$8:$G$8,0),FALSE) -> 2.623457098 | L16: 2167.968083 | M16: 576.05 | N16: 2744.018083 | O16: 1292 | P16: 0 | Q16: 353.82 | S16: 353.82 | T16: 77.66 | U16: 509.98 | V16: 941.46 | X16: =EVEN(' CONSUMO DE MAT. B TOTAL'!$P$11*2/28)*W16/' CONSUMO DE MAT. B TOTAL'!$P$11 -> 0 | Y16: 941.46 | Z16: 2744.018083 | AA16: 3685.478083 | AC16: 3685.478083 | AD16: 941.46 | AE16: 2744.018083 | AH16: CENTRO-OESTE
A17: 2403 | B17: 3689.498083 | C17: 4 | E17: INDÚSTRIA NACIONAL DE ASFALTOS LTDA. | F17: VIA PRIMEIRA E SEGUNDA 3, S/N.º LOTES 01 A 10 - DISTRITO AGROINDUSTRIAL - CEP:75370-000 | G17: Goiás | H17: GOIANIRA - GO | I17: BOM JESUS-PI | J17: =VLOOKUP(G17,OFFSET('ANP ESTADO'!$A$1,MATCH($I$8,'ANP ESTADO'!B:B,0)+MATCH($H$11,OFFSET('ANP ESTADO'!$A$1,MATCH($I$8,'ANP ESTADO'!B:B,0),0,100000,1),0),2,100000,2),2,FALSE) -> 2.167968083 | K17: =VLOOKUP($H$11,OFFSET('ANP REGIÃO'!$A$9,MATCH('Transporte EAI'!$I$8,'ANP REGIÃO'!A:A,0),1,10000,10000),MATCH('Transporte EAI'!AH17,'ANP REGIÃO'!$B$8:$G$8,0),FALSE) -> 2.623457098 | L17: 2167.968083 | M17: 576.05 | N17: 2744.018083 | O17: 1298 | P17: 0 | Q17: 355.33 | S17: 355.33 | T17: 77.99 | U17: 512.16 | V17: 945.48 | X17: =EVEN(' CONSUMO DE MAT. B TOTAL'!$P$11*2/28)*W17/' CONSUMO DE MAT. B TOTAL'!$P$11 -> 0 | Y17: 945.48 | Z17: 2744.018083 | AA17: 3689.498083 | AC17: 3689.498083 | AD17: 945.48 | AE17: 2744.018083 | AH17: CENTRO-OESTE
B18: 3768.924487 | C18: 5 | E18: STRATURA ASFALTOS S/A | F18: RUA VICTOR RODRIGUES RESENDE, 333 - DISTRITO IND. DE UBERLÂNDIA - CEP:38405-440 | G18: Minas Gerais | H18: UBERLANDIA - MG | I18: BOM JESUS-PI | J18: =VLOOKUP(G18,OFFSET('ANP ESTADO'!$A$1,MATCH($I$8,'ANP ESTADO'!B:B,0)+MATCH($H$11,OFFSET('ANP ESTADO'!$A$1,MATCH($I$8,'ANP ESTADO'!B:B,0),0,100000,1),0),2,100000,2),2,FALSE) -> 2.140814487 | K18: =VLOOKUP($H$11,OFFSET('ANP REGIÃO'!$A$9,MATCH('Transporte EAI'!$I$8,'ANP REGIÃO'!A:A,0),1,10000,10000),MATCH('Transporte EAI'!AH18,'ANP REGIÃO'!$B$8:$G$8,0),FALSE) -> 2.308211963 | L18: 2140.814487 | M18: 568.84 | N18: 2709.654487 | O18: 1467 | P18: 0 | Q18: 398.09 | S18: 398.09 | T18: 87.38 | U18: 573.8 | V18: 1059.27 | X18: =EVEN(' CONSUMO DE MAT. B TOTAL'!$P$11*2/28)*W18/' CONSUMO DE MAT. B TOTAL'!$P$11 -> 0 | Y18: 1059.27 | Z18: 2709.654487 | AA18: 3768.924487 | AC18: 3768.924487 | AD18: 1059.27 | AE18: 2709.654487 | AH18: SUDESTE
B19: 3768.924487 | C19: 6 | E19: BETUNEL INDÚSTRIA E COMÉRCIO LTDA. | F19: RUA VICTOR RODRIGUES DE REZENDE, 185 - DISTRITO INDUSTRIAL - CEP:38402-334 | G19: Minas Gerais | H19: UBERLANDIA - MG | I19: BOM JESUS-PI | J19: =VLOOKUP(G19,OFFSET('ANP ESTADO'!$A$1,MATCH($I$8,'ANP ESTADO'!B:B,0)+MATCH($H$11,OFFSET('ANP ESTADO'!$A$1,MATCH($I$8,'ANP ESTADO'!B:B,0),0,100000,1),0),2,100000,2),2,FALSE) -> 2.140814487 | K19: =VLOOKUP($H$11,OFFSET('ANP REGIÃO'!$A$9,MATCH('Transporte EAI'!$I$8,'ANP REGIÃO'!A:A,0),1,10000,10000),MATCH('Transporte EAI'!AH19,'ANP REGIÃO'!$B$8:$G$8,0),FALSE) -> 2.308211963 | L19: 2140.814487 | M19: 568.84 | N19: 2709.654487 | O19: 1467 | P19: 0 | Q19: 398.09 | S19: 398.09 | T19: 87.38 | U19: 573.8 | V19: 1059.27 | X19: =EVEN(' CONSUMO DE MAT. B TOTAL'!$P$11*2/28)*W19/' CONSUMO DE MAT. B TOTAL'!$P$11 -> 0 | Y19: 1059.27 | Z19: 2709.654487 | AA19: 3768.924487 | AC19: 3768.924487 | AD19: 1059.27 | AE19: 2709.654487 | AH19: SUDESTE
B20: 3682.98432 | C20: 7 | E20: Refinaria Potiguar Clara Camarão | F20: Rodovia RN 221, KM 25 - Guamaré - RN CEP:59598-000 | G20: Rio Grande do Norte | H20: GUAMARÉ - RN | I20: BOM JESUS-PI | J20: =VLOOKUP(G20,OFFSET('ANP ESTADO'!$A$1,MATCH($I$8,'ANP ESTADO'!B:B,0)+MATCH($H$11,OFFSET('ANP ESTADO'!$A$1,MATCH($I$8,'ANP ESTADO'!B:B,0),0,100000,1),0),2,100000,2),2,FALSE) -> - | K20: =VLOOKUP($H$11,OFFSET('ANP REGIÃO'!$A$9,MATCH('Transporte EAI'!$I$8,'ANP REGIÃO'!A:A,0),1,10000,10000),MATCH('Transporte EAI'!AH20,'ANP REGIÃO'!$B$8:$G$8,0),FALSE) -> 2.18249432 | L20: =IF(AND(J20="-",K20="-"),"",IF(AND(J20<>0,K20="-"),J20*1000,IF(AND(J20="-",K20<>0),K20*1000,IF(AND(J20<>0,K20<>0),J20*1000,"")))) -> 2182.49432 | M20: 579.91 | N20: 2762.40432 | O20: 1261 | P20: 0 | Q20: 345.97 | S20: 345.97 | T20: 75.94 | U20: 498.67 | V20: 920.58 | X20: =EVEN(' CONSUMO DE MAT. B TOTAL'!$P$11*2/28)*W20/' CONSUMO DE MAT. B TOTAL'!$P$11 -> 0 | Y20: 920.58 | Z20: 2762.40432 | AA20: 3682.98432 | AH20: NORDESTE
B21: 3841.624487 | C21: 8 | E21: DISTRIBUIDORA BRASILEIRA DE ASFALTO SA - DISBRAL | F21: SÃO JUDAS TADEU, 288 - DISTRITO INDUSTRIAL - CEP:32450-000 | G21: Minas Gerais | H21: SARZEDO - MG | I21: BOM JESUS-PI | J21: =VLOOKUP(G21,OFFSET('ANP ESTADO'!$A$1,MATCH($I$8,'ANP ESTADO'!B:B,0)+MATCH($H$11,OFFSET('ANP ESTADO'!$A$1,MATCH($I$8,'ANP ESTADO'!B:B,0),0,100000,1),0),2,100000,2),2,FALSE) -> 2.140814487 | K21: =VLOOKUP($H$11,OFFSET('ANP REGIÃO'!$A$9,MATCH('Transporte EAI'!$I$8,'ANP REGIÃO'!A:A,0),1,10000,10000),MATCH('Transporte EAI'!AH21,'ANP REGIÃO'!$B$8:$G$8,0),FALSE) -> 2.308211963 | L21: 2140.814487 | M21: 568.84 | N21: 2709.654487 | O21: 1575 | P21: 0 | Q21: 425.41 | S21: 425.41 | T21: 93.38 | U21: 613.18 | V21: 1131.97 | X21: =EVEN(' CONSUMO DE MAT. B TOTAL'!$P$11*2/28)*W21/' CONSUMO DE MAT. B TOTAL'!$P$11 -> 0 | Y21: 1131.97 | Z21: 2709.654487 | AA21: 3841.624487 | AH21: SUDESTE
B22: 4439.325163 | C22: 9 | E22: 'INDÚSTRIA NACIONAL DE ASFALTOS LTDA. | F22: INDÚSTRIA NACIONAL DE ASFALTOS LTDA - CEP:77053-080 | G22: Tocantins | H22: PALMAS - TO | I22: BOM JESUS-PI | J22: =VLOOKUP(G22,OFFSET('ANP ESTADO'!$A$1,MATCH($I$8,'ANP ESTADO'!B:B,0)+MATCH($H$11,OFFSET('ANP ESTADO'!$A$1,MATCH($I$8,'ANP ESTADO'!B:B,0),0,100000,1),0),2,100000,2),2,FALSE) -> - | K22: =VLOOKUP($H$11,OFFSET('ANP REGIÃO'!$A$9,MATCH('Transporte EAI'!$I$8,'ANP REGIÃO'!A:A,0),1,10000,10000),MATCH('Transporte EAI'!AH22,'ANP REGIÃO'!$B$8:$G$8,0),FALSE) -> 3.040675163 | L22: 3040.675163 | M22: 807.94 | N22: 3848.615163 | O22: 771 | P22: 0 | Q22: 222 | S22: 222 | T22: 48.73 | U22: 319.98 | V22: 590.71 | X22: =EVEN(' CONSUMO DE MAT. B TOTAL'!$P$11*2/28)*W22/' CONSUMO DE MAT. B TOTAL'!$P$11 -> 0 | Y22: 590.71 | Z22: 3848.615163 | AA22: 4439.325163 | AH22: NORTE
B23: 4517.605624 | C23: 10 | E23: 'NTA - NOVAS TÉCNICAS DE ASFALTOS S/A | F23: RUA SOFIA ATAURI FADIN, 150 SALA A - B. SANTA TEREZINHA - CEP:13140-000 | G23: São Paulo | H23: PAULINIA - SP | I23: BOM JESUS-PI | J23: =VLOOKUP(G23,OFFSET('ANP ESTADO'!$A$1,MATCH($I$8,'ANP ESTADO'!B:B,0)+MATCH($H$11,OFFSET('ANP ESTADO'!$A$1,MATCH($I$8,'ANP ESTADO'!B:B,0),0,100000,1),0),2,100000,2),2,FALSE) -> 2.475955624 | K23: =VLOOKUP($H$11,OFFSET('ANP REGIÃO'!$A$9,MATCH('Transporte EAI'!$I$8,'ANP REGIÃO'!A:A,0),1,10000,10000),MATCH('Transporte EAI'!AH23,'ANP REGIÃO'!$B$8:$G$8,0),FALSE) -> 2.308211963 | L23: 2475.955624 | M23: 657.89 | N23: 3133.845624 | O23: 1949 | P23: 0 | Q23: 520.04 | S23: 520.04 | T23: 114.15 | U23: 749.57 | V23: 1383.76 | X23: =EVEN(' CONSUMO DE MAT. B TOTAL'!$P$11*2/28)*W23/' CONSUMO DE MAT. B TOTAL'!$P$11 -> 0 | Y23: 1383.76 | Z23: 3133.845624 | AA23: 4517.605624 | AC23: 4517.605624 | AD23: 1383.76 | AE23: 3133.845624 | AH23: SUDESTE
B24: 4568.755624 | C24: 11 | E24: COMPANHIA BRASILEIRA DE ASFALTOS DA AMAZÔNIA - IMPORTAÇÃO E EXPORTAÇÃO | F24: Avenida Doutor Olindo Dártora 2451, Galpão 02, Morro Grande - CEP:07726-555 | G24: São Paulo | H24: CAIEIRAS - SP | I24: BOM JESUS-PI | J24: =VLOOKUP(G24,OFFSET('ANP ESTADO'!$A$1,MATCH($I$8,'ANP ESTADO'!B:B,0)+MATCH($H$11,OFFSET('ANP ESTADO'!$A$1,MATCH($I$8,'ANP ESTADO'!B:B,0),0,100000,1),0),2,100000,2),2,FALSE) -> 2.475955624 | K24: =VLOOKUP($H$11,OFFSET('ANP REGIÃO'!$A$9,MATCH('Transporte EAI'!$I$8,'ANP REGIÃO'!A:A,0),1,10000,10000),MATCH('Transporte EAI'!AH24,'ANP REGIÃO'!$B$8:$G$8,0),FALSE) -> 2.308211963 | L24: 2475.955624 | M24: 657.89 | N24: 3133.845624 | O24: 2025 | P24: 0 | Q24: 539.26 | S24: 539.26 | T24: 118.37 | U24: 777.28 | V24: 1434.91 | X24: =EVEN(' CONSUMO DE MAT. B TOTAL'!$P$11*2/28)*W24/' CONSUMO DE MAT. B TOTAL'!$P$11 -> 0 | Y24: 1434.91 | Z24: 3133.845624 | AA24: 4568.755624 | AH24: SUDESTE
B25: 3499.20432 | C25: 12 | E25: Refinaria Landulpho Alves (RLAM) | F25: Rodovia BA 523, KM 4 – Mataripe São Francisco do Conde - BA CEP:43900-000 | G25: Bahia | H25: SÃO FRANCISCO DO CONDE - BA | I25: BOM JESUS-PI | J25: =VLOOKUP(G25,OFFSET('ANP ESTADO'!$A$1,MATCH($I$8,'ANP ESTADO'!B:B,0)+MATCH($H$11,OFFSET('ANP ESTADO'!$A$1,MATCH($I$8,'ANP ESTADO'!B:B,0),0,100000,1),0),2,100000,2),2,FALSE) -> - | K25: =VLOOKUP($H$11,OFFSET('ANP REGIÃO'!$A$9,MATCH('Transporte EAI'!$I$8,'ANP REGIÃO'!A:A,0),1,10000,10000),MATCH('Transporte EAI'!AH25,'ANP REGIÃO'!$B$8:$G$8,0),FALSE) -> 2.18249432 | L25: 2182.49432 | M25: 579.91 | N25: 2762.40432 | O25: 988 | P25: 0 | Q25: 276.9 | S25: 276.9 | T25: 60.78 | U25: 399.12 | V25: 736.8 | X25: =EVEN(' CONSUMO DE MAT. B TOTAL'!$P$11*2/28)*W25/' CONSUMO DE MAT. B TOTAL'!$P$11 -> 0 | Y25: 736.8 | Z25: 2762.40432 | AA25: 3499.20432 | AH25: NORDESTE
B26: 3420.234098 | C26: 13 | E26: Refinaria Lubrificantes e Derivados do Nordeste (Lubnor) | F26: Av. Leite Barbosa, s/nº - Mucuripe Fortaleza - Ceará CEP:60180-420 | G26: Ceará | H26: FORTALEZA - CE | I26: BOM JESUS-PI | J26: =VLOOKUP(G26,OFFSET('ANP ESTADO'!$A$1,MATCH($I$8,'ANP ESTADO'!B:B,0)+MATCH($H$11,OFFSET('ANP ESTADO'!$A$1,MATCH($I$8,'ANP ESTADO'!B:B,0),0,100000,1),0),2,100000,2),2,FALSE) -> 2.092434098 | K26: =VLOOKUP($H$11,OFFSET('ANP REGIÃO'!$A$9,MATCH('Transporte EAI'!$I$8,'ANP REGIÃO'!A:A,0),1,10000,10000),MATCH('Transporte EAI'!AH26,'ANP REGIÃO'!$B$8:$G$8,0),FALSE) -> 2.18249432 | L26: 2092.434098 | M26: 555.98 | N26: 2648.414098 | O26: 1040 | P26: 0 | Q26: 290.06 | S26: 290.06 | T26: 63.67 | U26: 418.09 | V26: 771.82 | X26: =EVEN(' CONSUMO DE MAT. B TOTAL'!$P$11*2/28)*W26/' CONSUMO DE MAT. B TOTAL'!$P$11 -> 0 | Y26: 771.82 | Z26: 2648.414098 | AA26: 3420.234098 | AH26: NORDESTE
B27: 5023.67191 | C27: 14 | E27: BETUNEL INDÚSTRIA E COMÉRCIO LTDA. | F27: RUA N ESQUINA COM RUA X, S/N QD. IND. 7 L 01/08 - DIST. IND. - CEP:78015-285 | G27: Mato Grosso | H27: CUIABA - MT | I27: BOM JESUS-PI | J27: =VLOOKUP(G27,OFFSET('ANP ESTADO'!$A$1,MATCH($I$8,'ANP ESTADO'!B:B,0)+MATCH($H$11,OFFSET('ANP ESTADO'!$A$1,MATCH($I$8,'ANP ESTADO'!B:B,0),0,100000,1),0),2,100000,2),2,FALSE) -> 2.78112191 | K27: =VLOOKUP($H$11,OFFSET('ANP REGIÃO'!$A$9,MATCH('Transporte EAI'!$I$8,'ANP REGIÃO'!A:A,0),1,10000,10000),MATCH('Transporte EAI'!AH27,'ANP REGIÃO'!$B$8:$G$8,0),FALSE) -> 2.623457098 | L27: 2781.12191 | M27: 738.97 | N27: 3520.09191 | O27: 2127 | P27: 0 | Q27: 565.07 | S27: 565.07 | T27: 124.03 | U27: 814.48 | V27: 1503.58 | X27: =EVEN(' CONSUMO DE MAT. B TOTAL'!$P$11*2/28)*W27/' CONSUMO DE MAT. B TOTAL'!$P$11 -> 0 | Y27: 1503.58 | Z27: 3520.09191 | AA27: 5023.67191 | AH27: CENTRO-OESTE
B28: 5027.72191 | C28: 15 | E28: EMAM - EMULSÕES E TRANSPORTES LTDA. | F28: RODOVIA DOS IMIGRANTES, S/Nº KM 8,6 - - CEP:60035-351 | G28: Mato Grosso | H28: VARZEA GRANDE - MT | I28: BOM JESUS-PI | J28: =VLOOKUP(G28,OFFSET('ANP ESTADO'!$A$1,MATCH($I$8,'ANP ESTADO'!B:B,0)+MATCH($H$11,OFFSET('ANP ESTADO'!$A$1,MATCH($I$8,'ANP ESTADO'!B:B,0),0,100000,1),0),2,100000,2),2,FALSE) -> 2.78112191 | K28: =VLOOKUP($H$11,OFFSET('ANP REGIÃO'!$A$9,MATCH('Transporte EAI'!$I$8,'ANP REGIÃO'!A:A,0),1,10000,10000),MATCH('Transporte EAI'!AH28,'ANP REGIÃO'!$B$8:$G$8,0),FALSE) -> 2.623457098 | L28: 2781.12191 | M28: 738.97 | N28: 3520.09191 | O28: 2133 | P28: 0 | Q28: 566.59 | S28: 566.59 | T28: 124.37 | U28: 816.67 | V28: 1507.63 | X28: =EVEN(' CONSUMO DE MAT. B TOTAL'!$P$11*2/28)*W28/' CONSUMO DE MAT. B TOTAL'!$P$11 -> 0 | Y28: 1507.63 | Z28: 3520.09191 | AA28: 5027.72191 | AC28: 5027.72191 | AD28: 1507.63 | AE28: 3520.09191 | AH28: CENTRO-OESTE
B29: 4640.805624 | C29: 16 | E29: VIAPOL LTDA. | F29: VITO ARDITO, 6401 KM 118,5 - JARDIM CAMPO GRANDE - CEP:12282-535 | G29: São Paulo | H29: CACAPAVA - SP | I29: BOM JESUS-PI | J29: =VLOOKUP(G29,OFFSET('ANP ESTADO'!$A$1,MATCH($I$8,'ANP ESTADO'!B:B,0)+MATCH($H$11,OFFSET('ANP ESTADO'!$A$1,MATCH($I$8,'ANP ESTADO'!B:B,0),0,100000,1),0),2,100000,2),2,FALSE) -> 2.475955624 | K29: =VLOOKUP($H$11,OFFSET('ANP REGIÃO'!$A$9,MATCH('Transporte EAI'!$I$8,'ANP REGIÃO'!A:A,0),1,10000,10000),MATCH('Transporte EAI'!AH29,'ANP REGIÃO'!$B$8:$G$8,0),FALSE) -> 2.308211963 | L29: 2475.955624 | M29: 657.89 | N29: 3133.845624 | O29: 2132 | P29: 0 | Q29: 566.34 | S29: 566.34 | T29: 124.31 | U29: 816.31 | V29: 1506.96 | X29: =EVEN(' CONSUMO DE MAT. B TOTAL'!$P$11*2/28)*W29/' CONSUMO DE MAT. B TOTAL'!$P$11 -> 0 | Y29: 1506.96 | Z29: 3133.845624 | AA29: 4640.805624 | AC29: 4640.805624 | AD29: 1506.96 | AE29: 3133.845624 | AH29: SUDESTE
B30: 4322.121963 | C30: 17 | E30: STRATURA ASFALTOS S/A | F30: RUA LUIS DE CAMÕES, 26 - CAMPOS ELÍSEOS - CEP:25225-030 | G30: Rio de Janeiro | H30: DUQUE DE CAXIAS - RJ | I30: =I29 -> BOM JESUS-PI | J30: =VLOOKUP(G30,OFFSET('ANP ESTADO'!$A$1,MATCH($I$8,'ANP ESTADO'!B:B,0)+MATCH($H$11,OFFSET('ANP ESTADO'!$A$1,MATCH($I$8,'ANP ESTADO'!B:B,0),0,100000,1),0),2,100000,2),2,FALSE) -> - | K30: =VLOOKUP($H$11,OFFSET('ANP REGIÃO'!$A$9,MATCH('Transporte EAI'!$I$8,'ANP REGIÃO'!A:A,0),1,10000,10000),MATCH('Transporte EAI'!AH30,'ANP REGIÃO'!$B$8:$G$8,0),FALSE) -> 2.308211963 | L30: 2308.211963 | M30: 613.32 | N30: 2921.531963 | O30: 1974 | P30: 0 | Q30: 526.36 | S30: 526.36 | T30: 115.54 | U30: 758.69 | V30: 1400.59 | X30: =EVEN(' CONSUMO DE MAT. B TOTAL'!$P$11*2/28)*W30/' CONSUMO DE MAT. B TOTAL'!$P$11 -> 0 | Y30: 1400.59 | Z30: 2921.531963 | AA30: 4322.121963 | AC30: 4322.121963 | AD30: 1400.59 | AE30: 2921.531963 | AH30: SUDESTE
B31: 4332.901963 | C31: 18 | E31: PROBITEC - PRODUTOS BETUMINOSOS E TECNOLOGIA DE APLICAÇÃO LTDA. | F31: AVENIDA CANAL DA PAVUNA, 620 - PAVUNA - CEP:21535-630 | G31: Rio de Janeiro | H31: RIO DE JANEIRO - RJ | I31: BOM JESUS-PI | J31: =VLOOKUP(G31,OFFSET('ANP ESTADO'!$A$1,MATCH($I$8,'ANP ESTADO'!B:B,0)+MATCH($H$11,OFFSET('ANP ESTADO'!$A$1,MATCH($I$8,'ANP ESTADO'!B:B,0),0,100000,1),0),2,100000,2),2,FALSE) -> - | K31: =VLOOKUP($H$11,OFFSET('ANP REGIÃO'!$A$9,MATCH('Transporte EAI'!$I$8,'ANP REGIÃO'!A:A,0),1,10000,10000),MATCH('Transporte EAI'!AH31,'ANP REGIÃO'!$B$8:$G$8,0),FALSE) -> 2.308211963 | L31: 2308.211963 | M31: 613.32 | N31: 2921.531963 | O31: 1990 | P31: 0 | Q31: 530.41 | S31: 530.41 | T31: 116.43 | U31: 764.53 | V31: 1411.37 | X31: =EVEN(' CONSUMO DE MAT. B TOTAL'!$P$11*2/28)*W31/' CONSUMO DE MAT. B TOTAL'!$P$11 -> 0 | Y31: 1411.37 | Z31: 2921.531963 | AA31: 4332.901963 | AC31: 4332.901963 | AD31: 1411.37 | AE31: 2921.531963 | AH31: SUDESTE
B32: 4921.11347 | C32: 19 | E32: CASA DO ASFALTO DISTRIBUIDORA, INDÚSTRIA E COMÉRCIO DE ASFALTO LTDA. | F32: BR 376, PARQUE INDUSTRIAL, S/N LOTE 6/7/7-A-3-1 - GL.PATR.MARIALVA - CEP:86990-000 | G32: Paraná | H32: MARIALVA - PR | I32: BOM JESUS-PI | J32: =VLOOKUP(G32,OFFSET('ANP ESTADO'!$A$1,MATCH($I$8,'ANP ESTADO'!B:B,0)+MATCH($H$11,OFFSET('ANP ESTADO'!$A$1,MATCH($I$8,'ANP ESTADO'!B:B,0),0,100000,1),0),2,100000,2),2,FALSE) -> 2.65860347 | K32: =VLOOKUP($H$11,OFFSET('ANP REGIÃO'!$A$9,MATCH('Transporte EAI'!$I$8,'ANP REGIÃO'!A:A,0),1,10000,10000),MATCH('Transporte EAI'!AH32,'ANP REGIÃO'!$B$8:$G$8,0),FALSE) -> 2.684130785 | L32: 2658.60347 | M32: 706.42 | N32: 3365.02347 | O32: 2205 | P32: 0 | Q32: 584.8 | S32: 584.8 | T32: 128.37 | U32: 842.92 | V32: 1556.09 | X32: =EVEN(' CONSUMO DE MAT. B TOTAL'!$P$11*2/28)*W32/' CONSUMO DE MAT. B TOTAL'!$P$11 -> 0 | Y32: 1556.09 | Z32: 3365.02347 | AA32: 4921.11347 | AC32: 4921.11347 | AD32: 1556.09 | AE32: 3365.02347 | AH32: SUL
B33: 4998.53347 | C33: 20 | E33: PETROBRAS DISTRIBUIDORA S.A. | F33: RUA MAQUINISTA ELEODORO JACINTO, 100 - OFICINAS - CEP:84045-170 | G33: Paraná | H33: PONTA GROSSA - PR | I33: BOM JESUS-PI | J33: =VLOOKUP(G33,OFFSET('ANP ESTADO'!$A$1,MATCH($I$8,'ANP ESTADO'!B:B,0)+MATCH($H$11,OFFSET('ANP ESTADO'!$A$1,MATCH($I$8,'ANP ESTADO'!B:B,0),0,100000,1),0),2,100000,2),2,FALSE) -> 2.65860347 | K33: =VLOOKUP($H$11,OFFSET('ANP REGIÃO'!$A$9,MATCH('Transporte EAI'!$I$8,'ANP REGIÃO'!A:A,0),1,10000,10000),MATCH('Transporte EAI'!AH33,'ANP REGIÃO'!$B$8:$G$8,0),FALSE) -> 2.684130785 | L33: 2658.60347 | M33: 706.42 | N33: 3365.02347 | O33: 2320 | P33: 0 | Q33: 613.9 | S33: 613.9 | T33: 134.75 | U33: 884.86 | V33: 1633.51 | X33: =EVEN(' CONSUMO DE MAT. B TOTAL'!$P$11*2/28)*W33/' CONSUMO DE MAT. B TOTAL'!$P$11 -> 0 | Y33: 1633.51 | Z33: 3365.02347 | AA33: 4998.53347 | AC33: 4998.53347 | AD33: 1633.51 | AE33: 3365.02347 | AH33: SUL
D43: Acre
D44: Alagoas
D45: Amapá
D46: Amazonas
D47: Bahia
D48: Ceará
D49: Distrito Federal
D50: Espírito Santo
D51: Goiás
D52: Maranhão
D53: Mato Grosso
D54: Mato Grosso do Sul
D55: Minas Gerais
D56: Pará
D57: Paraíba
D58: Paraná
D59: Pernambuco
D60: Piauí
D61: Rio de Janeiro
D62: Rio Grande do Norte
D63: Rio Grande do Sul
D64: Rondônia
D65: Roraima
D66: Santa Catarina
D67: São Paulo
D68: Sergipe
D69: Tocantins
D73: ASFALTOS DILUÍDOS CM-30
D74: ASFALTOS DILUÍDOS CM-70
D75: ASFALTOS DILUÍDOS CR-250
D76: ASFALTOS DILUÍDOS CR-70
D77: CAP MODIFICADO POR BORRACHA DE PNEU AB22
D78: CAP MODIFICADO POR BORRACHA DE PNEU AB8
D79: CAP MODIFICADO POR POLÍMERO 55-75-E
D80: CAP MODIFICADO POR POLÍMERO 60-85-E
D81: CAP MODIFICADO POR POLÍMERO 65-90-E
D82: CIMENTOS ASFÁLTICOS CAP-150-200
D83: CIMENTOS ASFÁLTICOS CAP-30-45
D84: CIMENTOS ASFÁLTICOS CAP-50-70
D85: CIMENTOS ASFÁLTICOS CAP-85-100
D86: EMULSÃO ASFÁLTICA CATIÔNICA DE RUPTURA CONTROLADA PARA SERVIÇO DE LAMA ASFÁLTICA
D87: EMULSÃO ASFÁLTICA DE RUPTURA LENTA CATIÔNICA PARA SERVIÇO DE LAMA ASFÁLTICA
D88: EMULSÃO ASFÁLTICA DE RUPTURA LENTA DE CARGA NEUTRA PARA SERVIÇO DE LAMA ASFÁLTICA
D89: EMULSÃO ASFÁLTICA PARA SERVIÇO DE IMPRIMAÇÃO
D90: EMULSÕES ASF. MOD. POR POLÍMEROS RC1C-E
D91: EMULSÕES ASF. MOD. POR POLÍMEROS RL1C-E
D92: EMULSÕES ASF. MOD. POR POLÍMEROS RM1C-E
D93: EMULSÕES ASF. MOD. POR POLÍMEROS RR1C-E
D94: EMULSÕES ASF. MOD. POR POLÍMEROS RR2C-E
D95: EMULSÕES ASFÁLTICAS RL-1C
D96: EMULSÕES ASFÁLTICAS RM-1C
D97: EMULSÕES ASFÁLTICAS RM-2C
D98: EMULSÕES ASFÁLTICAS RR-1C
D99: EMULSÕES ASFÁLTICAS RR-2C

Sheet Transporte RR-1C
C3: MEMÓRIA DE CÁLCULO
C8: REAJUSTE | F8: TIPOLOGIA DO MATERIAL | I8: EMULSÕES ASFÁLTICAS RR-1C | M8: IMPOSTOS | N8: COFINS | O8: 0.0065 | P8: 0.0065
G9: ÍNDICE DE PAVIMENTAÇÃO DNIT | H9: 2014-07-01 | I9: ÍNDICE INICIAL | J9: 270.237 | N9: PIS | O9: 0.03 | P9: 0.03 | T9: LEGENDA | AC9: As empresas tributadas pelo Lucro Presumido pagam 0,65% de PIS e 3% de COFINS
H10: ='Transporte Cap 50-70'!H10 -> 2025-08-01 | I10: ÍNDICE FINAL | J10: ='Transporte Cap 50-70'!J10 -> 589.643 | N10: ICMS | O10: 0.18 | P10: 0.18 | Q10: =1-(O10/1) -> 0.82 | R10: =1-(P10/1) -> 0.82 | S10: =1-(Q10/1) -> 0.18 | T10: ENTRADA DE DADOS | AC10: As empresas tributadas pelo Lucro Real pagam 1,65% de PIS e 7,60% de COFINS
G11: Data ANP | H11: ='Transporte Cap 50-70'!H11 -> 2025-07-01
C12: DATA-BASE | D12: PRODUTOS | E12: LOCALIDADES | J12: CUSTO ANP (R$/Kg) | L12: CUSTO ANP | M12: IMPOSTOS DO PRODUTO | N12: CUSTO DO PRODUTO COM IMPOSTOS | O12: DMT's | P12: DMT'S FLUVIAL | Q12: CUSTO DO TRANSPORTE RODOVIA PAVIMENTADA | R12: CUSTO DO TRANSPORTE FLUVIAL | S12: CUSTO DO TRANSPORTE TOTAL | T12: ICMS | U12: ATUALIZAÇÃO DO CUSTO DE TRANSPORTE | V12: CUSTO DO TRANSPORTE RODOVIA PAVIMENTADA COM IMPOSTOS E ATUALIZAÇÃO MONETÁRIA | W12: PEDÁGIO | Y12: TOTAL TRANSPORTE | Z12: AQUISIÇÃO DO PRODUTO | AA12: TOTAL GERAL ( TRANSP + AQUISIÇÃO) | AC12: 1 | AD12: 2 | AE12: 3
C13: =H10 -> 2025-08-01 | E13: REFINARIAS | F13: ENDEREÇO | G13: ESTADO | H13: CIDADE | I13: DESTINO | J13: ESTADO | K13: REGIÃO | L13: R$/t | M13: R$/t | N13: R$/t | O13: KM | P13: KM | Q13: R$/t | R13: R$/t | S13: R$/t | T13: R$/t | U13: R$/t | V13: R$/t | W13: CUSTO | X13: R$/t | Y13: R$/t | Z13: R$/t | AA13: R$/t | AC13: TOTAL GERAL ( TRANSP + AQUISIÇÃO) | AD13: TOTAL TRANSPORTE | AE13: AQUISIÇÃO DO PRODUTO
B14: =AA14 -> 4292.192209 | C14: 1 | D14: =I8 -> EMULSÕES ASFÁLTICAS RR-1C | E14: Refinaria Abreu e Lima | F14: Rodovia PE 60, Km 10 - Ipojuca - PE CEP:55590-000 | G14: Pernambuco | H14: IPOJUCA - PE | I14: ='Transporte Cap 50-70'!I14 -> BOM JESUS-PI | J14: =VLOOKUP(G14,OFFSET('ANP ESTADO'!$A$1,MATCH($I$8,'ANP ESTADO'!B:B,0)+MATCH($H$11,OFFSET('ANP ESTADO'!$A$1,MATCH($I$8,'ANP ESTADO'!B:B,0),0,100000,1),0),2,100000,2),2,FALSE) -> - | K14: =VLOOKUP($H$11,OFFSET('ANP REGIÃO'!$A$9,MATCH('Transporte RR-1C'!$I$8,'ANP REGIÃO'!A:A,0),1,10000,10000),MATCH('Transporte RR-1C'!AH14,'ANP REGIÃO'!$B$8:$G$8,0),FALSE) -> 2.648382209 | L14: =IF(AND(J14="-",K14="-"),"",IF(AND(J14<>0,K14="-"),J14*1000,IF(AND(J14="-",K14<>0),K14*1000,IF(AND(J14<>0,K14<>0),J14*1000,"")))) -> 2648.382209 | M14: =ROUND(((L14/(1-$O$8-$O$9-$O$10+($O$9+$O$8)*$O$10)-L14)),2) -> 703.7 | N14: =L14+M14 -> 3352.082209 | O14: 1290 | P14: ='Transporte EAI'!P14 -> 0 | Q14: =ROUND((26.939+0.253*O14),2) -> 353.31 | S14: =Q14+R14 -> 353.31 | T14: =TRUNC(S14*($O$10/(1-$O$10)),2) -> 77.55 | U14: =TRUNC(IF($J$9="","",(($J$10-$J$9)/$J$9)*(S14+T14)),2) -> 509.25 | V14: =S14+T14+U14 -> 940.11 | W14: ='Transporte EAI'!W14 -> 0 | X14: =EVEN(' CONSUMO DE MAT. B TOTAL'!$P$11*2/28)*W14/' CONSUMO DE MAT. B TOTAL'!$P$11 -> 0 | Y14: =IF(AND(Q14="",T14=""),"",V14+X14) -> 940.11 | Z14: =IF(OR(L14="",M14=""),"",L14+M14) -> 3352.082209 | AA14: =IF(OR(Y14="",Z14=""),"",Y14+Z14) -> 4292.192209 | AC14: =AA14 -> 4292.192209 | AD14: =Y14 -> 940.11 | AE14: =Z14 -> 3352.082209 | AH14: =IF(OR(G14=$D$59,G14=$D$60,G14=$D$62,G14=$D$68,G14=$D$52,G14=$D$48,G14=$D$44,G14=$D$57,G14=$D$47),"NORDESTE",IF(OR(G14=$D$43,G14=$D$45,G14=$D$46,G14=$D$56,G14=$D$64,G14=$D$65,G14=$D$69),"NORTE",IF(OR(G14=$D$49,G14=$D$51,G14=$D$53,G14=$D$54),"CENTRO-OESTE",IF(OR(G14=$D$67,G14=$D$61,G14=$D$55,G14=$D$50),"SUDESTE",IF(OR(G14=$D$66,G14=$D$58,G14=$D$63),"SUL",""))))) -> NORDESTE
B15: =AA15 -> 4346.961063 | C15: 2 | E15: STRATURA ASFALTOS S/A | F15: AVENIDA PRESIDENTE WILSON, 08 - JUNDIAÍ - CEP:75115-100 | G15: Goiás | H15: ANÁPOLIS - GO | I15: =I14 -> BOM JESUS-PI | J15: =VLOOKUP(G15,OFFSET('ANP ESTADO'!$A$1,MATCH($I$8,'ANP ESTADO'!B:B,0)+MATCH($H$11,OFFSET('ANP ESTADO'!$A$1,MATCH($I$8,'ANP ESTADO'!B:B,0),0,100000,1),0),2,100000,2),2,FALSE) -> 2.726231063 | K15: =VLOOKUP($H$11,OFFSET('ANP REGIÃO'!$A$9,MATCH('Transporte RR-1C'!$I$8,'ANP REGIÃO'!A:A,0),1,10000,10000),MATCH('Transporte RR-1C'!AH15,'ANP REGIÃO'!$B$8:$G$8,0),FALSE) -> 2.846437607 | L15: =IF(AND(J15="-",K15="-"),"",IF(AND(J15<>0,K15="-"),J15*1000,IF(AND(J15="-",K15<>0),K15*1000,IF(AND(J15<>0,K15<>0),J15*1000,"")))) -> 2726.231063 | M15: =ROUND(((L15/(1-$O$8-$O$9-$O$10+($O$9+$O$8)*$O$10)-L15)),2) -> 724.39 | N15: =L15+M15 -> 3450.621063 | O15: 1225 | P15: ='Transporte EAI'!P15 -> 0 | Q15: =ROUND((26.939+0.253*O15),2) -> 336.86 | S15: =Q15+R15 -> 336.86 | T15: =TRUNC(S15*($O$10/(1-$O$10)),2) -> 73.94 | U15: =TRUNC(IF($J$9="","",(($J$10-$J$9)/$J$9)*(S15+T15)),2) -> 485.54 | V15: =S15+T15+U15 -> 896.34 | W15: ='Transporte EAI'!W15 -> 0 | X15: =EVEN(' CONSUMO DE MAT. B TOTAL'!$P$11*2/28)*W15/' CONSUMO DE MAT. B TOTAL'!$P$11 -> 0 | Y15: 896.34 | Z15: 3450.621063 | AA15: =IF(OR(Y15="",Z15=""),"",Y15+Z15) -> 4346.961063 | AC15: =AA15 -> 4346.961063 | AD15: =Y15 -> 896.34 | AE15: 3450.621063 | AH15: =IF(OR(G15=$D$59,G15=$D$60,G15=$D$62,G15=$D$68,G15=$D$52,G15=$D$48,G15=$D$44,G15=$D$57,G15=$D$47),"NORDESTE",IF(OR(G15=$D$43,G15=$D$45,G15=$D$46,G15=$D$56,G15=$D$64,G15=$D$65,G15=$D$69),"NORTE",IF(OR(G15=$D$49,G15=$D$51,G15=$D$53,G15=$D$54),"CENTRO-OESTE",IF(OR(G15=$D$67,G15=$D$61,G15=$D$55,G15=$D$50),"SUDESTE",IF(OR(G15=$D$66,G15=$D$58,G15=$D$63),"SUL",""))))) -> CENTRO-OESTE
B16: 4392.081063 | C16: 3 | E16: DISTRIBUIDORA BRASILEIRA DE ASFALTO SA - DISBRAL | F16: VIA PRIMARIA 8, S/N QD-18, MODS. 24/47 - DAIAG - CEP:74980-970 | G16: Goiás | H16: APARECIDA DE GOIANIA - GO | I16: =I15 -> BOM JESUS-PI | J16: =VLOOKUP(G16,OFFSET('ANP ESTADO'!$A$1,MATCH($I$8,'ANP ESTADO'!B:B,0)+MATCH($H$11,OFFSET('ANP ESTADO'!$A$1,MATCH($I$8,'ANP ESTADO'!B:B,0),0,100000,1),0),2,100000,2),2,FALSE) -> 2.726231063 | K16: =VLOOKUP($H$11,OFFSET('ANP REGIÃO'!$A$9,MATCH('Transporte RR-1C'!$I$8,'ANP REGIÃO'!A:A,0),1,10000,10000),MATCH('Transporte RR-1C'!AH16,'ANP REGIÃO'!$B$8:$G$8,0),FALSE) -> 2.846437607 | L16: 2726.231063 | M16: 724.39 | N16: 3450.621063 | O16: 1292 | P16: ='Transporte EAI'!P16 -> 0 | Q16: 353.82 | S16: 353.82 | T16: 77.66 | U16: 509.98 | V16: 941.46 | W16: ='Transporte EAI'!W16 -> 0 | X16: =EVEN(' CONSUMO DE MAT. B TOTAL'!$P$11*2/28)*W16/' CONSUMO DE MAT. B TOTAL'!$P$11 -> 0 | Y16: 941.46 | Z16: 3450.621063 | AA16: 4392.081063 | AC16: 4392.081063 | AD16: 941.46 | AE16: 3450.621063 | AH16: CENTRO-OESTE
A17: 2403 | B17: 4396.101063 | C17: 4 | E17: INDÚSTRIA NACIONAL DE ASFALTOS LTDA. | F17: VIA PRIMEIRA E SEGUNDA 3, S/N.º LOTES 01 A 10 - DISTRITO AGROINDUSTRIAL - CEP:75370-000 | G17: Goiás | H17: GOIANIRA - GO | I17: BOM JESUS-PI | J17: =VLOOKUP(G17,OFFSET('ANP ESTADO'!$A$1,MATCH($I$8,'ANP ESTADO'!B:B,0)+MATCH($H$11,OFFSET('ANP ESTADO'!$A$1,MATCH($I$8,'ANP ESTADO'!B:B,0),0,100000,1),0),2,100000,2),2,FALSE) -> 2.726231063 | K17: =VLOOKUP($H$11,OFFSET('ANP REGIÃO'!$A$9,MATCH('Transporte RR-1C'!$I$8,'ANP REGIÃO'!A:A,0),1,10000,10000),MATCH('Transporte RR-1C'!AH17,'ANP REGIÃO'!$B$8:$G$8,0),FALSE) -> 2.846437607 | L17: 2726.231063 | M17: 724.39 | N17: 3450.621063 | O17: 1298 | P17: ='Transporte EAI'!P17 -> 0 | Q17: 355.33 | S17: 355.33 | T17: 77.99 | U17: 512.16 | V17: 945.48 | W17: ='Transporte EAI'!W17 -> 0 | X17: =EVEN(' CONSUMO DE MAT. B TOTAL'!$P$11*2/28)*W17/' CONSUMO DE MAT. B TOTAL'!$P$11 -> 0 | Y17: 945.48 | Z17: 3450.621063 | AA17: 4396.101063 | AC17: 4396.101063 | AD17: 945.48 | AE17: 3450.621063 | AH17: CENTRO-OESTE
B18: 4407.097075 | C18: 5 | E18: STRATURA ASFALTOS S/A | F18: RUA VICTOR RODRIGUES RESENDE, 333 - DISTRITO IND. DE UBERLÂNDIA - CEP:38405-440 | G18: Minas Gerais | H18: UBERLANDIA - MG | I18: BOM JESUS-PI | J18: =VLOOKUP(G18,OFFSET('ANP ESTADO'!$A$1,MATCH($I$8,'ANP ESTADO'!B:B,0)+MATCH($H$11,OFFSET('ANP ESTADO'!$A$1,MATCH($I$8,'ANP ESTADO'!B:B,0),0,100000,1),0),2,100000,2),2,FALSE) -> 2.645017075 | K18: =VLOOKUP($H$11,OFFSET('ANP REGIÃO'!$A$9,MATCH('Transporte RR-1C'!$I$8,'ANP REGIÃO'!A:A,0),1,10000,10000),MATCH('Transporte RR-1C'!AH18,'ANP REGIÃO'!$B$8:$G$8,0),FALSE) -> 2.89412797 | L18: 2645.017075 | M18: 702.81 | N18: 3347.827075 | O18: 1467 | P18: ='Transporte EAI'!P18 -> 0 | Q18: 398.09 | S18: 398.09 | T18: 87.38 | U18: 573.8 | V18: 1059.27 | W18: ='Transporte EAI'!W18 -> 0 | X18: =EVEN(' CONSUMO DE MAT. B TOTAL'!$P$11*2/28)*W18/' CONSUMO DE MAT. B TOTAL'!$P$11 -> 0 | Y18: 1059.27 | Z18: 3347.827075 | AA18: 4407.097075 | AC18: 4407.097075 | AD18: 1059.27 | AE18: 3347.827075 | AH18: SUDESTE
B19: 4407.097075 | C19: 6 | E19: BETUNEL INDÚSTRIA E COMÉRCIO LTDA. | F19: RUA VICTOR RODRIGUES DE REZENDE, 185 - DISTRITO INDUSTRIAL - CEP:38402-334 | G19: Minas Gerais | H19: UBERLANDIA - MG | I19: BOM JESUS-PI | J19: =VLOOKUP(G19,OFFSET('ANP ESTADO'!$A$1,MATCH($I$8,'ANP ESTADO'!B:B,0)+MATCH($H$11,OFFSET('ANP ESTADO'!$A$1,MATCH($I$8,'ANP ESTADO'!B:B,0),0,100000,1),0),2,100000,2),2,FALSE) -> 2.645017075 | K19: =VLOOKUP($H$11,OFFSET('ANP REGIÃO'!$A$9,MATCH('Transporte RR-1C'!$I$8,'ANP REGIÃO'!A:A,0),1,10000,10000),MATCH('Transporte RR-1C'!AH19,'ANP REGIÃO'!$B$8:$G$8,0),FALSE) -> 2.89412797 | L19: 2645.017075 | M19: 702.81 | N19: 3347.827075 | O19: 1467 | P19: ='Transporte EAI'!P19 -> 0 | Q19: 398.09 | S19: 398.09 | T19: 87.38 | U19: 573.8 | V19: 1059.27 | W19: ='Transporte EAI'!W19 -> 0 | X19: =EVEN(' CONSUMO DE MAT. B TOTAL'!$P$11*2/28)*W19/' CONSUMO DE MAT. B TOTAL'!$P$11 -> 0 | Y19: 1059.27 | Z19: 3347.827075 | AA19: 4407.097075 | AC19: 4407.097075 | AD19: 1059.27 | AE19: 3347.827075 | AH19: SUDESTE
B20: 4272.662209 | C20: 7 | E20: Refinaria Potiguar Clara Camarão | F20: Rodovia RN 221, KM 25 - Guamaré - RN CEP:59598-000 | G20: Rio Grande do Norte | H20: GUAMARÉ - RN | I20: BOM JESUS-PI | J20: =VLOOKUP(G20,OFFSET('ANP ESTADO'!$A$1,MATCH($I$8,'ANP ESTADO'!B:B,0)+MATCH($H$11,OFFSET('ANP ESTADO'!$A$1,MATCH($I$8,'ANP ESTADO'!B:B,0),0,100000,1),0),2,100000,2),2,FALSE) -> - | K20: =VLOOKUP($H$11,OFFSET('ANP REGIÃO'!$A$9,MATCH('Transporte RR-1C'!$I$8,'ANP REGIÃO'!A:A,0),1,10000,10000),MATCH('Transporte RR-1C'!AH20,'ANP REGIÃO'!$B$8:$G$8,0),FALSE) -> 2.648382209 | L20: =IF(AND(J20="-",K20="-"),"",IF(AND(J20<>0,K20="-"),J20*1000,IF(AND(J20="-",K20<>0),K20*1000,IF(AND(J20<>0,K20<>0),J20*1000,"")))) -> 2648.382209 | M20: 703.7 | N20: 3352.082209 | O20: 1261 | P20: ='Transporte EAI'!P20 -> 0 | Q20: 345.97 | S20: 345.97 | T20: 75.94 | U20: 498.67 | V20: 920.58 | W20: ='Transporte EAI'!W20 -> 0 | X20: =EVEN(' CONSUMO DE MAT. B TOTAL'!$P$11*2/28)*W20/' CONSUMO DE MAT. B TOTAL'!$P$11 -> 0 | Y20: 920.58 | Z20: 3352.082209 | AA20: 4272.662209 | AH20: NORDESTE
B21: 4479.797075 | C21: 8 | E21: DISTRIBUIDORA BRASILEIRA DE ASFALTO SA - DISBRAL | F21: SÃO JUDAS TADEU, 288 - DISTRITO INDUSTRIAL - CEP:32450-000 | G21: Minas Gerais | H21: SARZEDO - MG | I21: BOM JESUS-PI | J21: =VLOOKUP(G21,OFFSET('ANP ESTADO'!$A$1,MATCH($I$8,'ANP ESTADO'!B:B,0)+MATCH($H$11,OFFSET('ANP ESTADO'!$A$1,MATCH($I$8,'ANP ESTADO'!B:B,0),0,100000,1),0),2,100000,2),2,FALSE) -> 2.645017075 | K21: =VLOOKUP($H$11,OFFSET('ANP REGIÃO'!$A$9,MATCH('Transporte RR-1C'!$I$8,'ANP REGIÃO'!A:A,0),1,10000,10000),MATCH('Transporte RR-1C'!AH21,'ANP REGIÃO'!$B$8:$G$8,0),FALSE) -> 2.89412797 | L21: 2645.017075 | M21: 702.81 | N21: 3347.827075 | O21: 1575 | P21: ='Transporte EAI'!P21 -> 0 | Q21: 425.41 | S21: 425.41 | T21: 93.38 | U21: 613.18 | V21: 1131.97 | W21: ='Transporte EAI'!W21 -> 0 | X21: =EVEN(' CONSUMO DE MAT. B TOTAL'!$P$11*2/28)*W21/' CONSUMO DE MAT. B TOTAL'!$P$11 -> 0 | Y21: 1131.97 | Z21: 3347.827075 | AA21: 4479.797075 | AH21: SUDESTE
B22: 4695.727047 | C22: 9 | E22: 'INDÚSTRIA NACIONAL DE ASFALTOS LTDA. | F22: INDÚSTRIA NACIONAL DE ASFALTOS LTDA - CEP:77053-080 | G22: Tocantins | H22: PALMAS - TO | I22: BOM JESUS-PI | J22: =VLOOKUP(G22,OFFSET('ANP ESTADO'!$A$1,MATCH($I$8,'ANP ESTADO'!B:B,0)+MATCH($H$11,OFFSET('ANP ESTADO'!$A$1,MATCH($I$8,'ANP ESTADO'!B:B,0),0,100000,1),0),2,100000,2),2,FALSE) -> 3.243247047 | K22: =VLOOKUP($H$11,OFFSET('ANP REGIÃO'!$A$9,MATCH('Transporte RR-1C'!$I$8,'ANP REGIÃO'!A:A,0),1,10000,10000),MATCH('Transporte RR-1C'!AH22,'ANP REGIÃO'!$B$8:$G$8,0),FALSE) -> 3.739354755 | L22: 3243.247047 | M22: 861.77 | N22: 4105.017047 | O22: 771 | P22: ='Transporte EAI'!P22 -> 0 | Q22: 222 | S22: 222 | T22: 48.73 | U22: 319.98 | V22: 590.71 | W22: ='Transporte EAI'!W22 -> 0 | X22: =EVEN(' CONSUMO DE MAT. B TOTAL'!$P$11*2/28)*W22/' CONSUMO DE MAT. B TOTAL'!$P$11 -> 0 | Y22: 590.71 | Z22: 4105.017047 | AA22: 4695.727047 | AH22: NORTE
B23: 5119.489477 | C23: 10 | E23: 'NTA - NOVAS TÉCNICAS DE ASFALTOS S/A | F23: RUA SOFIA ATAURI FADIN, 150 SALA A - B. SANTA TEREZINHA - CEP:13140-000 | G23: São Paulo | H23: PAULINIA - SP | I23: BOM JESUS-PI | J23: =VLOOKUP(G23,OFFSET('ANP ESTADO'!$A$1,MATCH($I$8,'ANP ESTADO'!B:B,0)+MATCH($H$11,OFFSET('ANP ESTADO'!$A$1,MATCH($I$8,'ANP ESTADO'!B:B,0),0,100000,1),0),2,100000,2),2,FALSE) -> 2.951489477 | K23: =VLOOKUP($H$11,OFFSET('ANP REGIÃO'!$A$9,MATCH('Transporte RR-1C'!$I$8,'ANP REGIÃO'!A:A,0),1,10000,10000),MATCH('Transporte RR-1C'!AH23,'ANP REGIÃO'!$B$8:$G$8,0),FALSE) -> 2.89412797 | L23: 2951.489477 | M23: 784.24 | N23: 3735.729477 | O23: 1949 | P23: ='Transporte EAI'!P23 -> 0 | Q23: 520.04 | S23: 520.04 | T23: 114.15 | U23: 749.57 | V23: 1383.76 | W23: ='Transporte EAI'!W23 -> 0 | X23: =EVEN(' CONSUMO DE MAT. B TOTAL'!$P$11*2/28)*W23/' CONSUMO DE MAT. B TOTAL'!$P$11 -> 0 | Y23: 1383.76 | Z23: 3735.729477 | AA23: 5119.489477 | AC23: 5119.489477 | AD23: 1383.76 | AE23: 3735.729477 | AH23: SUDESTE
B24: 5170.639477 | C24: 11 | E24: COMPANHIA BRASILEIRA DE ASFALTOS DA AMAZÔNIA - IMPORTAÇÃO E EXPORTAÇÃO | F24: Avenida Doutor Olindo Dártora 2451, Galpão 02, Morro Grande - CEP:07726-555 | G24: São Paulo | H24: CAIEIRAS - SP | I24: BOM JESUS-PI | J24: =VLOOKUP(G24,OFFSET('ANP ESTADO'!$A$1,MATCH($I$8,'ANP ESTADO'!B:B,0)+MATCH($H$11,OFFSET('ANP ESTADO'!$A$1,MATCH($I$8,'ANP ESTADO'!B:B,0),0,100000,1),0),2,100000,2),2,FALSE) -> 2.951489477 | K24: =VLOOKUP($H$11,OFFSET('ANP REGIÃO'!$A$9,MATCH('Transporte RR-1C'!$I$8,'ANP REGIÃO'!A:A,0),1,10000,10000),MATCH('Transporte RR-1C'!AH24,'ANP REGIÃO'!$B$8:$G$8,0),FALSE) -> 2.89412797 | L24: 2951.489477 | M24: 784.24 | N24: 3735.729477 | O24: 2025 | P24: ='Transporte EAI'!P24 -> 0 | Q24: 539.26 | S24: 539.26 | T24: 118.37 | U24: 777.28 | V24: 1434.91 | W24: ='Transporte EAI'!W24 -> 0 | X24: =EVEN(' CONSUMO DE MAT. B TOTAL'!$P$11*2/28)*W24/' CONSUMO DE MAT. B TOTAL'!$P$11 -> 0 | Y24: 1434.91 | Z24: 3735.729477 | AA24: 5170.639477 | AH24: SUDESTE
B25: 4088.882209 | C25: 12 | E25: Refinaria Landulpho Alves (RLAM) | F25: Rodovia BA 523, KM 4 – Mataripe São Francisco do Conde - BA CEP:43900-000 | G25: Bahia | H25: SÃO FRANCISCO DO CONDE - BA | I25: BOM JESUS-PI | J25: =VLOOKUP(G25,OFFSET('ANP ESTADO'!$A$1,MATCH($I$8,'ANP ESTADO'!B:B,0)+MATCH($H$11,OFFSET('ANP ESTADO'!$A$1,MATCH($I$8,'ANP ESTADO'!B:B,0),0,100000,1),0),2,100000,2),2,FALSE) -> - | K25: =VLOOKUP($H$11,OFFSET('ANP REGIÃO'!$A$9,MATCH('Transporte RR-1C'!$I$8,'ANP REGIÃO'!A:A,0),1,10000,10000),MATCH('Transporte RR-1C'!AH25,'ANP REGIÃO'!$B$8:$G$8,0),FALSE) -> 2.648382209 | L25: 2648.382209 | M25: 703.7 | N25: 3352.082209 | O25: 988 | P25: ='Transporte EAI'!P25 -> 0 | Q25: 276.9 | S25: 276.9 | T25: 60.78 | U25: 399.12 | V25: 736.8 | W25: ='Transporte EAI'!W25 -> 0 | X25: =EVEN(' CONSUMO DE MAT. B TOTAL'!$P$11*2/28)*W25/' CONSUMO DE MAT. B TOTAL'!$P$11 -> 0 | Y25: 736.8 | Z25: 3352.082209 | AA25: 4088.882209 | AH25: NORDESTE
B26: 3898.051131 | C26: 13 | E26: Refinaria Lubrificantes e Derivados do Nordeste (Lubnor) | F26: Av. Leite Barbosa, s/nº - Mucuripe Fortaleza - Ceará CEP:60180-420 | G26: Ceará | H26: FORTALEZA - CE | I26: BOM JESUS-PI | J26: =VLOOKUP(G26,OFFSET('ANP ESTADO'!$A$1,MATCH($I$8,'ANP ESTADO'!B:B,0)+MATCH($H$11,OFFSET('ANP ESTADO'!$A$1,MATCH($I$8,'ANP ESTADO'!B:B,0),0,100000,1),0),2,100000,2),2,FALSE) -> 2.469941131 | K26: =VLOOKUP($H$11,OFFSET('ANP REGIÃO'!$A$9,MATCH('Transporte RR-1C'!$I$8,'ANP REGIÃO'!A:A,0),1,10000,10000),MATCH('Transporte RR-1C'!AH26,'ANP REGIÃO'!$B$8:$G$8,0),FALSE) -> 2.648382209 | L26: 2469.941131 | M26: 656.29 | N26: 3126.231131 | O26: 1040 | P26: ='Transporte EAI'!P26 -> 0 | Q26: 290.06 | S26: 290.06 | T26: 63.67 | U26: 418.09 | V26: 771.82 | W26: ='Transporte EAI'!W26 -> 0 | X26: =EVEN(' CONSUMO DE MAT. B TOTAL'!$P$11*2/28)*W26/' CONSUMO DE MAT. B TOTAL'!$P$11 -> 0 | Y26: 771.82 | Z26: 3126.231131 | AA26: 3898.051131 | AH26: NORDESTE
B27: 6461.965751 | C27: 14 | E27: BETUNEL INDÚSTRIA E COMÉRCIO LTDA. | F27: RUA N ESQUINA COM RUA X, S/N QD. IND. 7 L 01/08 - DIST. IND. - CEP:78015-285 | G27: Mato Grosso | H27: CUIABA - MT | I27: BOM JESUS-PI | J27: =VLOOKUP(G27,OFFSET('ANP ESTADO'!$A$1,MATCH($I$8,'ANP ESTADO'!B:B,0)+MATCH($H$11,OFFSET('ANP ESTADO'!$A$1,MATCH($I$8,'ANP ESTADO'!B:B,0),0,100000,1),0),2,100000,2),2,FALSE) -> 3.917475751 | K27: =VLOOKUP($H$11,OFFSET('ANP REGIÃO'!$A$9,MATCH('Transporte RR-1C'!$I$8,'ANP REGIÃO'!A:A,0),1,10000,10000),MATCH('Transporte RR-1C'!AH27,'ANP REGIÃO'!$B$8:$G$8,0),FALSE) -> 2.846437607 | L27: 3917.475751 | M27: 1040.91 | N27: 4958.385751 | O27: 2127 | P27: ='Transporte EAI'!P27 -> 0 | Q27: 565.07 | S27: 565.07 | T27: 124.03 | U27: 814.48 | V27: 1503.58 | W27: ='Transporte EAI'!W27 -> 0 | X27: =EVEN(' CONSUMO DE MAT. B TOTAL'!$P$11*2/28)*W27/' CONSUMO DE MAT. B TOTAL'!$P$11 -> 0 | Y27: 1503.58 | Z27: 4958.385751 | AA27: 6461.965751 | AH27: CENTRO-OESTE
B28: 6466.015751 | C28: 15 | E28: EMAM - EMULSÕES E TRANSPORTES LTDA. | F28: RODOVIA DOS IMIGRANTES, S/Nº KM 8,6 - - CEP:60035-351 | G28: Mato Grosso | H28: VARZEA GRANDE - MT | I28: BOM JESUS-PI | J28: =VLOOKUP(G28,OFFSET('ANP ESTADO'!$A$1,MATCH($I$8,'ANP ESTADO'!B:B,0)+MATCH($H$11,OFFSET('ANP ESTADO'!$A$1,MATCH($I$8,'ANP ESTADO'!B:B,0),0,100000,1),0),2,100000,2),2,FALSE) -> 3.917475751 | K28: =VLOOKUP($H$11,OFFSET('ANP REGIÃO'!$A$9,MATCH('Transporte RR-1C'!$I$8,'ANP REGIÃO'!A:A,0),1,10000,10000),MATCH('Transporte RR-1C'!AH28,'ANP REGIÃO'!$B$8:$G$8,0),FALSE) -> 2.846437607 | L28: 3917.475751 | M28: 1040.91 | N28: 4958.385751 | O28: 2133 | P28: ='Transporte EAI'!P28 -> 0 | Q28: 566.59 | S28: 566.59 | T28: 124.37 | U28: 816.67 | V28: 1507.63 | W28: ='Transporte EAI'!W28 -> 0 | X28: =EVEN(' CONSUMO DE MAT. B TOTAL'!$P$11*2/28)*W28/' CONSUMO DE MAT. B TOTAL'!$P$11 -> 0 | Y28: 1507.63 | Z28: 4958.385751 | AA28: 6466.015751 | AC28: 6466.015751 | AD28: 1507.63 | AE28: 4958.385751 | AH28: CENTRO-OESTE
B29: 5242.689477 | C29: 16 | E29: VIAPOL LTDA. | F29: VITO ARDITO, 6401 KM 118,5 - JARDIM CAMPO GRANDE - CEP:12282-535 | G29: São Paulo | H29: CACAPAVA - SP | I29: BOM JESUS-PI | J29: =VLOOKUP(G29,OFFSET('ANP ESTADO'!$A$1,MATCH($I$8,'ANP ESTADO'!B:B,0)+MATCH($H$11,OFFSET('ANP ESTADO'!$A$1,MATCH($I$8,'ANP ESTADO'!B:B,0),0,100000,1),0),2,100000,2),2,FALSE) -> 2.951489477 | K29: =VLOOKUP($H$11,OFFSET('ANP REGIÃO'!$A$9,MATCH('Transporte RR-1C'!$I$8,'ANP REGIÃO'!A:A,0),1,10000,10000),MATCH('Transporte RR-1C'!AH29,'ANP REGIÃO'!$B$8:$G$8,0),FALSE) -> 2.89412797 | L29: 2951.489477 | M29: 784.24 | N29: 3735.729477 | O29: 2132 | P29: ='Transporte EAI'!P29 -> 0 | Q29: 566.34 | S29: 566.34 | T29: 124.31 | U29: 816.31 | V29: 1506.96 | W29: ='Transporte EAI'!W29 -> 0 | X29: =EVEN(' CONSUMO DE MAT. B TOTAL'!$P$11*2/28)*W29/' CONSUMO DE MAT. B TOTAL'!$P$11 -> 0 | Y29: 1506.96 | Z29: 3735.729477 | AA29: 5242.689477 | AC29: 5242.689477 | AD29: 1506.96 | AE29: 3735.729477 | AH29: SUDESTE
B30: 5063.71797 | C30: 17 | E30: STRATURA ASFALTOS S/A | F30: RUA LUIS DE CAMÕES, 26 - CAMPOS ELÍSEOS - CEP:25225-030 | G30: Rio de Janeiro | H30: DUQUE DE CAXIAS - RJ | I30: BOM JESUS-PI | J30: =VLOOKUP(G30,OFFSET('ANP ESTADO'!$A$1,MATCH($I$8,'ANP ESTADO'!B:B,0)+MATCH($H$11,OFFSET('ANP ESTADO'!$A$1,MATCH($I$8,'ANP ESTADO'!B:B,0),0,100000,1),0),2,100000,2),2,FALSE) -> - | K30: =VLOOKUP($H$11,OFFSET('ANP REGIÃO'!$A$9,MATCH('Transporte RR-1C'!$I$8,'ANP REGIÃO'!A:A,0),1,10000,10000),MATCH('Transporte RR-1C'!AH30,'ANP REGIÃO'!$B$8:$G$8,0),FALSE) -> 2.89412797 | L30: 2894.12797 | M30: 769 | N30: 3663.12797 | O30: 1974 | P30: ='Transporte EAI'!P30 -> 0 | Q30: 526.36 | S30: 526.36 | T30: 115.54 | U30: 758.69 | V30: 1400.59 | W30: ='Transporte EAI'!W30 -> 0 | X30: =EVEN(' CONSUMO DE MAT. B TOTAL'!$P$11*2/28)*W30/' CONSUMO DE MAT. B TOTAL'!$P$11 -> 0 | Y30: 1400.59 | Z30: 3663.12797 | AA30: 5063.71797 | AC30: 5063.71797 | AD30: 1400.59 | AE30: 3663.12797 | AH30: SUDESTE
B31: 5074.49797 | C31: 18 | E31: PROBITEC - PRODUTOS BETUMINOSOS E TECNOLOGIA DE APLICAÇÃO LTDA. | F31: AVENIDA CANAL DA PAVUNA, 620 - PAVUNA - CEP:21535-630 | G31: Rio de Janeiro | H31: RIO DE JANEIRO - RJ | I31: BOM JESUS-PI | J31: =VLOOKUP(G31,OFFSET('ANP ESTADO'!$A$1,MATCH($I$8,'ANP ESTADO'!B:B,0)+MATCH($H$11,OFFSET('ANP ESTADO'!$A$1,MATCH($I$8,'ANP ESTADO'!B:B,0),0,100000,1),0),2,100000,2),2,FALSE) -> - | K31: =VLOOKUP($H$11,OFFSET('ANP REGIÃO'!$A$9,MATCH('Transporte RR-1C'!$I$8,'ANP REGIÃO'!A:A,0),1,10000,10000),MATCH('Transporte RR-1C'!AH31,'ANP REGIÃO'!$B$8:$G$8,0),FALSE) -> 2.89412797 | L31: 2894.12797 | M31: 769 | N31: 3663.12797 | O31: 1990 | P31: ='Transporte EAI'!P31 -> 0 | Q31: 530.41 | S31: 530.41 | T31: 116.43 | U31: 764.53 | V31: 1411.37 | W31: ='Transporte EAI'!W31 -> 0 | X31: =EVEN(' CONSUMO DE MAT. B TOTAL'!$P$11*2/28)*W31/' CONSUMO DE MAT. B TOTAL'!$P$11 -> 0 | Y31: 1411.37 | Z31: 3663.12797 | AA31: 5074.49797 | AC31: 5074.49797 | AD31: 1411.37 | AE31: 3663.12797 | AH31: SUDESTE
B32: 4997.919787 | C32: 19 | E32: CASA DO ASFALTO DISTRIBUIDORA, INDÚSTRIA E COMÉRCIO DE ASFALTO LTDA. | F32: BR 376, PARQUE INDUSTRIAL, S/N LOTE 6/7/7-A-3-1 - GL.PATR.MARIALVA - CEP:86990-000 | G32: Paraná | H32: MARIALVA - PR | I32: BOM JESUS-PI | J32: =VLOOKUP(G32,OFFSET('ANP ESTADO'!$A$1,MATCH($I$8,'ANP ESTADO'!B:B,0)+MATCH($H$11,OFFSET('ANP ESTADO'!$A$1,MATCH($I$8,'ANP ESTADO'!B:B,0),0,100000,1),0),2,100000,2),2,FALSE) -> 2.719289787 | K32: =VLOOKUP($H$11,OFFSET('ANP REGIÃO'!$A$9,MATCH('Transporte RR-1C'!$I$8,'ANP REGIÃO'!A:A,0),1,10000,10000),MATCH('Transporte RR-1C'!AH32,'ANP REGIÃO'!$B$8:$G$8,0),FALSE) -> 2.740695116 | L32: 2719.289787 | M32: 722.54 | N32: 3441.829787 | O32: 2205 | P32: ='Transporte EAI'!P32 -> 0 | Q32: 584.8 | S32: 584.8 | T32: 128.37 | U32: 842.92 | V32: 1556.09 | W32: ='Transporte EAI'!W32 -> 0 | X32: =EVEN(' CONSUMO DE MAT. B TOTAL'!$P$11*2/28)*W32/' CONSUMO DE MAT. B TOTAL'!$P$11 -> 0 | Y32: 1556.09 | Z32: 3441.829787 | AA32: 4997.919787 | AC32: 4997.919787 | AD32: 1556.09 | AE32: 3441.829787 | AH32: SUL
B33: 5075.339787 | C33: 20 | E33: PETROBRAS DISTRIBUIDORA S.A. | F33: RUA MAQUINISTA ELEODORO JACINTO, 100 - OFICINAS - CEP:84045-170 | G33: Paraná | H33: PONTA GROSSA - PR | I33: BOM JESUS-PI | J33: =VLOOKUP(G33,OFFSET('ANP ESTADO'!$A$1,MATCH($I$8,'ANP ESTADO'!B:B,0)+MATCH($H$11,OFFSET('ANP ESTADO'!$A$1,MATCH($I$8,'ANP ESTADO'!B:B,0),0,100000,1),0),2,100000,2),2,FALSE) -> 2.719289787 | K33: =VLOOKUP($H$11,OFFSET('ANP REGIÃO'!$A$9,MATCH('Transporte RR-1C'!$I$8,'ANP REGIÃO'!A:A,0),1,10000,10000),MATCH('Transporte RR-1C'!AH33,'ANP REGIÃO'!$B$8:$G$8,0),FALSE) -> 2.740695116 | L33: 2719.289787 | M33: 722.54 | N33: 3441.829787 | O33: 2320 | P33: ='Transporte EAI'!P33 -> 0 | Q33: 613.9 | S33: 613.9 | T33: 134.75 | U33: 884.86 | V33: 1633.51 | W33: ='Transporte EAI'!W33 -> 0 | X33: =EVEN(' CONSUMO DE MAT. B TOTAL'!$P$11*2/28)*W33/' CONSUMO DE MAT. B TOTAL'!$P$11 -> 0 | Y33: 1633.51 | Z33: 3441.829787 | AA33: 5075.339787 | AC33: 5075.339787 | AD33: 1633.51 | AE33: 3441.829787 | AH33: SUL
D43: Acre
D44: Alagoas
D45: Amapá
D46: Amazonas
D47: Bahia
D48: Ceará
D49: Distrito Federal
D50: Espírito Santo
D51: Goiás
D52: Maranhão
D53: Mato Grosso
D54: Mato Grosso do Sul
D55: Minas Gerais
D56: Pará
D57: Paraíba
D58: Paraná
D59: Pernambuco
D60: Piauí
D61: Rio de Janeiro
D62: Rio Grande do Norte
D63: Rio Grande do Sul
D64: Rondônia
D65: Roraima
D66: Santa Catarina
D67: São Paulo
D68: Sergipe
D69: Tocantins
D73: ASFALTOS DILUÍDOS CM-30
D74: ASFALTOS DILUÍDOS CM-70
D75: ASFALTOS DILUÍDOS CR-250
D76: ASFALTOS DILUÍDOS CR-70
D77: CAP MODIFICADO POR BORRACHA DE PNEU AB22
D78: CAP MODIFICADO POR BORRACHA DE PNEU AB8
D79: CAP MODIFICADO POR POLÍMERO 55-75-E
D80: CAP MODIFICADO POR POLÍMERO 60-85-E
D81: CAP MODIFICADO POR POLÍMERO 65-90-E
D82: CIMENTOS ASFÁLTICOS CAP-150-200
D83: CIMENTOS ASFÁLTICOS CAP-30-45
D84: CIMENTOS ASFÁLTICOS CAP-50-70
D85: CIMENTOS ASFÁLTICOS CAP-85-100
D86: EMULSÃO ASFÁLTICA CATIÔNICA DE RUPTURA CONTROLADA PARA SERVIÇO DE LAMA ASFÁLTICA
D87: EMULSÃO ASFÁLTICA DE RUPTURA LENTA CATIÔNICA PARA SERVIÇO DE LAMA ASFÁLTICA
D88: EMULSÃO ASFÁLTICA DE RUPTURA LENTA DE CARGA NEUTRA PARA SERVIÇO DE LAMA ASFÁLTICA
D89: EMULSÃO ASFÁLTICA PARA SERVIÇO DE IMPRIMAÇÃO
D90: EMULSÕES ASF. MOD. POR POLÍMEROS RC1C-E
D91: EMULSÕES ASF. MOD. POR POLÍMEROS RL1C-E
D92: EMULSÕES ASF. MOD. POR POLÍMEROS RM1C-E
D93: EMULSÕES ASF. MOD. POR POLÍMEROS RR1C-E
D94: EMULSÕES ASF. MOD. POR POLÍMEROS RR2C-E
D95: EMULSÕES ASFÁLTICAS RL-1C
D96: EMULSÕES ASFÁLTICAS RM-1C
D97: EMULSÕES ASFÁLTICAS RM-2C
D98: EMULSÕES ASFÁLTICAS RR-1C
D99: EMULSÕES ASFÁLTICAS RR-2C

Sheet RESUMO_Transp
B11: ÍNDICE DE PAVIMENTAÇÃO DNIT | E11: TIPOLOGIA DO MATERIAL | G11: LIGANTE BETUMINOSO | K11: IMPOSTOS | L11: COFINS | M11: ='Transporte Cap 50-70'!O8 -> 0.0065 | N11: ='Transporte Cap 50-70'!P8 -> 0.0065
C12: DATA INICIAL | F12: 2014-07-01 | G12: ÍNDICE INICIAL | H12: ='Transporte Cap 50-70'!J9 -> 270.237 | L12: PIS | M12: ='Transporte Cap 50-70'!O9 -> 0.03 | N12: ='Transporte Cap 50-70'!P9 -> 0.03 | P12: LEGENDA
C13: DATA FINAL | F13: ='Transporte RR-1C'!H11 -> 2025-07-01 | G13: ÍNDICE FINAL | H13: ='Transporte Cap 50-70'!J10 -> 589.643 | L13: ICMS | M13: ='Transporte Cap 50-70'!O10 -> 0.18 | N13: ='Transporte Cap 50-70'!P10 -> 0.18 | P13: ENTRADA DE DADOS
B15: DATA-BASE | C15: PRODUTOS | D15: LOCALIDADES | H15: CUSTO ANP (R$/Kg) | J15: CUSTO ANP | K15: IMPOSTOS DO PRODUTO | L15: CUSTO DO PRODUTO COM IMPOSTOS | M15: DMT's | N15: DMT's | O15: CUSTO DO TRANSPORTE TOTAL | P15: ICMS | Q15: ATUALIZAÇÃO DO CUSTO DE TRANSPORTE | R15: CUSTO DO TRANSPORTE RODOVIA PAVIMENTADA COM IMPOSTOS E ATUALIZAÇÃO MONETÁRIA | S15: PEDÁGIO | U15: TOTAL TRANSPORTE | V15: TOTAL PRODUTO | W15: TOTAL GERAL
B16: =F13 -> 2025-07-01 | D16: REFINARIAS | E16: ENDEREÇO | F16: ORIGEM REFINARIAS / DISTRIBUIDORAS | G16: DESTINO | H16: ESTADO | I16: REGIÃO | J16: R$/t | K16: R$/t | L16: R$/t | M16: KM | N16: KM | O16: R$/t | P16: R$/t | Q16: R$/t | R16: R$/t | S16: CUSTO POR EIXO | T16: R$/t | U16: R$/t | V16: R$/t | W16: R$/t
B17: 1 | C17: CAP 50/70 | D17: Refinaria Abreu e Lima | E17: Rodovia PE 60, Km 10 - Ipojuca - PE CEP:55590-000 | F17: =VLOOKUP($W17,'Transporte Cap 50-70'!$B:$AA,7,FALSE) -> FORTALEZA - CE | G17: =VLOOKUP($W17,'Transporte Cap 50-70'!$B:$AA,8,FALSE) -> BOM JESUS-PI | H17: =VLOOKUP($W17,'Transporte Cap 50-70'!$B:$AA,9,FALSE) -> 3.487986243 | I17: =VLOOKUP($W17,'Transporte Cap 50-70'!$B:$AA,10,FALSE) -> 3.53904078 | J17: =VLOOKUP($W17,'Transporte Cap 50-70'!$B:$AA,11,FALSE) -> 3487.986243 | K17: =VLOOKUP($W17,'Transporte Cap 50-70'!$B:$AA,12,FALSE) -> 926.8 | L17: =VLOOKUP($W17,'Transporte Cap 50-70'!$B:$AA,13,FALSE) -> 4414.786243 | M17: =VLOOKUP($W17,'Transporte Cap 50-70'!$B$14:$AA$26,14,FALSE) -> 1040 | N17: =VLOOKUP($W17,'Transporte Cap 50-70'!$B:$AA,15,FALSE) -> 0 | O17: =VLOOKUP($W17,'Transporte Cap 50-70'!$B:$AA,18,FALSE) -> 290.06 | P17: =VLOOKUP($W17,'Transporte Cap 50-70'!$B:$AA,19,FALSE) -> 63.67 | Q17: =VLOOKUP($W17,'Transporte Cap 50-70'!$B:$AA,20,FALSE) -> 418.09 | R17: =VLOOKUP($W17,'Transporte Cap 50-70'!$B:$AA,21,FALSE) -> 771.82 | S17: =VLOOKUP($W17,'Transporte Cap 50-70'!$B:$AA,22,FALSE) -> 0 | T17: =VLOOKUP($W17,'Transporte Cap 50-70'!$B:$AA,23,FALSE) -> 0 | U17: =VLOOKUP($W17,'Transporte Cap 50-70'!$B:$AA,24,FALSE) -> 771.82 | V17: =VLOOKUP($W17,'Transporte Cap 50-70'!$B:$AA,25,FALSE) -> 4414.786243 | W17: =SMALL('Transporte Cap 50-70'!$AA$14:$AA$26,1) -> 5186.606243
B18: 2 | D18: Refinaria Potiguar Clara Camarão | E18: Rodovia RN 221, KM 25 - Guamaré - RN CEP:59598-000 | F18: =VLOOKUP($W18,'Transporte Cap 50-70'!$B:$AA,7,FALSE) -> SÃO FRANCISCO DO CONDE - BA | G18: =VLOOKUP($W18,'Transporte Cap 50-70'!$B:$AA,8,FALSE) -> BOM JESUS-PI | H18: =VLOOKUP($W18,'Transporte Cap 50-70'!$B:$AA,9,FALSE) -> 3.580963906 | I18: =VLOOKUP($W18,'Transporte Cap 50-70'!$B:$AA,10,FALSE) -> 3.53904078 | J18: =VLOOKUP($W18,'Transporte Cap 50-70'!$B:$AA,11,FALSE) -> 3580.963906 | K18: =VLOOKUP($W18,'Transporte Cap 50-70'!$B:$AA,12,FALSE) -> 951.5 | L18: =VLOOKUP($W18,'Transporte Cap 50-70'!$B:$AA,13,FALSE) -> 4532.463906 | M18: =VLOOKUP($W18,'Transporte Cap 50-70'!$B$14:$AA$26,14,FALSE) -> 988 | N18: =VLOOKUP($W18,'Transporte Cap 50-70'!$B:$AA,15,FALSE) -> 0 | O18: =VLOOKUP($W18,'Transporte Cap 50-70'!$B:$AA,18,FALSE) -> 276.9 | P18: =VLOOKUP($W18,'Transporte Cap 50-70'!$B:$AA,19,FALSE) -> 60.78 | Q18: =VLOOKUP($W18,'Transporte Cap 50-70'!$B:$AA,20,FALSE) -> 399.12 | R18: =VLOOKUP($W18,'Transporte Cap 50-70'!$B:$AA,21,FALSE) -> 736.8 | S18: =VLOOKUP($W18,'Transporte Cap 50-70'!$B:$AA,22,FALSE) -> 0 | T18: =VLOOKUP($W18,'Transporte Cap 50-70'!$B:$AA,23,FALSE) -> 0 | U18: =VLOOKUP($W18,'Transporte Cap 50-70'!$B:$AA,24,FALSE) -> 736.8 | V18: =VLOOKUP($W18,'Transporte Cap 50-70'!$B:$AA,25,FALSE) -> 4532.463906 | W18: =SMALL('Transporte Cap 50-70'!$AA$14:$AA$26,2) -> 5269.263906
B19: 3 | D19: Complexo Petroquímico do Rio de Janeiro (Comperj) | E19: Rodovia Estadual RJ-116 - Km 5,2 - Acesso A-1, s/n, Complemento Sambaetiba - Zona Urbana do 4º Distrito de Itaboraí - RJ CEP:24841-203 | F19: =VLOOKUP($W19,'Transporte Cap 50-70'!$B:$AA,7,FALSE) -> GUAMARÉ - RN | G19: =VLOOKUP($W19,'Transporte Cap 50-70'!$B:$AA,8,FALSE) -> BOM JESUS-PI | H19: =VLOOKUP($W19,'Transporte Cap 50-70'!$B:$AA,9,FALSE) -> - | I19: =VLOOKUP($W19,'Transporte Cap 50-70'!$B:$AA,10,FALSE) -> 3.53904078 | J19: =VLOOKUP($W19,'Transporte Cap 50-70'!$B:$AA,11,FALSE) -> 3539.04078 | K19: =VLOOKUP($W19,'Transporte Cap 50-70'!$B:$AA,12,FALSE) -> 940.36 | L19: =VLOOKUP($W19,'Transporte Cap 50-70'!$B:$AA,13,FALSE) -> 4479.40078 | M19: =VLOOKUP($W19,'Transporte Cap 50-70'!$B$14:$AA$26,14,FALSE) -> 1261 | N19: =VLOOKUP($W19,'Transporte Cap 50-70'!$B:$AA,15,FALSE) -> 0 | O19: =VLOOKUP($W19,'Transporte Cap 50-70'!$B:$AA,18,FALSE) -> 345.97 | P19: =VLOOKUP($W19,'Transporte Cap 50-70'!$B:$AA,19,FALSE) -> 75.94 | Q19: =VLOOKUP($W19,'Transporte Cap 50-70'!$B:$AA,20,FALSE) -> 498.67 | R19: =VLOOKUP($W19,'Transporte Cap 50-70'!$B:$AA,21,FALSE) -> 920.58 | S19: =VLOOKUP($W19,'Transporte Cap 50-70'!$B:$AA,22,FALSE) -> 0 | T19: =VLOOKUP($W19,'Transporte Cap 50-70'!$B:$AA,23,FALSE) -> 0 | U19: =VLOOKUP($W19,'Transporte Cap 50-70'!$B:$AA,24,FALSE) -> 920.58 | V19: =VLOOKUP($W19,'Transporte Cap 50-70'!$B:$AA,25,FALSE) -> 4479.40078 | W19: =SMALL('Transporte Cap 50-70'!$AA$14:$AA$26,3) -> 5399.98078
B20: 4 | F20: =VLOOKUP($W20,'Transporte Cap 50-70'!$B:$AA,7,FALSE) -> IPOJUCA - PE | G20: =VLOOKUP($W20,'Transporte Cap 50-70'!$B:$AA,8,FALSE) -> BOM JESUS-PI | H20: =VLOOKUP($W20,'Transporte Cap 50-70'!$B:$AA,9,FALSE) -> - | I20: =VLOOKUP($W20,'Transporte Cap 50-70'!$B:$AA,10,FALSE) -> 3.53904078 | J20: =VLOOKUP($W20,'Transporte Cap 50-70'!$B:$AA,11,FALSE) -> 3539.04078 | K20: =VLOOKUP($W20,'Transporte Cap 50-70'!$B:$AA,12,FALSE) -> 940.36 | L20: =VLOOKUP($W20,'Transporte Cap 50-70'!$B:$AA,13,FALSE) -> 4479.40078 | M20: =VLOOKUP($W20,'Transporte Cap 50-70'!$B$14:$AA$26,14,FALSE) -> 1290 | N20: =VLOOKUP($W20,'Transporte Cap 50-70'!$B:$AA,15,FALSE) -> 0 | O20: =VLOOKUP($W20,'Transporte Cap 50-70'!$B:$AA,18,FALSE) -> 353.31 | P20: =VLOOKUP($W20,'Transporte Cap 50-70'!$B:$AA,19,FALSE) -> 77.55 | Q20: =VLOOKUP($W20,'Transporte Cap 50-70'!$B:$AA,20,FALSE) -> 509.25 | R20: =VLOOKUP($W20,'Transporte Cap 50-70'!$B:$AA,21,FALSE) -> 940.11 | S20: =VLOOKUP($W20,'Transporte Cap 50-70'!$B:$AA,22,FALSE) -> 0 | T20: =VLOOKUP($W20,'Transporte Cap 50-70'!$B:$AA,23,FALSE) -> 0 | U20: =VLOOKUP($W20,'Transporte Cap 50-70'!$B:$AA,24,FALSE) -> 940.11 | V20: =VLOOKUP($W20,'Transporte Cap 50-70'!$B:$AA,25,FALSE) -> 4479.40078 | W20: =SMALL('Transporte Cap 50-70'!$AA$14:$AA$26,4) -> 5419.51078
B21: 5 | F21: =VLOOKUP($W21,'Transporte Cap 50-70'!$B:$AA,7,FALSE) -> PAULÍNIA - SP | G21: =VLOOKUP($W21,'Transporte Cap 50-70'!$B:$AA,8,FALSE) -> BOM JESUS-PI | H21: =VLOOKUP($W21,'Transporte Cap 50-70'!$B:$AA,9,FALSE) -> 3.543552803 | I21: =VLOOKUP($W21,'Transporte Cap 50-70'!$B:$AA,10,FALSE) -> 3.660438996 | J21: =VLOOKUP($W21,'Transporte Cap 50-70'!$B:$AA,11,FALSE) -> 3543.552803 | K21: =VLOOKUP($W21,'Transporte Cap 50-70'!$B:$AA,12,FALSE) -> 941.56 | L21: =VLOOKUP($W21,'Transporte Cap 50-70'!$B:$AA,13,FALSE) -> 4485.112803 | M21: =VLOOKUP($W21,'Transporte Cap 50-70'!$B$14:$AA$26,14,FALSE) -> 1949 | N21: =VLOOKUP($W21,'Transporte Cap 50-70'!$B:$AA,15,FALSE) -> 0 | O21: =VLOOKUP($W21,'Transporte Cap 50-70'!$B:$AA,18,FALSE) -> 520.04 | P21: =VLOOKUP($W21,'Transporte Cap 50-70'!$B:$AA,19,FALSE) -> 114.15 | Q21: =VLOOKUP($W21,'Transporte Cap 50-70'!$B:$AA,20,FALSE) -> 749.57 | R21: =VLOOKUP($W21,'Transporte Cap 50-70'!$B:$AA,21,FALSE) -> 1383.76 | S21: =VLOOKUP($W21,'Transporte Cap 50-70'!$B:$AA,22,FALSE) -> 0 | T21: =VLOOKUP($W21,'Transporte Cap 50-70'!$B:$AA,23,FALSE) -> 0 | U21: =VLOOKUP($W21,'Transporte Cap 50-70'!$B:$AA,24,FALSE) -> 1383.76 | V21: =VLOOKUP($W21,'Transporte Cap 50-70'!$B:$AA,25,FALSE) -> 4485.112803 | W21: =SMALL('Transporte Cap 50-70'!$AA$14:$AA$26,5) -> 5868.872803
B22: 6 | F22: =VLOOKUP($W22,'Transporte Cap 50-70'!$B:$AA,7,FALSE) -> DUQUE DE CAXIAS - RJ | G22: =VLOOKUP($W22,'Transporte Cap 50-70'!$B:$AA,8,FALSE) -> BOM JESUS-PI | H22: =VLOOKUP($W22,'Transporte Cap 50-70'!$B:$AA,9,FALSE) -> 3.534843148 | I22: =VLOOKUP($W22,'Transporte Cap 50-70'!$B:$AA,10,FALSE) -> 3.660438996 | J22: =VLOOKUP($W22,'Transporte Cap 50-70'!$B:$AA,11,FALSE) -> 3534.843148 | K22: =VLOOKUP($W22,'Transporte Cap 50-70'!$B:$AA,12,FALSE) -> 939.25 | L22: =VLOOKUP($W22,'Transporte Cap 50-70'!$B:$AA,13,FALSE) -> 4474.093148 | M22: =VLOOKUP($W22,'Transporte Cap 50-70'!$B$14:$AA$26,14,FALSE) -> 1974 | N22: =VLOOKUP($W22,'Transporte Cap 50-70'!$B:$AA,15,FALSE) -> 0 | O22: =VLOOKUP($W22,'Transporte Cap 50-70'!$B:$AA,18,FALSE) -> 526.36 | P22: =VLOOKUP($W22,'Transporte Cap 50-70'!$B:$AA,19,FALSE) -> 115.54 | Q22: =VLOOKUP($W22,'Transporte Cap 50-70'!$B:$AA,20,FALSE) -> 758.69 | R22: =VLOOKUP($W22,'Transporte Cap 50-70'!$B:$AA,21,FALSE) -> 1400.59 | S22: =VLOOKUP($W22,'Transporte Cap 50-70'!$B:$AA,22,FALSE) -> 0 | T22: =VLOOKUP($W22,'Transporte Cap 50-70'!$B:$AA,23,FALSE) -> 0 | U22: =VLOOKUP($W22,'Transporte Cap 50-70'!$B:$AA,24,FALSE) -> 1400.59 | V22: =VLOOKUP($W22,'Transporte Cap 50-70'!$B:$AA,25,FALSE) -> 4474.093148 | W22: =SMALL('Transporte Cap 50-70'!$AA$14:$AA$26,6) -> 5874.683148
O23: =VLOOKUP($W23,'Transporte Cap 50-70'!$B:$AA,18,FALSE) ->  | R23: =VLOOKUP($W23,'Transporte Cap 50-70'!$B:$AA,21,FALSE) -> 
O24: =VLOOKUP($W24,'Transporte Cap 50-70'!$B:$AA,18,FALSE) ->  | R24: =VLOOKUP($W24,'Transporte Cap 50-70'!$B:$AA,21,FALSE) -> 
O25: =VLOOKUP($W25,'Transporte Cap 50-70'!$B:$AA,18,FALSE) ->  | R25: =VLOOKUP($W25,'Transporte Cap 50-70'!$B:$AA,21,FALSE) -> 
O26: =VLOOKUP($W26,'Transporte Cap 50-70'!$B:$AA,18,FALSE) ->  | R26: =VLOOKUP($W26,'Transporte Cap 50-70'!$B:$AA,21,FALSE) -> 
O27: =VLOOKUP($W27,'Transporte Cap 50-70'!$B:$AA,18,FALSE) ->  | R27: =VLOOKUP($W27,'Transporte Cap 50-70'!$B:$AA,21,FALSE) -> 
B28: 1 | C28: CAP MODIF. C/ POLÍMERO 60/85 | D28: Refinaria Abreu e Lima | E28: Rodovia PE 60, Km 10 - Ipojuca - PE CEP:55590-000 | F28: Transporte EAI'! | G28: Palmas - TO | H28: 2.261894948 | I28: 2.353413905 | J28: 2261.894948 | K28: 393.19 | L28: 2655.084948 | M28: 1181 | N28: 1181 | O28: =VLOOKUP($W28,'Transporte Cap 50-70'!$B:$AA,18,FALSE) ->  | P28: 44.41 | Q28: 202.55 | R28: =VLOOKUP($W28,'Transporte Cap 50-70'!$B:$AA,21,FALSE) ->  | S28: 102 | T28: 102 | U28: 674.69 | V28: 2655.084948 | W28: 3329.774948
B29: 2 | D29: Refinaria Potiguar Clara Camarão | E29: Rodovia RN 221, KM 25 - Guamaré - RN CEP:59598-000 | F29: UBERLANDIA - MG | G29: Palmas - TO | H29: 2.261894948 | I29: 2.353413905 | J29: 2261.894948 | K29: 393.19 | L29: 2655.084948 | M29: 1182 | N29: 1182 | O29: =VLOOKUP($W29,'Transporte Cap 50-70'!$B:$AA,18,FALSE) ->  | P29: 44.45 | Q29: 202.71 | R29: =VLOOKUP($W29,'Transporte Cap 50-70'!$B:$AA,21,FALSE) ->  | S29: 102 | T29: 102 | U29: 675.14 | V29: 2655.084948 | W29: 3330.224948
B30: 3 | D30: Complexo Petroquímico do Rio de Janeiro (Comperj) | E30: Rodovia Estadual RJ-116 - Km 5,2 - Acesso A-1, s/n, Complemento Sambaetiba - Zona Urbana do 4º Distrito de Itaboraí - RJ CEP:24841-203 | F30: GOIANIRA - GO | G30: Palmas - TO | I30: 2.555206955 | J30: 2555.206955 | K30: 444.18 | L30: 2999.386955 | M30: 814 | N30: 814 | O30: =VLOOKUP($W30,'Transporte Cap 50-70'!$B:$AA,18,FALSE) ->  | P30: 31.75 | Q30: 144.81 | R30: =VLOOKUP($W30,'Transporte Cap 50-70'!$B:$AA,21,FALSE) ->  | S30: 0 | T30: 0 | U30: 409.44 | V30: 2999.386955 | W30: 3408.826955
B31: 4 | F31: BRASÍLIA - DF | G31: Palmas - TO | I31: 2.555206955 | J31: 2555.206955 | K31: 444.18 | L31: 2999.386955 | M31: 822 | N31: 822 | O31: =VLOOKUP($W31,'Transporte Cap 50-70'!$B:$AA,18,FALSE) ->  | P31: 32.03 | Q31: 146.07 | R31: =VLOOKUP($W31,'Transporte Cap 50-70'!$B:$AA,21,FALSE) ->  | S31: 0 | T31: 0 | U31: 413 | V31: 2999.386955 | W31: 3412.386955
B32: 5 | F32: APARECIDA DE GOIANIA - GO | G32: Palmas - TO | I32: 2.555206955 | J32: 2555.206955 | K32: 444.18 | L32: 2999.386955 | M32: 842 | N32: 842 | O32: =VLOOKUP($W32,'Transporte Cap 50-70'!$B:$AA,18,FALSE) ->  | P32: 32.72 | Q32: 149.22 | R32: =VLOOKUP($W32,'Transporte Cap 50-70'!$B:$AA,21,FALSE) ->  | S32: 0 | T32: 0 | U32: 421.9 | V32: 2999.386955 | W32: 3421.286955
B33: 6 | F33: ANÁPOLIS - GO | G33: Palmas - TO | I33: 2.555206955 | J33: 2555.206955 | K33: 444.18 | L33: 2999.386955 | M33: 950 | N33: 950 | O33: =VLOOKUP($W33,'Transporte Cap 50-70'!$B:$AA,18,FALSE) ->  | P33: 36.44 | Q33: 166.21 | R33: =VLOOKUP($W33,'Transporte Cap 50-70'!$B:$AA,21,FALSE) ->  | S33: 0 | T33: 0 | U33: 469.93 | V33: 2999.386955 | W33: 3469.316955
B35: 1 | C35: EAI | D35: Refinaria Abreu e Lima | E35: Rodovia PE 60, Km 10 - Ipojuca - PE CEP:55590-000 | F35: =VLOOKUP($W35,'Transporte EAI'!$B$14:$AA$33,7,FALSE) -> FORTALEZA - CE | G35: =VLOOKUP($W35,'Transporte EAI'!$B$14:$AA$33,8,FALSE) -> BOM JESUS-PI | H35: =VLOOKUP($W35,'Transporte EAI'!$B$14:$AA$33,9,FALSE) -> 2.092434098 | I35: =VLOOKUP($W35,'Transporte EAI'!$B$14:$AA$33,10,FALSE) -> 2.18249432 | J35: =VLOOKUP($W35,'Transporte EAI'!$B$14:$AA$33,11,FALSE) -> 2092.434098 | K35: =VLOOKUP($W35,'Transporte EAI'!$B$14:$AA$33,12,FALSE) -> 555.98 | L35: =VLOOKUP($W35,'Transporte EAI'!$B$14:$AA$33,13,FALSE) -> 2648.414098 | M35: =VLOOKUP($W35,'Transporte EAI'!$B$14:$AA$33,14,FALSE) -> 1040 | N35: =VLOOKUP($W35,'Transporte EAI'!$B$14:$AA$33,15,FALSE) -> 0 | O35: =VLOOKUP($W35,'Transporte EAI'!$B$14:$AA$33,18,FALSE) -> 290.06 | P35: =VLOOKUP($W35,'Transporte EAI'!$B$14:$AA$33,19,FALSE) -> 63.67 | Q35: =VLOOKUP($W35,'Transporte EAI'!$B$14:$AA$33,20,FALSE) -> 418.09 | R35: =VLOOKUP($W35,'Transporte EAI'!$B$14:$AA$33,21,FALSE) -> 771.82 | S35: =VLOOKUP($W35,'Transporte EAI'!$B$14:$AA$33,22,FALSE) -> 0 | T35: =VLOOKUP($W35,'Transporte EAI'!$B$14:$AA$33,23,FALSE) -> 0 | U35: =VLOOKUP($W35,'Transporte EAI'!$B$14:$AA$33,24,FALSE) -> 771.82 | V35: =VLOOKUP($W35,'Transporte EAI'!$B$14:$AA$33,25,FALSE) -> 2648.414098 | W35: =SMALL('Transporte EAI'!$AA$14:$AA$33,1) -> 3420.234098
B36: 2 | D36: Refinaria Potiguar Clara Camarão | E36: Rodovia RN 221, KM 25 - Guamaré - RN CEP:59598-000 | F36: =VLOOKUP($W36,'Transporte EAI'!$B$14:$AA$33,7,FALSE) -> SÃO FRANCISCO DO CONDE - BA | G36: =VLOOKUP($W36,'Transporte EAI'!$B$14:$AA$33,8,FALSE) -> BOM JESUS-PI | H36: =VLOOKUP($W36,'Transporte EAI'!$B$14:$AA$33,9,FALSE) -> - | I36: =VLOOKUP($W36,'Transporte EAI'!$B$14:$AA$33,10,FALSE) -> 2.18249432 | J36: =VLOOKUP($W36,'Transporte EAI'!$B$14:$AA$33,11,FALSE) -> 2182.49432 | K36: =VLOOKUP($W36,'Transporte EAI'!$B$14:$AA$33,12,FALSE) -> 579.91 | L36: =VLOOKUP($W36,'Transporte EAI'!$B$14:$AA$33,13,FALSE) -> 2762.40432 | M36: =VLOOKUP($W36,'Transporte EAI'!$B$14:$AA$33,14,FALSE) -> 988 | N36: =VLOOKUP($W36,'Transporte EAI'!$B$14:$AA$33,15,FALSE) -> 0 | O36: =VLOOKUP($W36,'Transporte EAI'!$B$14:$AA$33,18,FALSE) -> 276.9 | P36: =VLOOKUP($W36,'Transporte EAI'!$B$14:$AA$33,19,FALSE) -> 60.78 | Q36: =VLOOKUP($W36,'Transporte EAI'!$B$14:$AA$33,20,FALSE) -> 399.12 | R36: =VLOOKUP($W36,'Transporte EAI'!$B$14:$AA$33,21,FALSE) -> 736.8 | S36: =VLOOKUP($W36,'Transporte EAI'!$B$14:$AA$33,22,FALSE) -> 0 | T36: =VLOOKUP($W36,'Transporte EAI'!$B$14:$AA$33,23,FALSE) -> 0 | U36: =VLOOKUP($W36,'Transporte EAI'!$B$14:$AA$33,24,FALSE) -> 736.8 | V36: =VLOOKUP($W36,'Transporte EAI'!$B:$AA,25,FALSE) -> 2762.40432 | W36: =SMALL('Transporte EAI'!$AA$14:$AA$33,2) -> 3499.20432
B37: 3 | D37: Complexo Petroquímico do Rio de Janeiro (Comperj) | E37: Rodovia Estadual RJ-116 - Km 5,2 - Acesso A-1, s/n, Complemento Sambaetiba - Zona Urbana do 4º Distrito de Itaboraí - RJ CEP:24841-203 | F37: =VLOOKUP($W37,'Transporte EAI'!$B$14:$AA$33,7,FALSE) -> ANÁPOLIS - GO | G37: =VLOOKUP($W37,'Transporte EAI'!$B$14:$AA$33,8,FALSE) -> BOM JESUS-PI | H37: =VLOOKUP($W37,'Transporte EAI'!$B$14:$AA$33,9,FALSE) -> 2.167968083 | I37: =VLOOKUP($W37,'Transporte EAI'!$B$14:$AA$33,10,FALSE) -> 2.623457098 | J37: =VLOOKUP($W37,'Transporte EAI'!$B$14:$AA$33,11,FALSE) -> 2167.968083 | K37: =VLOOKUP($W37,'Transporte EAI'!$B$14:$AA$33,12,FALSE) -> 576.05 | L37: =VLOOKUP($W37,'Transporte EAI'!$B$14:$AA$33,13,FALSE) -> 2744.018083 | M37: =VLOOKUP($W37,'Transporte EAI'!$B$14:$AA$33,14,FALSE) -> 1225 | N37: =VLOOKUP($W37,'Transporte EAI'!$B$14:$AA$33,15,FALSE) -> 0 | O37: =VLOOKUP($W37,'Transporte EAI'!$B$14:$AA$33,18,FALSE) -> 336.86 | P37: =VLOOKUP($W37,'Transporte EAI'!$B$14:$AA$33,19,FALSE) -> 73.94 | Q37: =VLOOKUP($W37,'Transporte EAI'!$B$14:$AA$33,20,FALSE) -> 485.54 | R37: =VLOOKUP($W37,'Transporte EAI'!$B$14:$AA$33,21,FALSE) -> 896.34 | S37: =VLOOKUP($W37,'Transporte EAI'!$B$14:$AA$33,22,FALSE) -> 0 | T37: =VLOOKUP($W37,'Transporte EAI'!$B$14:$AA$33,23,FALSE) -> 0 | U37: =VLOOKUP($W37,'Transporte EAI'!$B$14:$AA$33,24,FALSE) -> 896.34 | V37: =VLOOKUP($W37,'Transporte EAI'!$B:$AA,25,FALSE) -> 2744.018083 | W37: =SMALL('Transporte EAI'!$AA$14:$AA$33,3) -> 3640.358083
B38: 4 | F38: =VLOOKUP($W38,'Transporte EAI'!$B$14:$AA$33,7,FALSE) -> GUAMARÉ - RN | G38: =VLOOKUP($W38,'Transporte EAI'!$B$14:$AA$33,8,FALSE) -> BOM JESUS-PI | H38: =VLOOKUP($W38,'Transporte EAI'!$B$14:$AA$33,9,FALSE) -> - | I38: =VLOOKUP($W38,'Transporte EAI'!$B$14:$AA$33,10,FALSE) -> 2.18249432 | J38: =VLOOKUP($W38,'Transporte EAI'!$B$14:$AA$33,11,FALSE) -> 2182.49432 | K38: =VLOOKUP($W38,'Transporte EAI'!$B$14:$AA$33,12,FALSE) -> 579.91 | L38: =VLOOKUP($W38,'Transporte EAI'!$B$14:$AA$33,13,FALSE) -> 2762.40432 | M38: =VLOOKUP($W38,'Transporte EAI'!$B$14:$AA$33,14,FALSE) -> 1261 | N38: =VLOOKUP($W38,'Transporte EAI'!$B$14:$AA$33,15,FALSE) -> 0 | O38: =VLOOKUP($W38,'Transporte EAI'!$B$14:$AA$33,18,FALSE) -> 345.97 | P38: =VLOOKUP($W38,'Transporte EAI'!$B$14:$AA$33,19,FALSE) -> 75.94 | Q38: =VLOOKUP($W38,'Transporte EAI'!$B$14:$AA$33,20,FALSE) -> 498.67 | R38: =VLOOKUP($W38,'Transporte EAI'!$B$14:$AA$33,21,FALSE) -> 920.58 | S38: =VLOOKUP($W38,'Transporte EAI'!$B$14:$AA$33,22,FALSE) -> 0 | T38: =VLOOKUP($W38,'Transporte EAI'!$B$14:$AA$33,23,FALSE) -> 0 | U38: =VLOOKUP($W38,'Transporte EAI'!$B$14:$AA$33,24,FALSE) -> 920.58 | V38: =VLOOKUP($W38,'Transporte EAI'!$B:$AA,25,FALSE) -> 2762.40432 | W38: =SMALL('Transporte EAI'!$AA$14:$AA$33,4) -> 3682.98432
B39: 5 | F39: =VLOOKUP($W39,'Transporte EAI'!$B$14:$AA$33,7,FALSE) -> APARECIDA DE GOIANIA - GO | G39: =VLOOKUP($W39,'Transporte EAI'!$B$14:$AA$33,8,FALSE) -> BOM JESUS-PI | H39: =VLOOKUP($W39,'Transporte EAI'!$B$14:$AA$33,9,FALSE) -> 2.167968083 | I39: =VLOOKUP($W39,'Transporte EAI'!$B$14:$AA$33,10,FALSE) -> 2.623457098 | J39: =VLOOKUP($W39,'Transporte EAI'!$B$14:$AA$33,11,FALSE) -> 2167.968083 | K39: =VLOOKUP($W39,'Transporte EAI'!$B$14:$AA$33,12,FALSE) -> 576.05 | L39: =VLOOKUP($W39,'Transporte EAI'!$B$14:$AA$33,13,FALSE) -> 2744.018083 | M39: =VLOOKUP($W39,'Transporte EAI'!$B$14:$AA$33,14,FALSE) -> 1292 | N39: =VLOOKUP($W39,'Transporte EAI'!$B$14:$AA$33,15,FALSE) -> 0 | O39: =VLOOKUP($W39,'Transporte EAI'!$B$14:$AA$33,18,FALSE) -> 353.82 | P39: =VLOOKUP($W39,'Transporte EAI'!$B$14:$AA$33,19,FALSE) -> 77.66 | Q39: =VLOOKUP($W39,'Transporte EAI'!$B$14:$AA$33,20,FALSE) -> 509.98 | R39: =VLOOKUP($W39,'Transporte EAI'!$B$14:$AA$33,21,FALSE) -> 941.46 | S39: =VLOOKUP($W39,'Transporte EAI'!$B$14:$AA$33,22,FALSE) -> 0 | T39: =VLOOKUP($W39,'Transporte EAI'!$B$14:$AA$33,23,FALSE) -> 0 | U39: =VLOOKUP($W39,'Transporte EAI'!$B$14:$AA$33,24,FALSE) -> 941.46 | V39: =VLOOKUP($W39,'Transporte EAI'!$B:$AA,25,FALSE) -> 2744.018083 | W39: =SMALL('Transporte EAI'!$AA$14:$AA$33,5) -> 3685.478083
B40: 6 | F40: =VLOOKUP($W40,'Transporte EAI'!$B$14:$AA$33,7,FALSE) -> GOIANIRA - GO | G40: =VLOOKUP($W40,'Transporte EAI'!$B$14:$AA$33,8,FALSE) -> BOM JESUS-PI | H40: =VLOOKUP($W40,'Transporte EAI'!$B$14:$AA$33,9,FALSE) -> 2.167968083 | I40: =VLOOKUP($W40,'Transporte EAI'!$B$14:$AA$33,10,FALSE) -> 2.623457098 | J40: =VLOOKUP($W40,'Transporte EAI'!$B$14:$AA$33,11,FALSE) -> 2167.968083 | K40: =VLOOKUP($W40,'Transporte EAI'!$B$14:$AA$33,12,FALSE) -> 576.05 | L40: =VLOOKUP($W40,'Transporte EAI'!$B$14:$AA$33,13,FALSE) -> 2744.018083 | M40: =VLOOKUP($W40,'Transporte EAI'!$B$14:$AA$33,14,FALSE) -> 1298 | N40: =VLOOKUP($W40,'Transporte EAI'!$B$14:$AA$33,15,FALSE) -> 0 | O40: =VLOOKUP($W40,'Transporte EAI'!$B$14:$AA$33,18,FALSE) -> 355.33 | P40: =VLOOKUP($W40,'Transporte EAI'!$B$14:$AA$33,19,FALSE) -> 77.99 | Q40: =VLOOKUP($W40,'Transporte EAI'!$B$14:$AA$33,20,FALSE) -> 512.16 | R40: =VLOOKUP($W40,'Transporte EAI'!$B$14:$AA$33,21,FALSE) -> 945.48 | S40: =VLOOKUP($W40,'Transporte EAI'!$B$14:$AA$33,22,FALSE) -> 0 | T40: =VLOOKUP($W40,'Transporte EAI'!$B$14:$AA$33,23,FALSE) -> 0 | U40: =VLOOKUP($W40,'Transporte EAI'!$B$14:$AA$33,24,FALSE) -> 945.48 | V40: =VLOOKUP($W40,'Transporte EAI'!$B:$AA,25,FALSE) -> 2744.018083 | W40: =SMALL('Transporte EAI'!$AA$14:$AA$33,6) -> 3689.498083
B42: 1 | C42: RR1-C | D42: Refinaria Abreu e Lima | E42: Rodovia PE 60, Km 10 - Ipojuca - PE CEP:55590-000 | F42: =VLOOKUP($W42,'Transporte RR-1C'!$B:$AA,7,FALSE) -> FORTALEZA - CE | G42: =VLOOKUP($W42,'Transporte RR-1C'!$B:$AA,8,FALSE) -> BOM JESUS-PI | H42: =VLOOKUP($W42,'Transporte RR-1C'!$B:$AA,9,FALSE) -> 2.469941131 | I42: =VLOOKUP($W42,'Transporte RR-1C'!$B:$AA,10,FALSE) -> 2.648382209 | J42: =VLOOKUP($W42,'Transporte RR-1C'!$B:$AA,11,FALSE) -> 2469.941131 | K42: =VLOOKUP($W42,'Transporte RR-1C'!$B:$AA,12,FALSE) -> 656.29 | L42: =VLOOKUP($W42,'Transporte RR-1C'!$B:$AA,13,FALSE) -> 3126.231131 | M42: =VLOOKUP($W42,'Transporte RR-1C'!$B:$AA,14,FALSE) -> 1040 | N42: =VLOOKUP($W42,'Transporte RR-1C'!$B:$AA,15,FALSE) -> 0 | O42: =VLOOKUP($W42,'Transporte RR-1C'!$B:$AA,18,FALSE) -> 290.06 | P42: =VLOOKUP($W42,'Transporte RR-1C'!$B:$AA,19,FALSE) -> 63.67 | Q42: =VLOOKUP($W42,'Transporte RR-1C'!$B:$AA,20,FALSE) -> 418.09 | R42: =VLOOKUP($W42,'Transporte RR-1C'!$B:$AA,21,FALSE) -> 771.82 | S42: =VLOOKUP($W42,'Transporte RR-1C'!$B:$AA,22,FALSE) -> 0 | T42: =VLOOKUP($W42,'Transporte RR-1C'!$B:$AA,23,FALSE) -> 0 | U42: =VLOOKUP($W42,'Transporte RR-1C'!$B:$AA,24,FALSE) -> 771.82 | V42: =VLOOKUP($W42,'Transporte RR-1C'!$B:$AA,25,FALSE) -> 3126.231131 | W42: =SMALL('Transporte RR-1C'!$AA$14:$AA$33,1) -> 3898.051131
B43: 2 | D43: Refinaria Potiguar Clara Camarão | E43: Rodovia RN 221, KM 25 - Guamaré - RN CEP:59598-000 | F43: =VLOOKUP($W43,'Transporte RR-1C'!$B:$AA,7,FALSE) -> SÃO FRANCISCO DO CONDE - BA | G43: =VLOOKUP($W43,'Transporte RR-1C'!$B:$AA,8,FALSE) -> BOM JESUS-PI | H43: =VLOOKUP($W43,'Transporte RR-1C'!$B:$AA,9,FALSE) -> - | I43: =VLOOKUP($W43,'Transporte RR-1C'!$B:$AA,10,FALSE) -> 2.648382209 | J43: =VLOOKUP($W43,'Transporte RR-1C'!$B:$AA,11,FALSE) -> 2648.382209 | K43: =VLOOKUP($W43,'Transporte RR-1C'!$B:$AA,12,FALSE) -> 703.7 | L43: =VLOOKUP($W43,'Transporte RR-1C'!$B:$AA,13,FALSE) -> 3352.082209 | M43: =VLOOKUP($W43,'Transporte RR-1C'!$B:$AA,14,FALSE) -> 988 | N43: =VLOOKUP($W43,'Transporte RR-1C'!$B:$AA,15,FALSE) -> 0 | O43: =VLOOKUP($W43,'Transporte RR-1C'!$B:$AA,18,FALSE) -> 276.9 | P43: =VLOOKUP($W43,'Transporte RR-1C'!$B:$AA,19,FALSE) -> 60.78 | Q43: =VLOOKUP($W43,'Transporte RR-1C'!$B:$AA,20,FALSE) -> 399.12 | R43: =VLOOKUP($W43,'Transporte RR-1C'!$B:$AA,21,FALSE) -> 736.8 | S43: =VLOOKUP($W43,'Transporte RR-1C'!$B:$AA,22,FALSE) -> 0 | T43: =VLOOKUP($W43,'Transporte RR-1C'!$B:$AA,23,FALSE) -> 0 | U43: =VLOOKUP($W43,'Transporte RR-1C'!$B:$AA,24,FALSE) -> 736.8 | V43: =VLOOKUP($W43,'Transporte RR-1C'!$B:$AA,25,FALSE) -> 3352.082209 | W43: =SMALL('Transporte RR-1C'!$AA$14:$AA$33,2) -> 4088.882209
B44: 3 | D44: Complexo Petroquímico do Rio de Janeiro (Comperj) | E44: Rodovia Estadual RJ-116 - Km 5,2 - Acesso A-1, s/n, Complemento Sambaetiba - Zona Urbana do 4º Distrito de Itaboraí - RJ CEP:24841-203 | F44: =VLOOKUP($W44,'Transporte RR-1C'!$B:$AA,7,FALSE) -> GUAMARÉ - RN | G44: =VLOOKUP($W44,'Transporte RR-1C'!$B:$AA,8,FALSE) -> BOM JESUS-PI | H44: =VLOOKUP($W44,'Transporte RR-1C'!$B:$AA,9,FALSE) -> - | I44: =VLOOKUP($W44,'Transporte RR-1C'!$B:$AA,10,FALSE) -> 2.648382209 | J44: =VLOOKUP($W44,'Transporte RR-1C'!$B:$AA,11,FALSE) -> 2648.382209 | K44: =VLOOKUP($W44,'Transporte RR-1C'!$B:$AA,12,FALSE) -> 703.7 | L44: =VLOOKUP($W44,'Transporte RR-1C'!$B:$AA,13,FALSE) -> 3352.082209 | M44: =VLOOKUP($W44,'Transporte RR-1C'!$B:$AA,14,FALSE) -> 1261 | N44: =VLOOKUP($W44,'Transporte RR-1C'!$B:$AA,15,FALSE) -> 0 | O44: =VLOOKUP($W44,'Transporte RR-1C'!$B:$AA,18,FALSE) -> 345.97 | P44: =VLOOKUP($W44,'Transporte RR-1C'!$B:$AA,19,FALSE) -> 75.94 | Q44: =VLOOKUP($W44,'Transporte RR-1C'!$B:$AA,20,FALSE) -> 498.67 | R44: =VLOOKUP($W44,'Transporte RR-1C'!$B:$AA,21,FALSE) -> 920.58 | S44: =VLOOKUP($W44,'Transporte RR-1C'!$B:$AA,22,FALSE) -> 0 | T44: =VLOOKUP($W44,'Transporte RR-1C'!$B:$AA,23,FALSE) -> 0 | U44: =VLOOKUP($W44,'Transporte RR-1C'!$B:$AA,24,FALSE) -> 920.58 | V44: =VLOOKUP($W44,'Transporte RR-1C'!$B:$AA,25,FALSE) -> 3352.082209 | W44: =SMALL('Transporte RR-1C'!$AA$14:$AA$33,3) -> 4272.662209
B45: 4 | D45: Refinaria Abreu e Lima | E45: Rodovia PE 60, Km 10 - Ipojuca - PE CEP:55590-000 | F45: =VLOOKUP($W45,'Transporte RR-1C'!$B:$AA,7,FALSE) -> IPOJUCA - PE | G45: =VLOOKUP($W45,'Transporte RR-1C'!$B:$AA,8,FALSE) -> BOM JESUS-PI | H45: =VLOOKUP($W45,'Transporte RR-1C'!$B:$AA,9,FALSE) -> - | I45: =VLOOKUP($W45,'Transporte RR-1C'!$B:$AA,10,FALSE) -> 2.648382209 | J45: =VLOOKUP($W45,'Transporte RR-1C'!$B:$AA,11,FALSE) -> 2648.382209 | K45: =VLOOKUP($W45,'Transporte RR-1C'!$B:$AA,12,FALSE) -> 703.7 | L45: =VLOOKUP($W45,'Transporte RR-1C'!$B:$AA,13,FALSE) -> 3352.082209 | M45: =VLOOKUP($W45,'Transporte RR-1C'!$B:$AA,14,FALSE) -> 1290 | N45: =VLOOKUP($W45,'Transporte RR-1C'!$B:$AA,15,FALSE) -> 0 | O45: =VLOOKUP($W45,'Transporte RR-1C'!$B:$AA,18,FALSE) -> 353.31 | P45: =VLOOKUP($W45,'Transporte RR-1C'!$B:$AA,19,FALSE) -> 77.55 | Q45: =VLOOKUP($W45,'Transporte RR-1C'!$B:$AA,20,FALSE) -> 509.25 | R45: =VLOOKUP($W45,'Transporte RR-1C'!$B:$AA,21,FALSE) -> 940.11 | S45: =VLOOKUP($W45,'Transporte RR-1C'!$B:$AA,22,FALSE) -> 0 | T45: =VLOOKUP($W45,'Transporte RR-1C'!$B:$AA,23,FALSE) -> 0 | U45: =VLOOKUP($W45,'Transporte RR-1C'!$B:$AA,24,FALSE) -> 940.11 | V45: =VLOOKUP($W45,'Transporte RR-1C'!$B:$AA,25,FALSE) -> 3352.082209 | W45: =SMALL('Transporte RR-1C'!$AA$14:$AA$33,4) -> 4292.192209
B46: 5 | D46: Refinaria Potiguar Clara Camarão | E46: Rodovia RN 221, KM 25 - Guamaré - RN CEP:59598-000 | F46: =VLOOKUP($W46,'Transporte RR-1C'!$B:$AA,7,FALSE) -> ANÁPOLIS - GO | G46: =VLOOKUP($W46,'Transporte RR-1C'!$B:$AA,8,FALSE) -> BOM JESUS-PI | H46: =VLOOKUP($W46,'Transporte RR-1C'!$B:$AA,9,FALSE) -> 2.726231063 | I46: =VLOOKUP($W46,'Transporte RR-1C'!$B:$AA,10,FALSE) -> 2.846437607 | J46: =VLOOKUP($W46,'Transporte RR-1C'!$B:$AA,11,FALSE) -> 2726.231063 | K46: =VLOOKUP($W46,'Transporte RR-1C'!$B:$AA,12,FALSE) -> 724.39 | L46: =VLOOKUP($W46,'Transporte RR-1C'!$B:$AA,13,FALSE) -> 3450.621063 | M46: =VLOOKUP($W46,'Transporte RR-1C'!$B:$AA,14,FALSE) -> 1225 | N46: =VLOOKUP($W46,'Transporte RR-1C'!$B:$AA,15,FALSE) -> 0 | O46: =VLOOKUP($W46,'Transporte RR-1C'!$B:$AA,18,FALSE) -> 336.86 | P46: =VLOOKUP($W46,'Transporte RR-1C'!$B:$AA,19,FALSE) -> 73.94 | Q46: =VLOOKUP($W46,'Transporte RR-1C'!$B:$AA,20,FALSE) -> 485.54 | R46: =VLOOKUP($W46,'Transporte RR-1C'!$B:$AA,21,FALSE) -> 896.34 | S46: =VLOOKUP($W46,'Transporte RR-1C'!$B:$AA,22,FALSE) -> 0 | T46: =VLOOKUP($W46,'Transporte RR-1C'!$B:$AA,23,FALSE) -> 0 | U46: =VLOOKUP($W46,'Transporte RR-1C'!$B:$AA,24,FALSE) -> 896.34 | V46: =VLOOKUP($W46,'Transporte RR-1C'!$B:$AA,25,FALSE) -> 3450.621063 | W46: =SMALL('Transporte RR-1C'!$AA$14:$AA$33,5) -> 4346.961063
B47: 6 | D47: Complexo Petroquímico do Rio de Janeiro (Comperj) | E47: Rodovia Estadual RJ-116 - Km 5,2 - Acesso A-1, s/n, Complemento Sambaetiba - Zona Urbana do 4º Distrito de Itaboraí - RJ CEP:24841-203 | F47: =VLOOKUP($W47,'Transporte RR-1C'!$B:$AA,7,FALSE) -> APARECIDA DE GOIANIA - GO | G47: =VLOOKUP($W47,'Transporte RR-1C'!$B:$AA,8,FALSE) -> BOM JESUS-PI | H47: =VLOOKUP($W47,'Transporte RR-1C'!$B:$AA,9,FALSE) -> 2.726231063 | I47: =VLOOKUP($W47,'Transporte RR-1C'!$B:$AA,10,FALSE) -> 2.846437607 | J47: =VLOOKUP($W47,'Transporte RR-1C'!$B:$AA,11,FALSE) -> 2726.231063 | K47: =VLOOKUP($W47,'Transporte RR-1C'!$B:$AA,12,FALSE) -> 724.39 | L47: =VLOOKUP($W47,'Transporte RR-1C'!$B:$AA,13,FALSE) -> 3450.621063 | M47: =VLOOKUP($W47,'Transporte RR-1C'!$B:$AA,14,FALSE) -> 1292 | N47: =VLOOKUP($W47,'Transporte RR-1C'!$B:$AA,15,FALSE) -> 0 | O47: =VLOOKUP($W47,'Transporte RR-1C'!$B:$AA,18,FALSE) -> 353.82 | P47: =VLOOKUP($W47,'Transporte RR-1C'!$B:$AA,19,FALSE) -> 77.66 | Q47: =VLOOKUP($W47,'Transporte RR-1C'!$B:$AA,20,FALSE) -> 509.98 | R47: =VLOOKUP($W47,'Transporte RR-1C'!$B:$AA,21,FALSE) -> 941.46 | S47: =VLOOKUP($W47,'Transporte RR-1C'!$B:$AA,22,FALSE) -> 0 | T47: =VLOOKUP($W47,'Transporte RR-1C'!$B:$AA,23,FALSE) -> 0 | U47: =VLOOKUP($W47,'Transporte RR-1C'!$B:$AA,24,FALSE) -> 941.46 | V47: =VLOOKUP($W47,'Transporte RR-1C'!$B:$AA,25,FALSE) -> 3450.621063 | W47: =SMALL('Transporte RR-1C'!$AA$14:$AA$33,6) -> 4392.081063

Sheet MOMENTO DE TRANSPORTE - PRINC
B5: ='RESUMO MODULO TOTAL'!B63 -> CONTRATAÇÃO DE SERVIÇOS DE PAVIMENTAÇÃO ASFÁLTICA COM CONCRETO BETUMINOSO USINADO A QUENTE (CBUQ) EM VIAS URBANAS E RURAIS INSERIDAS NA ÁREA DE ATUAÇÃO DA CODEVASF, NO ESTADO DO PIAUÍ - REGIÃO SUL
B6: DATA BASE: | C6: ='RESUMO MODULO TOTAL'!C6 -> 2025-10-01
C8: RESUMO DO TRANSPORTE PRINCIPAL
B9: CODIGO | C9: DESCRIÇÃO | D9: TKM
B10: 5914359 | C10: =VLOOKUP(B10,'SINTÉTICO SICRO'!$A:$D,2,0) -> Transporte com caminhão basculante de 10 m³ - rodovia em leito natural | D10: =ROUND(SUMIF('MOMENTO DE TRANSPORTE - PRINC'!A:A,B10,'MOMENTO DE TRANSPORTE - PRINC'!K:K),2) -> 227582.12
B11: 5914374 | C11: =VLOOKUP(B11,'SINTÉTICO SICRO'!$A:$D,2,0) -> Transporte com caminhão basculante de 10 m³ - rodovia em revestimento primário | D11: =ROUND(SUMIF('MOMENTO DE TRANSPORTE - PRINC'!A:A,B11,'MOMENTO DE TRANSPORTE - PRINC'!K:K),2) -> 227581.2
B12: 5914389 | C12: =VLOOKUP(B12,'SINTÉTICO SICRO'!$A:$D,2,0) -> Transporte com caminhão basculante de 10 m³ - rodovia pavimentada | D12: =ROUND(SUMIF('MOMENTO DE TRANSPORTE - PRINC'!A:A,B12,'MOMENTO DE TRANSPORTE - PRINC'!K:K),2) -> 1820656.99
B13: 5914449 | C13: =VLOOKUP(B13,'SINTÉTICO SICRO'!$A:$D,2,0) -> Transporte com caminhão carroceria de 15 t - rodovia em leito natural | D13: =ROUND(SUMIF('MOMENTO DE TRANSPORTE - PRINC'!A:A,B13,'MOMENTO DE TRANSPORTE - PRINC'!K:K),2) -> 0
B14: 5914464 | C14: =VLOOKUP(B14,'SINTÉTICO SICRO'!$A:$D,2,0) -> Transporte com caminhão carroceria de 15 t - rodovia em revestimento primário | D14: =ROUND(SUMIF('MOMENTO DE TRANSPORTE - PRINC'!A:A,B14,'MOMENTO DE TRANSPORTE - PRINC'!K:K),2) -> 0
B15: 5914479 | C15: =VLOOKUP(B15,'SINTÉTICO SICRO'!$A:$D,2,0) -> Transporte com caminhão carroceria de 15 t - rodovia pavimentada | D15: =ROUND(SUMIF('MOMENTO DE TRANSPORTE - PRINC'!A:A,B15,'MOMENTO DE TRANSPORTE - PRINC'!K:K),2) -> 0
B16: 5914364 | C16: =VLOOKUP(B16,'SINTÉTICO SICRO'!$A:$D,2,0) -> Transporte de cimento ou cal hidratada a granel com caminhão silo de 30 m³ - rodovia em leito natural | D16: =ROUND(SUMIF('MOMENTO DE TRANSPORTE - PRINC'!A:A,B16,'MOMENTO DE TRANSPORTE - PRINC'!K:K),2) -> 0
B17: 5914365 | C17: =VLOOKUP(B17,'SINTÉTICO SICRO'!$A:$D,2,0) -> Transporte de cimento ou cal hidratada a granel com caminhão silo de 30 m³ - rodovia em revestimento primário | D17: =ROUND(SUMIF('MOMENTO DE TRANSPORTE - PRINC'!A:A,B17,'MOMENTO DE TRANSPORTE - PRINC'!K:K),2) -> 0
B18: 5914366 | C18: =VLOOKUP(B18,'SINTÉTICO SICRO'!$A:$D,2,0) -> Transporte de cimento ou cal hidratada a granel com caminhão silo de 30 m³ - rodovia pavimentada | D18: =ROUND(SUMIF('MOMENTO DE TRANSPORTE - PRINC'!A:A,B18,'MOMENTO DE TRANSPORTE - PRINC'!K:K),2) -> 0
B19: 5914539 | C19: =VLOOKUP(B19,'SINTÉTICO SICRO'!$A:$D,2,0) -> Transporte com caminhão betoneira - rodovia em leito natural | D19: =ROUND(SUMIF('MOMENTO DE TRANSPORTE - PRINC'!A:A,B19,'MOMENTO DE TRANSPORTE - PRINC'!K:K),2) -> 8870.4
B20: 5914554 | C20: =VLOOKUP(B20,'SINTÉTICO SICRO'!$A:$D,2,0) -> Transporte com caminhão betoneira - rodovia em revestimento primário | D20: =ROUND(SUMIF('MOMENTO DE TRANSPORTE - PRINC'!A:A,B20,'MOMENTO DE TRANSPORTE - PRINC'!K:K),2) -> 8870.4
B21: 5914569 | C21: =VLOOKUP(B21,'SINTÉTICO SICRO'!$A:$D,2,0) -> Transporte com caminhão betoneira - rodovia pavimentada | D21: =ROUND(SUMIF('MOMENTO DE TRANSPORTE - PRINC'!A:A,B21,'MOMENTO DE TRANSPORTE - PRINC'!K:K),2) -> 70963.2
B23: TIPO (P, RP ou LN) | C23: DMT ESTIMADA (DISTRIBUIÇÃO DO ITEM NA PISTA
B24: P | C24: 10 | D24: Fica a cargo de cada SR colocar a distancia de distribuição
B26: SISTEMA DE CUSTOS REFERENCIAIS DE OBRAS - SICRO
B27: Custo Unitário de Referência | I27: Quantitativo | K27: t
B28: 4011463 | C28: =VLOOKUP(B28,'SINTÉTICO SICRO'!A:D,2,0) -> Concreto asfáltico - faixa C-12,5 - areia e brita comerciais | I28: =SUMIF('RESUMO MODULO TOTAL'!C:C,B28,'RESUMO MODULO TOTAL'!H:H)*0.8 -> 29568
B29: D - ATIVIDADES AUXILIARES | D29: Quantidade | E29: Unidade
B30: 6416078 | C30: =VLOOKUP(B30,'SINTÉTICO SICRO'!A:D,2,0) -> Usinagem de concreto asfáltico - faixa C-12,5 - areia e brita comerciais | D30: 1 | E30: t
B32: F - MOMENTO DE TRANSPORTE | D32: Quantidade | E32: Unidade | F32: CÓDIGO TRANSPORTE
F33: LN | G33: RP | H33: P | I33: TIPO (P, RP ou LN) | J33: DMT ESTIMADA (km) | K33: QUANTITATIVO TOTAL DE TRANSPORTE (tkm)
A34: =IF(I34="P",H34,IF(I34="RP",G34,IF(I34="LN",F34,""))) -> 5914389 | B34: 6416078 | C34: =VLOOKUP(B34,'SINTÉTICO SICRO'!A:D,2,0) -> Usinagem de concreto asfáltico - faixa C-12,5 - areia e brita comerciais | D34: 1 | E34: tkm | F34: 5914359 | G34: 5914374 | H34: 5914389 | I34: =$B$24 -> P | J34: =$C$24 -> 10 | K34: =IF(ISBLANK(J34),"",J34*D34)*I28 -> 295680
B36: Obs.
B39: SISTEMA DE CUSTOS REFERENCIAIS DE OBRAS - SICRO
B40: Custo Unitário de Referência | I40: Quantitativo | K40: m³
B41: 4011219 | C41: =VLOOKUP(B41,'SINTÉTICO SICRO'!A:D,2,0) -> Base de solo estabilizado granulometricamente sem mistura com material de jazida - 100% Proctor modificado | I41: =SUMIF('RESUMO MODULO TOTAL'!C:C,B41,'RESUMO MODULO TOTAL'!H:H)*0.8 -> 36960
B42: D - ATIVIDADES AUXILIARES | D42: Quantidade | E42: Unidade
B43: 4016096 | C43: =VLOOKUP(B43,'SINTÉTICO SICRO'!A:D,2,0) -> Escavação e carga de material de jazida com escavadeira hidráulica de 1,56 m³ | D43: 1.10027 | E43: m³
B45: F - MOMENTO DE TRANSPORTE | D45: Quantidade | E45: Unidade | F45: CÓDIGO TRANSPORTE
F46: LN | G46: RP | H46: P | I46: TIPO (P, RP ou LN) | J46: DMT ESTIMADA (km) | K46: QUANTITATIVO TOTAL DE TRANSPORTE (tkm)
A47: =IF(I47="P",H47,IF(I47="RP",G47,IF(I47="LN",F47,""))) -> 5914389 | B47: 4016096 | C47: =VLOOKUP(B47,'SINTÉTICO SICRO'!A:D,2,0) -> Escavação e carga de material de jazida com escavadeira hidráulica de 1,56 m³ | D47: 2.06301 | E47: tkm | F47: 5914359 | G47: 5914374 | H47: 5914389 | I47: =$B$24 -> P | J47: =$C$24 -> 10 | K47: =IF(ISBLANK(J47),"",J47*D47)*I41 -> 762488.496
B49: Obs.
B50: SISTEMA DE CUSTOS REFERENCIAIS DE OBRAS - SICRO
B51: Custo Unitário de Referência | I51: Quantitativo | K51: m³
B52: 4011227 | C52: =VLOOKUP(B52,'SINTÉTICO SICRO'!A:D,2,0) -> Sub-base de solo estabilizado granulometricamente sem mistura com material de jazida - 100% Proctor intermediário | I52: =SUMIF('RESUMO MODULO TOTAL'!C:C,B52,'RESUMO MODULO TOTAL'!H:H)*0.8 -> 36960
B53: D - ATIVIDADES AUXILIARES | D53: Quantidade | E53: Unidade
B54: 4016096 | C54: =VLOOKUP(B54,'SINTÉTICO SICRO'!A:D,2,0) -> Escavação e carga de material de jazida com escavadeira hidráulica de 1,56 m³ | D54: 1.10027 | E54: m³
B56: F - MOMENTO DE TRANSPORTE | D56: Quantidade | E56: Unidade | F56: CÓDIGO TRANSPORTE
F57: LN | G57: RP | H57: P | I57: TIPO (P, RP ou LN) | J57: DMT ESTIMADA (km) | K57: QUANTITATIVO TOTAL DE TRANSPORTE (tkm)
A58: =IF(I58="P",H58,IF(I58="RP",G58,IF(I58="LN",F58,""))) -> 5914389 | B58: 4016096 | C58: =VLOOKUP(B58,'SINTÉTICO SICRO'!A:D,2,0) -> Escavação e carga de material de jazida com escavadeira hidráulica de 1,56 m³ | D58: 2.06301 | E58: tkm | F58: 5914359 | G58: 5914374 | H58: 5914389 | I58: =$B$24 -> P | J58: =$C$24 -> 10 | K58: =IF(ISBLANK(J58),"",J58*D58)*I52 -> 762488.496
B60: Obs.
B62: SISTEMA DE CUSTOS REFERENCIAIS DE OBRAS - SICRO
B63: Custo Unitário de Referência | I63: Quantitativo | K63: m
B64: 2003943 | C64: =VLOOKUP(B64,'SINTÉTICO SICRO'!A:D,2,0) -> Meio-fio de concreto - MFC 03 moldado no local com extrusora e concreto usinado - areia e brita comerciais | I64: =SUMIF('RESUMO MODULO TOTAL'!C:C,B64,'RESUMO MODULO TOTAL'!H:H)*0.8 -> 70400
B65: D - ATIVIDADES AUXILIARES | D65: Quantidade | E65: Unidade
B66: 1107928 | C66: =VLOOKUP(B66,'SINTÉTICO SICRO'!A:D,2,0) -> Concreto fck = 20 MPa - confecção em central dosadora de 30 m³/h - areia e brita comerciais | D66: 0.042 | E66: m³
B67: 4805750 | C67: =VLOOKUP(B67,'SINTÉTICO SICRO'!A:D,2,0) -> Escavação manual em material de 1ª categoria na profundidade de até 1 m | D67: 0.03 | E67: m³
B69: F - MOMENTO DE TRANSPORTE | D69: Quantidade | E69: Unidade | F69: CÓDIGO TRANSPORTE
F70: LN | G70: RP | H70: P | I70: TIPO (P, RP ou LN) | J70: DMT ESTIMADA (km) | K70: QUANTITATIVO TOTAL DE TRANSPORTE (tkm)
A71: =IF(I71="P",H71,IF(I71="RP",G71,IF(I71="LN",F71,""))) -> 5914569 | B71: 1107928 | C71: =VLOOKUP(B71,'SINTÉTICO SICRO'!A:D,2,0) -> Concreto fck = 20 MPa - confecção em central dosadora de 30 m³/h - areia e brita comerciais | D71: 0.1008 | E71: tkm | F71: 5914539 | G71: 5914554 | H71: 5914569 | I71: =$B$24 -> P | J71: =C24 -> 10 | K71: =IF(ISBLANK(J71),"",J71*D71)*I64 -> 70963.2
B72: Obs.
B73: TIPO (P, RP ou LN) | C73: DMT ESTIMADA (DISTRIBUIÇÃO DO ITEM NA PISTA
B74: LN | C74: 10 | D74: Fica a cargo de cada SR colocar a distancia de distribuição
B76: SISTEMA DE CUSTOS REFERENCIAIS DE OBRAS - SICRO
B77: Custo Unitário de Referência | I77: Quantitativo | K77: t
B78: 4011463 | C78: =VLOOKUP(B78,'SINTÉTICO SICRO'!A:D,2,0) -> Concreto asfáltico - faixa C-12,5 - areia e brita comerciais | I78: =SUMIF('RESUMO MODULO TOTAL'!C:C,B78,'RESUMO MODULO TOTAL'!H:H)*0.1 -> 3696
B79: D - ATIVIDADES AUXILIARES | D79: Quantidade | E79: Unidade
B80: 6416078 | C80: =VLOOKUP(B80,'SINTÉTICO SICRO'!A:D,2,0) -> Usinagem de concreto asfáltico - faixa C-12,5 - areia e brita comerciais | D80: 1 | E80: t
B82: F - MOMENTO DE TRANSPORTE | D82: Quantidade | E82: Unidade | F82: CÓDIGO TRANSPORTE
F83: LN | G83: RP | H83: P | I83: TIPO (P, RP ou LN) | J83: DMT ESTIMADA (km) | K83: QUANTITATIVO TOTAL DE TRANSPORTE (tkm)
A84: =IF(I84="P",H84,IF(I84="RP",G84,IF(I84="LN",F84,""))) -> 5914359 | B84: 6416078 | C84: =VLOOKUP(B84,'SINTÉTICO SICRO'!A:D,2,0) -> Usinagem de concreto asfáltico - faixa C-12,5 - areia e brita comerciais | D84: 1 | E84: tkm | F84: 5914359 | G84: 5914374 | H84: 5914389 | I84: =$B$74 -> LN | J84: =$C$74 -> 10 | K84: =IF(ISBLANK(J84),"",J84*D84)*I78 -> 36960
B86: Obs.
B89: SISTEMA DE CUSTOS REFERENCIAIS DE OBRAS - SICRO
B90: Custo Unitário de Referência | I90: Quantitativo | K90: m³
B91: 4011219 | C91: =VLOOKUP(B91,'SINTÉTICO SICRO'!A:D,2,0) -> Base de solo estabilizado granulometricamente sem mistura com material de jazida - 100% Proctor modificado | I91: =SUMIF('RESUMO MODULO TOTAL'!C:C,B91,'RESUMO MODULO TOTAL'!H:H)*0.1 -> 4620
B92: D - ATIVIDADES AUXILIARES | D92: Quantidade | E92: Unidade
B93: 4016096 | C93: =VLOOKUP(B93,'SINTÉTICO SICRO'!A:D,2,0) -> Escavação e carga de material de jazida com escavadeira hidráulica de 1,56 m³ | D93: 1.10027 | E93: m³
B95: F - MOMENTO DE TRANSPORTE | D95: Quantidade | E95: Unidade | F95: CÓDIGO TRANSPORTE
F96: LN | G96: RP | H96: P | I96: TIPO (P, RP ou LN) | J96: DMT ESTIMADA (km) | K96: QUANTITATIVO TOTAL DE TRANSPORTE (tkm)
A97: =IF(I97="P",H97,IF(I97="RP",G97,IF(I97="LN",F97,""))) -> 5914359 | B97: 4016096 | C97: =VLOOKUP(B97,'SINTÉTICO SICRO'!A:D,2,0) -> Escavação e carga de material de jazida com escavadeira hidráulica de 1,56 m³ | D97: 2.06301 | E97: tkm | F97: 5914359 | G97: 5914374 | H97: 5914389 | I97: =$B$74 -> LN | J97: =$C$74 -> 10 | K97: =IF(ISBLANK(J97),"",J97*D97)*I91 -> 95311.062
B99: Obs.
B100: SISTEMA DE CUSTOS REFERENCIAIS DE OBRAS - SICRO
B101: Custo Unitário de Referência | I101: Quantitativo | K101: m³
B102: 4011227 | C102: =VLOOKUP(B102,'SINTÉTICO SICRO'!A:D,2,0) -> Sub-base de solo estabilizado granulometricamente sem mistura com material de jazida - 100% Proctor intermediário | I102: =SUMIF('RESUMO MODULO TOTAL'!C:C,B102,'RESUMO MODULO TOTAL'!H:H)*0.1 -> 4620
B103: D - ATIVIDADES AUXILIARES | D103: Quantidade | E103: Unidade
B104: 4016096 | C104: =VLOOKUP(B104,'SINTÉTICO SICRO'!A:D,2,0) -> Escavação e carga de material de jazida com escavadeira hidráulica de 1,56 m³ | D104: 1.10027 | E104: m³
B106: F - MOMENTO DE TRANSPORTE | D106: Quantidade | E106: Unidade | F106: CÓDIGO TRANSPORTE
F107: LN | G107: RP | H107: P | I107: TIPO (P, RP ou LN) | J107: DMT ESTIMADA (km) | K107: QUANTITATIVO TOTAL DE TRANSPORTE (tkm)
A108: =IF(I108="P",H108,IF(I108="RP",G108,IF(I108="LN",F108,""))) -> 5914359 | B108: 4016096 | C108: =VLOOKUP(B108,'SINTÉTICO SICRO'!A:D,2,0) -> Escavação e carga de material de jazida com escavadeira hidráulica de 1,56 m³ | D108: 2.06301 | E108: tkm | F108: 5914359 | G108: 5914374 | H108: 5914389 | I108: =$B$74 -> LN | J108: =$C$74 -> 10 | K108: =IF(ISBLANK(J108),"",J108*D108)*I102 -> 95311.062
B110: Obs.
B112: SISTEMA DE CUSTOS REFERENCIAIS DE OBRAS - SICRO
B113: Custo Unitário de Referência | I113: Quantitativo | K113: m
B114: 2003943 | C114: =VLOOKUP(B114,'SINTÉTICO SICRO'!A:D,2,0) -> Meio-fio de concreto - MFC 03 moldado no local com extrusora e concreto usinado - areia e brita comerciais | I114: =SUMIF('RESUMO MODULO TOTAL'!C:C,B114,'RESUMO MODULO TOTAL'!H:H)*0.1 -> 8800
B115: D - ATIVIDADES AUXILIARES | D115: Quantidade | E115: Unidade
B116: 1107928 | C116: =VLOOKUP(B116,'SINTÉTICO SICRO'!A:D,2,0) -> Concreto fck = 20 MPa - confecção em central dosadora de 30 m³/h - areia e brita comerciais | D116: 0.042 | E116: m³
B117: 4805750 | C117: =VLOOKUP(B117,'SINTÉTICO SICRO'!A:D,2,0) -> Escavação manual em material de 1ª categoria na profundidade de até 1 m | D117: 0.03 | E117: m³
B119: F - MOMENTO DE TRANSPORTE | D119: Quantidade | E119: Unidade | F119: CÓDIGO TRANSPORTE
F120: LN | G120: RP | H120: P | I120: TIPO (P, RP ou LN) | J120: DMT ESTIMADA (km) | K120: QUANTITATIVO TOTAL DE TRANSPORTE (tkm)
A121: =IF(I121="P",H121,IF(I121="RP",G121,IF(I121="LN",F121,""))) -> 5914539 | B121: 1107928 | C121: =VLOOKUP(B121,'SINTÉTICO SICRO'!A:D,2,0) -> Concreto fck = 20 MPa - confecção em central dosadora de 30 m³/h - areia e brita comerciais | D121: 0.1008 | E121: tkm | F121: 5914539 | G121: 5914554 | H121: 5914569 | I121: =$B$74 -> LN | J121: =C74 -> 10 | K121: =IF(ISBLANK(J121),"",J121*D121)*I114 -> 8870.4
B122: Obs.
B123: TIPO (P, RP ou LN) | C123: DMT ESTIMADA (DISTRIBUIÇÃO DO ITEM NA PISTA
B124: RP | C124: 10 | D124: Fica a cargo de cada SR colocar a distancia de distribuição
B126: SISTEMA DE CUSTOS REFERENCIAIS DE OBRAS - SICRO
B127: Custo Unitário de Referência | I127: Quantitativo | K127: t
B128: 4011463 | C128: =VLOOKUP(B128,'SINTÉTICO SICRO'!A:D,2,0) -> Concreto asfáltico - faixa C-12,5 - areia e brita comerciais | I128: =SUMIF('RESUMO MODULO TOTAL'!C:C,B128,'RESUMO MODULO TOTAL'!H:H)*0.1 -> 3696
B129: D - ATIVIDADES AUXILIARES | D129: Quantidade | E129: Unidade
B130: 6416078 | C130: =VLOOKUP(B130,'SINTÉTICO SICRO'!A:D,2,0) -> Usinagem de concreto asfáltico - faixa C-12,5 - areia e brita comerciais | D130: 1 | E130: t
B132: F - MOMENTO DE TRANSPORTE | D132: Quantidade | E132: Unidade | F132: CÓDIGO TRANSPORTE
F133: LN | G133: RP | H133: P | I133: TIPO (P, RP ou LN) | J133: DMT ESTIMADA (km) | K133: QUANTITATIVO TOTAL DE TRANSPORTE (tkm)
A134: =IF(I134="P",H134,IF(I134="RP",G134,IF(I134="LN",F134,""))) -> 5914374 | B134: 6416078 | C134: =VLOOKUP(B134,'SINTÉTICO SICRO'!A:D,2,0) -> Usinagem de concreto asfáltico - faixa C-12,5 - areia e brita comerciais | D134: 1 | E134: tkm | F134: 5914359 | G134: 5914374 | H134: 5914389 | I134: =$B$124 -> RP | J134: =$C$124 -> 10 | K134: =IF(ISBLANK(J134),"",J134*D134)*I128 -> 36960
B136: Obs.
B138: SISTEMA DE CUSTOS REFERENCIAIS DE OBRAS - SICRO
B139: Custo Unitário de Referência | I139: Quantitativo | K139: m³
B140: 4011219 | C140: =VLOOKUP(B140,'SINTÉTICO SICRO'!A:D,2,0) -> Base de solo estabilizado granulometricamente sem mistura com material de jazida - 100% Proctor modificado | I140: =SUMIF('RESUMO MODULO TOTAL'!C:C,B140,'RESUMO MODULO TOTAL'!H:H)*0.1 -> 4620
B141: D - ATIVIDADES AUXILIARES | D141: Quantidade | E141: Unidade
B142: 4016096 | C142: =VLOOKUP(B142,'SINTÉTICO SICRO'!A:D,2,0) -> Escavação e carga de material de jazida com escavadeira hidráulica de 1,56 m³ | D142: 1 | E142: m³
B144: F - MOMENTO DE TRANSPORTE | D144: Quantidade | E144: Unidade | F144: CÓDIGO TRANSPORTE
F145: LN | G145: RP | H145: P | I145: TIPO (P, RP ou LN) | J145: DMT ESTIMADA (km) | K145: QUANTITATIVO TOTAL DE TRANSPORTE (tkm)
A146: =IF(I146="P",H146,IF(I146="RP",G146,IF(I146="LN",F146,""))) -> 5914374 | B146: 4016096 | C146: =VLOOKUP(B146,'SINTÉTICO SICRO'!A:D,2,0) -> Escavação e carga de material de jazida com escavadeira hidráulica de 1,56 m³ | D146: 2.063 | E146: tkm | F146: 5914359 | G146: 5914374 | H146: 5914389 | I146: =$B$124 -> RP | J146: =$C$124 -> 10 | K146: =IF(ISBLANK(J146),"",J146*D146)*I140 -> 95310.6
B148: Obs.
B149: SISTEMA DE CUSTOS REFERENCIAIS DE OBRAS - SICRO
B150: Custo Unitário de Referência | I150: Quantitativo | K150: m³
B151: 4011227 | C151: =VLOOKUP(B151,'SINTÉTICO SICRO'!A:D,2,0) -> Sub-base de solo estabilizado granulometricamente sem mistura com material de jazida - 100% Proctor intermediário | I151: =SUMIF('RESUMO MODULO TOTAL'!C:C,B151,'RESUMO MODULO TOTAL'!H:H)*0.1 -> 4620
B152: D - ATIVIDADES AUXILIARES | D152: Quantidade | E152: Unidade
B153: 4016096 | C153: =VLOOKUP(B153,'SINTÉTICO SICRO'!A:D,2,0) -> Escavação e carga de material de jazida com escavadeira hidráulica de 1,56 m³ | D153: 1 | E153: m³
B155: F - MOMENTO DE TRANSPORTE | D155: Quantidade | E155: Unidade | F155: CÓDIGO TRANSPORTE
F156: LN | G156: RP | H156: P | I156: TIPO (P, RP ou LN) | J156: DMT ESTIMADA (km) | K156: QUANTITATIVO TOTAL DE TRANSPORTE (tkm)
A157: =IF(I157="P",H157,IF(I157="RP",G157,IF(I157="LN",F157,""))) -> 5914374 | B157: 4016096 | C157: =VLOOKUP(B157,'SINTÉTICO SICRO'!A:D,2,0) -> Escavação e carga de material de jazida com escavadeira hidráulica de 1,56 m³ | D157: 2.063 | E157: tkm | F157: 5914359 | G157: 5914374 | H157: 5914389 | I157: =$B$124 -> RP | J157: =$C$124 -> 10 | K157: =IF(ISBLANK(J157),"",J157*D157)*I151 -> 95310.6
B159: Obs.
B161: SISTEMA DE CUSTOS REFERENCIAIS DE OBRAS - SICRO
B162: Custo Unitário de Referência | I162: Quantitativo | K162: m
B163: 2003943 | C163: =VLOOKUP(B163,'SINTÉTICO SICRO'!A:D,2,0) -> Meio-fio de concreto - MFC 03 moldado no local com extrusora e concreto usinado - areia e brita comerciais | I163: =SUMIF('RESUMO MODULO TOTAL'!C:C,B163,'RESUMO MODULO TOTAL'!H:H)*0.1 -> 8800
B164: D - ATIVIDADES AUXILIARES | D164: Quantidade | E164: Unidade
B165: 1107928 | C165: =VLOOKUP(B165,'SINTÉTICO SICRO'!A:D,2,0) -> Concreto fck = 20 MPa - confecção em central dosadora de 30 m³/h - areia e brita comerciais | D165: 0.042 | E165: m³
B166: 4805750 | C166: =VLOOKUP(B166,'SINTÉTICO SICRO'!A:D,2,0) -> Escavação manual em material de 1ª categoria na profundidade de até 1 m | D166: 0.03 | E166: m³
B168: F - MOMENTO DE TRANSPORTE | D168: Quantidade | E168: Unidade | F168: CÓDIGO TRANSPORTE
F169: LN | G169: RP | H169: P | I169: TIPO (P, RP ou LN) | J169: DMT ESTIMADA (km) | K169: QUANTITATIVO TOTAL DE TRANSPORTE (tkm)
A170: =IF(I170="P",H170,IF(I170="RP",G170,IF(I170="LN",F170,""))) -> 5914554 | B170: 1107928 | C170: =VLOOKUP(B170,'SINTÉTICO SICRO'!A:D,2,0) -> Concreto fck = 20 MPa - confecção em central dosadora de 30 m³/h - areia e brita comerciais | D170: 0.1008 | E170: tkm | F170: 5914539 | G170: 5914554 | H170: 5914569 | I170: =$B$124 -> RP | J170: =C124 -> 10 | K170: =IF(ISBLANK(J170),"",J170*D170)*I163 -> 8870.4
B171: Obs.

Sheet MOMENTO DE TRANSPORTE - AUX
B5: ='RESUMO MODULO TOTAL'!B63 -> CONTRATAÇÃO DE SERVIÇOS DE PAVIMENTAÇÃO ASFÁLTICA COM CONCRETO BETUMINOSO USINADO A QUENTE (CBUQ) EM VIAS URBANAS E RURAIS INSERIDAS NA ÁREA DE ATUAÇÃO DA CODEVASF, NO ESTADO DO PIAUÍ - REGIÃO SUL
B6: DATA BASE: | C6: ='RESUMO MODULO TOTAL'!C6 -> 2025-10-01
C8: RESUMO DO TRANSPORTE AUXILIAR
B9: CODIGO | C9: DESCRIÇÃO | D9: TKM
B10: 5914359 | C10: =VLOOKUP(B10,'SINTÉTICO SICRO'!$A:$D,2,0) -> Transporte com caminhão basculante de 10 m³ - rodovia em leito natural | D10: =ROUND(SUMIF($A:$A,B10,$K:$K),2) -> 21363.27
B11: 5914374 | C11: =VLOOKUP(B11,'SINTÉTICO SICRO'!$A:$D,2,0) -> Transporte com caminhão basculante de 10 m³ - rodovia em revestimento primário | D11: 21363.27
B12: 5914389 | C12: =VLOOKUP(B12,'SINTÉTICO SICRO'!$A:$D,2,0) -> Transporte com caminhão basculante de 10 m³ - rodovia pavimentada | D12: 170906.14
B13: 5914449 | C13: =VLOOKUP(B13,'SINTÉTICO SICRO'!$A:$D,2,0) -> Transporte com caminhão carroceria de 15 t - rodovia em leito natural | D13: 509.05
B14: 5914464 | C14: =VLOOKUP(B14,'SINTÉTICO SICRO'!$A:$D,2,0) -> Transporte com caminhão carroceria de 15 t - rodovia em revestimento primário | D14: 509.05
B15: 5914479 | C15: =VLOOKUP(B15,'SINTÉTICO SICRO'!$A:$D,2,0) -> Transporte com caminhão carroceria de 15 t - rodovia pavimentada | D15: 4072.4
B16: 5914364 | C16: =VLOOKUP(B16,'SINTÉTICO SICRO'!$A:$D,2,0) -> Transporte de cimento ou cal hidratada a granel com caminhão silo de 30 m³ - rodovia em leito natural | D16: 267.22
B17: 5914365 | C17: =VLOOKUP(B17,'SINTÉTICO SICRO'!$A:$D,2,0) -> Transporte de cimento ou cal hidratada a granel com caminhão silo de 30 m³ - rodovia em revestimento primário | D17: 267.22 | J17: RESUMO MODULO TOTAL NOVO'!$C$9:$J$60;6
B18: 5914366 | C18: =VLOOKUP(B18,'SINTÉTICO SICRO'!$A:$D,2,0) -> Transporte de cimento ou cal hidratada a granel com caminhão silo de 30 m³ - rodovia pavimentada | D18: 2137.77
B20: TIPO (P, RP ou LN) | C20: DMT ATÉ 50 KM NÃO DEVE SER PAGA | D20: SOMENTE DEVE SER ADICIONADO A DISTÂNCIA EXCEDENTE A 50 KM
B21: P | D21: 5
B23: SISTEMA DE CUSTOS REFERENCIAIS DE OBRAS - SICRO | I23: Quantitivo
B24: Custo Unitário de Referência | E24: =$C$6 -> 2025-10-01 | I24: (Coeficiente na composição principal) x (quantidade da principal no orçamento) | K24: t
B25: 6416078 | C25: =VLOOKUP(B25,'SINTÉTICO SICRO'!A:D,2,0) -> Usinagem de concreto asfáltico - faixa C-12,5 - areia e brita comerciais | I25: ='MOMENTO DE TRANSPORTE - PRINC'!D30*(VLOOKUP(C34,'RESUMO MODULO TOTAL'!$C$9:$J$59,6,FALSE))*0.8 -> 29568
B26: F - MOMENTO DE TRANSPORTE | D26: Quantidade | E26: Unidade | F26: DMT
F27: LN | G27: RP | H27: P | I27: TIPO (P, RP ou LN) | J27: DMT ESTIMADA (km) | K27: QUANTITATIVO TOTAL DE TRANSPORTE DE MATERIAL (tkm)
A28: =IF(I28="P",H28,IF(I28="RP",G28,IF(I28="LN",F28,""))) -> 5914389 | B28: M0028 | C28: Areia média - Caminhão basculante 10 m³ | D28: 0.04052 | E28: tkm | F28: 5914359 | G28: 5914374 | H28: 5914389 | I28: =$B$21 -> P | J28: =$D$21 -> 5 | K28: =IF(ISBLANK(J28),"",J28*(D28*$I$25)) -> 5990.4768
A29: =IF(I29="P",H29,IF(I29="RP",G29,IF(I29="LN",F29,""))) -> 5914389 | B29: M0005 | C29: Brita 0 - Caminhão basculante 10 m³ | D29: 0.13505 | E29: tkm | F29: 5914359 | G29: 5914374 | H29: 5914389 | I29: =$B$21 -> P | J29: =$D$21 -> 5 | K29: 19965.792
A30: 5914389 | B30: M0191 | C30: Brita 1 - Caminhão basculante 10 m³ | D30: 0.04823 | E30: tkm | F30: 5914359 | G30: 5914374 | H30: 5914389 | I30: P | J30: 5 | K30: 7130.3232
A31: 5914366 | B31: M0344 | C31: Cal hidratada - a granel - Caminhão silo 30 m³ | D31: 0.01446 | E31: tkm | F31: 5914364 | G31: 5914365 | H31: 5914366 | I31: P | J31: 5 | K31: 2137.7664
A32: 5914389 | B32: M1103 | C32: Pedrisco - Caminhão basculante 10 m³ | D32: 0.22185 | E32: tkm | F32: 5914359 | G32: 5914374 | H32: 5914389 | I32: P | J32: 5 | K32: 32798.304
A33: 5914389 | B33: M1135 | C33: Pó de pedra - Caminhão basculante 10 m³ | D33: 0.50447 | E33: tkm | F33: 5914359 | G33: 5914374 | H33: 5914389 | I33: P | J33: 5 | K33: 74580.8448
B34: PRINCIPAL: | C34: 4011463
B35: SISTEMA DE CUSTOS REFERENCIAIS DE OBRAS - SICRO | I35: Quantitivo
B36: Custo Unitário de Referência | E36: =$C$6 -> 2025-10-01 | I36: (Coeficiente na composição principal) x (quantidade da principal no orçamento) | K36: m³
B37: 1107928 | C37: =VLOOKUP(B37,'SINTÉTICO SICRO'!A:D,2,0) -> Concreto fck = 20 MPa - confecção em central dosadora de 30 m³/h - areia e brita comerciais | I37: ='MOMENTO DE TRANSPORTE - PRINC'!D66*(VLOOKUP(C46,'RESUMO MODULO TOTAL'!$C$9:$J$59,6,FALSE))*0.8 -> 2956.8
B38: F - MOMENTO DE TRANSPORTE | D38: Quantidade | E38: Unidade | F38: DMT
F39: LN | G39: RP | H39: P | I39: TIPO (P, RP ou LN) | J39: DMT ESTIMADA (km) | K39: QUANTITATIVO TOTAL DE TRANSPORTE DE MATERIAL (tkm)
A40: =IF(I40="P",H40,IF(I40="RP",G40,IF(I40="LN",F40,""))) -> 5914479 | B40: M0030 | C40: Aditivo plastificante e retardador de pega para concreto e argamassa - Caminhão carroceria 15 t | D40: 0.00082 | E40: tkm | F40: 5914449 | G40: 5914464 | H40: 5914479 | I40: =$B$21 -> P | J40: =$D$21 -> 5 | K40: =IF(ISBLANK(J40),"",J40*(D40*$I$37)) -> 12.12288
A41: =IF(I41="P",H41,IF(I41="RP",G41,IF(I41="LN",F41,""))) -> 5914389 | B41: M0082 | C41: Areia média lavada - Caminhão basculante 10 m³ | D41: 0.95639 | E41: tkm | F41: 5914359 | G41: 5914374 | H41: 5914389 | I41: =$B$21 -> P | J41: =$D$21 -> 5 | K41: =IF(ISBLANK(J41),"",J41*(D41*$I$37)) -> 14139.26976
A42: 5914389 | B42: M0191 | C42: Brita 1 - Caminhão basculante 10 m³ | D42: 0.55131 | E42: tkm | F42: 5914359 | G42: 5914374 | H42: 5914389 | I42: P | J42: 5 | K42: =IF(ISBLANK(J42),"",J42*(D42*$I$37)) -> 8150.56704
A43: 5914389 | B43: M0192 | C43: Brita 2 - Caminhão basculante 10 m³ | D43: 0.55131 | E43: tkm | F43: 5914359 | G43: 5914374 | H43: 5914389 | I43: P | J43: 5 | K43: =IF(ISBLANK(J43),"",J43*(D43*$I$37)) -> 8150.56704
A44: 5914479 | B44: M0424 | C44: Cimento Portland CP II - 32 - saco - Caminhão carroceria 15 t | D44: 0.27464 | E44: tkm | F44: 5914449 | G44: 5914464 | H44: 5914479 | I44: P | J44: 5 | K44: =IF(ISBLANK(J44),"",J44*(D44*$I$37)) -> 4060.27776
B46: PRINCIPAL: | C46: 2003943
B47: TIPO (P, RP ou LN) | C47: DMT ATÉ 50 KM NÃO DEVE SER PAGA | D47: SOMENTE DEVE SER ADICIONADO A DISTÂNCIA EXCEDENTE A 50 KM
B48: LN | D48: 5
B50: SISTEMA DE CUSTOS REFERENCIAIS DE OBRAS - SICRO | I50: Quantitivo
B51: Custo Unitário de Referência | E51: =$C$6 -> 2025-10-01 | I51: (Coeficiente na composição principal) x (quantidade da principal no orçamento) | K51: t
B52: 6416078 | C52: =VLOOKUP(B52,'SINTÉTICO SICRO'!A:D,2,0) -> Usinagem de concreto asfáltico - faixa C-12,5 - areia e brita comerciais | I52: ='MOMENTO DE TRANSPORTE - PRINC'!D80*(VLOOKUP(C61,'RESUMO MODULO TOTAL'!$C$9:$J$59,6,FALSE))*0.1 -> 3696
B53: F - MOMENTO DE TRANSPORTE | D53: Quantidade | E53: Unidade | F53: DMT
F54: LN | G54: RP | H54: P | I54: TIPO (P, RP ou LN) | J54: DMT ESTIMADA (km) | K54: QUANTITATIVO TOTAL DE TRANSPORTE DE MATERIAL (tkm)
A55: =IF(I55="P",H55,IF(I55="RP",G55,IF(I55="LN",F55,""))) -> 5914359 | B55: M0028 | C55: Areia média - Caminhão basculante 10 m³ | D55: 0.04052 | E55: tkm | F55: 5914359 | G55: 5914374 | H55: 5914389 | I55: =$B$48 -> LN | J55: =$D$48 -> 5 | K55: =IF(ISBLANK(J55),"",J55*(D55*$I$52)) -> 748.8096
A56: =IF(I56="P",H56,IF(I56="RP",G56,IF(I56="LN",F56,""))) -> 5914359 | B56: M0005 | C56: Brita 0 - Caminhão basculante 10 m³ | D56: 0.13505 | E56: tkm | F56: 5914359 | G56: 5914374 | H56: 5914389 | I56: =$B$48 -> LN | J56: =$D$48 -> 5 | K56: =IF(ISBLANK(J56),"",J56*(D56*$I$52)) -> 2495.724
A57: 5914359 | B57: M0191 | C57: Brita 1 - Caminhão basculante 10 m³ | D57: 0.04823 | E57: tkm | F57: 5914359 | G57: 5914374 | H57: 5914389 | I57: LN | J57: 5 | K57: 891.2904
A58: 5914364 | B58: M0344 | C58: Cal hidratada - a granel - Caminhão silo 30 m³ | D58: 0.01446 | E58: tkm | F58: 5914364 | G58: 5914365 | H58: 5914366 | I58: LN | J58: 5 | K58: 267.2208
A59: 5914359 | B59: M1103 | C59: Pedrisco - Caminhão basculante 10 m³ | D59: 0.22185 | E59: tkm | F59: 5914359 | G59: 5914374 | H59: 5914389 | I59: LN | J59: 5 | K59: 4099.788
A60: 5914359 | B60: M1135 | C60: Pó de pedra - Caminhão basculante 10 m³ | D60: 0.50447 | E60: tkm | F60: 5914359 | G60: 5914374 | H60: 5914389 | I60: LN | J60: 5 | K60: =IF(ISBLANK(J60),"",J60*(D60*$I$52)) -> 9322.6056
B61: PRINCIPAL: | C61: 4011463
B62: SISTEMA DE CUSTOS REFERENCIAIS DE OBRAS - SICRO | I62: Quantitivo
B63: Custo Unitário de Referência | E63: =$C$6 -> 2025-10-01 | I63: (Coeficiente na composição principal) x (quantidade da principal no orçamento) | K63: m³
B64: 1107928 | C64: =VLOOKUP(B64,'SINTÉTICO SICRO'!A:D,2,0) -> Concreto fck = 20 MPa - confecção em central dosadora de 30 m³/h - areia e brita comerciais | I64: ='MOMENTO DE TRANSPORTE - PRINC'!D116*(VLOOKUP(C73,'RESUMO MODULO TOTAL'!$C$9:$J$59,6,FALSE))*0.1 -> 369.6
B65: F - MOMENTO DE TRANSPORTE | D65: Quantidade | E65: Unidade | F65: DMT
F66: LN | G66: RP | H66: P | I66: TIPO (P, RP ou LN) | J66: DMT ESTIMADA (km) | K66: QUANTITATIVO TOTAL DE TRANSPORTE DE MATERIAL (tkm)
A67: =IF(I67="P",H67,IF(I67="RP",G67,IF(I67="LN",F67,""))) -> 5914449 | B67: M0030 | C67: Aditivo plastificante e retardador de pega para concreto e argamassa - Caminhão carroceria 15 t | D67: 0.00082 | E67: tkm | F67: 5914449 | G67: 5914464 | H67: 5914479 | I67: =$B$48 -> LN | J67: =D48 -> 5 | K67: =IF(ISBLANK(J67),"",J67*(D67*$I$64)) -> 1.51536
A68: =IF(I68="P",H68,IF(I68="RP",G68,IF(I68="LN",F68,""))) -> 5914359 | B68: M0082 | C68: Areia média lavada - Caminhão basculante 10 m³ | D68: 0.95639 | E68: tkm | F68: 5914359 | G68: 5914374 | H68: 5914389 | I68: LN | J68: =D48 -> 5 | K68: =IF(ISBLANK(J68),"",J68*(D68*$I$64)) -> 1767.40872
A69: 5914359 | B69: M0191 | C69: Brita 1 - Caminhão basculante 10 m³ | D69: 0.55131 | E69: tkm | F69: 5914359 | G69: 5914374 | H69: 5914389 | I69: LN | J69: =D48 -> 5 | K69: 1018.82088
A70: 5914359 | B70: M0192 | C70: Brita 2 - Caminhão basculante 10 m³ | D70: 0.55131 | E70: tkm | F70: 5914359 | G70: 5914374 | H70: 5914389 | I70: LN | J70: =D48 -> 5 | K70: 1018.82088
A71: 5914449 | B71: M0424 | C71: Cimento Portland CP II - 32 - saco - Caminhão carroceria 15 t | D71: 0.27464 | E71: tkm | F71: 5914449 | G71: 5914464 | H71: 5914479 | I71: LN | J71: =D48 -> 5 | K71: 507.53472
B73: PRINCIPAL: | C73: 2003943
B74: TIPO (P, RP ou LN) | C74: DMT ATÉ 50 KM NÃO DEVE SER PAGA | D74: SOMENTE DEVE SER ADICIONADO A DISTÂNCIA EXCEDENTE A 50 KM
B75: RP | D75: 5
B77: PRINCIPAL: | C77: 903808
B78: SISTEMA DE CUSTOS REFERENCIAIS DE OBRAS - SICRO | I78: Quantitivo
B79: Custo Unitário de Referência | E79: =$C$6 -> 2025-10-01 | I79: (Coeficiente na composição principal) x (quantidade da principal no orçamento) | K79: t
B80: 6416078 | C80: =VLOOKUP(B80,'SINTÉTICO SICRO'!A:D,2,0) -> Usinagem de concreto asfáltico - faixa C-12,5 - areia e brita comerciais | I80: ='MOMENTO DE TRANSPORTE - PRINC'!D130*(VLOOKUP(C89,'RESUMO MODULO TOTAL'!$C$9:$J$59,6,FALSE))*0.1 -> 3696
B81: F - MOMENTO DE TRANSPORTE | D81: Quantidade | E81: Unidade | F81: DMT
F82: LN | G82: RP | H82: P | I82: TIPO (P, RP ou LN) | J82: DMT ESTIMADA (km) | K82: QUANTITATIVO TOTAL DE TRANSPORTE DE MATERIAL (tkm)
A83: =IF(I83="P",H83,IF(I83="RP",G83,IF(I83="LN",F83,""))) -> 5914374 | B83: M0028 | C83: Areia média - Caminhão basculante 10 m³ | D83: 0.04052 | E83: tkm | F83: 5914359 | G83: 5914374 | H83: 5914389 | I83: =$B$75 -> RP | J83: =$D$75 -> 5 | K83: =IF(ISBLANK(J83),"",J83*(D83*$I$80)) -> 748.8096
A84: =IF(I84="P",H84,IF(I84="RP",G84,IF(I84="LN",F84,""))) -> 5914374 | B84: M0005 | C84: Brita 0 - Caminhão basculante 10 m³ | D84: 0.13505 | E84: tkm | F84: 5914359 | G84: 5914374 | H84: 5914389 | I84: =$B$75 -> RP | J84: =$D$75 -> 5 | K84: =IF(ISBLANK(J84),"",J84*(D84*$I$80)) -> 2495.724
A85: 5914374 | B85: M0191 | C85: Brita 1 - Caminhão basculante 10 m³ | D85: 0.04823 | E85: tkm | F85: 5914359 | G85: 5914374 | H85: 5914389 | I85: RP | J85: 5 | K85: 891.2904
A86: 5914365 | B86: M0344 | C86: Cal hidratada - a granel - Caminhão silo 30 m³ | D86: 0.01446 | E86: tkm | F86: 5914364 | G86: 5914365 | H86: 5914366 | I86: RP | J86: 5 | K86: 267.2208
A87: 5914374 | B87: M1103 | C87: Pedrisco - Caminhão basculante 10 m³ | D87: 0.22185 | E87: tkm | F87: 5914359 | G87: 5914374 | H87: 5914389 | I87: RP | J87: 5 | K87: 4099.788
A88: 5914374 | B88: M1135 | C88: Pó de pedra - Caminhão basculante 10 m³ | D88: 0.50447 | E88: tkm | F88: 5914359 | G88: 5914374 | H88: 5914389 | I88: RP | J88: 5 | K88: =IF(ISBLANK(J88),"",J88*(D88*$I$80)) -> 9322.6056
B89: PRINCIPAL: | C89: 4011463
B90: SISTEMA DE CUSTOS REFERENCIAIS DE OBRAS - SICRO | I90: Quantitivo
B91: Custo Unitário de Referência | E91: =$C$6 -> 2025-10-01 | I91: (Coeficiente na composição principal) x (quantidade da principal no orçamento) | K91: m³
B92: 1107928 | C92: =VLOOKUP(B92,'SINTÉTICO SICRO'!A:D,2,0) -> Concreto fck = 20 MPa - confecção em central dosadora de 30 m³/h - areia e brita comerciais | I92: ='MOMENTO DE TRANSPORTE - PRINC'!D165*(VLOOKUP(C101,'RESUMO MODULO TOTAL'!$C$9:$J$59,6,FALSE))*0.1 -> 369.6
B93: F - MOMENTO DE TRANSPORTE | D93: Quantidade | E93: Unidade | F93: DMT
F94: LN | G94: RP | H94: P | I94: TIPO (P, RP ou LN) | J94: DMT ESTIMADA (km) | K94: QUANTITATIVO TOTAL DE TRANSPORTE DE MATERIAL (tkm)
A95: =IF(I95="P",H95,IF(I95="RP",G95,IF(I95="LN",F95,""))) -> 5914464 | B95: M0030 | C95: Aditivo plastificante e retardador de pega para concreto e argamassa - Caminhão carroceria 15 t | D95: 0.00082 | E95: tkm | F95: 5914449 | G95: 5914464 | H95: 5914479 | I95: =$B$75 -> RP | J95: =D75 -> 5 | K95: =IF(ISBLANK(J95),"",J95*(D95*$I$92)) -> 1.51536
A96: =IF(I96="P",H96,IF(I96="RP",G96,IF(I96="LN",F96,""))) -> 5914374 | B96: M0082 | C96: Areia média lavada - Caminhão basculante 10 m³ | D96: 0.95639 | E96: tkm | F96: 5914359 | G96: 5914374 | H96: 5914389 | I96: RP | J96: =D75 -> 5 | K96: =IF(ISBLANK(J96),"",J96*(D96*$I$92)) -> 1767.40872
A97: 5914374 | B97: M0191 | C97: Brita 1 - Caminhão basculante 10 m³ | D97: 0.55131 | E97: tkm | F97: 5914359 | G97: 5914374 | H97: 5914389 | I97: RP | J97: =D75 -> 5 | K97: 1018.82088
A98: 5914374 | B98: M0192 | C98: Brita 2 - Caminhão basculante 10 m³ | D98: 0.55131 | E98: tkm | F98: 5914359 | G98: 5914374 | H98: 5914389 | I98: RP | J98: =D75 -> 5 | K98: 1018.82088
A99: 5914464 | B99: M0424 | C99: Cimento Portland CP II - 32 - saco - Caminhão carroceria 15 t | D99: 0.27464 | E99: tkm | F99: 5914449 | G99: 5914464 | H99: 5914479 | I99: RP | J99: =D75 -> 5 | K99: 507.53472
B101: PRINCIPAL: | C101: 2003943
A104: =IF(I104="P",H104,IF(I104="RP",G104,IF(I104="LN",F104,""))) -> 

Sheet MEDICAO EM TKM
A5: PLANILHA DE MEDIÇAO DE TKM
A6: 903808 | B6: =VLOOKUP(A6,'SINTÉTICO SICRO'!A:D,2,0) -> Instalação da usina misturadora de solos com capacidade de 300 t/h
A7: MOMENTO DE TRANSPORTE | D7: Quantidade (tkm) | E7: quantidade medida(un.)
E8: 1
A9: 5914479 | B9: =VLOOKUP(A9,'SINTÉTICO SICRO'!A:D,2,0) -> Transporte com caminhão carroceria de 15 t - rodovia pavimentada | D9: =SUMIF('MOMENTO DE TRANSPORTE - AUX'!#REF!,'MEDICAO EM TKM'!A9,'MOMENTO DE TRANSPORTE - AUX'!#REF!) ->  | E9: =D9*$E$8 -> 
A10: 5914389 | B10: =VLOOKUP(A10,'SINTÉTICO SICRO'!A:D,2,0) -> Transporte com caminhão basculante de 10 m³ - rodovia pavimentada | D10: =SUMIF('MOMENTO DE TRANSPORTE - AUX'!#REF!,'MEDICAO EM TKM'!A10,'MOMENTO DE TRANSPORTE - AUX'!#REF!) -> 
A11: 5914449 | B11: =VLOOKUP(A11,'SINTÉTICO SICRO'!A:D,2,0) -> Transporte com caminhão carroceria de 15 t - rodovia em leito natural | D11: =SUMIF('MOMENTO DE TRANSPORTE - AUX'!#REF!,'MEDICAO EM TKM'!A11,'MOMENTO DE TRANSPORTE - AUX'!#REF!) -> 
A12: 5914359 | B12: =VLOOKUP(A12,'SINTÉTICO SICRO'!A:D,2,0) -> Transporte com caminhão basculante de 10 m³ - rodovia em leito natural | D12: =SUMIF('MOMENTO DE TRANSPORTE - AUX'!#REF!,'MEDICAO EM TKM'!A12,'MOMENTO DE TRANSPORTE - AUX'!#REF!) -> 
A13: 5914464 | B13: =VLOOKUP(A13,'SINTÉTICO SICRO'!A:D,2,0) -> Transporte com caminhão carroceria de 15 t - rodovia em revestimento primário | D13: =SUMIF('MOMENTO DE TRANSPORTE - AUX'!#REF!,'MEDICAO EM TKM'!A13,'MOMENTO DE TRANSPORTE - AUX'!#REF!) -> 
A14: 5914374 | B14: =VLOOKUP(A14,'SINTÉTICO SICRO'!A:D,2,0) -> Transporte com caminhão basculante de 10 m³ - rodovia em revestimento primário | D14: =SUMIF('MOMENTO DE TRANSPORTE - AUX'!#REF!,'MEDICAO EM TKM'!A14,'MOMENTO DE TRANSPORTE - AUX'!#REF!) -> 
A16: 5502114 | B16: =VLOOKUP(A16,'SINTÉTICO SICRO'!A:D,2,0) -> Escavação, carga e transporte de material de 1ª categoria - DMT de 1.000 a 1.200 m - caminho de serviço em leito natural - com escavadeira e caminhão basculante de 14 m³
A17: MOMENTO DE TRANSPORTE | D17: Quantidade (tkm) | E17: -
E18: -
A21: 4413942 | B21: =VLOOKUP(A21,'SINTÉTICO SICRO'!A:D,2,0) -> Espalhamento de material em bota-fora
A22: MOMENTO DE TRANSPORTE | D22: Quantidade (tkm) | E22: -
E23: -
A26: 4011463 | B26: =VLOOKUP(A26,'SINTÉTICO SICRO'!A:D,2,0) -> Concreto asfáltico - faixa C-12,5 - areia e brita comerciais
A27: MOMENTO DE TRANSPORTE | C27: Quantidade (tkm) | D27: Area executada (m2) | E27: 12000
F28: =E27/('MC MODULO'!C1*'MC MODULO'!C2) -> 1.714285714
A29: 5914389 | B29: =VLOOKUP(A29,'SINTÉTICO SICRO'!A:D,2,0) -> Transporte com caminhão basculante de 10 m³ - rodovia pavimentada | C29: ='MOMENTO DE TRANSPORTE - PRINC'!K34+SUMIF('MOMENTO DE TRANSPORTE - AUX'!$A$28:$A$33,'MEDICAO EM TKM'!A29,'MOMENTO DE TRANSPORTE - AUX'!$K$28:$K$32) -> 436145.7408 | D29: =C29*$F$28 -> 747678.4128
A30: 5914359 | B30: =VLOOKUP(A30,'SINTÉTICO SICRO'!A:D,2,0) -> Transporte com caminhão basculante de 10 m³ - rodovia em leito natural | C30: ='MOMENTO DE TRANSPORTE - PRINC'!K84+SUMIF('MOMENTO DE TRANSPORTE - AUX'!$A$55:$A$60,'MEDICAO EM TKM'!A30,'MOMENTO DE TRANSPORTE - AUX'!$K$55:$K$59) -> 54518.2176 | D30: 93459.8016
A31: 5914374 | B31: =VLOOKUP(A31,'SINTÉTICO SICRO'!A:D,2,0) -> Transporte com caminhão basculante de 10 m³ - rodovia em revestimento primário | C31: ='MOMENTO DE TRANSPORTE - PRINC'!K134+SUMIF('MOMENTO DE TRANSPORTE - AUX'!$A$83:$A$87,'MEDICAO EM TKM'!A31,'MOMENTO DE TRANSPORTE - AUX'!$K$83:$K$87) -> 45195.612 | D31: 77478.192
A32: 5914366 | B32: =VLOOKUP(A32,'SINTÉTICO SICRO'!A:D,2,0) -> Transporte de cimento ou cal hidratada a granel com caminhão silo de 30 m³ - rodovia pavimentada | C32: =SUMIF('MOMENTO DE TRANSPORTE - AUX'!$A$28:$A$32,'MEDICAO EM TKM'!A32,'MOMENTO DE TRANSPORTE - AUX'!$K$28:$K$32) -> 2137.7664 | D32: 3664.7424
A33: 5914364 | B33: =VLOOKUP(A33,'SINTÉTICO SICRO'!A:D,2,0) -> Transporte de cimento ou cal hidratada a granel com caminhão silo de 30 m³ - rodovia em leito natural | C33: =SUMIF('MOMENTO DE TRANSPORTE - AUX'!$A$55:$A$60,'MEDICAO EM TKM'!A33,'MOMENTO DE TRANSPORTE - AUX'!$K$55:$K$59) -> 267.2208 | D33: 458.0928
A34: 5914365 | B34: =VLOOKUP(A34,'SINTÉTICO SICRO'!A:D,2,0) -> Transporte de cimento ou cal hidratada a granel com caminhão silo de 30 m³ - rodovia em revestimento primário | C34: =SUMIF('MOMENTO DE TRANSPORTE - AUX'!$A$83:$A$87,'MEDICAO EM TKM'!A34,'MOMENTO DE TRANSPORTE - AUX'!$K$83:$K$87) -> 267.2208 | D34: 458.0928
A36: 4011352 | B36: =VLOOKUP(A36,'SINTÉTICO SICRO'!A:D,2,0) -> Imprimação com emulsão asfáltica
A37: MOMENTO DE TRANSPORTE | C37: Quantidade (tkm)
A41: 4011353 | B41: =VLOOKUP(A41,'SINTÉTICO SICRO'!A:D,2,0) -> Pintura de ligação
A42: MOMENTO DE TRANSPORTE | C42: Quantidade (tkm)
A46: 4011318 | B46: =VLOOKUP(A46,'SINTÉTICO SICRO'!A:D,2,0) -> Base ou sub-base estabilizada granulometricamente com mistura solo brita (70% - 30%) em usina com material de jazida e brita comercial - 100% Proctor modificado
A47: MOMENTO DE TRANSPORTE | C47: Quantidade (tkm) | D47: Área Executada (m2) | E47: =E27 -> 12000
D48: espessura (m) | E48: 0.15 | F48: =(E47*E48)/('RESUMO MODULO TOTAL'!H25+'RESUMO MODULO TOTAL'!H26) -> 0.01948051948
A49: 5914389 | B49: =VLOOKUP(A49,'SINTÉTICO SICRO'!A:D,2,0) -> Transporte com caminhão basculante de 10 m³ - rodovia pavimentada | C49: ='MOMENTO DE TRANSPORTE - PRINC'!K47 -> 762488.496 | D49: =C49*$F$48 -> 14853.672
A50: 5914359 | B50: =VLOOKUP(A50,'SINTÉTICO SICRO'!A:D,2,0) -> Transporte com caminhão basculante de 10 m³ - rodovia em leito natural | C50: ='MOMENTO DE TRANSPORTE - PRINC'!K97 -> 95311.062 | D50: =C50*$F$48 -> 1856.709
A51: 5914374 | B51: =VLOOKUP(A51,'SINTÉTICO SICRO'!A:D,2,0) -> Transporte com caminhão basculante de 10 m³ - rodovia em revestimento primário | C51: ='MOMENTO DE TRANSPORTE - PRINC'!K146 -> 95310.6 | D51: =C51*$F$48 -> 1856.7
A53: 4011209 | B53: =VLOOKUP(A53,'SINTÉTICO SICRO'!A:D,2,0) -> Regularização do subleito - 100% Proctor intermediário
A54: MOMENTO DE TRANSPORTE | D54: Quantidade (tkm)
A58: 5213440 | B58: Placa de regulamentação em aço D = 0,60 m - película retrorrefletiva tipo I + SI - fornecimento e implantação
A59: MOMENTO DE TRANSPORTE | D59: Quantidade (tkm)
A63: 5213464 | B63: =VLOOKUP(A63,'SINTÉTICO SICRO'!A:D,2,0) -> Placa de advertência em aço, lado de 0,60 m - película retrorrefletiva tipo I + SI - fornecimento e implantação
A64: MOMENTO DE TRANSPORTE | D64: Quantidade (tkm)
A68: 5213863 | B68: =VLOOKUP(A68,'SINTÉTICO SICRO'!A:D,2,0) -> Suporte metálico galvanizado para placa de advertência ou regulamentação - lado ou diâmetro de 0,60 m - fornecimento e implantação
A69: MOMENTO DE TRANSPORTE | D69: Quantidade (tkm)
A73: 5213400 | B73: =VLOOKUP(A73,'SINTÉTICO SICRO'!A:D,2,0) -> Pintura de faixa com tinta acrílica - espessura de 0,4 mm
A74: MOMENTO DE TRANSPORTE | D74: Quantidade (tkm)
A78: 2003943 | B78: =VLOOKUP(A78,'SINTÉTICO SICRO'!A:D,2,0) -> Meio-fio de concreto - MFC 03 moldado no local com extrusora e concreto usinado - areia e brita comerciais
A79: MOMENTO DE TRANSPORTE | D79: Quantidade (tkm) | E79: Extensao executada do meio-fio (m)
E80: 2000 | F80: =E80/('MC MODULO'!C1*2) -> 1
A81: 5914569 | B81: =VLOOKUP(A81,'SINTÉTICO SICRO'!A:D,2,0) -> Transporte com caminhão betoneira - rodovia pavimentada | D81: ='MOMENTO DE TRANSPORTE - PRINC'!K71 -> 70963.2 | E81: =D81*$F$80 -> 70963.2
A82: 5914539 | B82: =VLOOKUP(A82,'SINTÉTICO SICRO'!A:D,2,0) -> Transporte com caminhão betoneira - rodovia em leito natural | D82: ='MOMENTO DE TRANSPORTE - PRINC'!K121 -> 8870.4 | E82: 8870.4
A83: 5914554 | B83: =VLOOKUP(A83,'SINTÉTICO SICRO'!A:D,2,0) -> Transporte com caminhão betoneira - rodovia em revestimento primário | D83: ='MOMENTO DE TRANSPORTE - PRINC'!K170 -> 8870.4 | E83: 8870.4
A84: 5914479 | B84: =VLOOKUP(A84,'SINTÉTICO SICRO'!A:D,2,0) -> Transporte com caminhão carroceria de 15 t - rodovia pavimentada | D84: =SUMIF('MOMENTO DE TRANSPORTE - AUX'!$A$40:$A$44,'MEDICAO EM TKM'!A84,'MOMENTO DE TRANSPORTE - AUX'!$K$40:$K$44) -> 4072.40064 | E84: 4072.40064
A85: 5914389 | B85: =VLOOKUP(A85,'SINTÉTICO SICRO'!A:D,2,0) -> Transporte com caminhão basculante de 10 m³ - rodovia pavimentada | D85: =SUMIF('MOMENTO DE TRANSPORTE - AUX'!$A$40:$A$44,'MEDICAO EM TKM'!A85,'MOMENTO DE TRANSPORTE - AUX'!$K$40:$K$44) -> 30440.40384 | E85: 30440.40384
A86: 5914449 | B86: =VLOOKUP(A86,'SINTÉTICO SICRO'!A:D,2,0) -> Transporte com caminhão carroceria de 15 t - rodovia em leito natural | D86: =SUMIF('MOMENTO DE TRANSPORTE - AUX'!$A$67:$A$71,'MEDICAO EM TKM'!A86,'MOMENTO DE TRANSPORTE - AUX'!$K$67:$K$71) -> 509.05008 | E86: 509.05008
A87: 5914359 | B87: =VLOOKUP(A87,'SINTÉTICO SICRO'!A:D,2,0) -> Transporte com caminhão basculante de 10 m³ - rodovia em leito natural | D87: =SUMIF('MOMENTO DE TRANSPORTE - AUX'!$A$67:$A$71,'MEDICAO EM TKM'!A87,'MOMENTO DE TRANSPORTE - AUX'!$K$67:$K$71) -> 3805.05048 | E87: 3805.05048
A88: 5914464 | B88: =VLOOKUP(A88,'SINTÉTICO SICRO'!A:D,2,0) -> Transporte com caminhão carroceria de 15 t - rodovia em revestimento primário | D88: =SUMIF('MOMENTO DE TRANSPORTE - AUX'!$A$95:$A$99,'MEDICAO EM TKM'!A88,'MOMENTO DE TRANSPORTE - AUX'!$K$95:$K$99) -> 509.05008 | E88: 509.05008
A89: 5914374 | B89: =VLOOKUP(A89,'SINTÉTICO SICRO'!A:D,2,0) -> Transporte com caminhão basculante de 10 m³ - rodovia em revestimento primário | D89: =SUMIF('MOMENTO DE TRANSPORTE - AUX'!$A$95:$A$99,'MEDICAO EM TKM'!A89,'MOMENTO DE TRANSPORTE - AUX'!$K$95:$K$99) -> 3805.05048 | E89: 3805.05048
A91: 4915724 | B91: =VLOOKUP(A91,'SINTÉTICO SICRO'!A:D,2,0) -> Caiação mecanizada com fixador de cal
A92: MOMENTO DE TRANSPORTE | D92: Quantidade (tkm)

Sheet MC MODULO
A1: Extensão da Via | B1: = | C1: 1000 | D1: m | F1: QUANTIDADE DE MODULOS | G1: 44
A2: Largura | B2: = | C2: 7 | D2: m
K3: ='RESUMO MODULO TOTAL'!L60 -> 
A4: Extensão da Via | B4: = | C4: =C1/1000 -> 1 | D4: km
B6: MOBUILIZAÇÃO
A7: 1 | B7: Implantação da obra
B9: Módulos(un) | D9: Módulos(un)
B10: =G1 -> 44 | C10: = | D10: =B10 -> 44
A12: 2 | B12: Administração da obra
B14: Módulos(un) | D14: Módulos(un)
B15: =G1 -> 44 | C15: = | D15: =B15 -> 44
A17: 3 | B17: Canteiro de Obras e Almoxarifado
B19: Módulos(un) | D19: Módulos(un)
B20: =G1 -> 44 | C20: = | D20: =B20 -> 44
A22: 4 | B22: Placa de Obra em Chapa de Aço Galvanizado
B24: Módulos(un) | C24: Comprimento(m) | D24: Largura (m) | H24: Total de Area de placa (m²)
B25: =G1 -> 44 | C25: 2 | D25: 4 | H25: =C25*D25*B25*2 -> 704
B27: TERRAPLENAGEM
A29: 5 | B29: serviços topográficos para pavimentação, inclusive notas de serviços, acompanhamento e greide
B31: Extensão (m) | D31: Largura (m) | H31: area (m2)
B32: =C1*$G$1 -> 44000 | C32: x | D32: =$C$2 -> 7 | G32: = | H32: =B32*D32 -> 308000
A34: 6 | B34: Escavação, carga e transporte de material de 1ª categoria - DMT de 1.000 a 1.200 m - caminho de serviço em leito natural - com escavadeira e caminhão basculante de 14 m³
B36: Extensão (m) | D36: Largura (m) | F36: Espessura (m) | H36: Volume (m3)
B37: =C1*$G$1 -> 44000 | C37: x | D37: =$C$2 -> 7 | E37: x | F37: 0.35 | G37: = | H37: =B37*D37*F37 -> 107800
A41: 7 | B41: Espalhamento de material em bota-fora
B43: Extensão (m) | D43: Largura (m) | F43: Espessura (m) | H43: Volume (m3)
B44: =C1*$G$1 -> 44000 | C44: x | D44: =$C$2 -> 7 | E44: x | F44: 0.35 | G44: = | H44: =B44*D44*F44 -> 107800
B46: PAVIMENTAÇÃO
A48: 8 | B48: Concreto asfáltico - faixa C - areia e brita comerciais
B50: Extensão (m) | C50: Largura (m) | D50: Espessura (m) | E50: Densidade (t/m³) | H50: Volume (t)
B51: =$C$1*G1 -> 44000 | C51: =$C$2 -> 7 | D51: 0.05 | E51: 2.4 | G51: = | H51: =B51*C51*D51*E51 -> 36960
A54: 9 | B54: Imprimação com emulsão asfáltica
B56: Extensão (m) | D56: Largura (m) | H56: area (m2)
B57: =$C$1*G1 -> 44000 | C57: x | D57: =$C$2 -> 7 | G57: = | H57: =B57*D57 -> 308000
A60: 10 | B60: Pintura de ligação
B62: Extensão (m) | D62: Largura (m) | H62: area (m2)
B63: =$C$1*G1 -> 44000 | C63: x | D63: =$C$2 -> 7 | G63: = | H63: =B63*D63 -> 308000
A65: 11 | B65: Base de solo estabilizado granulometricamente sem mistura com material de jazida - 100% Proctor modificado
B67: Extensão (m) | D67: Largura (m) | F67: Espessura (m) | H67: Volume (m3)
B68: =C1*$G$1 -> 44000 | C68: x | D68: =$C$2 -> 7 | E68: x | F68: 0.15 | G68: = | H68: =B68*D68*F68 -> 46200
A71: 12 | B71: Sub-base de solo estabilizado granulometricamente sem mistura com material de jazida - 100% Proctor intermediário
B73: Extensão (m) | D73: Largura (m) | F73: Espessura (m) | H73: Volume (m3)
B74: =C1*$G$1 -> 44000 | C74: x | D74: =$C$2 -> 7 | E74: x | F74: 0.15 | G74: = | H74: =B74*D74*F74 -> 46200
A77: 13 | B77: Regularização do subleito
B79: Extensão (m) | D79: Largura (m) | H79: area (m2)
B80: =C1*$G$1 -> 44000 | C80: x | D80: =$C$2 -> 7 | G80: = | H80: =B80*D80 -> 308000
B82: SINALIZAÇÃO
A84: 20 | B84: Fornecimento e implantação de placa de regulamentação em aço D = 0,60 m - película retrorrefletiva tipo I + SI
B86: Extensão (km) | D86: Quant. (un) | H86: Quant. (un)
B87: =$C$4*$G$1 -> 44 | C87: x | D87: 3 | G87: = | H87: =B87*D87 -> 132
A89: 20 | B89: Placa de advertência em aço, lado de 0,60 m - película retrorrefletiva tipo I + SI - fornecimento e implantação
B91: Extensão (km) | D91: Quant. (un) | H91: Quant. (un)
B92: =$C$4*$G$1 -> 44 | C92: x | D92: 3 | G92: = | H92: =B92*D92 -> 132
A95: 21 | B95: Fornecimento e implantação de suporte metálico galvanizado para placa de regulamentação - D = 0,60 m
B97: Extensão (km) | D97: Quant. (un) | H97: Quant. (un)
B98: =$C$4*$G$1 -> 44 | C98: x | D98: =D87 -> 3 | G98: = | H98: =H87+H92 -> 264
A100: 22 | B100: Pintura de faixa com tinta acrílica - espessura de 0,4 mm (bordos)
B102: Extensão (m) | D102: Espessura (m) | H102: Quant. (m²)
B103: =C1*G1 -> 44000 | C103: x | D103: 0.1 | G103: = | H103: =B103*D103*2 -> 8800
B105: Pintura de faixa com tinta acrílica - espessura de 0,4 mm (faixa central)
H107: Quant. (m²)
H108: =B103*D103*0.4 -> 1760
B111: DRENAGEM
A112: 23 | B112: Meio-fio de concreto - MFC 03 - areia e brita comerciais - fôrma de madeira
B114: Extensão (m) | D114: Quant. (un) | H114: Extensão(m)
B115: =$C$1*$G$1 -> 44000 | C115: x | D115: 2 | G115: = | H115: =B115*D115 -> 88000
A117: 19 | B117: Caiação mecanizada com fixador de cal
B119: Extensão (m) | D119: Perimetro (m) | H119: Area (m²)
B120: =$C$1*$G$1 -> 44000 | C120: x | D120: =0.24 -> 0.24 | G120: = | H120: =B120*D120 -> 10560
B123: SERVIÇOS COMPLEMENTARES
A124: 24
B126: Extensão (m) | D126: Largura (m) | G126: 0.1 | H126: extensão (m)
B127: =$C$1*G1 -> 44000 | C127: x | D127: 1 | E127: x | G127: = | H127: =G126*B127 -> 4400
B130: PROJETO EXECUTIVO
A131: 25 | B131: Projeto Executivo
B133: Extensão (m) | D133: Largura (m) | F133: Quant. (un) | H133: Área (m²)
B134: =$C$1*G1 -> 44000 | C134: x | D134: =C2 -> 7 | E134: x | F134: 1 | G134: = | H134: =B134*D134 -> 308000
B136: CONTROLE TECNOLOGICO - OBRA
A137: 26 | B137: Projeto Executivo
B139: Extensão (m) | D139: Largura (m) | F139: Quant. (un) | H139: meses
G140: = | H140: =0.5*G1 -> 22
F145: Perímetro caiação = 0,09 + 0,15

Sheet ANP ESTADO
A1: Agência Nacional do Petróleo, Gás Natural e Biocombustíveis
A2: Superintendência de Defesa da Concorrência
A5: PREÇO MÉDIO MENSAL PONDERADO PRATICADO PELOS DISTRIBUIDORES DE PRODUTOS ASFÁLTICOS (R$/KG)
A7: Importante: | B7: Quando não houver declaração de venda do produto selecionado, ou quando a declaração de venda do produto ocorrer por menos de 03 (três) distribuidoras, a tabela indicará campo vazio.
A8: Mês | B8: Produto | C8: Estado | D8: Preço
A9: 2013-01-01 | B9: ASFALTOS DILUÍDOS CM-30 | C9: Acre | D9: -
A10: 2013-01-01 | B10: ASFALTOS DILUÍDOS CM-30 | C10: Alagoas | D10: -
A11: 2013-01-01 | B11: ASFALTOS DILUÍDOS CM-30 | C11: Amapá | D11: -
A12: 2013-01-01 | B12: ASFALTOS DILUÍDOS CM-30 | C12: Amazonas | D12: 1.453527021
A13: 2013-01-01 | B13: ASFALTOS DILUÍDOS CM-30 | C13: Bahia | D13: 1.464044142
A14: 2013-01-01 | B14: ASFALTOS DILUÍDOS CM-30 | C14: Ceará | D14: 1.447997934
A15: 2013-01-01 | B15: ASFALTOS DILUÍDOS CM-30 | C15: Distrito Federal | D15: -
A16: 2013-01-01 | B16: ASFALTOS DILUÍDOS CM-30 | C16: Espírito Santo | D16: -
A17: 2013-01-01 | B17: ASFALTOS DILUÍDOS CM-30 | C17: Goiás | D17: 1.686383065
A18: 2013-01-01 | B18: ASFALTOS DILUÍDOS CM-30 | C18: Maranhão | D18: -
A19: 2013-01-01 | B19: ASFALTOS DILUÍDOS CM-30 | C19: Mato Grosso | D19: -
A20: 2013-01-01 | B20: ASFALTOS DILUÍDOS CM-30 | C20: Mato Grosso do Sul | D20: -
A21: 2013-01-01 | B21: ASFALTOS DILUÍDOS CM-30 | C21: Minas Gerais | D21: 1.451106114
A22: 2013-01-01 | B22: ASFALTOS DILUÍDOS CM-30 | C22: Pará | D22: -
A23: 2013-01-01 | B23: ASFALTOS DILUÍDOS CM-30 | C23: Paraíba | D23: -
A24: 2013-01-01 | B24: ASFALTOS DILUÍDOS CM-30 | C24: Paraná | D24: 1.520125031
A25: 2013-01-01 | B25: ASFALTOS DILUÍDOS CM-30 | C25: Pernambuco | D25: -
A26: 2013-01-01 | B26: ASFALTOS DILUÍDOS CM-30 | C26: Piauí | D26: -
A27: 2013-01-01 | B27: ASFALTOS DILUÍDOS CM-30 | C27: Rio de Janeiro | D27: 1.330475106
A28: 2013-01-01 | B28: ASFALTOS DILUÍDOS CM-30 | C28: Rio Grande do Norte | D28: -
A29: 2013-01-01 | B29: ASFALTOS DILUÍDOS CM-30 | C29: Rio Grande do Sul | D29: 1.598611074
A30: 2013-01-01 | B30: ASFALTOS DILUÍDOS CM-30 | C30: Rondônia | D30: -
A31: 2013-01-01 | B31: ASFALTOS DILUÍDOS CM-30 | C31: Roraima | D31: -
A32: 2013-01-01 | B32: ASFALTOS DILUÍDOS CM-30 | C32: Santa Catarina | D32: -
A33: 2013-01-01 | B33: ASFALTOS DILUÍDOS CM-30 | C33: São Paulo | D33: 1.471008423
A34: 2013-01-01 | B34: ASFALTOS DILUÍDOS CM-30 | C34: Sergipe | D34: -
A35: 2013-01-01 | B35: ASFALTOS DILUÍDOS CM-30 | C35: Tocantins | D35: -
A36: 2013-02-01 | B36: ASFALTOS DILUÍDOS CM-30 | C36: Acre | D36: -
A37: 2013-02-01 | B37: ASFALTOS DILUÍDOS CM-30 | C37: Alagoas | D37: -
A38: 2013-02-01 | B38: ASFALTOS DILUÍDOS CM-30 | C38: Amapá | D38: -
A39: 2013-02-01 | B39: ASFALTOS DILUÍDOS CM-30 | C39: Amazonas | D39: 1.485578179
A40: 2013-02-01 | B40: ASFALTOS DILUÍDOS CM-30 | C40: Bahia | D40: 1.457014101
A41: 2013-02-01 | B41: ASFALTOS DILUÍDOS CM-30 | C41: Ceará | D41: 1.413192336
A42: 2013-02-01 | B42: ASFALTOS DILUÍDOS CM-30 | C42: Distrito Federal | D42: -
A43: 2013-02-01 | B43: ASFALTOS DILUÍDOS CM-30 | C43: Espírito Santo | D43: -
A44: 2013-02-01 | B44: ASFALTOS DILUÍDOS CM-30 | C44: Goiás | D44: 1.667459711
A45: 2013-02-01 | B45: ASFALTOS DILUÍDOS CM-30 | C45: Maranhão | D45: -
A46: 2013-02-01 | B46: ASFALTOS DILUÍDOS CM-30 | C46: Mato Grosso | D46: -
A47: 2013-02-01 | B47: ASFALTOS DILUÍDOS CM-30 | C47: Mato Grosso do Sul | D47: -
A48: 2013-02-01 | B48: ASFALTOS DILUÍDOS CM-30 | C48: Minas Gerais | D48: 1.452121117
A49: 2013-02-01 | B49: ASFALTOS DILUÍDOS CM-30 | C49: Pará | D49: -
A50: 2013-02-01 | B50: ASFALTOS DILUÍDOS CM-30 | C50: Paraíba | D50: -
A51: 2013-02-01 | B51: ASFALTOS DILUÍDOS CM-30 | C51: Paraná | D51: 1.493783173
A52: 2013-02-01 | B52: ASFALTOS DILUÍDOS CM-30 | C52: Pernambuco | D52: -
A53: 2013-02-01 | B53: ASFALTOS DILUÍDOS CM-30 | C53: Piauí | D53: -
A54: 2013-02-01 | B54: ASFALTOS DILUÍDOS CM-30 | C54: Rio de Janeiro | D54: 1.418234901
A55: 2013-02-01 | B55: ASFALTOS DILUÍDOS CM-30 | C55: Rio Grande do Norte | D55: -
A56: 2013-02-01 | B56: ASFALTOS DILUÍDOS CM-30 | C56: Rio Grande do Sul | D56: 1.435861782
A57: 2013-02-01 | B57: ASFALTOS DILUÍDOS CM-30 | C57: Rondônia | D57: -
A58: 2013-02-01 | B58: ASFALTOS DILUÍDOS CM-30 | C58: Roraima | D58: -
A59: 2013-02-01 | B59: ASFALTOS DILUÍDOS CM-30 | C59: Santa Catarina | D59: -
A60: 2013-02-01 | B60: ASFALTOS DILUÍDOS CM-30 | C60: São Paulo | D60: 1.434190204
A61: 2013-02-01 | B61: ASFALTOS DILUÍDOS CM-30 | C61: Sergipe | D61: -
A62: 2013-02-01 | B62: ASFALTOS DILUÍDOS CM-30 | C62: Tocantins | D62: -
A63: 2013-03-01 | B63: ASFALTOS DILUÍDOS CM-30 | C63: Acre | D63: -
A64: 2013-03-01 | B64: ASFALTOS DILUÍDOS CM-30 | C64: Alagoas | D64: -
A65: 2013-03-01 | B65: ASFALTOS DILUÍDOS CM-30 | C65: Amapá | D65: -
A66: 2013-03-01 | B66: ASFALTOS DILUÍDOS CM-30 | C66: Amazonas | D66: 1.507923921
A67: 2013-03-01 | B67: ASFALTOS DILUÍDOS CM-30 | C67: Bahia | D67: 1.449440325
A68: 2013-03-01 | B68: ASFALTOS DILUÍDOS CM-30 | C68: Ceará | D68: 1.401607485
A69: 2013-03-01 | B69: ASFALTOS DILUÍDOS CM-30 | C69: Distrito Federal | D69: -
A70: 2013-03-01 | B70: ASFALTOS DILUÍDOS CM-30 | C70: Espírito Santo | D70: -
A71: 2013-03-01 | B71: ASFALTOS DILUÍDOS CM-30 | C71: Goiás | D71: 1.661758701
A72: 2013-03-01 | B72: ASFALTOS DILUÍDOS CM-30 | C72: Maranhão | D72: -
A73: 2013-03-01 | B73: ASFALTOS DILUÍDOS CM-30 | C73: Mato Grosso | D73: -
A74: 2013-03-01 | B74: ASFALTOS DILUÍDOS CM-30 | C74: Mato Grosso do Sul | D74: -
A75: 2013-03-01 | B75: ASFALTOS DILUÍDOS CM-30 | C75: Minas Gerais | D75: 1.44324333
A76: 2013-03-01 | B76: ASFALTOS DILUÍDOS CM-30 | C76: Pará | D76: -
A77: 2013-03-01 | B77: ASFALTOS DILUÍDOS CM-30 | C77: Paraíba | D77: -
A78: 2013-03-01 | B78: ASFALTOS DILUÍDOS CM-30 | C78: Paraná | D78: 1.468995996
A79: 2013-03-01 | B79: ASFALTOS DILUÍDOS CM-30 | C79: Pernambuco | D79: -
A80: 2013-03-01 | B80: ASFALTOS DILUÍDOS CM-30 | C80: Piauí | D80: -
A81: 2013-03-01 | B81: ASFALTOS DILUÍDOS CM-30 | C81: Rio de Janeiro | D81: 1.438055574
A82: 2013-03-01 | B82: ASFALTOS DILUÍDOS CM-30 | C82: Rio Grande do Norte | D82: -
A83: 2013-03-01 | B83: ASFALTOS DILUÍDOS CM-30 | C83: Rio Grande do Sul | D83: 1.581425878
A84: 2013-03-01 | B84: ASFALTOS DILUÍDOS CM-30 | C84: Rondônia | D84: -
A85: 2013-03-01 | B85: ASFALTOS DILUÍDOS CM-30 | C85: Roraima | D85: -
A86: 2013-03-01 | B86: ASFALTOS DILUÍDOS CM-30 | C86: Santa Catarina | D86: -
A87: 2013-03-01 | B87: ASFALTOS DILUÍDOS CM-30 | C87: São Paulo | D87: 1.466061702
A88: 2013-03-01 | B88: ASFALTOS DILUÍDOS CM-30 | C88: Sergipe | D88: -
A89: 2013-03-01 | B89: ASFALTOS DILUÍDOS CM-30 | C89: Tocantins | D89: -
A90: 2013-04-01 | B90: ASFALTOS DILUÍDOS CM-30 | C90: Acre | D90: -
A91: 2013-04-01 | B91: ASFALTOS DILUÍDOS CM-30 | C91: Alagoas | D91: -
A92: 2013-04-01 | B92: ASFALTOS DILUÍDOS CM-30 | C92: Amapá | D92: -
A93: 2013-04-01 | B93: ASFALTOS DILUÍDOS CM-30 | C93: Amazonas | D93: 1.484796656
A94: 2013-04-01 | B94: ASFALTOS DILUÍDOS CM-30 | C94: Bahia | D94: 1.454836546
A95: 2013-04-01 | B95: ASFALTOS DILUÍDOS CM-30 | C95: Ceará | D95: 1.387073962
A96: 2013-04-01 | B96: ASFALTOS DILUÍDOS CM-30 | C96: Distrito Federal | D96: -
A97: 2013-04-01 | B97: ASFALTOS DILUÍDOS CM-30 | C97: Espírito Santo | D97: -
A98: 2013-04-01 | B98: ASFALTOS DILUÍDOS CM-30 | C98: Goiás | D98: 1.673481836
A99: 2013-04-01 | B99: ASFALTOS DILUÍDOS CM-30 | C99: Maranhão | D99: -
A100: 2013-04-01 | B100: ASFALTOS DILUÍDOS CM-30 | C100: Mato Grosso | D100: 1.921938422
A101: 2013-04-01 | B101: ASFALTOS DILUÍDOS CM-30 | C101: Mato Grosso do Sul | D101: -
A102: 2013-04-01 | B102: ASFALTOS DILUÍDOS CM-30 | C102: Minas Gerais | D102: 1.456556683
A103: 2013-04-01 | B103: ASFALTOS DILUÍDOS CM-30 | C103: Pará | D103: -
A104: 2013-04-01 | B104: ASFALTOS DILUÍDOS CM-30 | C104: Paraíba | D104: -
A105: 2013-04-01 | B105: ASFALTOS DILUÍDOS CM-30 | C105: Paraná | D105: 1.534419498
A106: 2013-04-01 | B106: ASFALTOS DILUÍDOS CM-30 | C106: Pernambuco | D106: -
A107: 2013-04-01 | B107: ASFALTOS DILUÍDOS CM-30 | C107: Piauí | D107: -
A108: 2013-04-01 | B108: ASFALTOS DILUÍDOS CM-30 | C108: Rio de Janeiro | D108: 1.418419516
A109: 2013-04-01 | B109: ASFALTOS DILUÍDOS CM-30 | C109: Rio Grande do Norte | D109: -
A110: 2013-04-01 | B110: ASFALTOS DILUÍDOS CM-30 | C110: Rio Grande do Sul | D110: 1.572582456
A111: 2013-04-01 | B111: ASFALTOS DILUÍDOS CM-30 | C111: Rondônia | D111: -
A112: 2013-04-01 | B112: ASFALTOS DILUÍDOS CM-30 | C112: Roraima | D112: -
A113: 2013-04-01 | B113: ASFALTOS DILUÍDOS CM-30 | C113: Santa Catarina | D113: -
A114: 2013-04-01 | B114: ASFALTOS DILUÍDOS CM-30 | C114: São Paulo | D114: 1.475764348
A115: 2013-04-01 | B115: ASFALTOS DILUÍDOS CM-30 | C115: Sergipe | D115: -
A116: 2013-04-01 | B116: ASFALTOS DILUÍDOS CM-30 | C116: Tocantins | D116: -
A117: 2013-05-01 | B117: ASFALTOS DILUÍDOS CM-30 | C117: Acre | D117: -
A118: 2013-05-01 | B118: ASFALTOS DILUÍDOS CM-30 | C118: Alagoas | D118: -
A119: 2013-05-01 | B119: ASFALTOS DILUÍDOS CM-30 | C119: Amapá | D119: -
A120: 2013-05-01 | B120: ASFALTOS DILUÍDOS CM-30 | C120: Amazonas | D120: -
A121: 2013-05-01 | B121: ASFALTOS DILUÍDOS CM-30 | C121: Bahia | D121: 1.492587424
A122: 2013-05-01 | B122: ASFALTOS DILUÍDOS CM-30 | C122: Ceará | D122: 1.376263021
A123: 2013-05-01 | B123: ASFALTOS DILUÍDOS CM-30 | C123: Distrito Federal | D123: -
A124: 2013-05-01 | B124: ASFALTOS DILUÍDOS CM-30 | C124: Espírito Santo | D124: -
A125: 2013-05-01 | B125: ASFALTOS DILUÍDOS CM-30 | C125: Goiás | D125: 1.668214819
A126: 2013-05-01 | B126: ASFALTOS DILUÍDOS CM-30 | C126: Maranhão | D126: -
A127: 2013-05-01 | B127: ASFALTOS DILUÍDOS CM-30 | C127: Mato Grosso | D127: 1.903098159
A128: 2013-05-01 | B128: ASFALTOS DILUÍDOS CM-30 | C128: Mato Grosso do Sul | D128: -
A129: 2013-05-01 | B129: ASFALTOS DILUÍDOS CM-30 | C129: Minas Gerais | D129: 1.464709716
A130: 2013-05-01 | B130: ASFALTOS DILUÍDOS CM-30 | C130: Pará | D130: -
A131: 2013-05-01 | B131: ASFALTOS DILUÍDOS CM-30 | C131: Paraíba | D131: -
A132: 2013-05-01 | B132: ASFALTOS DILUÍDOS CM-30 | C132: Paraná | D132: 1.489027849
A133: 2013-05-01 | B133: ASFALTOS DILUÍDOS CM-30 | C133: Pernambuco | D133: -
A134: 2013-05-01 | B134: ASFALTOS DILUÍDOS CM-30 | C134: Piauí | D134: -
A135: 2013-05-01 | B135: ASFALTOS DILUÍDOS CM-30 | C135: Rio de Janeiro | D135: 1.399256048
A136: 2013-05-01 | B136: ASFALTOS DILUÍDOS CM-30 | C136: Rio Grande do Norte | D136: -
A137: 2013-05-01 | B137: ASFALTOS DILUÍDOS CM-30 | C137: Rio Grande do Sul | D137: 1.539636961
A138: 2013-05-01 | B138: ASFALTOS DILUÍDOS CM-30 | C138: Rondônia | D138: -
A139: 2013-05-01 | B139: ASFALTOS DILUÍDOS CM-30 | C139: Roraima | D139: -
A140: 2013-05-01 | B140: ASFALTOS DILUÍDOS CM-30 | C140: Santa Catarina | D140: -
A141: 2013-05-01 | B141: ASFALTOS DILUÍDOS CM-30 | C141: São Paulo | D141: 1.451215936
A142: 2013-05-01 | B142: ASFALTOS DILUÍDOS CM-30 | C142: Sergipe | D142: -
A143: 2013-05-01 | B143: ASFALTOS DILUÍDOS CM-30 | C143: Tocantins | D143: -
A144: 2013-06-01 | B144: ASFALTOS DILUÍDOS CM-30 | C144: Acre | D144: -
A145: 2013-06-01 | B145: ASFALTOS DILUÍDOS CM-30 | C145: Alagoas | D145: -
A146: 2013-06-01 | B146: ASFALTOS DILUÍDOS CM-30 | C146: Amapá | D146: -
A147: 2013-06-01 | B147: ASFALTOS DILUÍDOS CM-30 | C147: Amazonas | D147: 1.586325818
A148: 2013-06-01 | B148: ASFALTOS DILUÍDOS CM-30 | C148: Bahia | D148: 1.44812907
A149: 2013-06-01 | B149: ASFALTOS DILUÍDOS CM-30 | C149: Ceará | D149: 1.382700989
A150: 2013-06-01 | B150: ASFALTOS DILUÍDOS CM-30 | C150: Distrito Federal | D150: -
A151: 2013-06-01 | B151: ASFALTOS DILUÍDOS CM-30 | C151: Espírito Santo | D151: -
A152: 2013-06-01 | B152: ASFALTOS DILUÍDOS CM-30 | C152: Goiás | D152: 1.699613867
A153: 2013-06-01 | B153: ASFALTOS DILUÍDOS CM-30 | C153: Maranhão | D153: -
A154: 2013-06-01 | B154: ASFALTOS DILUÍDOS CM-30 | C154: Mato Grosso | D154: 1.915975658
A155: 2013-06-01 | B155: ASFALTOS DILUÍDOS CM-30 | C155: Mato Grosso do Sul | D155: -
A156: 2013-06-01 | B156: ASFALTOS DILUÍDOS CM-30 | C156: Minas Gerais | D156: 1.475366896
A157: 2013-06-01 | B157: ASFALTOS DILUÍDOS CM-30 | C157: Pará | D157: -
A158: 2013-06-01 | B158: ASFALTOS DILUÍDOS CM-30 | C158: Paraíba | D158: -
A159: 2013-06-01 | B159: ASFALTOS DILUÍDOS CM-30 | C159: Paraná | D159: 1.432166974
A160: 2013-06-01 | B160: ASFALTOS DILUÍDOS CM-30 | C160: Pernambuco | D160: -
A161: 2013-06-01 | B161: ASFALTOS DILUÍDOS CM-30 | C161: Piauí | D161: -
A162: 2013-06-01 | B162: ASFALTOS DILUÍDOS CM-30 | C162: Rio de Janeiro | D162: 1.527420226
A163: 2013-06-01 | B163: ASFALTOS DILUÍDOS CM-30 | C163: Rio Grande do Norte | D163: -
A164: 2013-06-01 | B164: ASFALTOS DILUÍDOS CM-30 | C164: Rio Grande do Sul | D164: 1.59868349
A165: 2013-06-01 | B165: ASFALTOS DILUÍDOS CM-30 | C165: Rondônia | D165: -
A166: 2013-06-01 | B166: ASFALTOS DILUÍDOS CM-30 | C166: Roraima | D166: -
A167: 2013-06-01 | B167: ASFALTOS DILUÍDOS CM-30 | C167: Santa Catarina | D167: -
A168: 2013-06-01 | B168: ASFALTOS DILUÍDOS CM-30 | C168: São Paulo | D168: 1.432748187
A169: 2013-06-01 | B169: ASFALTOS DILUÍDOS CM-30 | C169: Sergipe | D169: -
A170: 2013-06-01 | B170: ASFALTOS DILUÍDOS CM-30 | C170: Tocantins | D170: -
A171: 2013-07-01 | B171: ASFALTOS DILUÍDOS CM-30 | C171: Acre | D171: -
A172: 2013-07-01 | B172: ASFALTOS DILUÍDOS CM-30 | C172: Alagoas | D172: -
A173: 2013-07-01 | B173: ASFALTOS DILUÍDOS CM-30 | C173: Amapá | D173: -
A174: 2013-07-01 | B174: ASFALTOS DILUÍDOS CM-30 | C174: Amazonas | D174: 1.509890931
A175: 2013-07-01 | B175: ASFALTOS DILUÍDOS CM-30 | C175: Bahia | D175: 1.436150016
A176: 2013-07-01 | B176: ASFALTOS DILUÍDOS CM-30 | C176: Ceará | D176: 1.424835845
A177: 2013-07-01 | B177: ASFALTOS DILUÍDOS CM-30 | C177: Distrito Federal | D177: -
A178: 2013-07-01 | B178: ASFALTOS DILUÍDOS CM-30 | C178: Espírito Santo | D178: -
A179: 2013-07-01 | B179: ASFALTOS DILUÍDOS CM-30 | C179: Goiás | D179: 1.663778454
A180: 2013-07-01 | B180: ASFALTOS DILUÍDOS CM-30 | C180: Maranhão | D180: -
A181: 2013-07-01 | B181: ASFALTOS DILUÍDOS CM-30 | C181: Mato Grosso | D181: 1.930589551
A182: 2013-07-01 | B182: ASFALTOS DILUÍDOS CM-30 | C182: Mato Grosso do Sul | D182: -
A183: 2013-07-01 | B183: ASFALTOS DILUÍDOS CM-30 | C183: Minas Gerais | D183: 1.476572352
A184: 2013-07-01 | B184: ASFALTOS DILUÍDOS CM-30 | C184: Pará | D184: -
A185: 2013-07-01 | B185: ASFALTOS DILUÍDOS CM-30 | C185: Paraíba | D185: -
A186: 2013-07-01 | B186: ASFALTOS DILUÍDOS CM-30 | C186: Paraná | D186: 1.477167274
A187: 2013-07-01 | B187: ASFALTOS DILUÍDOS CM-30 | C187: Pernambuco | D187: -
A188: 2013-07-01 | B188: ASFALTOS DILUÍDOS CM-30 | C188: Piauí | D188: -
A189: 2013-07-01 | B189: ASFALTOS DILUÍDOS CM-30 | C189: Rio de Janeiro | D189: 1.584464713
A190: 2013-07-01 | B190: ASFALTOS DILUÍDOS CM-30 | C190: Rio Grande do Norte | D190: -
A191: 2013-07-01 | B191: ASFALTOS DILUÍDOS CM-30 | C191: Rio Grande do Sul | D191: 1.612487925
A192: 2013-07-01 | B192: ASFALTOS DILUÍDOS CM-30 | C192: Rondônia | D192: -
A193: 2013-07-01 | B193: ASFALTOS DILUÍDOS CM-30 | C193: Roraima | D193: -
A194: 2013-07-01 | B194: ASFALTOS DILUÍDOS CM-30 | C194: Santa Catarina | D194: -
A195: 2013-07-01 | B195: ASFALTOS DILUÍDOS CM-30 | C195: São Paulo | D195: 1.507844909
A196: 2013-07-01 | B196: ASFALTOS DILUÍDOS CM-30 | C196: Sergipe | D196: -
A197: 2013-07-01 | B197: ASFALTOS DILUÍDOS CM-30 | C197: Tocantins | D197: -
A198: 2013-08-01 | B198: ASFALTOS DILUÍDOS CM-30 | C198: Acre | D198: -
A199: 2013-08-01 | B199: ASFALTOS DILUÍDOS CM-30 | C199: Alagoas | D199: -
A200: 2013-08-01 | B200: ASFALTOS DILUÍDOS CM-30 | C200: Amapá | D200: -
A201: 2013-08-01 | B201: ASFALTOS DILUÍDOS CM-30 | C201: Amazonas | D201: 1.509275641
A202: 2013-08-01 | B202: ASFALTOS DILUÍDOS CM-30 | C202: Bahia | D202: 1.416699323
A203: 2013-08-01 | B203: ASFALTOS DILUÍDOS CM-30 | C203: Ceará | D203: 1.447403364
... 4297 more rows

Sheet ANP REGIÃO
A1: Agência Nacional do Petróleo, Gás Natural e Biocombustíveis
A2: Superintendência de Defesa da Concorrência
A6: PREÇO MÉDIO MENSAL PONDERADO PRATICADO PELOS DISTRIBUIDORES DE PRODUTOS ASFÁLTICOS (R$/KG)
A8: Produto | B8: Mês | C8: Norte | D8: Nordeste | E8: Centro-Oeste | F8: Sudeste | G8: Sul | H8: Brasil
A9: ASFALTOS DILUÍDOS CM-30 | B9: 2008-11-01 | C9: 1.775468292 | D9: 1.55087853 | E9: 2.022143291 | F9: 1.55449367 | G9: 1.584532899 | H9: 1.64286837
A10: ASFALTOS DILUÍDOS CM-30 | B10: 2008-12-01 | C10: 1.806837667 | D10: 1.509118192 | E10: 2.013020124 | F10: 1.610902223 | G10: 1.607187591 | H10: 1.637581471
A11: ASFALTOS DILUÍDOS CM-30 | B11: 2009-01-01 | C11: 1.497052858 | D11: 1.504296346 | E11: 1.963097671 | F11: 1.524672247 | G11: 1.585137209 | H11: 1.564945876
A12: ASFALTOS DILUÍDOS CM-30 | B12: 2009-02-01 | C12: 1.42787112 | D12: 1.497693283 | E12: 1.981065098 | F12: 1.583490231 | G12: 1.595924062 | H12: 1.565451036
A13: ASFALTOS DILUÍDOS CM-30 | B13: 2009-03-01 | C13: 1.404941405 | D13: 1.497647987 | E13: 1.893430263 | F13: 1.52754782 | G13: 1.588720029 | H13: 1.532713147
A14: ASFALTOS DILUÍDOS CM-30 | B14: 2009-04-01 | C14: 1.410510748 | D14: 1.484826261 | E14: 1.909226429 | F14: 1.464149371 | G14: 1.553831928 | H14: 1.516717648
A15: ASFALTOS DILUÍDOS CM-30 | B15: 2009-05-01 | C15: 1.480355678 | D15: 1.466898928 | E15: 1.891590435 | F15: 1.435443718 | G15: 1.54161118 | H15: 1.537574371
A16: ASFALTOS DILUÍDOS CM-30 | B16: 2009-06-01 | C16: 1.580751039 | D16: 1.444888837 | E16: 1.842074119 | F16: 1.424264315 | G16: 1.501526696 | H16: 1.541315575
A17: ASFALTOS DILUÍDOS CM-30 | B17: 2009-07-01 | C17: 1.905432476 | D17: 1.482618211 | E17: 1.949046345 | F17: 1.584435299 | G17: 1.610310436 | H17: 1.651032523
A18: ASFALTOS DILUÍDOS CM-30 | B18: 2009-08-01 | C18: 1.716995184 | D18: 1.423854915 | E18: 1.712385478 | F18: 1.418000805 | G18: 1.520643497 | H18: 1.504911469
A19: ASFALTOS DILUÍDOS CM-30 | B19: 2009-09-01 | C19: 1.64329494 | D19: 1.445317761 | E19: 1.731518803 | F19: 1.419374251 | G19: 1.500735895 | H19: 1.50552312
A20: ASFALTOS DILUÍDOS CM-30 | B20: 2009-10-01 | C20: 1.588031924 | D20: 1.458932649 | E20: 1.762015056 | F20: 1.429024419 | G20: 1.513753831 | H20: 1.511681904
A21: ASFALTOS DILUÍDOS CM-30 | B21: 2009-11-01 | C21: 1.639348604 | D21: 1.449059777 | E21: 1.772650817 | F21: 1.434122677 | G21: 1.526043188 | H21: 1.499657392
A22: ASFALTOS DILUÍDOS CM-30 | B22: 2009-12-01 | C22: 1.664266853 | D22: 1.441966636 | E22: 1.890574802 | F22: 1.429077727 | G22: 1.520539334 | H22: 1.508864598
A23: ASFALTOS DILUÍDOS CM-30 | B23: 2010-01-01 | C23: 1.842506144 | D23: 1.454977129 | E23: 1.865022447 | F23: 1.414817608 | G23: 1.474450765 | H23: 1.497735227
A24: ASFALTOS DILUÍDOS CM-30 | B24: 2010-02-01 | C24: 1.709886915 | D24: 1.442956487 | E24: 1.919844741 | F24: 1.433146251 | G24: 1.500882448 | H24: 1.496542251
A25: ASFALTOS DILUÍDOS CM-30 | B25: 2010-03-01 | C25: 1.535743416 | D25: 1.448880499 | E25: 1.935062728 | F25: 1.435026116 | G25: 1.480618635 | H25: 1.486789802
A26: ASFALTOS DILUÍDOS CM-30 | B26: 2010-04-01 | C26: 1.710046479 | D26: 1.440300254 | E26: 1.911935961 | F26: 1.421102153 | G26: 1.481270937 | H26: 1.511086431
A27: ASFALTOS DILUÍDOS CM-30 | B27: 2010-05-01 | C27: 1.755610465 | D27: 1.435277221 | E27: 1.873293889 | F27: 1.406944432 | G27: 1.48177605 | H27: 1.537170565
A28: ASFALTOS DILUÍDOS CM-30 | B28: 2010-06-01 | C28: 1.602224314 | D28: 1.396004336 | E28: 1.731734721 | F28: 1.399996227 | G28: 1.49193962 | H28: 1.498073418
A29: ASFALTOS DILUÍDOS CM-30 | B29: 2010-07-01 | C29: 1.559901627 | D29: 1.381016708 | E29: 1.732688214 | F29: 1.402904856 | G29: 1.473854427 | H29: 1.490075269
A30: ASFALTOS DILUÍDOS CM-30 | B30: 2010-08-01 | C30: 1.526639389 | D30: 1.38817836 | E30: 1.738946087 | F30: 1.398751236 | G30: 1.455749849 | H30: 1.495828516
A31: ASFALTOS DILUÍDOS CM-30 | B31: 2010-09-01 | C31: 1.565378829 | D31: 1.408204664 | E31: 1.757027378 | F31: 1.411642875 | G31: 1.487257745 | H31: 1.512257128
A32: ASFALTOS DILUÍDOS CM-30 | B32: 2010-10-01 | C32: 1.481711294 | D32: 1.404357715 | E32: 1.751159947 | F32: 1.403489437 | G32: 1.469340847 | H32: 1.49988826
A33: ASFALTOS DILUÍDOS CM-30 | B33: 2010-11-01 | C33: 1.519267672 | D33: 1.410130904 | E33: 1.779405625 | F33: 1.421283822 | G33: 1.458559112 | H33: 1.481658635
A34: ASFALTOS DILUÍDOS CM-30 | B34: 2010-12-01 | C34: 1.559287556 | D34: 1.40982051 | E34: 1.825185618 | F34: 1.417673572 | G34: 1.473243884 | H34: 1.469113031
A35: ASFALTOS DILUÍDOS CM-30 | B35: 2011-01-01 | C35: 1.525923305 | D35: 1.445794092 | E35: 1.774600924 | F35: 1.403274235 | G35: 1.466002814 | H35: 1.457256066
A36: ASFALTOS DILUÍDOS CM-30 | B36: 2011-02-01 | C36: 1.552825112 | D36: 1.392094259 | E36: 1.763836123 | F36: 1.385194937 | G36: 1.44955884 | H36: 1.426250478
A37: ASFALTOS DILUÍDOS CM-30 | B37: 2011-03-01 | C37: 1.469219693 | D37: 1.369442916 | E37: 1.696017922 | F37: 1.353812804 | G37: 1.435170694 | H37: 1.400130249
A38: ASFALTOS DILUÍDOS CM-30 | B38: 2011-04-01 | C38: 1.470570262 | D38: 1.373220492 | E38: 1.650829394 | F38: 1.345928103 | G38: 1.42199894 | H38: 1.400493522
A39: ASFALTOS DILUÍDOS CM-30 | B39: 2011-05-01 | C39: 1.428528955 | D39: 1.322646267 | E39: 1.700380913 | F39: 1.345068163 | G39: 1.439361431 | H39: 1.428058019
A40: ASFALTOS DILUÍDOS CM-30 | B40: 2011-06-01 | C40: 1.407622163 | D40: 1.305708657 | E40: 1.741843669 | F40: 1.354620495 | G40: 1.399501693 | H40: 1.44029982
A41: ASFALTOS DILUÍDOS CM-30 | B41: 2011-07-01 | C41: 1.259234065 | D41: 1.312033305 | E41: 1.737489696 | F41: 1.33656388 | G41: 1.422474887 | H41: 1.420839252
A42: ASFALTOS DILUÍDOS CM-30 | B42: 2011-08-01 | C42: 1.470680061 | D42: 1.299778765 | E42: 1.727443485 | F42: 1.341477821 | G42: 1.353018352 | H42: 1.425675534
A43: ASFALTOS DILUÍDOS CM-30 | B43: 2011-09-01 | C43: 1.56132872 | D43: 1.321196084 | E43: 1.729821548 | F43: 1.357451483 | G43: 1.395684798 | H43: 1.455202413
A44: ASFALTOS DILUÍDOS CM-30 | B44: 2011-10-01 | C44: 1.520569722 | D44: 1.326218736 | E44: 1.71738046 | F44: 1.332691392 | G44: 1.3577774 | H44: 1.442295871
A45: ASFALTOS DILUÍDOS CM-30 | B45: 2011-11-01 | C45: 1.465886334 | D45: 1.337041154 | E45: 1.741004886 | F45: 1.345486103 | G45: 1.447580565 | H45: 1.445354137
A46: ASFALTOS DILUÍDOS CM-30 | B46: 2011-12-01 | C46: 1.470883899 | D46: 1.335587636 | E46: 1.778724141 | F46: 1.408293068 | G46: 1.428112306 | H46: 1.422418604
A47: ASFALTOS DILUÍDOS CM-30 | B47: 2012-01-01 | C47: 1.384955015 | D47: 1.350130156 | E47: 1.780783883 | F47: 1.421354107 | G47: 1.430352474 | H47: 1.394658167
A48: ASFALTOS DILUÍDOS CM-30 | B48: 2012-02-01 | C48: 1.332181678 | D48: 1.368143891 | E48: 1.741020394 | F48: 1.400200985 | G48: 1.425400986 | H48: 1.410605707
A49: ASFALTOS DILUÍDOS CM-30 | B49: 2012-03-01 | C49: 1.411621867 | D49: 1.349122214 | E49: 1.620096006 | F49: 1.393295764 | G49: 1.406130569 | H49: 1.409768786
A50: ASFALTOS DILUÍDOS CM-30 | B50: 2012-04-01 | C50: 1.549007912 | D50: 1.383976456 | E50: 1.640712752 | F50: 1.404716397 | G50: 1.440617793 | H50: 1.45608482
A51: ASFALTOS DILUÍDOS CM-30 | B51: 2012-05-01 | C51: 1.596178941 | D51: 1.386362272 | E51: 1.712061183 | F51: 1.39923955 | G51: 1.448350887 | H51: 1.498461969
A52: ASFALTOS DILUÍDOS CM-30 | B52: 2012-06-01 | C52: 1.701432576 | D52: 1.388053518 | E52: 1.740352007 | F52: 1.422118749 | G52: 1.449196072 | H52: 1.527722717
A53: ASFALTOS DILUÍDOS CM-30 | B53: 2012-07-01 | C53: 1.652026742 | D53: 1.39436857 | E53: 1.718644846 | F53: 1.439670261 | G53: 1.46187567 | H53: 1.523069159
A54: ASFALTOS DILUÍDOS CM-30 | B54: 2012-08-01 | C54: 1.689998835 | D54: 1.40333785 | E54: 1.741895041 | F54: 1.421723369 | G54: 1.445685799 | H54: 1.536533078
A55: ASFALTOS DILUÍDOS CM-30 | B55: 2012-09-01 | C55: 1.690177972 | D55: 1.421500003 | E55: 1.780920724 | F55: 1.445180432 | G55: 1.483645866 | H55: 1.549410653
A56: ASFALTOS DILUÍDOS CM-30 | B56: 2012-10-01 | C56: 1.574840342 | D56: 1.417066109 | E56: 1.794832036 | F56: 1.451304526 | G56: 1.482037109 | H56: 1.550631802
A57: ASFALTOS DILUÍDOS CM-30 | B57: 2012-11-01 | C57: 1.655163526 | D57: 1.455878748 | E57: 1.840129766 | F57: 1.461204615 | G57: 1.483499722 | H57: 1.552500776
A58: ASFALTOS DILUÍDOS CM-30 | B58: 2012-12-01 | C58: 1.714876125 | D58: 1.435854741 | E58: 1.804066573 | F58: 1.45222765 | G58: 1.509417648 | H58: 1.523411999
A59: ASFALTOS DILUÍDOS CM-30 | B59: 2013-01-01 | C59: 1.495776335 | D59: 1.449494588 | E59: 1.854050525 | F59: 1.44638752 | G59: 1.563753675 | H59: 1.502137259
A60: ASFALTOS DILUÍDOS CM-30 | B60: 2013-02-01 | C60: 1.635067666 | D60: 1.420609638 | E60: 1.731071498 | F60: 1.442746356 | G60: 1.461828405 | H60: 1.4739561
A61: ASFALTOS DILUÍDOS CM-30 | B61: 2013-03-01 | C61: 1.646229098 | D61: 1.413299983 | E61: 1.83828087 | F61: 1.450015152 | G61: 1.525760413 | H61: 1.506542904
A62: ASFALTOS DILUÍDOS CM-30 | B62: 2013-04-01 | C62: 1.581864474 | D62: 1.399189564 | E62: 1.793825113 | F62: 1.458704755 | G62: 1.551913702 | H62: 1.523623636
A63: ASFALTOS DILUÍDOS CM-30 | B63: 2013-05-01 | C63: 1.815646773 | D63: 1.390143517 | E63: 1.812783313 | F63: 1.44951052 | G63: 1.504233457 | H63: 1.549918592
A64: ASFALTOS DILUÍDOS CM-30 | B64: 2013-06-01 | C64: 1.631101583 | D64: 1.383186536 | E64: 1.816642105 | F64: 1.474232641 | G64: 1.503043689 | H64: 1.581049429
A65: ASFALTOS DILUÍDOS CM-30 | B65: 2013-07-01 | C65: 1.86596563 | D65: 1.422051117 | E65: 1.793072753 | F65: 1.498018808 | G65: 1.533391901 | H65: 1.59880513
A66: ASFALTOS DILUÍDOS CM-30 | B66: 2013-08-01 | C66: 1.700325546 | D66: 1.435094415 | E66: 1.821452614 | F66: 1.511722868 | G66: 1.530793596 | H66: 1.606176585
A67: ASFALTOS DILUÍDOS CM-30 | B67: 2013-09-01 | C67: 1.562873733 | D67: 1.472197748 | E67: 1.879842712 | F67: 1.542652867 | G67: 1.490667543 | H67: 1.627945893
A68: ASFALTOS DILUÍDOS CM-30 | B68: 2013-10-01 | C68: 1.648504013 | D68: 1.472152345 | E68: 1.825494997 | F68: 1.501177682 | G68: 1.48378912 | H68: 1.597538775
A69: ASFALTOS DILUÍDOS CM-30 | B69: 2013-11-01 | C69: 1.619179062 | D69: 1.486413317 | E69: 1.844012679 | F69: 1.496326809 | G69: 1.506096878 | H69: 1.581665844
A70: ASFALTOS DILUÍDOS CM-30 | B70: 2013-12-01 | C70: 1.633358293 | D70: 1.494818097 | E70: 1.897197176 | F70: 1.502864538 | G70: 1.517074296 | H70: 1.572475244
A71: ASFALTOS DILUÍDOS CM-30 | B71: 2014-01-01 | C71: 1.688311265 | D71: 1.494181305 | E71: 1.798355903 | F71: 1.484202293 | G71: 1.533353813 | H71: 1.542909737
A72: ASFALTOS DILUÍDOS CM-30 | B72: 2014-02-01 | C72: 1.598304434 | D72: 1.479706587 | E72: 1.814390215 | F72: 1.514829392 | G72: 1.522800588 | H72: 1.528970287
A73: ASFALTOS DILUÍDOS CM-30 | B73: 2014-03-01 | C73: 1.648287687 | D73: 1.472852501 | E73: 1.76657319 | F73: 1.513020673 | G73: 1.506185248 | H73: 1.530181178
A74: ASFALTOS DILUÍDOS CM-30 | B74: 2014-04-01 | C74: 1.534459987 | D74: 1.493898767 | E74: 1.757271278 | F74: 1.533021309 | G74: 1.524275274 | H74: 1.550566305
A75: ASFALTOS DILUÍDOS CM-30 | B75: 2014-05-01 | C75: 1.58658327 | D75: 1.490834685 | E75: 1.804339251 | F75: 1.501138131 | G75: 1.567043824 | H75: 1.586452272
A76: ASFALTOS DILUÍDOS CM-30 | B76: 2014-06-01 | C76: 1.658277164 | D76: 1.505801121 | E76: 1.839593445 | F76: 1.5068632 | G76: 1.523776953 | H76: 1.636070702
A77: ASFALTOS DILUÍDOS CM-30 | B77: 2014-07-01 | C77: 1.890299542 | D77: 1.500730514 | E77: 1.708277865 | F77: 1.487293964 | G77: 1.505956069 | H77: 1.587065158
A78: ASFALTOS DILUÍDOS CM-30 | B78: 2014-08-01 | C78: 1.632741832 | D78: 1.501945324 | E78: 1.671203189 | F78: 1.482359341 | G78: 1.506327366 | H78: 1.557910377
A79: ASFALTOS DILUÍDOS CM-30 | B79: 2014-09-01 | C79: 1.66956717 | D79: 1.546830427 | E79: 1.864797016 | F79: 1.496764585 | G79: 1.570533242 | H79: 1.639281057
A80: ASFALTOS DILUÍDOS CM-30 | B80: 2014-10-01 | C80: 1.742876916 | D80: 1.508978569 | E80: 1.746650466 | F80: 1.470773645 | G80: 1.454273462 | H80: 1.57912022
A81: ASFALTOS DILUÍDOS CM-30 | B81: 2014-11-01 | C81: 1.864723419 | D81: 1.57943059 | E81: 1.749156218 | F81: 1.465084479 | G81: 1.529147988 | H81: 1.601359821
A82: ASFALTOS DILUÍDOS CM-30 | B82: 2014-12-01 | C82: 1.812671914 | D82: 1.704844348 | E82: 1.963310066 | F82: 1.623676702 | G82: 1.649644659 | H82: 1.718826981
A83: ASFALTOS DILUÍDOS CM-30 | B83: 2015-01-01 | C83: 2.154807062 | D83: 2.023760447 | E83: 2.318863736 | F83: 1.866588967 | G83: 1.898380434 | H83: 2.007792032
A84: ASFALTOS DILUÍDOS CM-30 | B84: 2015-02-01 | C84: 2.260238625 | D84: 2.005673765 | E84: 2.393875762 | F84: 1.854519766 | G84: 1.927395107 | H84: 2.007653781
A85: ASFALTOS DILUÍDOS CM-30 | B85: 2015-03-01 | C85: 2.124176462 | D85: 1.968822849 | E85: 2.279643254 | F85: 1.887760911 | G85: 1.930217145 | H85: 1.984816916
A86: ASFALTOS DILUÍDOS CM-30 | B86: 2015-04-01 | C86: 2.030049505 | D86: 2.001506448 | E86: 2.379118903 | F86: 1.85245167 | G86: 1.949025254 | H86: 1.98064321
A87: ASFALTOS DILUÍDOS CM-30 | B87: 2015-05-01 | C87: 2.507271651 | D87: 1.946869908 | E87: 2.254758192 | F87: 1.807470001 | G87: 2.016929536 | H87: 2.005474234
A88: ASFALTOS DILUÍDOS CM-30 | B88: 2015-06-01 | C88: 2.248320042 | D88: 1.944259736 | E88: 2.314331796 | F88: 1.846998595 | G88: 1.968565125 | H88: 2.042581344
A89: ASFALTOS DILUÍDOS CM-30 | B89: 2015-07-01 | C89: 1.992222758 | D89: 1.992791635 | E89: 2.046769953 | F89: 1.782648603 | G89: 1.931671385 | H89: 1.942627362
A90: ASFALTOS DILUÍDOS CM-30 | B90: 2015-08-01 | C90: 2.307605931 | D90: 2.038089127 | E90: 2.252748105 | F90: 1.828097705 | G90: 1.939824481 | H90: 2.08193616
A91: ASFALTOS DILUÍDOS CM-30 | B91: 2015-09-01 | C91: 2.314289704 | D91: 2.095307531 | E91: 2.344561987 | F91: 1.942551091 | G91: 2.005352614 | H91: 2.168175541
A92: ASFALTOS DILUÍDOS CM-30 | B92: 2015-10-01 | C92: 2.329456663 | D92: 2.170570012 | E92: 2.43273012 | F92: 2.035624751 | G92: 2.110261148 | H92: 2.237533782
A93: ASFALTOS DILUÍDOS CM-30 | B93: 2015-11-01 | C93: 2.606056566 | D93: 2.437098304 | E93: 2.711612141 | F93: 2.280113896 | G93: 2.326446297 | H93: 2.474998781
A94: ASFALTOS DILUÍDOS CM-30 | B94: 2015-12-01 | C94: 2.635374006 | D94: 2.395920309 | E94: 2.693528386 | F94: 2.272528129 | G94: 2.330740659 | H94: 2.452848156
A95: ASFALTOS DILUÍDOS CM-30 | B95: 2016-01-01 | C95: 2.715863993 | D95: 2.373861647 | E95: 2.844670602 | F95: 2.263650658 | G95: 2.232631691 | H95: 2.400563394
A96: ASFALTOS DILUÍDOS CM-30 | B96: 2016-02-01 | C96: 2.80468316 | D96: 2.466846816 | E96: 2.791787007 | F96: 2.295637115 | G96: 2.346556173 | H96: 2.464348548
A97: ASFALTOS DILUÍDOS CM-30 | B97: 2016-03-01 | C97: 2.5805021 | D97: 2.470678753 | E97: 2.707688025 | F97: 2.235301999 | G97: 2.383115972 | H97: 2.423563924
A98: ASFALTOS DILUÍDOS CM-30 | B98: 2016-04-01 | C98: 2.942006312 | D98: 2.740742032 | E98: 2.759071855 | F98: 2.544439178 | G98: 2.710751632 | H98: 2.680274833
A99: ASFALTOS DILUÍDOS CM-30 | B99: 2016-05-01 | C99: 3.010579472 | D99: 2.650277047 | E99: 2.857121361 | F99: 2.575583152 | G99: 2.770413362 | H99: 2.70973327
A100: ASFALTOS DILUÍDOS CM-30 | B100: 2016-06-01 | C100: 2.909179844 | D100: 2.621385041 | E100: 2.943487281 | F100: 2.659109515 | G100: 2.684759555 | H100: 2.743619517
A101: ASFALTOS DILUÍDOS CM-30 | B101: 2016-07-01 | C101: 2.985740381 | D101: 2.591644045 | E101: 2.98927803 | F101: 2.604396599 | G101: 2.660884423 | H101: 2.745135539
A102: ASFALTOS DILUÍDOS CM-30 | B102: 2016-08-01 | C102: 2.935243919 | D102: 2.623917329 | E102: 2.970490854 | F102: 2.679486504 | G102: 2.727025649 | H102: 2.781385962
A103: ASFALTOS DILUÍDOS CM-30 | B103: 2016-09-01 | C103: 2.649136821 | D103: 2.521054851 | E103: 2.781583925 | F103: 2.51393313 | G103: 2.371271501 | H103: 2.595617128
A104: ASFALTOS DILUÍDOS CM-30 | B104: 2016-10-01 | C104: 2.626109257 | D104: 2.444469093 | E104: 2.781617873 | F104: 2.507383127 | G104: 2.38325399 | H104: 2.566999037
A105: ASFALTOS DILUÍDOS CM-30 | B105: 2016-11-01 | C105: 2.535087408 | D105: 2.374145527 | E105: 2.952768674 | F105: 2.481263765 | G105: 2.382206771 | H105: 2.542842366
A106: ASFALTOS DILUÍDOS CM-30 | B106: 2016-12-01 | C106: 2.50039107 | D106: 2.253413483 | E106: 3.038519458 | F106: 2.589438892 | G106: 2.395593424 | H106: 2.476439295
A107: ASFALTOS DILUÍDOS CM-30 | B107: 2017-01-01 | C107: 2.392875504 | D107: 2.232695674 | E107: 3.089080971 | F107: 2.535744039 | G107: 2.378694833 | H107: 2.374216192
A108: ASFALTOS DILUÍDOS CM-30 | B108: 2017-02-01 | C108: 2.68039414 | D108: 2.271897225 | E108: 2.764408032 | F108: 2.573933685 | G108: 2.384644398 | H108: 2.470721466
A109: ASFALTOS DILUÍDOS CM-30 | B109: 2017-03-01 | C109: 2.23884121 | D109: 2.386958079 | E109: 2.667220252 | F109: 2.372165947 | G109: 2.30121887 | H109: 2.378796986
A110: ASFALTOS DILUÍDOS CM-30 | B110: 2017-04-01 | C110: 2.420191398 | D110: 2.307969596 | E110: 2.794093014 | F110: 2.258409912 | G110: 2.256434297 | H110: 2.380268484
A111: ASFALTOS DILUÍDOS CM-30 | B111: 2017-05-01 | C111: 2.432106692 | D111: 2.167919128 | E111: 2.699836936 | F111: 2.255387192 | G111: 2.204026958 | H111: 2.361515909
A112: ASFALTOS DILUÍDOS CM-30 | B112: 2017-06-01 | C112: 2.428301776 | D112: 2.181938689 | E112: 2.756672055 | F112: 2.234549022 | G112: 2.305778546 | H112: 2.44553453
A113: ASFALTOS DILUÍDOS CM-30 | B113: 2017-07-01 | C113: 2.453752061 | D113: 2.218075334 | E113: 2.694625022 | F113: 2.414329247 | G113: 2.269601102 | H113: 2.473436106
A114: ASFALTOS DILUÍDOS CM-30 | B114: 2017-08-01 | C114: 2.447930976 | D114: 2.153112031 | E114: 2.595349952 | F114: 2.302919065 | G114: 2.170148667 | H114: 2.380876423
A115: ASFALTOS DILUÍDOS CM-30 | B115: 2017-09-01 | C115: 2.494551504 | D115: 2.14243989 | E115: 2.623166503 | F115: 2.371308095 | G115: 2.303698507 | H115: 2.393542204
A116: ASFALTOS DILUÍDOS CM-30 | B116: 2017-10-01 | C116: 2.349953944 | D116: 2.18056004 | E116: 2.614160957 | F116: 2.415254962 | G116: 2.20079573 | H116: 2.367947121
A117: ASFALTOS DILUÍDOS CM-30 | B117: 2017-11-01 | C117: 2.670126991 | D117: 2.433169195 | E117: 2.908627464 | F117: 2.58469482 | G117: 2.415192709 | H117: 2.602101348
A118: ASFALTOS DILUÍDOS CM-30 | B118: 2017-12-01 | C118: 2.587352645 | D118: 2.425358882 | E118: 2.906633765 | F118: 2.602890298 | G118: 2.42288976 | H118: 2.531764464
A119: ASFALTOS DILUÍDOS CM-30 | B119: 2018-01-01 | C119: 2.950360755 | D119: 2.662862923 | E119: 2.875953993 | F119: 2.620738484 | G119: 2.646955252 | H119: 2.735956369
A120: ASFALTOS DILUÍDOS CM-30 | B120: 2018-02-01 | C120: 2.677899567 | D120: 2.672498164 | E120: 2.942595474 | F120: 2.62043113 | G120: 2.567885662 | H120: 2.668369933
A121: ASFALTOS DILUÍDOS CM-30 | B121: 2018-03-01 | C121: 2.733363025 | D121: 2.589050022 | E121: 2.809172556 | F121: 2.561928393 | G121: 2.575946067 | H121: 2.634876584
A122: ASFALTOS DILUÍDOS CM-30 | B122: 2018-04-01 | C122: 2.75780112 | D122: 2.669553602 | E122: 2.773908242 | F122: 2.59547006 | G122: 2.556042394 | H122: 2.6643302
A123: ASFALTOS DILUÍDOS CM-30 | B123: 2018-05-01 | C123: 2.841213362 | D123: 2.672025877 | E123: 2.884501482 | F123: 2.686718021 | G123: 2.736485103 | H123: 2.77737896
A124: ASFALTOS DILUÍDOS CM-30 | B124: 2018-06-01 | C124: 3.008444789 | D124: 2.919605178 | E124: 3.158454886 | F124: 2.84673108 | G124: 2.953523993 | H124: 2.982291635
A125: ASFALTOS DILUÍDOS CM-30 | B125: 2018-07-01 | C125: 3.268237549 | D125: 3.036524094 | E125: 3.399360399 | F125: 3.026467598 | G125: 3.19779631 | H125: 3.164126546
A126: ASFALTOS DILUÍDOS CM-30 | B126: 2018-08-01 | C126: 3.56441315 | D126: 3.415193769 | E126: 3.707706206 | F126: 3.425079349 | G126: 3.356722461 | H126: 3.515558112
A127: ASFALTOS DILUÍDOS CM-30 | B127: 2018-09-01 | C127: 3.173913778 | D127: 3.445064118 | E127: 3.73526324 | F127: 3.385816186 | G127: 3.607309454 | H127: 3.483238429
A128: ASFALTOS DILUÍDOS CM-30 | B128: 2018-10-01 | C128: 3.487778119 | D128: 3.460508804 | E128: 3.721444057 | F128: 3.432525565 | G128: 3.60602088 | H128: 3.545390344
A129: ASFALTOS DILUÍDOS CM-30 | B129: 2018-11-01 | C129: 4.047272484 | D129: 3.814893312 | E129: 4.280131586 | F129: 4.178126777 | G129: 3.967681367 | H129: 3.990147183
A130: ASFALTOS DILUÍDOS CM-30 | B130: 2018-12-01 | C130: 3.951491146 | D130: 3.967113195 | E130: 4.341144202 | F130: 3.916766066 | G130: 3.911993357 | H130: 3.999742654
A131: ASFALTOS DILUÍDOS CM-30 | B131: 2019-01-01 | C131: 3.796855325 | D131: 3.870018889 | E131: 4.201901762 | F131: 3.954196997 | G131: 3.976786028 | H131: 3.933951911
A132: ASFALTOS DILUÍDOS CM-30 | B132: 2019-02-01 | C132: 3.516584073 | D132: 4.090361178 | E132: 4.498422953 | F132: 4.469942475 | G132: 4.254590254 | H132: 4.188544679
A133: ASFALTOS DILUÍDOS CM-30 | B133: 2019-03-01 | C133: 4.216758117 | D133: 4.361910728 | E133: 4.907194889 | F133: 4.398717729 | G133: 4.290823922 | H133: 4.360295279
A134: ASFALTOS DILUÍDOS CM-30 | B134: 2019-04-01 | C134: 4.281648205 | D134: 4.234661428 | E134: 4.531627215 | F134: 4.43722653 | G134: 4.466881471 | H134: 4.38082044
A135: ASFALTOS DILUÍDOS CM-30 | B135: 2019-05-01 | C135: 4.287644659 | D135: 4.190699738 | E135: 4.857910872 | F135: 4.267461963 | G135: 4.633806379 | H135: 4.366402151
A136: ASFALTOS DILUÍDOS CM-30 | B136: 2019-06-01 | C136: 4.475609892 | D136: 3.965052934 | E136: 4.66272934 | F136: 4.350600604 | G136: 4.211229921 | H136: 4.319323669
A137: ASFALTOS DILUÍDOS CM-30 | B137: 2019-07-01 | C137: 4.394498989 | D137: 4.058039305 | E137: 4.834221945 | F137: 4.094659414 | G137: 4.233003281 | H137: 4.346977757
A138: ASFALTOS DILUÍDOS CM-30 | B138: 2019-08-01 | C138: 4.48173504 | D138: 3.910662496 | E138: 4.576329081 | F138: 4.11161654 | G138: 4.255419985 | H138: 4.258345083
A139: ASFALTOS DILUÍDOS CM-30 | B139: 2019-09-01 | C139: 4.439578796 | D139: 3.859904896 | E139: 4.495256968 | F139: 4.111321475 | G139: 4.117359152 | H139: 4.251607085
A140: ASFALTOS DILUÍDOS CM-30 | B140: 2019-10-01 | C140: 4.335888631 | D140: 3.772324962 | E140: 4.459242357 | F140: 4.056084115 | G140: 3.942458011 | H140: 4.07740702
A141: ASFALTOS DILUÍDOS CM-30 | B141: 2019-11-01 | C141: 4.316238692 | D141: 3.910245509 | E141: 4.581841077 | F141: 4.07902404 | G141: 4.106621274 | H141: 4.094561212
A142: ASFALTOS DILUÍDOS CM-30 | B142: 2019-12-01 | C142: 4.199435972 | D142: 3.980119663 | E142: 4.673774805 | F142: 4.434268142 | G142: 3.986410312 | H142: 4.164691616
A143: ASFALTOS DILUÍDOS CM-30 | B143: 2020-01-01 | C143: 3.59298003 | D143: 3.895320617 | E143: 4.685420623 | F143: 4.387074674 | G143: 4.124467668 | H143: 4.053338937
A144: ASFALTOS DILUÍDOS CM-30 | B144: 2020-02-01 | C144: 3.642667016 | D144: 3.877395187 | E144: 4.438194543 | F144: 3.699944607 | G144: 3.778164011 | H144: 3.839010438
A145: ASFALTOS DILUÍDOS CM-30 | B145: 2020-03-01 | C145: 4.676668339 | D145: 3.791138977 | E145: 4.289222343 | F145: 3.718402734 | G145: 3.60908619 | H145: 3.93117068
A146: ASFALTOS DILUÍDOS CM-30 | B146: 2020-04-01 | C146: 4.313362837 | D146: 3.6957655 | E146: 4.255395321 | F146: 3.865895531 | G146: 3.732253382 | H146: 3.964125211
A147: ASFALTOS DILUÍDOS CM-30 | B147: 2020-05-01 | C147: 3.249134658 | D147: 3.637769912 | E147: 4.113544882 | F147: 3.760550026 | G147: 3.710618099 | H147: 3.65617504
A148: ASFALTOS DILUÍDOS CM-30 | B148: 2020-06-01 | C148: 4.017903076 | D148: 3.567031492 | E148: 4.277369171 | F148: 3.937886485 | G148: 3.625830069 | H148: 3.924524506
A149: ASFALTOS DILUÍDOS CM-30 | B149: 2020-07-01 | C149: 3.840497509 | D149: 3.51327048 | E149: 4.21549069 | F149: 3.954223886 | G149: 3.688841275 | H149: 3.843774448
A150: ASFALTOS DILUÍDOS CM-30 | B150: 2020-08-01 | C150: 4.174467203 | D150: 3.465394219 | E150: 4.277710211 | F150: 4.06746494 | G150: 3.62858863 | H150: 3.947166917
A151: ASFALTOS DILUÍDOS CM-30 | B151: 2020-09-01 | C151: 4.167371331 | D151: 3.746360816 | E151: 4.167424356 | F151: 3.795621791 | G151: 3.627729935 | H151: 3.973129945
A152: ASFALTOS DILUÍDOS CM-30 | B152: 2020-10-01 | C152: 4.408099527 | D152: 3.718989878 | E152: 4.278979192 | F152: 4.008746906 | G152: 3.591048183 | H152: 4.03964377
A153: ASFALTOS DILUÍDOS CM-30 | B153: 2020-11-01 | C153: 4.056306006 | D153: 3.969209281 | E153: 4.547900893 | F153: 4.27945542 | G153: 3.973347244 | H153: 4.175826149
A154: ASFALTOS DILUÍDOS CM-30 | B154: 2020-12-01 | C154: 4.132064138 | D154: 3.851632751 | E154: 4.426704386 | F154: 3.906236422 | G154: 3.8709398 | H154: 4.035347374
A155: ASFALTOS DILUÍDOS CM-30 | B155: 2021-01-01 | C155: 3.489836333 | D155: 3.951525937 | E155: 4.628269702 | F155: 4.011577011 | G155: 3.935136638 | H155: 3.917092391
A156: ASFALTOS DILUÍDOS CM-30 | B156: 2021-02-01 | C156: 4.099318116 | D156: 4.267109523 | E156: 4.832061615 | F156: 4.414202706 | G156: 4.149048932 | H156: 4.26819704
A157: ASFALTOS DILUÍDOS CM-30 | B157: 2021-03-01 | C157: 4.528355792 | D157: 4.239831731 | E157: 4.926314562 | F157: 4.269697839 | G157: 4.130655409 | H157: 4.377833785
A158: ASFALTOS DILUÍDOS CM-30 | B158: 2021-04-01 | C158: 4.349271867 | D158: 4.086995154 | E158: 4.477597522 | F158: 4.156113398 | G158: 4.044189822 | H158: 4.253361798
A159: ASFALTOS DILUÍDOS CM-30 | B159: 2021-05-01 | C159: 4.488889413 | D159: 4.707945815 | E159: 5.101489686 | F159: 4.784034896 | G159: 4.523986615 | H159: 4.790548085
A160: ASFALTOS DILUÍDOS CM-30 | B160: 2021-06-01 | C160: 4.010467711 | D160: 4.479592126 | E160: 5.113041212 | F160: 4.779739905 | G160: 4.721214307 | H160: 4.764890884
A161: ASFALTOS DILUÍDOS CM-30 | B161: 2021-07-01 | C161: 4.752234128 | D161: 4.559350506 | E161: 5.004758283 | F161: 4.80272972 | G161: 4.748550678 | H161: 4.817586047
A162: ASFALTOS DILUÍDOS CM-30 | B162: 2021-08-01 | C162: 5.085284532 | D162: 4.772501255 | E162: 5.198537142 | F162: 5.244735259 | G162: 4.76131175 | H162: 5.0981692
A163: ASFALTOS DILUÍDOS CM-30 | B163: 2021-09-01 | C163: 5.110300267 | D163: 4.538072365 | E163: 5.241721185 | F163: 5.017144197 | G163: 4.862861245 | H163: 5.016958886
A164: ASFALTOS DILUÍDOS CM-30 | B164: 2021-10-01 | C164: 5.080697261 | D164: 4.66826742 | E164: 5.119544199 | F164: 5.384779065 | G164: 4.658516432 | H164: 5.021294312
A165: ASFALTOS DILUÍDOS CM-30 | B165: 2021-11-01 | C165: 5.436518753 | D165: 5.08776781 | E165: 5.150063985 | F165: 5.634257884 | G165: 5.174530131 | H165: 5.228141289
A166: ASFALTOS DILUÍDOS CM-30 | B166: 2021-12-01 | C166: 5.184291386 | D166: 4.975486975 | E166: 5.572122251 | F166: 6.135655205 | G166: 5.01180992 | H166: 5.339565801
A167: ASFALTOS DILUÍDOS CM-30 | B167: 2022-01-01 | C167: 4.928191974 | D167: 5.023555623 | E167: 6.018407512 | F167: 5.214773026 | G167: 5.481979244 | H167: 5.250789679
A168: ASFALTOS DILUÍDOS CM-30 | B168: 2022-02-01 | C168: 5.545684189 | D168: 5.708628413 | E168: 6.011065894 | F168: 4.8651 | G168: 5.763367147 | H168: 5.736057428
A169: ASFALTOS DILUÍDOS CM-30 | B169: 2022-03-01 | C169: 6.326844735 | D169: 5.644687904 | E169: 5.930807225 | F169: 6.181141143 | G169: 5.498041682 | H169: 5.922781038
A170: ASFALTOS DILUÍDOS CM-30 | B170: 2022-04-01 | C170: 5.974220681 | D170: 5.832747324 | E170: 6.206692615 | F170: 5.720329997 | G170: 6.17800291 | H170: 6.012354229
A171: ASFALTOS DILUÍDOS CM-30 | B171: 2022-05-01 | C171: 5.354015586 | D171: 5.464335309 | E171: 6.007611639 | F171: 5.995095583 | G171: 5.49095009 | H171: 5.670722744
A172: ASFALTOS DILUÍDOS CM-30 | B172: 2022-06-01 | C172: 5.802443798 | D172: 5.316964203 | E172: 5.25267889 | F172: 5.813931518 | G172: 5.644996328 | H172: 5.469498687
A173: ASFALTOS DILUÍDOS CM-30 | B173: 2022-07-01 | C173: 5.965614765 | D173: 5.829314879 | E173: 5.919099711 | F173: 5.742484775 | G173: 5.674430543 | H173: 5.862020702
A174: ASFALTOS DILUÍDOS CM-30 | B174: 2022-08-01 | C174: 6.424230463 | D174: 5.758256878 | E174: 5.752352843 | F174: 5.791905352 | G174: 5.31271724 | H174: 5.823186051
A175: ASFALTOS DILUÍDOS CM-30 | B175: 2022-09-01 | C175: 5.540097074 | D175: 5.609921619 | E175: 5.963592489 | F175: 5.302181194 | G175: 4.977929161 | H175: 5.699429921
A176: ASFALTOS DILUÍDOS CM-30 | B176: 2022-10-01 | C176: 4.785670999 | D176: 4.727521094 | E176: 5.339105147 | F176: 4.851160007 | G176: 4.532580513 | H176: 5.041661715
A177: ASFALTOS DILUÍDOS CM-30 | B177: 2022-11-01 | C177: 7.765855923 | D177: 4.775654982 | E177: 5.237626127 | F177: 4.636383138 | G177: 4.460593179 | H177: 5.074993862
A178: ASFALTOS DILUÍDOS CM-30 | B178: 2022-12-01 | C178: 4.65725 | D178: 4.966905362 | E178: 5.655161554 | F178: 4.840935672 | G178: 4.661007861 | H178: 5.11324949
A179: ASFALTOS DILUÍDOS CM-30 | B179: 2023-01-01 | C179: 4.948950319 | D179: 5.056264922 | E179: 5.359597966 | F179: 4.426497959 | G179: 4.103267888 | H179: 4.715605129
A180: ASFALTOS DILUÍDOS CM-30 | B180: 2023-02-01 | C180: 5.407494667 | D180: 4.335771195 | E180: 4.746646601 | F180: 4.674884727 | G180: 4.014547173 | H180: 4.417800736
A181: ASFALTOS DILUÍDOS CM-30 | B181: 2023-03-01 | C181: 4.99131 | D181: 4.01354912 | E181: 4.74625028 | F181: 4.08071937 | G181: 4.082484954 | H181: 4.270345723
A182: ASFALTOS DILUÍDOS CM-30 | B182: 2023-04-01 | C182: 4.438479015 | D182: 4.094201354 | E182: 5.135816186 | F182: 4.368265095 | G182: 3.859308149 | H182: 4.153818797
A183: ASFALTOS DILUÍDOS CM-30 | B183: 2023-05-01 | C183: 5.018589297 | D183: 4.506282643 | E183: 5.616638293 | F183: 4.034756925 | G183: 4.063701717 | H183: 4.686492725
A184: ASFALTOS DILUÍDOS CM-30 | B184: 2023-06-01 | C184: 4.439644526 | D184: 4.495805354 | E184: 5.228174524 | F184: 3.772028745 | G184: 4.009042073 | H184: 4.588045148
A185: ASFALTOS DILUÍDOS CM-30 | B185: 2023-07-01 | C185: 4.360399352 | D185: 4.250187634 | E185: 6.188049155 | F185: 3.699216781 | G185: 4.315773768 | H185: 4.790717553
A186: ASFALTOS DILUÍDOS CM-30 | B186: 2023-08-01 | C186: 4.043215999 | D186: 4.100901709 | E186: 5.414198228 | F186: 3.964297949 | G186: 4.055989778 | H186: 4.607810697
A187: ASFALTOS DILUÍDOS CM-30 | B187: 2023-09-01 | C187: 5.69501625 | D187: 4.358586276 | E187: 5.187252517 | F187: 4.112508656 | G187: 4.211646236 | H187: 4.748640211
A188: ASFALTOS DILUÍDOS CM-30 | B188: 2023-10-01 | C188: 5.685185 | D188: 4.294075647 | E188: 4.912919476 | F188: 4.365095101 | G188: 4.257370162 | H188: 4.609445905
A189: ASFALTOS DILUÍDOS CM-30 | B189: 2023-11-01 | C189: 4.815085397 | D189: 4.345599447 | E189: 5.404502747 | F189: 4.045271104 | G189: 4.164697405 | H189: 4.781498943
A190: ASFALTOS DILUÍDOS CM-30 | B190: 2023-12-01 | C190: 5.411492308 | D190: 4.700043896 | E190: 5.306415734 | F190: 4.313216862 | G190: 4.188732062 | H190: 4.664845353
A191: ASFALTOS DILUÍDOS CM-30 | B191: 2024-01-01 | C191: 3.716178391 | D191: 4.395163811 | E191: 4.888126947 | F191: 3.977196797 | G191: 4.057095331 | H191: 4.290228903
A192: ASFALTOS DILUÍDOS CM-30 | B192: 2024-02-01 | C192: 5.349588571 | D192: 4.281881871 | E192: 5.36118056 | F192: 4.287786155 | G192: 4.151112946 | H192: 4.366194996
A193: ASFALTOS DILUÍDOS CM-30 | B193: 2024-03-01 | C193: 6.437624165 | D193: 4.512948358 | E193: 4.994035932 | F193: 4.680610304 | G193: 4.197388123 | H193: 4.725137967
A194: ASFALTOS DILUÍDOS CM-30 | B194: 2024-04-01 | C194: 6.524010018 | D194: 5.333668875 | E194: 5.011370357 | F194: 3.991999626 | G194: 4.15116124 | H194: 4.439406986
A195: ASFALTOS DILUÍDOS CM-30 | B195: 2024-05-01 | C195: 6.61993633 | D195: *** | E195: 5.21538288 | F195: 4.24855796 | G195: 4.478170767 | H195: 4.960078568
A196: ASFALTOS DILUÍDOS CM-30 | B196: 2024-06-01 | C196: 6.461820806 | D196: 4.288169263 | E196: 4.921606124 | F196: 4.517339741 | G196: 4.897585787 | H196: 4.922850803
A197: ASFALTOS DILUÍDOS CM-30 | B197: 2024-07-01 | C197: 6.120612239 | D197: 4.599255433 | E197: 5.497451069 | F197: 4.667838533 | G197: 4.514452653 | H197: 4.962740397
A198: ASFALTOS DILUÍDOS CM-30 | B198: 2024-08-01 | C198: 4.993225349 | D198: 4.428025283 | E198: 5.661947528 | F198: 4.958688154 | G198: 4.60903985 | H198: 5.143625042
A199: ASFALTOS DILUÍDOS CM-30 | B199: 2024-09-01 | C199: 6.554494856 | D199: 4.508326987 | E199: 5.819155159 | F199: 5.012107159 | G199: 4.596016256 | H199: 5.205694528
A200: ASFALTOS DILUÍDOS CM-30 | B200: 2024-10-01 | C200: 4.99217156 | D200: 4.867223371 | E200: 5.762705278 | F200: 4.908511444 | G200: 4.687758332 | H200: 5.077992426
A201: ASFALTOS DILUÍDOS CM-30 | B201: 2024-11-01 | C201: 6.103818377 | D201: 4.655198914 | E201: 5.505517561 | F201: 4.665170771 | G201: 4.558090866 | H201: 4.839804883
A202: ASFALTOS DILUÍDOS CM-30 | B202: 2024-12-01 | C202: 5.653116406 | D202: 4.621474651 | E202: 5.960894123 | F202: 4.849592977 | G202: 4.601260181 | H202: 4.838978355
A203: ASFALTOS DILUÍDOS CM-30 | B203: 2025-01-01 | C203: 6.087525 | D203: 5.336506141 | E203: 5.738529982 | F203: 5.60387 | G203: 4.653549092 | H203: 4.948881966
A204: ASFALTOS DILUÍDOS CM-30 | B204: 2025-02-01 | C204: 4.577817305 | D204: 4.987171059 | E204: 5.962615967 | F204: 5.074821011 | G204: 4.766997534 | H204: 4.911084425
... 4924 more rows

Sheet MATERIAL SICRO
A1: CGCIT | B1: SISTEMA DE CUSTOS REFERENCIAIS DE OBRAS - SICRO | D1: DNIT
B2: Piauí - Julho/2025
A3: Código | B3: Descrição | C3: Unidade | D3: Preço Unitário (R$)
A4: M0003 | B4: Aço CA 25 | C4: kg | D4: 6.835
A5: M0004 | B5: Aço CA 50 | C5: kg | D5: 6.68
A6: M0005 | B6: Brita 0 | C6: m³ | D6: 184.217
A7: M0006 | B7: Fibra de poliamida para concreto | C7: kg | D7: 27.9838
A8: M0007 | B8: Fibra de aço para concreto | C8: kg | D8: 17.4231
A9: M0008 | B9: Detergente líquido neutro | C9: l | D9: 4.4324
A10: M0009 | B10: Aço CP 175 RB | C10: kg | D10: 9.831
A11: M0010 | B11: Aditivo superplastificante para concreto e argamassa | C11: kg | D11: 17.2177
A12: M0011 | B12: Aditivo modificador de viscosidade para concreto e argamassa | C12: kg | D12: 11.2784
A13: M0012 | B13: Silicato de alumínio | C13: kg | D13: 2.338
A14: M0013 | B14: Grampo de ancoragem em aço CA 50 - D = 12,5 mm | C14: kg | D14: 6.3477
A15: M0014 | B15: Aço CA 60 | C15: kg | D15: 8.1648
A16: M0015 | B16: Espoleta elétrica Nº 8 - D = 6,0 mm | C16: un | D16: 19.296
A17: M0016 | B17: Grampo sargento em ferro fundido tipo C com abertura útil de 105 mm (4") | C17: un | D17: 42.463
A18: M0017 | B18: Saco de aniagem ou de ráfia de 50 kg - C = 95 cm e L = 65 cm | C18: un | D18: 2.6656
A19: M0018 | B19: Grampo pesado em aço-carbono para cabo de aço - D = 13 mm (1/2") | C19: un | D19: 18.1191
A20: M0019 | B20: Esticador em aço tipo olhal x olhal para cabo de aço - D = 13 mm | C20: un | D20: 135.199
A21: M0020 | B21: Grampo de ancoragem em aço CA 50 - D = 6,3 mm | C21: kg | D21: 7.1266
A22: M0021 | B22: Herbicida glifosato para áreas contínuas | C22: l | D22: 25.0899
A23: M0025 | B23: Adesivo plástico para tubos de PVC | C23: kg | D23: 52.3151
A24: M0026 | B24: Aditivo aglutinante para argamassa | C24: l | D24: 10.0377
A25: M0028 | B25: Areia média | C25: m³ | D25: 88.576
A26: M0029 | B26: Sílica ativa para concreto e argamassa (microssílica) | C26: kg | D26: 2.2529
A27: M0030 | B27: Aditivo plastificante e retardador de pega para concreto e argamassa | C27: kg | D27: 8.3893
A28: M0032 | B28: Adesivo de contato para laminado elastoplástico | C28: kg | D28: 47.9638
A29: M0035 | B29: Diluente tipo aguarrás para tintas e vernizes | C29: l | D29: 14.7478
A30: M0039 | B30: Gasolina comum | C30: l | D30: 5.5453
A31: M0041 | B31: Contêiner com 2 banheiros - L = 2,44 m e C = 6,09 m (1 TEU) | C31: un | D31: 103835.0185
A32: M0042 | B32: Contêiner com janela - L = 2,44 m e C = 6,09 m (1 TEU) | C32: un | D32: 44288.7879
A33: M0043 | B33: Óleo diesel | C33: l | D33: 5.4116
A34: M0044 | B34: Abrasivo de vidro com granulometria de 210 a 420 micra | C34: kg | D34: 10.9123
A35: M0045 | B35: Barreira plástica monobloco para canalização de trânsito - C = 100 cm, L = 50 cm e H = 55 cm | C35: un | D35: 446.2251
A36: M0046 | B36: Barreira plástica para canalização de trânsito - C = 60 cm, L = 45 cm e H = 60 cm | C36: un | D36: 313.2111
A37: M0047 | B37: Cone de sinalização em polietileno - H = 75 cm e base quadrada de 40 x 40 cm | C37: un | D37: 95.6171
A38: M0048 | B38: Balizador cônico refletivo em polietileno semiflexível - H = 114 cm e base octogonal de D = 40 cm | C38: un | D38: 156.499
A39: M0049 | B39: Delimitador de tráfego flexível com chumbador e duas faixas refletivas - H = 77 cm e D = 21 cm | C39: un | D39: 168.7576
A40: M0050 | B40: Aditivo natural tipo goma xantana para hidrossemeadura | C40: kg | D40: 80.2882
A41: M0051 | B41: Cilindro canalizador de tráfego em polietileno - H = 117 cm e base quadrada de 60 x 60 cm | C41: un | D41: 188.9459
A42: M0052 | B42: Fita adesiva de PVC - L = 50 mm e C = 50 m | C42: m | D42: 0.1157
A43: M0053 | B43: Tela plástica em polipropileno na cor laranja para tapume - L = 1,2 m | C43: m | D43: 1.7977
A44: M0054 | B44: Fita zebrada de cor laranja e branca - L = 7 a 8 cm | C44: m | D44: 0.0745
A45: M0055 | B45: Barreira plástica articulável modular - C = 240 cm e H = 100 cm | C45: un | D45: 1329.9706
A46: M0056 | B46: Ferramenta de corte para removedora de faixa de sinalização (Smith Cutter) | C46: un | D46: 7566.9579
A47: M0057 | B47: Contêiner com janela - L = 4,88 m e C = 6,09 m (1 TEU duplo) | C47: un | D47: 151502.037
A48: M0058 | B48: Contêiner com janela e 2 banheiros - L = 4,88 m e C = 6,09 m (1 TEU duplo) | C48: un | D48: 156517.037
A49: M0059 | B49: Contêiner com revestimento térmico, janela e banheiro - L = 2,44 m e C = 6,09 m (1 TEU) | C49: un | D49: 64248.4879
A50: M0060 | B50: Contêiner com janela - L = 2,44 m e C = 4,58 m (3/4 TEU) | C50: un | D50: 65219.5185
A51: M0065 | B51: Contêiner com janela e banheiro - L = 2,44 m e 4,58 m (3/4 TEU) | C51: un | D51: 83273.5185
A52: M0066 | B52: Contêiner com revestimento térmico, janela e banheiro - L = 2,44 m e C = 12,90 m (2 TEU) | C52: un | D52: 142976.537
A53: M0067 | B53: Tubo PEAD PE 100 PN 10 com flanges - D = 160 mm | C53: m | D53: 148.6562
A54: M0068 | B54: Caibro de pinho - L = 7,5 cm e E = 10,0 cm | C54: m | D54: 26.7857
A55: M0069 | B55: Arame farpado em aço galvanizado - D = 1,60 mm | C55: m | D55: 0.7283
A56: M0071 | B56: Contêiner com 3 janelas para guarita - L = 2,44 m e C = 3,05 m (1/2 TEU) | C56: un | D56: 51409.5321
A57: M0072 | B57: Arame liso em aço galvanizado - D = 2,10 mm (14 BWG) | C57: kg | D57: 15.5237
A58: M0073 | B58: Muda de árvore com altura de 0,30 a 0,80 m | C58: un | D58: 19.548
A59: M0074 | B59: Muda de arbusto com altura até 0,50 m | C59: un | D59: 22.5979
A60: M0075 | B60: Arame liso recozido em aço-carbono - D = 1,24 mm (18 BWG) | C60: kg | D60: 9.2649
A61: M0076 | B61: Disco de corte abrasivo para policorte - D = 300 mm | C61: un | D61: 21.1732
A62: M0080 | B62: Areia fina | C62: m³ | D62: 98.5726
A63: M0081 | B63: Areia grossa | C63: m³ | D63: 80.8117
A64: M0082 | B64: Areia média lavada | C64: m³ | D64: 93.769
A65: M0083 | B65: Argamassa pré-dosada para grauteamento | C65: kg | D65: 2.1043
A66: M0084 | B66: Argamassa pré-dosada autoadensável para grauteamento | C66: kg | D66: 2.1743
A67: M0085 | B67: Ancoragem ativa para 4 cordoalhas - D = 12,7 mm | C67: un | D67: 382.2856
A68: M0086 | B68: Ancoragem ativa para 6 cordoalhas - D = 12,7 mm | C68: un | D68: 494.7457
A69: M0087 | B69: Ancoragem ativa para 7 cordoalhas - D = 12,7 mm | C69: un | D69: 571.4852
A70: M0088 | B70: Ancoragem ativa para 8 cordoalhas - D = 12,7 mm | C70: un | D70: 740.5846
A71: M0089 | B71: Ancoragem ativa para 9 cordoalhas - D = 12,7 mm | C71: un | D71: 754.1917
A72: M0091 | B72: Ancoragem ativa para 10 cordoalhas - D = 12,7 mm | C72: un | D72: 838.2388
A73: M0092 | B73: Ancoragem ativa para 12 cordoalhas - D = 12,7 mm | C73: un | D73: 1008.2853
A74: M0093 | B74: Ancoragem ativa para 15 cordoalhas - D = 12,7 mm | C74: un | D74: 1469.997
A75: M0094 | B75: Ancoragem ativa para 19 cordoalhas - D = 12,7 mm | C75: un | D75: 1868.5391
A76: M0098 | B76: Bambu com diâmetro médio de 10 cm | C76: m | D76: 25.0201
A77: M0099 | B77: Equipamentos para a fábrica de dormentes de concreto protendido | C77: ISF | D77: 584.689
A78: M0100 | B78: Ancoragem ativa para 22 cordoalhas - D = 12,7 mm | C78: un | D78: 2419.8734
A79: M0101 | B79: Ancoragem ativa para 27 cordoalhas - D = 12,7 mm | C79: un | D79: 2959.6705
A80: M0102 | B80: Ancoragem ativa para 31 cordoalhas - D = 12,7 mm | C80: un | D80: 3008.998
A81: M0103 | B81: Aditivo acelerador de pega para concreto e argamassa projetados | C81: kg | D81: 8.7014
A82: M0104 | B82: Asfalto diluído de petróleo - CM-30 | C82: t | D82: -
A83: M0105 | B83: Ancoragem ativa para 4 cordoalhas - D = 15,2 mm | C83: un | D83: 540.5815
A84: M0106 | B84: Ancoragem ativa para 6 cordoalhas - D = 15,2 mm | C84: un | D84: 631.5327
A85: M0107 | B85: Geocomposto para drenagem | C85: m² | D85: 50.1041
A86: M0108 | B86: Ancoragem ativa para 7 cordoalhas - D = 15,2 mm | C86: un | D86: 713.7664
A87: M0109 | B87: Geodreno vertical - L = 10 cm e E = 5 mm | C87: m | D87: 5.18
A88: M0110 | B88: Ancoragem ativa para 10 cordoalhas - D = 15,2 mm | C88: un | D88: 1147.6328
A89: M0111 | B89: Ancoragem ativa para 9 cordoalhas - D = 15,2 mm | C89: un | D89: 1023.0803
A90: M0112 | B90: Disco diamantado segmentado para corte de pavimento - D = 1.000 mm | C90: un | D90: 5881.0277
A91: M0113 | B91: Ancoragem ativa para 12 cordoalhas - D = 15,2 mm | C91: un | D91: 1347.1292
A92: M0114 | B92: Disco diamantado segmentado para corte de pavimento - D = 1.500 mm | C92: un | D92: 26165.5741
A93: M0115 | B93: Biomanta vegetal de fibras de coco entrelaçadas com fios de polipropileno biodegradáveis - densidade 0,4 kg/m² | C93: m² | D93: 6.5
A94: M0116 | B94: Mangote flangeado de borracha reforçada com lonas sintéticas - C = 1,80 m e D = 0,30 m | C94: un | D94: 10555.9813
A95: M0117 | B95: Mangote flangeado de borracha reforçada com lonas sintéticas - C = 1,80 m e D = 0,40 m | C95: un | D95: 18262.0736
A96: M0118 | B96: Mangote flangeado de borracha reforçada com lonas sintéticas - C = 1,80 m e D = 0,45 m | C96: un | D96: 25385.853
A97: M0119 | B97: Mangote flangeado de borracha reforçada com lonas sintéticas - C = 1,80 m e D = 0,50 m | C97: un | D97: 30042.146
A98: M0120 | B98: Tubo PEAD PE 100 PN 8 com flanges - D = 250 mm | C98: m | D98: 327.3507
A99: M0121 | B99: Tubo PEAD PE 100 PN 8 com flanges - D = 400 mm | C99: m | D99: 2101.7656
A100: M0122 | B100: Tubo PEAD PE 100 PN 8 com flanges - D = 450 mm | C100: m | D100: 2639.8971
A101: M0123 | B101: Tubo PEAD PE 100 PN 8 com flanges - D = 500 mm | C101: m | D101: 2956.034
A102: M0124 | B102: Flutuador bipartido em polietileno com núcleo de espuma em poliuretano para tubos - D = 0,30 m | C102: un | D102: 4823.7733
A103: M0125 | B103: Flutuador bipartido em polietileno com núcleo de espuma em poliuretano para tubos - D = 0,40 m | C103: un | D103: 6672.8777
A104: M0126 | B104: Flutuador bipartido em polietileno com núcleo de espuma em poliuretano para tubos - D = 0,45 m | C104: un | D104: 7676.4675
A105: M0127 | B105: Flutuador bipartido em polietileno com núcleo de espuma em poliuretano para tubos - D = 0,50 m | C105: un | D105: 8281.1957
A106: M0128 | B106: Biomanta vegetal de fibras de palha entrelaçadas com fios de polipropileno biodegradáveis - densidade 0,6 kg/m² | C106: m² | D106: 5.9
A107: M0129 | B107: Retentor de sedimento em fibras vegetais - D = 20 cm | C107: m | D107: 66.5409
A108: M0130 | B108: Ancoragem ativa para 15 cordoalhas - D = 15,2 mm | C108: un | D108: 1789.5534
A109: M0131 | B109: Tubo PEAD corrugado com paredes estruturadas para drenagem - D = 400 mm | C109: m | D109: 247.4086
A110: M0132 | B110: Tubo PEAD corrugado com paredes estruturadas para drenagem - D = 450 mm | C110: m | D110: 311.9123
A111: M0133 | B111: Tubo PEAD corrugado com paredes estruturadas para drenagem - D = 500 mm | C111: m | D111: 407.4463
A112: M0134 | B112: Tubo PEAD corrugado com paredes estruturadas para drenagem - D = 600 mm | C112: m | D112: 593.8368
A113: M0135 | B113: Tubo PEAD corrugado com paredes estruturadas para drenagem - D = 750 mm | C113: m | D113: 840.6907
A114: M0136 | B114: Tubo PEAD corrugado com paredes estruturadas para drenagem - D = 800 mm | C114: m | D114: 886.1224
A115: M0137 | B115: Tubo PEAD corrugado com paredes estruturadas para drenagem - D = 900 mm | C115: m | D115: 1191.1433
A116: M0138 | B116: Ancoragem ativa para 19 cordoalhas - D = 15,2 mm | C116: un | D116: 2337.2214
A117: M0139 | B117: Tubo PEAD corrugado com paredes estruturadas para drenagem - D = 1.000 mm | C117: m | D117: 1555.3427
A118: M0140 | B118: Bentonita | C118: kg | D118: 3.6404
A119: M0141 | B119: Tubo PEAD corrugado com paredes estruturadas para drenagem - D = 1.050 mm | C119: m | D119: 1615.3582
A120: M0142 | B120: Tubo PEAD corrugado com paredes estruturadas para drenagem - D = 1.200 mm | C120: m | D120: 2184.9213
A121: M0143 | B121: Tubo PEAD corrugado com paredes estruturadas para drenagem - D = 1.500 mm | C121: m | D121: 2786.3984
A122: M0145 | B122: Ancoragem ativa para 22 cordoalhas - D = 15,2 mm | C122: un | D122: 3014.6317
A123: M0146 | B123: Ancoragem ativa para 27 cordoalhas - D = 15,2 mm | C123: un | D123: 3955.9977
A124: M0148 | B124: Ancoragem ativa para lajes para 1 cordoalha - D = 12,7 mm | C124: un | D124: 81.7799
A125: M0151 | B125: Ancoragem ativa para lajes para 2 cordoalhas - D = 12,7 mm | C125: un | D125: 159.3872
A126: M0152 | B126: Ancoragem ativa para lajes para 3 cordoalhas - D = 12,7 mm | C126: un | D126: 219.2865
A127: M0153 | B127: Ancoragem ativa para lajes para 4 cordoalhas - D = 12,7 mm | C127: un | D127: 301.974
A128: M0156 | B128: Bloco de concreto - L = 19 cm, A = 19 cm e C = 39 cm | C128: un | D128: 4.7
A129: M0158 | B129: Tela metálica galvanizada dobrada em L - C = 2,0 m, L = 0,4 m e H = 0,4 m | C129: un | D129: 465.7743
A130: M0160 | B130: Extintor de incêndio tipo espuma mecânica - V = 10 l | C130: un | D130: 638.0132
A131: M0161 | B131: Barra de fibra de vidro (vergalhão) - D = 25,0 mm | C131: m | D131: 58.5743
A132: M0162 | B132: Corrente de elo soldado em aço galvanizado com acabamento polido - D = 3,18 mm (1/8") | C132: m | D132: 7.3698
A133: M0163 | B133: Gonzo com aba em aço galvanizado - D = 12,7 mm (1/2") | C133: un | D133: 2.4246
A134: M0164 | B134: Tubo em aço galvanizado - E = 1,50 mm e seção de 20 x 20 mm | C134: m | D134: 11.9452
A135: M0166 | B135: Tubo em aço galvanizado - E = 2,25 mm e D = 20 mm (3/4") | C135: m | D135: 27.8456
A136: M0167 | B136: Tela de poliamida industrial - E = 0,40 mm e malha de 1,6 mm | C136: m² | D136: 14.3307
A137: M0168 | B137: Abraçadeira de poliamida - E = 3,6 mm e C = 200 mm | C137: un | D137: 0.2082
A138: M0169 | B138: Roda em aço e pneu com câmara de ar 83/203 mm (3,25"/8") para carrinho de mão | C138: un | D138: 75.155
A139: M0173 | B139: Ancoragem ativa para lajes para 1 cordoalha - D = 15,2 mm | C139: un | D139: 95.7231
A140: M0178 | B140: Ancoragem ativa para lajes para 2 cordoalhas - D = 15,2 mm | C140: un | D140: 207.6619
A141: M0181 | B141: Ancoragem ativa para lajes para 3 cordoalhas - D = 15,2 mm | C141: un | D141: 261.7385
A142: M0184 | B142: Ancoragem ativa para lajes para 4 cordoalhas - D = 15,2 mm | C142: un | D142: 363.2585
A143: M0191 | B143: Brita 1 | C143: m³ | D143: 170.2025
A144: M0192 | B144: Brita 2 | C144: m³ | D144: 159.7788
A145: M0193 | B145: Brita 3 | C145: m³ | D145: 153.0019
A146: M0194 | B146: Escória de aciaria | C146: m³ | D146: 14.7062
A147: M0198 | B147: Parafuso de cabeça chata em aço - D = 4,5 mm e bucha plástica - D = 8 mm (S8) | C147: un | D147: 0.3443
A148: M0199 | B148: Coroa de botões cruzados linha R32 - D = 43 mm (1 11/16’’) | C148: un | D148: 339.7643
A149: M0201 | B149: Coroa de botões esféricos linha T38 - D = 89 mm (3 1/2") | C149: un | D149: 869.6048
A150: M0202 | B150: Coroa de botões esféricos linha T45 - D = 76 mm (3") | C150: un | D150: 781.2902
A151: M0204 | B151: Instalações físicas para a central de pré-moldagem de dormentes de concreto protendido | C151: CMCC | D151: 1851.56
A152: M0217 | B152: Enxofre | C152: kg | D152: 3.5083
A153: M0220 | B153: Adubo à base de nitrogênio, fósforo e potássio (NPK) | C153: kg | D153: 2.8992
A154: M0222 | B154: Filer calcário | C154: kg | D154: 0.2017
A155: M0223 | B155: Sementes para hidrossemeadura | C155: kg | D155: 30.1158
A156: M0224 | B156: Guia-chapéu pré-moldada - C = 120 cm | C156: un | D156: 58.616
A157: M0225 | B157: Adubo orgânico composto | C157: kg | D157: 0.2624
A158: M0229 | B158: Gabião tipo colchão em liga de zinco e alumínio revestido com polímero de malha hexagonal - E = 0,17 m | C158: m² | D158: 171.2378
A159: M0230 | B159: Gabião tipo caixa em liga de zinco e alumínio de malha hexagonal - C = 2,00 m, L = 1,00 m e H = 0,50 m | C159: un | D159: 540.3141
A160: M0231 | B160: Gabião tipo caixa em liga de zinco e alumínio de malha hexagonal - C = 2,00 m, L = 1,00 m e H = 1,00 m | C160: un | D160: 816.0964
A161: M0232 | B161: Gabião tipo caixa em liga de zinco e alumínio revestido com polímero de malha hexagonal - C = 2,00 m, L = 1,00 m e H = 0,50 m | C161: un | D161: 663.7188
A162: M0233 | B162: Gabião tipo caixa em liga de zinco e alumínio revestido com polímero de malha hexagonal - C = 2,00 m, L = 1,00 m e H = 1,00 m | C162: un | D162: 965.8171
A163: M0234 | B163: Gabião tipo saco em liga de zinco e alumínio revestido com polímero de malha hexagonal - D = 0,65 m | C163: m³ | D163: 492.6243
A164: M0235 | B164: Gabião tipo colchão em liga de zinco e alumínio revestido com polímero de malha hexagonal - E = 0,23 m | C164: m² | D164: 179.0891
A165: M0236 | B165: Gabião tipo colchão em liga de zinco e alumínio revestido com polímero de malha hexagonal - E = 0,30 m | C165: m² | D165: 205.4272
A166: M0237 | B166: Energia elétrica | C166: kWh | D166: 1.1186
A167: M0253 | B167: Cabo de cobre flexível antichama isolado em PVC - tensão de 450/750 V e seção de 16 mm² | C167: m | D167: 14.3675
A168: M0254 | B168: Mistura gasosa de argônio e dióxido de carbono para solda MIG/MAG | C168: m³ | D168: 55.4265
A169: M0256 | B169: Tinta à base de etil silicato de zinco bicomponente para fundo preparador de pintura | C169: l | D169: 251.4673
A170: M0257 | B170: Diluente para tinta à base de etil silicato de zinco | C170: l | D170: 37.1064
A171: M0260 | B171: Cabo de cobre PP flexível isolado em PVC - tensão de 300/500 V e seção de 3 x 1,5 mm² | C171: m | D171: 4.9743
A172: M0264 | B172: Bomba de combustível industrial eletrônica simples | C172: un | D172: 30953.5435
A173: M0265 | B173: Tanque de combustível aéreo horizontal com escada para visita - capacidade de 5.000 l | C173: un | D173: 19210.3081
A174: M0266 | B174: Cabo de cobre flexível antichama isolado em PVC - tensão de 0,6/1,0 kV e seção de 240 mm² | C174: m | D174: 189.6445
A175: M0267 | B175: Módulo de torre de elevador de cremalheira | C175: un | D175: 3642.4726
A176: M0268 | B176: Módulo de ancoragem de torre de elevador de cremalheira | C176: un | D176: 2838.8312
A177: M0269 | B177: Cabo de cobre flexível antichama isolado em PVC - tensão de 0,6/1,0 kV e seção de 50 mm² | C177: m | D177: 39.6098
A178: M0284 | B178: Caibro de pinho - L = 7,5 cm e E = 7,5 cm | C178: m | D178: 20.0893
A179: M0285 | B179: Pontalete para escoramento - D = 15 cm | C179: m | D179: 7.6074
A180: M0286 | B180: Tábua - E = 2,5 cm e L = 30 cm | C180: m | D180: 17.0556
A181: M0289 | B181: Tábua - E = 2,5 cm e L = 15 cm | C181: m | D181: 8.0085
A182: M0290 | B182: Tábua - E = 2,5 cm e L = 10 cm | C182: m | D182: 5.1695
A183: M0291 | B183: Estrutura modular com 2 banheiros - L = 2,44 m e C = 6,06 m (1 TEU) | C183: un | D183: 81188.9442
A184: M0292 | B184: Estrutura modular com janela - L = 2,44 m e C = 6,06 m (1 TEU) | C184: un | D184: 66172.0635
A185: M0293 | B185: Estrutura modular com janela - L = 4,88 m e C = 6,06 m (1 TEU duplo) | C185: un | D185: 134116.8606
A186: M0294 | B186: Estrutura modular com janela e 2 banheiros - L = 4,88 m e C = 6,06 m (1 TEU duplo) | C186: un | D186: 134665.8936
A187: M0295 | B187: Estrutura modular com revestimento térmico, janela e banheiro - L = 2,44 m e C = 6,06 m (1 TEU) | C187: un | D187: 74381.6185
A188: M0296 | B188: Estrutura modular com revestimento térmico, janela e banheiro - L = 2,44 m e C = 12,19 m (2 TEU) | C188: un | D188: 141856.5791
A189: M0297 | B189: Estrutura modular com 3 janelas para guarita - L = 2,44 m e C = 3,05 m (1/2 TEU) | C189: un | D189: 41145.1367
A190: M0301 | B190: Pontalete para escoramento - D = 10 cm | C190: m | D190: 3.3827
A191: M0310 | B191: Peça de madeira - L = 7,5 cm e E = 2,5 cm | C191: m | D191: 7.1428
A192: M0311 | B192: Filtro de aspiração de ar externo com capacidade 3,58 l/s para compressor de ar respirável | C192: un | D192: 333.7865
A193: M0312 | B193: Filtro de purificação de ar comprimido com capacidade de 35 MPa para compressor de ar respirável | C193: un | D193: 317.0398
A194: M0344 | B194: Cal hidratada - a granel | C194: kg | D194: 0.5377
A195: M0345 | B195: Cal hidratada - saco | C195: kg | D195: 0.8
A196: M0346 | B196: Disco de aço para bomba de projeção via seca | C196: un | D196: 372.0742
A197: M0347 | B197: Disco de aço para bomba de projeção via úmida | C197: un | D197: 1560.3421
A198: M0348 | B198: Disco de borracha para bomba de projeção via seca | C198: un | D198: 301.3821
A199: M0349 | B199: Disco de borracha para bomba de projeção via úmida | C199: un | D199: 702.4987
A200: M0350 | B200: Bico para bomba de projeção | C200: un | D200: 296.6728
... 6292 more rows

Sheet SINTÉTICO SICRO
A1: CGCIT | B1: SISTEMA DE CUSTOS REFERENCIAIS DE OBRAS - SICRO | D1: DNIT
B2: Piauí - Julho/2025
A3: Código | B3: Descrição do Serviço | C3: Unidade | D3: Custo Unitário (R$)
A4: 307731 | B4: Aparelho de apoio de neoprene fretado para estruturas moldadas no local - fornecimento e instalação | C4: dm³ | D4: 150.31
A5: 307732 | B5: Aparelho de apoio de neoprene fretado para estruturas pré-moldadas - fornecimento e instalação | C5: dm³ | D5: 125.05
A6: 308308 | B6: Aparelho de apoio metálico elastomérico fixo com capacidade de 1.500 kN - fornecimento e instalação | C6: un | D6: 5251.05
A7: 308313 | B7: Aparelho de apoio metálico elastomérico fixo com capacidade de 10.000 kN - fornecimento e instalação | C7: un | D7: 32319.84
A8: 308309 | B8: Aparelho de apoio metálico elastomérico fixo com capacidade de 2.500 kN - fornecimento e instalação | C8: un | D8: 8695.57
A9: 308310 | B9: Aparelho de apoio metálico elastomérico fixo com capacidade de 4.000 kN - fornecimento e instalação | C9: un | D9: 11621.52
A10: 308311 | B10: Aparelho de apoio metálico elastomérico fixo com capacidade de 5.500 kN - fornecimento e instalação | C10: un | D10: 16478.47
